Workbook

Sheet Instructions
A2: Version 01.03.2016
B10: Extension Ag Economics
B11: Master Marketer
B12: Farm Assistance
B13: Market Outlook
B14: Futures Charts and Prices
B15: Introduction
A16: This tool requires Microsoft Excel. Budget cost estimates are not meant to represent any specific farm. They are averages, and serve as a starting point in your analysis. Due to differences in soil types and other resources that vary from farm to farm, it is important that you enter individualized crop cost estimates to achieve realistic results. To make long run decisions and determine farm business sustainability in future years, you will need to estimate fixed costs as well.
B27: From Sheet to Sheet
A28: Each crop budget (Irr Alfalfa, Irr Corn, etc) and analysis section (Prices, Break-Even, Comparative) is displayed on a separate tab/sheet. However, summary tables in the analyses portion of this spreadsheet are tied to the budgets by equations, and will immediately update as you make changes to the individual budgets.
A32: The Menu sheet provides direct access to all crop budgets and summary pages from one location. It also allows the user to select the crops and scenarios they wish to see in the analyses tabs. To return to the Menu or navigate to the Prices, Break-even, or Comparative sections, use the colored navigation bar at the top of each sheet.
A36: Click on the crop budget name at the bottom of the screen to move from tab to tab. To scroll left or right and get access to budgets not listed on the screen, use the four small triangles in the bottom left corner of the worksheet. Clicking on one of the triangles with a vertical line will take you to the first sheet or the last sheet. Clicking on one of the triangles in the center will move over one sheet either left or right.
B41: Entering Your Numbers
A42: To enter personalized data in a budget, click on the number in BLUE that you wish to change, type in the new entry and press the Enter key, or just use the mouse to click on the next number that needs changing. GREEN entries can only be altered in the Universal Input Prices sheet. If the meaning of a certain budget number is unclear, many have a red triangle beside the entry. Moving your mouse over the triangle will provide a more detailed explanation.
B47: Printing
A48: If visible, click on the printer icon above the screen. It is usually found on the second row from the top. This should print a copy of the worksheet currently being viewed. For multiple sheets, select the ones you wish to see by holding down the control key while left-clicking on each sheet/tab. Then, selecting the printer icon will print all chosen sheets. If the icon is not visible, choose the File menu and then Print from the upper left corner, then follow the same procedures as above.
B53: Saving Your Work
A54: If you want to keep the numbers entered for future sessions, all files must be saved. To do this, just click on the Save icon (disk) to replace the original information with your new data. If the Save icon is not visible, you can also select the File menu and then Save As and give the file a new name.

Sheet Menu
B3: Budgets | D3: Analysis Selection
B4: ='Irr Alfalfa'!$A$3 -> Irrigated Alfalfa
B5: ='Irr Blackeyes'!$A$3 -> Irrigated Blackeyed Peas
B6: ='Irr Corn'!$A$3 -> Irrigated Corn
B7: ='Irr Corn Silage'!$A$3 -> Irrigated Corn Silage
B8: ='Irr Cotton Drip'!$A$3 -> Irrigated Cotton - Drip
B9: ='Irr Cotton Pivot'!$A$3 -> Irrigated Cotton - Pivot
B10: Irrigated Guar
B11: ='Irr Peanuts'!$A$3 -> Irrigated Peanuts
B12: ='Irr Sesame'!$A$3 -> Irrigated Sesame
B13: ='Irr Sorghum'!$A$3 -> Irrigated Sorghum
B14: ='Irr Sorghum Silage'!$A$3 -> Irrigated Sorghum Silage
B15: ='Irr Soybeans'!$A$3 -> Irrigated Soybeans
B16: ='Irr Sunflowers-Confection'!$A$3 -> Irrigated Sunflowers-Confectionary
B17: ='Irr Sunflowers-Oilseed'!$A$3 -> Irrigated Sunflowers-Oilseed
B18: ='Irr Wheat'!$A$3 -> Irrigated Wheat
B20: ='Dry Cotton Conventional'!$A$3 -> Dryland Cotton - Conventional
B21: ='Dry Cotton HT'!$A$3 -> Dryland Cotton - Herbicide Tolerant
B22: Dryland Guar
B23: ='Dry Sesame'!$A$3 -> Dryland Sesame
B24: ='Dry Sorghum'!$A$3 -> Dryland Sorghum
B25: ='Dry Sunflowers-Oilseed'!$A$3 -> Dryland Sunflowers-Oilseed
B26: ='Dry Wheat'!$A$3 -> Dryland Wheat

Sheet 2016 Universal Input Prices
B2: Basic Universal Input Prices
B3: Commodity | C3: Price | D3: Unit | E3: Verified
B4: Alfalfa | C4: 190 | D4: /ton | E4: x
B5: Blackeyed Peas | C5: 0.35 | D5: /lb | E5: x
B6: Corn | C6: 4 | D6: /bu | E6: x
B7: Corn Silage | C7: 38 | D7: /ton | E7: x
B8: Cotton | C8: 0.6 | D8: /lb | E8: x
B9: Cottonseed | C9: 200 | D9: /ton | E9: x
B10: Guar | C10: 0.15 | D10: /lb
B11: Peanuts | C11: 400 | D11: /ton | E11: x
B12: Sesame - Irrigated | C12: 0.33 | D12: /lb | E12: x
B13: Sesame - Non-irrigated | C13: 0.33 | D13: /lb | E13: x
B14: Sorghum | C14: 6.85 | D14: /cwt | E14: x
B15: Sorghum Seed | C15: 14 | D15: /cwt | E15: x
B16: Sorghum Silage | C16: 34 | D16: /ton | E16: x
B17: Soybeans | C17: 8.5 | D17: /bu | E17: x
B18: Sunflower - Conf. (large) | C18: 0.24 | D18: /lb | E18: x
B19: Sunflower - Conf. (small) | C19: 0.16 | D19: /lb | E19: x
B20: Sunflower - Oil | C20: 0.14 | D20: /lb | E20: x
B21: Wheat | C21: 4.75 | D21: /bu | E21: x
B23: Grazing | C23: 0.45 | D23: /lb of gain
B25: Input Item | C25: Price | D25: Unit | F25: Fertilizer Worksheet
B26: Fertilizer | K26: Cost per ton
B27: fert (N) - dry | C27: =K27/J27/2000 -> 0.4184782609 | D27: /lb of N | F27: % N in Primary Nitrogen Fertilizer - dry | J27: 0.46 | K27: 385
B28: fert (N) - liquid | C28: 0.46875 | D28: /lb of N | F28: % N in Primary Nitrogen Fertilizer - liquid | J28: 0.32 | K28: 300
B29: fert (N) - NH3 | C29: =K29/J29/2000 -> 0.3658536585 | D29: /lb of N | F29: % N in Primary Nitrogen Fertilizer - NH3 | J29: 0.82 | K29: 600
B30: fert (P) - dry | C30: =K30/J30/2000 -> 0.5192307692 | D30: /lb of P | F30: % P in Primary Phosphate Fertilizer - dry | J30: 0.52 | K30: 540
B31: fert (P) - liquid | C31: =K31/J31/2000 -> 0.9044117647 | D31: /lb of P | F31: % P in Primary Phosphate Fertilizer - liquid | J31: 0.34 | K31: 615
B32: Labor | C32: 12 | D32: /hour
B33: Diesel Fuel - Tractors | C33: 1.5 | D33: /gallon
B34: Gasoline - Pickup | C34: 1.6 | D34: /gallon
B35: Irrigation Fuel | C35: 11 | D35: /acre-inch
B36: Interest-operating capital | C36: 0.065 | D36: APR
B37: Cotton
B38: Stripping & module | C38: 0.08 | D38: /lb. cotton lint
B39: Ginning | C39: 3.1 | D39: /cwt seed cotton
B40: Seed Turnout | C40: 710 | D40: lbs/500 lb bale

Sheet Irr Alfalfa
A2: Estimated Costs and Returns per Acre
A3: Irrigated Alfalfa
A4: Projected for 2016
H5: Rental Agreement | I5: Share
A6: Item | B6: Quantity | C6: Unit | D6: Price | E6: Owner | H6: Share | I6: Cash
E7: Share | F7: Total | G7: Operator | H7: Owner
A8: Income
A9: alfalfa hay | B9: 6 | C9: tons | D9: =Alfalfa_Price -> 190 | E9: 0.25 | F9: =D9*B9 -> 1140 | G9: =F9*(1-E9) -> 855 | H9: =IF(H6="Cash", D57,F9*E9) -> 285
A11: Total Income | F11: =SUM(F8:F10) -> 1140 | G11: =SUM(G8:G10) -> 855 | H11: =SUM(H8:H10) -> 285
A13: Variable Costs
A14: Seed
A15: alfalfa | B15: 0 | C15: lbs | D15: 4.25 | E15: 0 | F15: =D15*B15 -> 0 | G15: =F15*(1-E15) -> 0 | H15: =F15*E15 -> 0
A16: Fertilizer
A17: fert (P) - liquid | B17: 65 | C17: lbs | D17: =IF(A17="",0,VLOOKUP(A17,'2016 Universal Input Prices'!$B$27:$C$31, 2)) -> 0.9044117647 | E17: 0.25 | F17: =D17*B17 -> 58.78676471 | G17: =F17*(1-E17) -> 44.09007353 | H17: =F17*E17 -> 14.69669118
A18: fert (N) - liquid | B18: 30 | C18: lbs | D18: =IF(A18="",0,VLOOKUP(A18,'2016 Universal Input Prices'!$B$27:$C$31, 2)) -> 0.46875 | E18: 0.25 | F18: =D18*B18 -> 14.0625 | G18: =F18*(1-E18) -> 10.546875 | H18: =F18*E18 -> 3.515625
B19: 0 | C19: lbs | D19: =IF(A19="",0,VLOOKUP(A19,'2016 Universal Input Prices'!$B$27:$C$31, 2)) -> 0 | E19: 0 | F19: =D19*B19 -> 0 | G19: =F19*(1-E19) -> 0 | H19: =F19*E19 -> 0
A20: sulfur | B20: 12 | C20: lbs | D20: 0.12 | E20: 0.25 | F20: =D20*B20 -> 1.44 | G20: =F20*(1-E20) -> 1.08 | H20: =F20*E20 -> 0.36
A21: Field Operations
A22: herbicide & application | B22: 1 | C22: acre | D22: 22 | E22: 0 | F22: =D22*B22 -> 22 | G22: =F22*(1-E22) -> 22 | H22: =F22*E22 -> 0
A23: fertilizer application | B23: 1 | C23: acre | D23: 3.5 | E23: 0.25 | F23: =D23*B23 -> 3.5 | G23: =F23*(1-E23) -> 2.625 | H23: =F23*E23 -> 0.875
A24: insecticide & application | B24: 1 | C24: acre | D24: 25.9 | E24: 0.25 | F24: =D24*B24 -> 25.9 | G24: =F24*(1-E24) -> 19.425 | H24: =F24*E24 -> 6.475
A25: custom baling | B25: =$B$9 -> 6 | C25: tons | D25: 50 | E25: 0.25 | F25: =D25*B25 -> 300 | G25: =F25*(1-E25) -> 225 | H25: =F25*E25 -> 75
A26: crop consultant | B26: 1 | C26: acre | D26: 0 | E26: 0 | F26: =D26*B26 -> 0 | G26: =F26*(1-E26) -> 0 | H26: =F26*E26 -> 0
A27: scouting | B27: 1 | C27: acre | D27: 0 | E27: 0 | F27: 0 | G27: 0 | H27: 0
A28: other | B28: 1 | C28: acre | D28: 0 | E28: 0 | F28: 0 | G28: 0 | H28: 0
A29: other | B29: 1 | C29: acre | D29: 0 | E29: 0 | F29: 0 | G29: 0 | H29: 0
A30: other | B30: 1 | C30: acre | D30: 0 | E30: 0 | F30: 0 | G30: 0 | H30: 0
A31: Crop Insurance | B31: 1 | C31: acre | D31: 2.5 | E31: 0 | F31: 2.5 | G31: 2.5 | H31: 0
A32: Operator Labor & Hand Labor | B32: 1 | C32: hour | D32: ='2016 Universal Input Prices'!$C$32 -> 12 | E32: 0 | F32: 12 | G32: 12 | H32: 0
A33: Irrigation Labor | B33: 1.25 | C33: hours | D33: ='2016 Universal Input Prices'!$C$32 -> 12 | E33: 0 | F33: 15 | G33: 15 | H33: 0
A34: Diesel Fuel - Tractors | B34: 2 | C34: gallons | D34: ='2016 Universal Input Prices'!$C$33 -> 1.5 | E34: 0 | F34: 3 | G34: 3 | H34: 0
A35: Gasoline - Pickup | B35: 0 | C35: gallons | D35: ='2016 Universal Input Prices'!$C$34 -> 1.6 | E35: 0 | F35: 0 | G35: 0 | H35: 0
A36: Irrigation Fuel | B36: 24 | C36: ac-in | D36: ='2016 Universal Input Prices'!$C$35 -> 11 | E36: 0 | F36: =D36*B36 -> 264 | G36: =F36*(1-E36) -> 264 | H36: =F36*E36 -> 0
A37: Pumping Days | B37: 56.57
A38: Calculated GPM capacity per acre needed | B38: =B36*18.85694/B37 -> 8.000115963
A39: Repair & Maintenance
A40: Implements | B40: 1 | C40: acre | D40: 3 | E40: 0 | F40: =D40*B40 -> 3 | G40: =F40*(1-E40) -> 3 | H40: =F40*E40 -> 0
A41: Tractors | B41: 1 | C41: acre | D41: 6 | E41: 0 | F41: =D41*B41 -> 6 | G41: =F41*(1-E41) -> 6 | H41: =F41*E41 -> 0
A42: Irrigation-Above Ground | B42: =B36 -> 24 | C42: ac-in | D42: 1 | E42: 0 | F42: =D42*B42 -> 24 | G42: =F42*(1-E42) -> 24 | H42: =F42*E42 -> 0
A43: Irrigation-Below Ground | B43: 1 | C43: acre | D43: 18 | E43: 1 | F43: =D43*B43 -> 18 | G43: =F43*(1-E43) -> 0 | H43: =F43*E43 -> 18
A44: Pickup | B44: 1 | C44: acre | D44: 0.5 | E44: 0 | F44: =D44*B44 -> 0.5 | G44: =F44*(1-E44) -> 0.5 | H44: =F44*E44 -> 0
A45: Interest-operating capital | B45: ='2016 Universal Input Prices'!$C$36 -> 0.065 | F45: =(SUM(F15:F24,F26:F44))*$B45/2 -> 15.3949011 | G45: =(SUM(G15:G24,G26:G44))*$B45/2 -> 13.96742583 | H45: 1.427475276
A47: Total Variable Costs | F47: =SUM(F15:F46) -> 789.0841658 | G47: =SUM(G15:G45) -> 668.7343744 | H47: =SUM(H15:H45) -> 120.3497915
A48: Returns Above Variable Costs | F48: =F11-F47 -> 350.9158342 | G48: =G11-G47 -> 186.2656256 | H48: =H11-H47 -> 164.6502085
A50: Fixed Costs
A51: Implements | B51: 1 | C51: acre | D51: 10 | E51: 0 | F51: =D51*B51 -> 10 | G51: =F51*(1-E51) -> 10 | H51: =F51*E51 -> 0
A52: Tractors | B52: 1 | C52: acre | D52: 12 | E52: 0 | F52: 12 | G52: 12 | H52: 0
A53: Irrigation-Above Ground | B53: 1 | C53: acre | D53: 40 | E53: 1 | F53: 40 | G53: 0 | H53: 40
A54: Irrigation-Below Ground | B54: 1 | C54: acre | D54: 15 | E54: 1 | F54: 15 | G54: 0 | H54: 15
A55: Pickup | B55: 1 | C55: acre | D55: 1.25 | E55: 0 | F55: 1.25 | G55: 1.25 | H55: 0
A56: Management | B56: 1 | C56: acre | D56: 25 | E56: 0 | F56: 25 | G56: 25 | H56: 0
A57: Whole Farm Insurance | B57: 1 | C57: acre | D57: 2 | E57: 0 | F57: 2 | G57: 2 | H57: 0
A58: Land | B58: 1 | C58: acre | D58: 75 | E58: 1 | F58: 75 | G58: =IF($H$6="Cash",D58,F58*(1-E58)) -> 0 | H58: =IF($H$6="Cash",0,F58*E58) -> 75
A59: Property Tax | B59: 1 | C59: acre | D59: 9 | E59: 1 | F59: 9 | G59: 0 | H59: 9
A60: Perenial Crop Establishment | B60: 1 | C60: acre | D60: 98 | E60: 0 | F60: =B60*D60 -> 98 | G60: =F60*(1-E60) -> 98 | H60: =F60*E60 -> 0
A61: Total Fixed Costs | F61: =SUM(F51:F60) -> 287.25 | G61: =SUM(G51:G60) -> 148.25 | H61: =SUM(H51:H60) -> 139
A62: Total Specified Costs | F62: =F47+F61 -> 1076.334166 | G62: =G47+G61 -> 816.9843744 | H62: =H47+H61 -> 259.3497915
A63: Returns Above Total Specified Costs | F63: =F11-F62 -> 63.66583419 | G63: =G11-G62 -> 38.01562564 | H63: =H11-H62 -> 25.65020855
A65: If you have questions, contact Jackie Smith at 806-746-6101
A68: Supported by a grant from the
A69: Texas Cotton State Support Committee

Sheet Irr Blackeyes
A2: Estimated Costs and Returns per Acre
A3: Irrigated Blackeyed Peas
A4: Projected for 2016
H5: Rental Agreement
A6: Item | B6: Quantity | C6: Unit | D6: Price | E6: Owner | H6: Share | I6: Cash
E7: Share | F7: Total | G7: Operator | H7: Owner
A8: Income
A9: blackeyed peas | B9: 1850 | C9: lbs | D9: =Blackeye_Price -> 0.35 | E9: 0.25 | F9: =D9*B9 -> 647.5 | G9: =F9*(1-E9) -> 485.625 | H9: =IF(H6="Cash", D57,F9*E9) -> 161.875
A11: Total Income | F11: =SUM(F9:F10) -> 647.5 | G11: =SUM(G9:G10) -> 485.625 | H11: =SUM(H9:H10) -> 161.875
A13: Direct Costs
A14: Seed | B14: 50 | C14: lbs | D14: 0.45 | E14: 0 | F14: =D14*B14 -> 22.5 | G14: =F14*(1-E14) -> 22.5 | H14: =F14*E14 -> 0
A15: Fertilizer
A16: fert (N) - liquid | B16: 40 | C16: lbs | D16: =IF(A16="",0,VLOOKUP(A16,'2016 Universal Input Prices'!$B$27:$C$31, 2)) -> 0.46875 | E16: 0.25 | F16: =D16*B16 -> 18.75 | G16: =F16*(1-E16) -> 14.0625 | H16: =F16*E16 -> 4.6875
B17: 0 | C17: lbs | D17: =IF(A17="",0,VLOOKUP(A17,'2016 Universal Input Prices'!$B$27:$C$31, 2)) -> 0 | E17: 0 | F17: =D17*B17 -> 0 | G17: =F17*(1-E17) -> 0 | H17: =F17*E17 -> 0
B18: 0 | C18: lbs | D18: =IF(A18="",0,VLOOKUP(A18,'2016 Universal Input Prices'!$B$27:$C$31, 2)) -> 0 | E18: 0 | F18: =D18*B18 -> 0 | G18: =F18*(1-E18) -> 0 | H18: =F18*E18 -> 0
A19: Field Operations
A20: herbicide | B20: 1 | C20: acre | D20: 10 | E20: 0 | F20: =D20*B20 -> 10 | G20: =F20*(1-E20) -> 10 | H20: =F20*E20 -> 0
A21: fert application | B21: 0 | C21: acre | D21: 0 | E21: 0 | F21: 0 | G21: 0 | H21: 0
A22: insecticide | B22: 0 | C22: acre | D22: 0 | E22: 0.25 | F22: 0 | G22: 0 | H22: 0
A23: custom harvest & haul | B23: =B9/100 -> 18.5 | C23: cwt | D23: 0.2 | E23: 0.25 | F23: 3.7 | G23: 2.775 | H23: 0.925
A24: custom harvest & haul | B24: 1 | C24: acre | D24: 30 | E24: 0.25 | F24: 30 | G24: 22.5 | H24: 7.5
A25: hoeing | B25: 1 | C25: acre | D25: 15 | E25: 0 | F25: 15 | G25: 15 | H25: 0
A26: scouting | B26: 1 | C26: acre | D26: 0 | E26: 0 | F26: 0 | G26: 0 | H26: 0
A27: fungicide | B27: 1 | C27: acre | D27: 12 | E27: 0.25 | F27: 12 | G27: 9 | H27: 3
A28: other | B28: 1 | C28: acre | D28: 0 | E28: 0 | F28: 0 | G28: 0 | H28: 0
A29: other | B29: 1 | C29: acre | D29: 0 | E29: 0 | F29: 0 | G29: 0 | H29: 0
A30: Crop Insurance | B30: 1 | C30: acre | D30: 24 | E30: 0.25 | F30: 24 | G30: 18 | H30: 6
A31: Operator Labor | B31: 1 | C31: hours | D31: ='[1]2013 Universal Input Prices'!$C$30 -> 10.5 | E31: 0 | F31: 10.5 | G31: 10.5 | H31: 0
A32: Irrigation Labor | B32: 0.75 | C32: hours | D32: ='[1]2013 Universal Input Prices'!$C$30 -> 10.5 | E32: 0 | F32: 7.875 | G32: 7.875 | H32: 0
A33: Diesel Fuel - Tractors | B33: 2.4 | C33: gallons | D33: ='[1]2013 Universal Input Prices'!$C$31 -> 3.4 | E33: 0 | F33: 8.16 | G33: 8.16 | H33: 0
A34: Gasoline - Pickup | B34: 2 | C34: gallons | D34: ='[1]2013 Universal Input Prices'!$C$32 -> 3.4 | E34: 0 | F34: 6.8 | G34: 6.8 | H34: 0
A35: Irrigation Fuel | B35: 8 | C35: ac-in | D35: ='[1]2013 Universal Input Prices'!$C$33 -> 9 | E35: 0 | F35: 72 | G35: 72 | H35: 0
A36: Pumping Days | B36: 60.4
A37: Calculated GPM capacity per acre needed | B37: =B35*18.85694/B36 -> 2.497607947
A38: Repair & Maintenance
A39: Implements | B39: 1 | C39: acre | D39: 3 | E39: 0 | F39: =D39*B39 -> 3 | G39: =F39*(1-E39) -> 3 | H39: =F39*E39 -> 0
A40: Tractors | B40: 1 | C40: acre | D40: 6 | E40: 0 | F40: =D40*B40 -> 6 | G40: =F40*(1-E40) -> 6 | H40: =F40*E40 -> 0
A41: Irrigation-Above Ground | B41: 1 | C41: acre | D41: 8 | E41: 0 | F41: =D41*B41 -> 8 | G41: =F41*(1-E41) -> 8 | H41: =F41*E41 -> 0
A42: Irrigation-Below Ground | B42: 1 | C42: acre | D42: 6 | E42: 1 | F42: =D42*B42 -> 6 | G42: =F42*(1-E42) -> 0 | H42: =F42*E42 -> 6
A43: Pickup | B43: 1 | C43: acre | D43: 0.5 | E43: 0 | F43: =D43*B43 -> 0.5 | G43: =F43*(1-E43) -> 0.5 | H43: =F43*E43 -> 0
A44: Interest-operating capital | B44: ='[1]2013 Universal Input Prices'!$C$34 -> 0.06 | F44: =(SUM(F14:F22,F25:F43))*$B44/2 -> 6.93255 | G44: =(SUM(G14:G22,G25:G43))*$B44/2 -> 6.341925 | H44: =(SUM(H14:H22,H25:H43))*$B44/2 -> 0.590625
A46: Total Direct Costs | F46: =SUM(F14:F44) -> 271.71755 | G46: =SUM(G14:G44) -> 243.014425 | H46: =SUM(H14:H44) -> 28.703125
A47: Returns Above Direct Costs | F47: =F11-F46 -> 375.78245 | G47: =G11-G46 -> 242.610575 | H47: =H11-H46 -> 133.171875
A49: Fixed Costs
A50: Implements | B50: 1 | C50: acre | D50: 10 | E50: 0 | F50: =D50*B50 -> 10 | G50: =F50*(1-E50) -> 10 | H50: =F50*E50 -> 0
A51: Tractors | B51: 1 | C51: acre | D51: 12 | E51: 0 | F51: 12 | G51: 12 | H51: 0
A52: Irrigation-Above Ground | B52: 1 | C52: acre | D52: 40 | E52: 1 | F52: 40 | G52: 0 | H52: 40
A53: Irrigation-Below Ground | B53: 1 | C53: acre | D53: 15 | E53: 1 | F53: 15 | G53: 0 | H53: 15
A54: Pickup | B54: 1 | C54: acre | D54: 1.25 | E54: 0 | F54: 1.25 | G54: 1.25 | H54: 0
A55: Management | B55: 1 | C55: acre | D55: 25 | E55: 0 | F55: 25 | G55: 25 | H55: 0
A56: Whole Farm Insurance | B56: 1 | C56: acre | D56: 2 | E56: 0 | F56: =B56*D56 -> 2 | G56: 2 | H56: 0
A57: Land | B57: 1 | C57: acre | D57: 75 | E57: 1 | F57: =D57*B57 -> 75 | G57: =IF($H$6="Cash",D57,F57*(1-E57)) -> 0 | H57: =IF($H$6="Cash",0,F57*E57) -> 75
A58: Property Tax | B58: 1 | C58: acre | D58: 9 | E58: 1 | F58: =B58*D58 -> 9 | G58: =F58*(1-E58) -> 0 | H58: =F58*E58 -> 9
A59: Total Fixed Expenses | F59: =SUM(F50:F58) -> 189.25 | G59: =SUM(G50:G58) -> 50.25 | H59: =SUM(H50:H58) -> 139
A60: Total Specified Expenses | F60: =F46+F59 -> 460.96755 | G60: =G46+G59 -> 293.264425 | H60: =H46+H59 -> 167.703125
A61: Returns Above Total Specified Expenses | F61: =F11-F60 -> 186.53245 | G61: =G11-G60 -> 192.360575 | H61: =H11-H60 -> -5.828125
A63: If you have questions, contact Jackie Smith at 806-746-6101
A66: Supported by a grant from the
A67: Texas Cotton State Support Committee

Sheet Irr Corn
A2: Estimated Costs and Returns per Acre
A3: Irrigated Corn
A4: Projected for 2016
H5: Rental Agreement | I5: Share
A6: Item | B6: Quantity | C6: Unit | D6: Price | E6: Owner | H6: Share | I6: Cash
E7: Share | F7: Total | G7: Operator | H7: Owner
A8: Income
A9: corn grain | B9: 210 | C9: bu | D9: ='2016 Universal Input Prices'!$C$6 -> 4 | E9: 0.25 | F9: =D9*B9 -> 840 | G9: =F9*(1-E9) -> 630 | H9: =IF(H6="Cash", D57,F9*E9) -> 210
A11: Total Income | F11: =F9 -> 840 | G11: =G9 -> 630 | H11: =H9 -> 210
A13: Variable Costs
A14: Seed
A15: corn seed | B15: 0.4375 | C15: bags | D15: 272 | E15: 0 | F15: =D15*B15 -> 119 | G15: =F15*(1-E15) -> 119 | H15: =F15*E15 -> 0
A16: Fertilizer
A17: fert (N) - liquid | B17: 120 | C17: lbs | D17: =IF(A17="",0,VLOOKUP(A17,'2016 Universal Input Prices'!$B$27:$C$31, 2)) -> 0.46875 | E17: 0.25 | F17: =D17*B17 -> 56.25 | G17: =F17*(1-E17) -> 42.1875 | H17: =F17*E17 -> 14.0625
A18: fert (P) - dry | B18: 108 | C18: lbs | D18: =IF(A18="",0,VLOOKUP(A18,'2016 Universal Input Prices'!$B$27:$C$31, 2)) -> 0.5192307692 | E18: 0.25 | F18: =D18*B18 -> 56.07692308 | G18: 42.05769231 | H18: 14.01923077
A19: fert (N) - NH3 | B19: 150 | C19: lbs | D19: =IF(A19="",0,VLOOKUP(A19,'2016 Universal Input Prices'!$B$27:$C$31, 2)) -> 0.3658536585 | E19: 0.25 | F19: =D19*B19 -> 54.87804878 | G19: =F19*(1-E19) -> 41.15853659 | H19: =F19*E19 -> 13.7195122
A20: Field Operations
A21: herbicide & application | B21: 1 | C21: acre | D21: 45 | E21: 0 | F21: =D21*B21 -> 45 | G21: =F21*(1-E21) -> 45 | H21: =F21*E21 -> 0
A22: fertilizer application | B22: 1 | C22: acre | D22: 12 | E22: 0.25 | F22: 12 | G22: 9 | H22: 3
A23: insecticide & application | B23: 1 | C23: acre | D23: 25 | E23: 0.25 | F23: 25 | G23: 18.75 | H23: 6.25
A24: custom harvest & haul | B24: =$B$9 -> 210 | C24: bu | D24: 0.35 | E24: 0.25 | F24: 73.5 | G24: 55.125 | H24: 18.375
A25: crop consultant | B25: 1 | C25: acre | D25: 6 | E25: 0 | F25: 6 | G25: 6 | H25: 0
A26: scouting | B26: 1 | C26: acre | D26: 0 | E26: 0 | F26: =D26*B26 -> 0 | G26: =F26*(1-E26) -> 0 | H26: =F26*E26 -> 0
A27: other | B27: 1 | C27: acre | D27: 0 | E27: 0 | F27: 0 | G27: 0 | H27: 0
A28: other | B28: 1 | C28: acre | D28: 0 | E28: 0 | F28: 0 | G28: 0 | H28: 0
A29: other | B29: 1 | C29: acre | D29: 0 | E29: 0 | F29: 0 | G29: 0 | H29: 0
A30: Crop Insurance | B30: 1 | C30: acre | D30: 15.5 | E30: 0.25 | F30: 15.5 | G30: 11.625 | H30: 3.875
A31: Operator Labor & Hand Labor | B31: 1 | C31: hour | D31: ='2016 Universal Input Prices'!$C$32 -> 12 | E31: 0 | F31: 12 | G31: 12 | H31: 0
A32: Irrigation Labor | B32: 1.25 | C32: hours | D32: ='2016 Universal Input Prices'!$C$32 -> 12 | E32: 0 | F32: 15 | G32: 15 | H32: 0
A33: Diesel Fuel - Tractors | B33: 2.4 | C33: gallons | D33: ='2016 Universal Input Prices'!$C$33 -> 1.5 | E33: 0 | F33: 3.6 | G33: 3.6 | H33: 0
A34: Gasoline - Pickup | B34: 2 | C34: gallons | D34: ='2016 Universal Input Prices'!$C$34 -> 1.6 | E34: 0 | F34: 3.2 | G34: 3.2 | H34: 0
A35: Irrigation Fuel | B35: 24 | C35: ac-in | D35: ='2016 Universal Input Prices'!$C$35 -> 11 | E35: 0 | F35: 264 | G35: 264 | H35: 0
A36: Pumping Days | B36: 75.4
A37: Calculated GPM capacity per acre needed | B37: =B35*18.85694/B36 -> 6.002209019
A38: Repair & Maintenance
A39: Implements | B39: 1 | C39: acre | D39: 3 | E39: 0 | F39: =D39*B39 -> 3 | G39: 3 | H39: 0
A40: Tractors | B40: 1 | C40: acre | D40: 6 | E40: 0 | F40: =D40*B40 -> 6 | G40: 6 | H40: 0
A41: Irrigation-Above Ground | B41: =Corn_Inches -> 24 | C41: ac-in | D41: 1 | E41: 0 | F41: =D41*B41 -> 24 | G41: 24 | H41: 0
A42: Irrigation-Below Ground | B42: 1 | C42: acre | D42: 18 | E42: 1 | F42: =D42*B42 -> 18 | G42: 0 | H42: 18
A43: Pickup | B43: 1 | C43: acre | D43: 0.5 | E43: 0 | F43: =D43*B43 -> 0.5 | G43: 0.5 | H43: 0
A44: Interest-operating capital | B44: ='2016 Universal Input Prices'!$C$36 -> 0.065 | F44: =(SUM(F15:F23,F25:F43))*$B44/2 -> 24.01766159 | G44: =(SUM(G15:G23,G25:G43))*$B44/2 -> 21.64755869 | H44: 2.370102896
A46: Total Variable Costs | F46: =SUM(F15:F44) -> 836.5226334 | G46: =SUM(G15:G44) -> 742.8512876 | H46: =SUM(H15:H44) -> 93.67134586
A47: Returns Above Variable Costs | F47: =F11-F46 -> 3.477366557 | G47: =G11-G46 -> -112.8512876 | H47: =H11-H46 -> 116.3286541
A49: Fixed Costs
A50: Implements | B50: 1 | C50: acre | D50: 10 | E50: 0 | F50: =D50*B50 -> 10 | G50: =F50*(1-E50) -> 10 | H50: =F50*E50 -> 0
A51: Tractors | B51: 1 | C51: acre | D51: 12 | E51: 0 | F51: 12 | G51: 12 | H51: 0
A52: Irrigation-Above Ground | B52: 1 | C52: acre | D52: 40 | E52: 1 | F52: 40 | G52: 0 | H52: 40
A53: Irrigation-Below Ground | B53: 1 | C53: acre | D53: 15 | E53: 1 | F53: 15 | G53: 0 | H53: 15
A54: Pickup | B54: 1 | C54: acre | D54: 1.25 | E54: 0 | F54: 1.25 | G54: 1.25 | H54: 0
A55: Management | B55: 1 | C55: acre | D55: 25 | E55: 0 | F55: 25 | G55: 25 | H55: 0
A56: Whole Farm Insurance | B56: 1 | C56: acre | D56: 2 | E56: 0 | F56: 2 | G56: 2 | H56: 0
A57: Land | B57: 1 | C57: acre | D57: 100 | E57: 1 | F57: 100 | G57: =IF($H$6="Cash",D57,F57*(1-E57)) -> 0 | H57: =IF($H$6="Cash",0,F57*E57) -> 100
A58: Property Tax | B58: 1 | C58: acre | D58: 12 | E58: 1 | F58: 12 | G58: 0 | H58: 12
A59: Total Fixed Expenses | F59: =SUM(F50:F58) -> 217.25 | G59: =SUM(G50:G58) -> 50.25 | H59: =SUM(H50:H58) -> 167
A60: Total Specified Expenses | F60: =F46+F59 -> 1053.772633 | G60: =G46+G59 -> 793.1012876 | H60: =H46+H59 -> 260.6713459
A61: Returns Above Total Specified Expenses | F61: =F11-F60 -> -213.7726334 | G61: =G11-G60 -> -163.1012876 | H61: =H11-H60 -> -50.67134586
A63: If you have questions, contact Jackie Smith at 806-746-6101
A66: Supported by a grant from the
A67: Texas Cotton State Support Committee

Sheet Irr Corn Silage
A2: Estimated Costs and Returns per Acre
A3: Irrigated Corn Silage
A4: Projected for 2016
H5: Rental Agreement | I5: Share
A6: Item | B6: Quantity | C6: Unit | D6: Price | E6: Owner | H6: Share | I6: Cash
E7: Share | F7: Total | G7: Operator | H7: Owner
A8: Income
A9: corn silage | B9: 26 | C9: tons | D9: ='2016 Universal Input Prices'!$C$7 -> 38 | E9: 0.25 | F9: =D9*B9 -> 988 | G9: =F9*(1-E9) -> 741 | H9: =IF(H6="Cash", D57,F9*E9) -> 247
A11: Total Income | F11: =F9 -> 988 | G11: =G9 -> 741 | H11: =H9 -> 247
A13: Variable Costs
A14: Seed
A15: corn seed | B15: 0.5 | C15: bags | D15: 272 | E15: 0 | F15: =D15*B15 -> 136 | G15: =F15*(1-E15) -> 136 | H15: =F15*E15 -> 0
A16: Fertilizer
A17: fert (N) - liquid | B17: 175 | C17: lbs | D17: =IF(A17="",0,VLOOKUP(A17,'2016 Universal Input Prices'!$B$27:$C$31, 2)) -> 0.46875 | E17: 0.25 | F17: =D17*B17 -> 82.03125 | G17: =F17*(1-E17) -> 61.5234375 | H17: =F17*E17 -> 20.5078125
A18: fert (P) - dry | B18: 110 | C18: lbs | D18: =IF(A18="",0,VLOOKUP(A18,'2016 Universal Input Prices'!$B$27:$C$31, 2)) -> 0.5192307692 | E18: 0.25 | F18: =D18*B18 -> 57.11538462 | G18: =F18*(1-E18) -> 42.83653846 | H18: =F18*E18 -> 14.27884615
A19: fert (N) - NH3 | B19: 150 | C19: lbs | D19: =IF(A19="",0,VLOOKUP(A19,'2016 Universal Input Prices'!$B$27:$C$31, 2)) -> 0.3658536585 | E19: 0.25 | F19: =D19*B19 -> 54.87804878 | G19: =F19*(1-E19) -> 41.15853659 | H19: =F19*E19 -> 13.7195122
A20: Field Operations
A21: herbicide & application | B21: 1 | C21: acre | D21: 21.12 | E21: 0 | F21: =D21*B21 -> 21.12 | G21: =F21*(1-E21) -> 21.12 | H21: =F21*E21 -> 0
A22: fertilizer application | B22: 1 | C22: acre | D22: 11.75 | E22: 0.25 | F22: 11.75 | G22: 8.8125 | H22: 2.9375
A23: insecticide & application | B23: 1 | C23: appl | D23: 22.73 | E23: 0.25 | F23: 22.73 | G23: 17.0475 | H23: 5.6825
A24: custom harvest & haul | B24: =$B$9 -> 26 | C24: tons | D24: 7 | E24: 0.25 | F24: 182 | G24: 136.5 | H24: 45.5
A25: crop consultant | B25: 1 | C25: acre | D25: 0 | E25: 0 | F25: 0 | G25: 0 | H25: 0
A26: scouting | B26: 1 | C26: acre | D26: 0 | E26: 0 | F26: =D26*B26 -> 0 | G26: =F26*(1-E26) -> 0 | H26: =F26*E26 -> 0
A27: other | B27: 1 | C27: acre | D27: 0 | E27: 0 | F27: 0 | G27: 0 | H27: 0
A28: other | B28: 1 | C28: acre | D28: 0 | E28: 0 | F28: 0 | G28: 0 | H28: 0
A29: other | B29: 1 | C29: acre | D29: 0 | E29: 0 | F29: 0 | G29: 0 | H29: 0
A30: Crop Insurance | B30: 1 | C30: acre | D30: 15.5 | E30: 0.25 | F30: 15.5 | G30: 11.625 | H30: 3.875
A31: Operator Labor & Hand Labor | B31: 1 | C31: hour | D31: ='2016 Universal Input Prices'!$C$32 -> 12 | E31: 0 | F31: 12 | G31: 12 | H31: 0
A32: Irrigation Labor | B32: 1.25 | C32: hours | D32: ='2016 Universal Input Prices'!$C$32 -> 12 | E32: 0 | F32: 15 | G32: 15 | H32: 0
A33: Diesel Fuel - Tractors | B33: 2.4 | C33: gallons | D33: ='2016 Universal Input Prices'!$C$33 -> 1.5 | E33: 0 | F33: 3.6 | G33: 3.6 | H33: 0
A34: Gasoline - Pickup | B34: 2 | C34: gallons | D34: ='2016 Universal Input Prices'!$C$34 -> 1.6 | E34: 0 | F34: 3.2 | G34: 3.2 | H34: 0
A35: Irrigation Fuel | B35: 22 | C35: ac-in | D35: ='2016 Universal Input Prices'!$C$35 -> 11 | E35: 0 | F35: 242 | G35: 242 | H35: 0
A36: Pumping Days | B36: 75.4
A37: Calculated GPM capacity per acre needed | B37: =B35*18.85694/B36 -> 5.502024934
A38: Repair & Maintenance
A39: Implements | B39: 1 | C39: acre | D39: 3 | E39: 0 | F39: =D39*B39 -> 3 | G39: 3 | H39: 0
A40: Tractors | B40: 1 | C40: acre | D40: 6 | E40: 0 | F40: =D40*B40 -> 6 | G40: 6 | H40: 0
A41: Irrigation-Above Ground | B41: =B35 -> 22 | C41: ac-in | D41: 1 | E41: 0 | F41: =D41*B41 -> 22 | G41: 22 | H41: 0
A42: Irrigation-Below Ground | B42: 1 | C42: acre | D42: 18 | E42: 1 | F42: =D42*B42 -> 18 | G42: 0 | H42: 18
A43: Pickup | B43: 1 | C43: acre | D43: 0.5 | E43: 0 | F43: =D43*B43 -> 0.5 | G43: 0.5 | H43: 0
A44: Interest-operating capital | B44: ='2016 Universal Input Prices'!$C$36 -> 0.065 | F44: =(SUM(F15:F23,F25:F43))*$B44/2 -> 23.60880221 | G44: =(SUM(G15:G23,G25:G43))*$B44/2 -> 21.04126416 | H44: 2.567538053
A46: Total Variable Costs | F46: =SUM(F15:F44) -> 932.0334856 | G46: =SUM(G15:G44) -> 804.9647767 | H46: =SUM(H15:H44) -> 127.0687089
A47: Returns Above Variable Costs | F47: =F11-F46 -> 55.96651439 | G47: =G11-G46 -> -63.9647767 | H47: =H11-H46 -> 119.9312911
A49: Fixed Costs
A50: Implements | B50: 1 | C50: acre | D50: 10 | E50: 0 | F50: =D50*B50 -> 10 | G50: =F50*(1-E50) -> 10 | H50: =F50*E50 -> 0
A51: Tractors | B51: 1 | C51: acre | D51: 12 | E51: 0 | F51: 12 | G51: 12 | H51: 0
A52: Irrigation-Above Ground | B52: 1 | C52: acre | D52: 40 | E52: 1 | F52: 40 | G52: 0 | H52: 40
A53: Irrigation-Below Ground | B53: 1 | C53: acre | D53: 15 | E53: 1 | F53: 15 | G53: 0 | H53: 15
A54: Pickup | B54: 1 | C54: acre | D54: 1.25 | E54: 0 | F54: 1.25 | G54: 1.25 | H54: 0
A55: Management | B55: 1 | C55: acre | D55: 25 | E55: 0 | F55: 25 | G55: 25 | H55: 0
A56: Whole Farm Insurance | B56: 1 | C56: acre | D56: 2 | E56: 0 | F56: 2 | G56: 2 | H56: 0
A57: Land | B57: 1 | C57: acre | D57: 100 | E57: 1 | F57: 100 | G57: =IF($H$6="Cash",D57,F57*(1-E57)) -> 0 | H57: =IF($H$6="Cash",0,F57*E57) -> 100
A58: Property Tax | B58: 1 | C58: acre | D58: 12 | E58: 1 | F58: 12 | G58: 0 | H58: 12
A59: Total Fixed Expenses | F59: =SUM(F50:F58) -> 217.25 | G59: =SUM(G50:G58) -> 50.25 | H59: =SUM(H50:H58) -> 167
A60: Total Specified Expenses | F60: =F46+F59 -> 1149.283486 | G60: =G46+G59 -> 855.2147767 | H60: =H46+H59 -> 294.0687089
A61: Returns Above Total Specified Expenses | F61: =F11-F60 -> -161.2834856 | G61: =G11-G60 -> -114.2147767 | H61: =H11-H60 -> -47.0687089
A63: If you have questions, contact Jackie Smith at 806-746-6101
A66: Supported by a grant from the
A67: Texas Cotton State Support Committee

Sheet Irr Cotton Drip
A2: Estimated Costs and Returns per Acre
A3: Irrigated Cotton - Drip
A4: Projected for 2016
H5: Rental Agreement | I5: Share
A6: Item | B6: Quantity | C6: Unit | D6: Price | E6: Owner | H6: Share | I6: Cash
E7: Share | F7: Total | G7: Operator | H7: Owner
A8: Income
A9: cotton lint | B9: 1750 | C9: lbs | D9: ='2016 Universal Input Prices'!$C$8 -> 0.6 | E9: 0.33 | F9: =D9*B9 -> 1050 | G9: =F9*(1-E9) -> 703.5 | H9: =IF(H6="Cash", D65,F9*E9) -> 346.5
A10: cotton seed | B10: =B9/500*'2016 Universal Input Prices'!C40/2000 -> 1.2425 | C10: tons | D10: ='2016 Universal Input Prices'!$C$9 -> 200 | E10: 0.33 | F10: =D10*B10 -> 248.5 | G10: =F10*(1-E10) -> 166.495 | H10: =IF(H6="Cash", 0,F10*E10) -> 82.005
A11: Expected Turnout | B11: 0.28
A12: Total Income | F12: =F9+F10 -> 1298.5 | G12: =G9+G10 -> 869.995 | H12: =H9+H10 -> 428.505
A14: Variable Costs
A15: Seed
A16: cotton seed | B16: 52 | C16: thousand | D16: 0.63 | E16: 0 | F16: =D16*B16 -> 32.76 | G16: =F16*(1-E16) -> 32.76 | H16: =+F16*E16 -> 0
A17: tech fee | B17: =B16 -> 52 | C17: thousand | D17: 0.78 | E17: 0.33 | F17: =D17*B17 -> 40.56 | G17: =F17*(1-E17) -> 27.1752 | H17: =+F17*E17 -> 13.3848
A18: Boll Weevil Assess.-Irr | B18: 1 | C18: acre | D18: 1 | E18: 0.33 | F18: =D18*B18 -> 1 | G18: =F18*(1-E18) -> 0.67 | H18: =+F18*E18 -> 0.33
A19: Fertilizer
A20: fert (N) - liquid | B20: 175 | C20: lbs | D20: =IF(A20="",0,VLOOKUP(A20,'2016 Universal Input Prices'!$B$27:$C$31, 2)) -> 0.46875 | E20: 0.33 | F20: =D20*B20 -> 82.03125 | G20: =F20*(1-E20) -> 54.9609375 | H20: =+F20*E20 -> 27.0703125
A21: fert (P) - liquid | B21: 70 | C21: lbs | D21: =IF(A21="",0,VLOOKUP(A21,'2016 Universal Input Prices'!$B$27:$C$31, 2)) -> 0.9044117647 | E21: 0.33 | F21: =D21*B21 -> 63.30882353 | G21: =F21*(1-E21) -> 42.41691176 | H21: =+F21*E21 -> 20.89191176
B22: 0 | C22: lbs | D22: =IF(A22="",0,VLOOKUP(A22,'2016 Universal Input Prices'!$B$27:$C$31, 2)) -> 0 | E22: 0.33 | F22: =D22*B22 -> 0 | G22: =F22*(1-E22) -> 0 | H22: =F22*E22 -> 0
A23: acid | B23: 24 | C23: lbs | D23: 0.5 | E23: 0.33 | F23: =D23*B23 -> 12 | G23: =F23*(1-E23) -> 8.04 | H23: =+F23*E23 -> 3.96
A24: Field Operations
A25: preplant herbicide & application | B25: 1 | C25: acre | D25: 9.5 | E25: 0 | F25: =D25*B25 -> 9.5 | G25: =F25*(1-E25) -> 9.5 | H25: =+F25*E25 -> 0
A26: at-plant herbicide | B26: 1 | C26: acre | D26: 4.5 | E26: 0 | F26: =D26*B26 -> 4.5 | G26: =F26*(1-E26) -> 4.5 | H26: =+F26*E26 -> 0
A27: 2 post emergence herbicide & application | B27: 1 | C27: acre | D27: 25 | E27: 0 | F27: =D27*B27 -> 25 | G27: 25 | H27: 0
A28: fertilizer application | B28: 1 | C28: acre | D28: 4.75 | E28: 0 | F28: 4.75 | G28: 4.75 | H28: 0
A29: insecticide & application | B29: 1 | C29: acre | D29: 12 | E29: 0.33 | F29: 12 | G29: 8.04 | H29: 3.96
A30: harvest aids | B30: 1 | C30: acre | D30: 30 | E30: 0.33 | F30: 30 | G30: 20.1 | H30: 9.9
A31: strip & module | B31: =B9 -> 1750 | C31: lb. | D31: ='2016 Universal Input Prices'!$C$38 -> 0.08 | E31: 0.33 | F31: 140 | G31: 93.8 | H31: 46.2
A32: ginning | B32: =Irr_Cooton_Drip_Yield/B11/100 -> 62.5 | C32: cwt. | D32: ='2016 Universal Input Prices'!$C$39 -> 3.1 | E32: 0 | F32: 193.75 | G32: 193.75 | H32: 0
A33: hoeing | B33: 0.2 | C33: acre | D33: 15 | E33: 0 | F33: 3 | G33: 3 | H33: 0
A34: scouting | B34: 1 | C34: acre | D34: 9 | E34: 0 | F34: =D34*B34 -> 9 | G34: =F34*(1-E34) -> 9 | H34: =+F34*E34 -> 0
A35: crop hail | B35: 4 | C35: $100 | D35: 2.25 | E35: 0 | F35: 9 | G35: 9 | H35: 0
A36: spot spraying | B36: 0.2 | C36: acre | D36: 15 | E36: 0 | F36: 3 | G36: 3 | H36: 0
A37: other | B37: 1 | C37: acre | D37: 0 | E37: 0 | F37: 0 | G37: 0 | H37: 0
A38: Crop Insurance | B38: 1 | C38: acre | D38: 56 | E38: 0 | F38: 56 | G38: 56 | H38: 0
A39: Operator Labor & Hand Labor | B39: 1.6 | C39: hours | D39: ='2016 Universal Input Prices'!$C$32 -> 12 | E39: 0 | F39: 19.2 | G39: 19.2 | H39: 0
A40: Irrigation Labor | B40: 1.25 | C40: hours | D40: ='2016 Universal Input Prices'!$C$32 -> 12 | E40: 0 | F40: 15 | G40: 15 | H40: 0
A41: Diesel Fuel - Tractors | B41: 4 | C41: gallons | D41: ='2016 Universal Input Prices'!$C$33 -> 1.5 | E41: 0 | F41: 6 | G41: 6 | H41: 0
A42: Gasoline - Pickup | B42: 2 | C42: gallons | D42: ='2016 Universal Input Prices'!$C$34 -> 1.6 | E42: 0 | F42: 3.2 | G42: 3.2 | H42: 0
A43: Irrigation Fuel | B43: 18 | C43: ac-in | D43: ='2016 Universal Input Prices'!$C$35 -> 11 | E43: 0 | F43: 198 | G43: 198 | H43: 0
A44: Pumping Days | B44: 84.8 | E44: 0
A45: Calculated GPM capacity per acre needed | B45: =B43*18.85694/B44 -> 4.002652358
A46: Repair & Maintenance
A47: Implements | B47: 1 | C47: acre | D47: 3 | E47: 0 | F47: =D47*B47 -> 3 | G47: =F47*(1-E47) -> 3 | H47: =+F47*E47 -> 0
A48: Tractors | B48: 1 | C48: acre | D48: 6 | E48: 0 | F48: =D48*B48 -> 6 | G48: =F48*(1-E48) -> 6 | H48: =+F48*E48 -> 0
A49: Irrigation-Drip System | B49: =Cotton_Inches -> 12 | C49: ac-in | D49: 1.5 | E49: 0 | F49: =D49*B49 -> 18 | G49: =F49*(1-E49) -> 18 | H49: =+F49*E49 -> 0
A50: Irrigation-Wells | B50: 1 | C50: acre | D50: 13.5 | E50: 1 | F50: =D50*B50 -> 13.5 | G50: =F50*(1-E50) -> 0 | H50: =+F50*E50 -> 13.5
A51: Pickup | B51: 1 | C51: acre | D51: 0.5 | E51: 0 | F51: =D51*B51 -> 0.5 | G51: =F51*(1-E51) -> 0.5 | H51: =+F51*E51 -> 0
A52: Interest-operating capital | B52: ='2016 Universal Input Prices'!$C$36 -> 0.065 | F52: =(SUM(F16:F29,F33:F51))*$B52/2 -> 21.11882739 | G52: =(SUM(G16:G29,G33:G51))*$B52/2 -> 18.4181741 | H52: =(SUM(H16:H29,H33:H51))*$B52/2 -> 2.700653289
A54: Total Variable Costs | F54: =SUM(F16:F52) -> 1034.678901 | G54: =SUM(G16:G52) -> 892.7812234 | H54: =SUM(H16:H52) -> 141.8976776
A55: Returns Above Variable Costs | F55: =F12-F54 -> 263.8210991 | G55: =G12-G54 -> -22.78622337 | H55: =H12-H54 -> 286.6073224
A57: Fixed Costs
A58: Implements | B58: 1 | C58: acre | D58: 10 | E58: 0 | F58: =D58*B58 -> 10 | G58: =F58*(1-E58) -> 10 | H58: =+F58*E58 -> 0
A59: Tractors | B59: 1 | C59: acre | D59: 12 | E59: 0 | F59: 12 | G59: 12 | H59: 0
A60: Irrigation-Drip System | B60: 1 | C60: acre | D60: 60 | E60: 1 | F60: 60 | G60: 0 | H60: 60
A61: Irrigation-Wells | B61: 1 | C61: acre | D61: 15 | E61: 1 | F61: 15 | G61: 0 | H61: 15
A62: Pickup | B62: 1 | C62: acre | D62: 1.25 | E62: 0 | F62: 1.25 | G62: 1.25 | H62: 0
A63: Management | B63: 1 | C63: acre | D63: 25 | E63: 0 | F63: =D63*B63 -> 25 | G63: 25 | H63: 0
A64: Whole Farm Insurance | B64: 1 | C64: acre | D64: 2 | E64: 0 | F64: =D64*B64 -> 2 | G64: 2 | H64: 0
A65: Land | B65: 1 | C65: acre | D65: 100 | E65: 1 | F65: 100 | G65: =IF($H$6="Cash",D65,F65*(1-E65)) -> 0 | H65: =IF($H$6="Cash",0,F65*E65) -> 100
A66: Property Tax | B66: 1 | C66: acre | D66: 12 | E66: 1 | F66: =B66*D66 -> 12 | G66: 0 | H66: 12
A67: Total Fixed Expenses | F67: =SUM(F58:F66) -> 237.25 | G67: =SUM(G58:G66) -> 50.25 | H67: =SUM(H58:H66) -> 187
A68: Total Specified Expenses | F68: =F54+F67 -> 1271.928901 | G68: =G54+G67 -> 943.0312234 | H68: =H54+H67 -> 328.8976776
A69: Returns Above Total Specified Expenses | F69: =F12-F68 -> 26.57109908 | G69: =G12-G68 -> -73.03622337 | H69: =H12-H68 -> 99.60732245
A71: If you have questions, contact Jackie Smith at 806-746-6101
A74: Supported by a grant from the
A75: Texas Cotton State Support Committee

Sheet Irr Cotton Pivot
A2: Estimated Costs and Returns per Acre
A3: Irrigated Cotton - Pivot
A4: Projected for 2016
H5: Rental Agreement | I5: Share
A6: Item | B6: Quantity | C6: Unit | D6: Price | E6: Owner | H6: Share | I6: Cash
E7: Share | F7: Total | G7: Operator | H7: Owner
A8: Income
A9: cotton lint | B9: 1250 | C9: lbs | D9: ='2016 Universal Input Prices'!$C$8 -> 0.6 | E9: 0.25 | F9: =D9*B9 -> 750 | G9: =F9*(1-E9) -> 562.5 | H9: =IF(H6="Cash", D64,F9*E9) -> 187.5
A10: cotton seed | B10: =B9/500*'2016 Universal Input Prices'!C40/2000 -> 0.8875 | C10: tons | D10: ='2016 Universal Input Prices'!$C$9 -> 200 | E10: 0.25 | F10: =D10*B10 -> 177.5 | G10: =F10*(1-E10) -> 133.125 | H10: =IF(H6="Cash", 0,F10*E10) -> 44.375
A11: Expected Turnout | B11: 0.28
A12: Total Income | F12: =F9+F10 -> 927.5 | G12: =G9+G10 -> 695.625 | H12: =H9+H10 -> 231.875
A14: Variable Costs
A15: Seed
A16: cotton seed | B16: 52 | C16: thousand | D16: 0.63 | E16: 0 | F16: =D16*B16 -> 32.76 | G16: =F16*(1-E16) -> 32.76 | H16: =+F16*E16 -> 0
A17: tech fee | B17: =B16 -> 52 | C17: thousand | D17: 0.78 | E17: 0.25 | F17: =D17*B17 -> 40.56 | G17: =F17*(1-E17) -> 30.42 | H17: =+F17*E17 -> 10.14
A18: Boll Weevil Assess.-Irr | B18: 1 | C18: acre | D18: 1 | E18: 0.25 | F18: =D18*B18 -> 1 | G18: =F18*(1-E18) -> 0.75 | H18: =+F18*E18 -> 0.25
A19: Fertilizer
A20: fert (N) - liquid | B20: 125 | C20: lbs | D20: =IF(A20="",0,VLOOKUP(A20,'2016 Universal Input Prices'!$B$27:$C$31, 2)) -> 0.46875 | E20: 0.25 | F20: =D20*B20 -> 58.59375 | G20: =F20*(1-E20) -> 43.9453125 | H20: =+F20*E20 -> 14.6484375
A21: fert (P) - liquid | B21: 50 | C21: lbs | D21: =IF(A21="",0,VLOOKUP(A21,'2016 Universal Input Prices'!$B$27:$C$31, 2)) -> 0.9044117647 | E21: 0.25 | F21: =D21*B21 -> 45.22058824 | G21: =F21*(1-E21) -> 33.91544118 | H21: =+F21*E21 -> 11.30514706
B22: 0 | C22: lbs | D22: =IF(A22="",0,VLOOKUP(A22,'2016 Universal Input Prices'!$B$27:$C$31, 2)) -> 0 | E22: 0 | F22: =D22*B22 -> 0 | G22: =F22*(1-E22) -> 0 | H22: =F22*E22 -> 0
A23: Field Operations
A24: preplant herbicide & application | B24: 1 | C24: acre | D24: 9.5 | E24: 0 | F24: =D24*B24 -> 9.5 | G24: =F24*(1-E24) -> 9.5 | H24: =+F24*E24 -> 0
A25: at-plant herbicide | B25: 1 | C25: acre | D25: 4.5 | E25: 0 | F25: 4.5 | G25: 4.5 | H25: 0
A26: 2 post emergence herbicide & application | B26: 1 | C26: acre | D26: 25 | E26: 0 | F26: =D26*B26 -> 25 | G26: 25 | H26: 0
A27: fertilizer application | B27: 1 | C27: acre | D27: 4.75 | E27: 0.25 | F27: 4.75 | G27: 3.5625 | H27: 1.1875
A28: insecticide & application | B28: 1 | C28: acre | D28: 12 | E28: 0.25 | F28: 12 | G28: 9 | H28: 3
A29: harvest aids | B29: 1 | C29: acre | D29: 25 | E29: 0.25 | F29: 25 | G29: 18.75 | H29: 6.25
A30: strip & module | B30: =B9 -> 1250 | C30: lb. | D30: ='2016 Universal Input Prices'!$C$38 -> 0.08 | E30: 0 | F30: 100 | G30: 100 | H30: 0
A31: ginning | B31: =Irr_Cotton_Pivot_Yield/B11/100 -> 44.64285714 | C31: cwt. | D31: ='2016 Universal Input Prices'!$C$39 -> 3.1 | E31: 0.25 | F31: 138.3928571 | G31: 103.7946429 | H31: 34.59821429
A32: hoeing | B32: 0.2 | C32: acre | D32: 15 | E32: 0 | F32: 3 | G32: 3 | H32: 0
A33: scouting | B33: 1 | C33: acre | D33: 9 | E33: 0 | F33: =D33*B33 -> 9 | G33: =F33*(1-E33) -> 9 | H33: =+F33*E33 -> 0
A34: spot spraying | B34: 0.2 | C34: acre | D34: 15 | E34: 0 | F34: 3 | G34: 3 | H34: 0
A35: other | B35: 1 | C35: acre | D35: 0 | E35: 0 | F35: 0 | G35: 0 | H35: 0
A36: other | B36: 1 | C36: acre | D36: 0 | E36: 0 | F36: 0 | G36: 0 | H36: 0
A37: Crop Insurance | B37: 1 | C37: acre | D37: 40 | E37: 0.25 | F37: 40 | G37: 30 | H37: 10
A38: Operator Labor & Hand Labor | B38: 1.6 | C38: hours | D38: ='2016 Universal Input Prices'!$C$32 -> 12 | E38: 0 | F38: 19.2 | G38: 19.2 | H38: 0
A39: Irrigation Labor | B39: 1 | C39: hours | D39: ='2016 Universal Input Prices'!$C$32 -> 12 | E39: 0 | F39: 12 | G39: 12 | H39: 0
A40: Diesel Fuel - Tractors | B40: 4 | C40: gallons | D40: ='2016 Universal Input Prices'!$C$33 -> 1.5 | E40: 0 | F40: 6 | G40: 6 | H40: 0
A41: Gasoline - Pickup | B41: 2 | C41: gallons | D41: ='2016 Universal Input Prices'!$C$34 -> 1.6 | E41: 0 | F41: 3.2 | G41: 3.2 | H41: 0
A42: Irrigation Fuel | B42: 12 | C42: ac-in | D42: ='2016 Universal Input Prices'!$C$35 -> 11 | E42: 0 | F42: 132 | G42: 132 | H42: 0
A43: Pumping Days | B43: 75.43
A44: Calculated GPM capacity per acre needed | B44: =B42*18.85694/B43 -> 2.999910911
A45: Repair & Maintenance
A46: Implements | B46: 1 | C46: acre | D46: 3 | E46: 0 | F46: =D46*B46 -> 3 | G46: =F46*(1-E46) -> 3 | H46: =+F46*E46 -> 0
A47: Tractors | B47: 1 | C47: acre | D47: 6 | E47: 0 | F47: =D47*B47 -> 6 | G47: =F47*(1-E47) -> 6 | H47: =+F47*E47 -> 0
A48: Irrigation-Above Ground | B48: =Cotton_Inches -> 12 | C48: ac-in | D48: 1 | E48: 1 | F48: =D48*B48 -> 12 | G48: =F48*(1-E48) -> 0 | H48: =+F48*E48 -> 12
A49: Irrigation-Below Ground | B49: 1 | C49: acre | D49: 9 | E49: 1 | F49: =D49*B49 -> 9 | G49: =F49*(1-E49) -> 0 | H49: =+F49*E49 -> 9
A50: Pickup | B50: 1 | C50: acre | D50: 0.5 | E50: 0 | F50: =D50*B50 -> 0.5 | G50: =F50*(1-E50) -> 0.5 | H50: =+F50*E50 -> 0
A51: Interest-operating capital | B51: ='2016 Universal Input Prices'!$C$36 -> 0.065 | F51: =(SUM(F16:F28,F32:F50))*$B51/2 -> 15.98299099 | G51: =(SUM(G16:G28,G32:G50))*$B51/2 -> 13.65823074 | H51: =(SUM(H16:H28,H32:H50))*$B51/2 -> 2.324760248
A53: Total Variable Costs | F53: =SUM(F16:F51) -> 771.1601864 | G53: =SUM(G16:G51) -> 656.4561273 | H53: =SUM(H16:H51) -> 114.7040591
A54: Returns Above Variable Costs | F54: =F12-F53 -> 156.3398136 | G54: =G12-G53 -> 39.16887272 | H54: =H12-H53 -> 117.1709409
A56: Fixed Costs
A57: Implements | B57: 1 | C57: acre | D57: 10 | E57: 0 | F57: =D57*B57 -> 10 | G57: =F57*(1-E57) -> 10 | H57: =+F57*E57 -> 0
A58: Tractors | B58: 1 | C58: acre | D58: 12 | E58: 0 | F58: 12 | G58: 12 | H58: 0
A59: Irrigation-Above Ground | B59: 1 | C59: acre | D59: 40 | E59: 1 | F59: 40 | G59: 0 | H59: 40
A60: Irrigation-Below Ground | B60: 1 | C60: acre | D60: 15 | E60: 1 | F60: 15 | G60: 0 | H60: 15
A61: Pickup | B61: 1 | C61: acre | D61: 1.25 | E61: 0 | F61: 1.25 | G61: 1.25 | H61: 0
A62: Management | B62: 1 | C62: acre | D62: 25 | E62: 0 | F62: =D62*B62 -> 25 | G62: 25 | H62: 0
A63: Whole Farm Insurance | B63: 1 | C63: acre | D63: 2 | E63: 0 | F63: =D63*B63 -> 2 | G63: 2 | H63: 0
A64: Land | B64: 1 | C64: acre | D64: 75 | E64: 1 | F64: 75 | G64: =IF($H$6="Cash",D64,F64*(1-E64)) -> 0 | H64: =IF($H$6="Cash",0,F64*E64) -> 75
A65: Property Tax | B65: 1 | C65: acre | D65: 9 | E65: 1 | F65: =B65*D65 -> 9 | G65: 0 | H65: 9
A66: Total Fixed Expenses | F66: =SUM(F57:F65) -> 189.25 | G66: =SUM(G57:G65) -> 50.25 | H66: =SUM(H57:H65) -> 139
A67: Total Specified Expenses | F67: =F53+F66 -> 960.4101864 | G67: =G53+G66 -> 706.7061273 | H67: =H53+H66 -> 253.7040591
A68: Returns Above Total Specified Expenses | F68: =F12-F67 -> -32.91018637 | G68: =G12-G67 -> -11.08112728 | H68: =H12-H67 -> -21.82905909
A70: If you have questions, contact Jackie Smith at 806-746-6101
A73: Supported by a grant from the
A74: Texas Cotton State Support Committee

Sheet Irr Guar
A2: Estimated Costs and Returns per Acre
A3: Irrigated Guar
A4: Projected for 2016
H5: Rental Agreement | I5: Share
A6: Item | B6: Quantity | C6: Unit | D6: Price | E6: Owner | H6: Share | I6: Cash
E7: Share | F7: Total | G7: Operator | H7: Owner
A8: Income
A9: guar | B9: 1200 | C9: lb | D9: ='2016 Universal Input Prices'!$C$10 -> 0.15 | E9: 0.25 | F9: =D9*B9 -> 180 | G9: =F9*(1-E9) -> 135 | H9: =IF(H6="Cash", D58,F9*E9) -> 45
A11: Total Income | F11: =F9 -> 180 | G11: =G9 -> 135 | H11: =H9 -> 45
A13: Variable Costs
A14: Seed | B14: 10 | C14: lbs | D14: 1.5 | E14: 0 | F14: =D14*B14 -> 15 | G14: =F14*(1-E14) -> 15 | H14: =F14*E14 -> 0
A15: Innoculant | B15: 1 | C15: lbs | D15: 3 | E15: 0 | F15: =D15*B15 -> 3 | G15: =F15*(1-E15) -> 3 | H15: =F15*E15 -> 0
A16: Fertilizer
A17: fert (P) - dry | B17: 12 | C17: lbs | D17: =IF(A17="",0,VLOOKUP(A17,'2016 Universal Input Prices'!$B$27:$C$31, 2)) -> 0.5192307692 | E17: 0.25 | F17: =D17*B17 -> 6.230769231 | G17: =F17*(1-E17) -> 4.673076923 | H17: =F17*E17 -> 1.557692308
C18: lbs | D18: =IF(A18="",0,VLOOKUP(A18,'2016 Universal Input Prices'!$B$27:$C$31, 2)) -> 0 | E18: 0.25 | F18: =D18*B18 -> 0 | G18: 0 | H18: 0
C19: lbs | D19: =IF(A19="",0,VLOOKUP(A19,'2016 Universal Input Prices'!$B$27:$C$31, 2)) -> 0 | E19: 0.25 | F19: =D19*B19 -> 0 | G19: =F19*(1-E19) -> 0 | H19: =F19*E19 -> 0
A20: Field Operations
A21: herbicide & application | B21: 1 | C21: acre | D21: 2.34 | E21: 0 | F21: =D21*B21 -> 2.34 | G21: =F21*(1-E21) -> 2.34 | H21: =F21*E21 -> 0
A22: fertilizer application | B22: 0 | C22: acre | D22: 0 | E22: 0.25 | F22: 0 | G22: 0 | H22: 0
A23: insecticide & application | B23: 0 | C23: acre | D23: 0 | E23: 0.25 | F23: 0 | G23: 0 | H23: 0
A24: custom harvest & haul | B24: 1 | C24: acre | D24: 37.5 | E24: 0.25 | F24: =D24*B24 -> 37.5 | G24: =F24*(1-E24) -> 28.125 | H24: =F24*E24 -> 9.375
A25: custom harvest & haul | B25: =Irr_Guar_Yield/100 -> 12 | C25: cwt | D25: 0.2 | E25: 0.25 | F25: 2.4 | G25: 1.8 | H25: 0.6
A26: crop consultant | B26: 0 | C26: acre | D26: 0 | E26: 0 | F26: 0 | G26: 0 | H26: 0
A27: scouting | B27: 0 | C27: acre | D27: 0 | E27: 0 | F27: =D27*B27 -> 0 | G27: =F27*(1-E27) -> 0 | H27: =F27*E27 -> 0
A28: other | B28: 0 | C28: acre | D28: 0 | E28: 0 | F28: 0 | G28: 0 | H28: 0
A29: other | B29: 0 | C29: acre | D29: 0 | E29: 0 | F29: 0 | G29: 0 | H29: 0
A30: other | B30: 0 | C30: acre | D30: 0 | E30: 0 | F30: 0 | G30: 0 | H30: 0
A31: Crop Insurance | B31: 1 | C31: acre | D31: 2.5 | E31: 0.25 | F31: 2.5 | G31: 1.875 | H31: 0.625
A32: Operator Labor & Hand Labor | B32: 1 | C32: hour | D32: ='2016 Universal Input Prices'!$C$32 -> 12 | E32: 0 | F32: 12 | G32: 12 | H32: 0
A33: Irrigation Labor | B33: 0.75 | C33: hours | D33: ='2016 Universal Input Prices'!$C$32 -> 12 | E33: 0 | F33: 9 | G33: 9 | H33: 0
A34: Diesel Fuel - Tractors | B34: 2.4 | C34: gallons | D34: ='2016 Universal Input Prices'!$C$33 -> 1.5 | E34: 0 | F34: 3.6 | G34: 3.6 | H34: 0
A35: Gasoline - Pickup | B35: 2 | C35: gallons | D35: ='2016 Universal Input Prices'!$C$34 -> 1.6 | E35: 0 | F35: 3.2 | G35: 3.2 | H35: 0
A36: Irrigation Fuel | B36: 4 | C36: ac-in | D36: ='2016 Universal Input Prices'!$C$35 -> 11 | E36: 0 | F36: 44 | G36: 44 | H36: 0
A37: Pumping Days | B37: 75.4
A38: Calculated GPM capacity per acre needed | B38: =B36*18.85694/B37 -> 1.00036817
A39: Repair & Maintenance
A40: Implements | B40: 1 | C40: acre | D40: 3 | E40: 0 | F40: =D40*B40 -> 3 | G40: 3 | H40: 0
A41: Tractors | B41: 1 | C41: acre | D41: 6 | E41: 0 | F41: =D41*B41 -> 6 | G41: 6 | H41: 0
A42: Irrigation-Above Ground | B42: =B36 -> 4 | C42: ac-in | D42: 1 | E42: 0 | F42: =D42*B42 -> 4 | G42: 4 | H42: 0
A43: Irrigation-Below Ground | B43: 1 | C43: acre | D43: 18 | E43: 1 | F43: =D43*B43 -> 18 | G43: 0 | H43: 18
A44: Pickup | B44: 1 | C44: acre | D44: 0.5 | E44: 0 | F44: =D44*B44 -> 0.5 | G44: 0.5 | H44: 0
A45: Interest-operating capital | B45: ='2016 Universal Input Prices'!$C$36 -> 0.065 | F45: =(SUM(F14:F23,F26:F44))*$B45/2 -> 4.30205 | G45: =(SUM(G14:G23,G26:G44))*$B45/2 -> 3.6461125 | H45: 0.6559375
A47: Total Variable Costs | F47: =SUM(F14:F45) -> 176.5728192 | G47: =SUM(G14:G45) -> 145.7591894 | H47: =SUM(H14:H45) -> 30.81362981
A48: Returns Above Variable Costs | F48: =F11-F47 -> 3.427180769 | G48: =G11-G47 -> -10.75918942 | H48: =H11-H47 -> 14.18637019
A50: Fixed Costs
A51: Implements | B51: 1 | C51: acre | D51: 10 | E51: 0 | F51: =D51*B51 -> 10 | G51: =F51*(1-E51) -> 10 | H51: =F51*E51 -> 0
A52: Tractors | B52: 1 | C52: acre | D52: 12 | E52: 0 | F52: 12 | G52: 12 | H52: 0
A53: Irrigation-Above Ground | B53: 1 | C53: acre | D53: 40 | E53: 1 | F53: 40 | G53: 0 | H53: 40
A54: Irrigation-Below Ground | B54: 1 | C54: acre | D54: 15 | E54: 1 | F54: 15 | G54: 0 | H54: 15
A55: Pickup | B55: 1 | C55: acre | D55: 1.25 | E55: 0 | F55: 1.25 | G55: 1.25 | H55: 0
A56: Management | B56: 1 | C56: acre | D56: 25 | E56: 0 | F56: 25 | G56: 25 | H56: 0
A57: Whole Farm Insurance | B57: 1 | C57: acre | D57: 2 | E57: 0 | F57: 2 | G57: 2 | H57: 0
A58: Land | B58: 1 | C58: acre | D58: 75 | E58: 1 | F58: 75 | G58: =IF($H$6="Cash",D58,F58*(1-E58)) -> 0 | H58: =IF($H$6="Cash",0,F58*E58) -> 75
A59: Property Tax | B59: 1 | C59: acre | D59: 12 | E59: 1 | F59: 12 | G59: 0 | H59: 12
A60: Total Fixed Expenses | F60: =SUM(F51:F59) -> 192.25 | G60: =SUM(G51:G59) -> 50.25 | H60: =SUM(H51:H59) -> 142
A61: Total Specified Expenses | F61: =F47+F60 -> 368.8228192 | G61: =G47+G60 -> 196.0091894 | H61: =H47+H60 -> 172.8136298
A62: Returns Above Total Specified Expenses | F62: =F11-F61 -> -188.8228192 | G62: =G11-G61 -> -61.00918942 | H62: =H11-H61 -> -127.8136298
A64: If you have questions, contact Jackie Smith at 806-746-6101
A67: Supported by a grant from the
A68: Texas Cotton State Support Committee

Sheet Irr Peanuts
A2: Estimated Costs and Returns per Acre
A3: Irrigated Peanuts
A4: Projected for 2016
H5: Rental Agreement | I5: Share
A6: Item | B6: Quantity | C6: Unit | D6: Price | E6: Owner | H6: Share | I6: Cash
E7: Share | F7: Total | G7: Operator | H7: Owner
A8: Income
A9: peanuts | B9: 2.25 | C9: tons | D9: ='2016 Universal Input Prices'!$C$11 -> 400 | E9: 0.25 | F9: =D9*B9 -> 900 | G9: =F9*(1-E9) -> 675 | H9: =IF(H6="Cash", D61,F9*E9) -> 225
A11: Total Income | F11: =F9 -> 900 | G11: =G9 -> 675 | H11: =H9 -> 225
A13: Variable Costs
A14: Seed
A15: peanut seed | B15: 100 | C15: lbs | D15: 0.763 | E15: 0 | F15: =D15*B15 -> 76.3 | G15: =F15*(1-E15) -> 76.3 | H15: =F15*E15 -> 0
A16: innoculant | B16: 1 | C16: acre | D16: 6 | E16: 0 | F16: =D16*B16 -> 6 | G16: =F16*(1-E16) -> 6 | H16: =F16*E16 -> 0
A17: Fertilizer
A18: fert (N) - liquid | B18: 80 | C18: lbs | D18: =IF(A18="",0,VLOOKUP(A18,'2016 Universal Input Prices'!$B$27:$C$31, 2)) -> 0.46875 | E18: 0.25 | F18: =D18*B18 -> 37.5 | G18: =F18*(1-E18) -> 28.125 | H18: =F18*E18 -> 9.375
A19: fert (P) - liquid | B19: 50 | C19: lbs | D19: =IF(A19="",0,VLOOKUP(A19,'2016 Universal Input Prices'!$B$27:$C$31, 2)) -> 0.9044117647 | E19: 0.25 | F19: =D19*B19 -> 45.22058824 | G19: =F19*(1-E19) -> 33.91544118 | H19: =F19*E19 -> 11.30514706
B20: 0 | C20: lbs | D20: =IF(A20="",0,VLOOKUP(A20,'2016 Universal Input Prices'!$B$27:$C$31, 2)) -> 0 | E20: 0 | F20: =D20*B20 -> 0 | G20: =F20*(1-E20) -> 0 | H20: =F20*E20 -> 0
A21: Field Operations
A22: herbicide & application | B22: 1 | C22: acre | D22: 15 | E22: 0 | F22: =D22*B22 -> 15 | G22: =F22*(1-E22) -> 15 | H22: =F22*E22 -> 0
A23: fertilizer application | B23: 1 | C23: acre | D23: 4.75 | E23: 0.25 | F23: 4.75 | G23: 3.5625 | H23: 1.1875
A24: fungicide & application | B24: 1 | C24: appl | D24: 35 | E24: 0.25 | F24: 35 | G24: 26.25 | H24: 8.75
A25: digging | B25: 1 | C25: acre | D25: 25 | E25: 0.25 | F25: 25 | G25: 18.75 | H25: 6.25
A26: custom harvest & haul | B26: =$B$9 -> 2.25 | C26: tons | D26: 60 | E26: 0.25 | F26: 135 | G26: 101.25 | H26: 33.75
A27: drying | B27: =$B$9 -> 2.25 | C27: tons | D27: 30 | E27: 0.25 | F27: 67.5 | G27: 50.625 | H27: 16.875
A28: insecticide & application | B28: 1 | C28: appl | D28: 12 | E28: 0.25 | F28: 12 | G28: 9 | H28: 3
A29: hoeing | B29: 1 | C29: acre | D29: 15 | E29: 0 | F29: 15 | G29: 15 | H29: 0
A30: scouting | B30: 1 | C30: acre | D30: 10 | E30: 0 | F30: 10 | G30: 10 | H30: 0
A31: other | B31: 1 | C31: acre | D31: 0 | E31: 0 | F31: 0 | G31: 0 | H31: =+F31*E31 -> 0
A32: other | B32: 1 | C32: acre | D32: 0 | E32: 0 | F32: 0 | G32: 0 | H32: =+F32*E32 -> 0
A33: other | B33: 1 | C33: acre | D33: 0 | E33: 0 | F33: 0 | G33: 0 | H33: =+F33*E33 -> 0
A34: Crop Insurance | B34: 1 | C34: acre | D34: 30 | E34: 0.25 | F34: 30 | G34: 22.5 | H34: 7.5
A35: Operator Labor & Hand Labor | B35: 3 | C35: hour | D35: ='2016 Universal Input Prices'!$C$32 -> 12 | E35: 0 | F35: 36 | G35: 36 | H35: 0
A36: Irrigation Labor | B36: 1.25 | C36: hours | D36: ='2016 Universal Input Prices'!$C$32 -> 12 | E36: 0 | F36: 15 | G36: 15 | H36: 0
A37: Diesel Fuel - Tractors | B37: 7.6 | C37: gallons | D37: ='2016 Universal Input Prices'!$C$33 -> 1.5 | E37: 0 | F37: 11.4 | G37: 11.4 | H37: 0
A38: Gasoline - Pickup | B38: 2 | C38: gallons | D38: ='2016 Universal Input Prices'!$C$34 -> 1.6 | E38: 0 | F38: 3.2 | G38: 3.2 | H38: 0
A39: Irrigation Fuel | B39: 24 | C39: ac-in | D39: ='2016 Universal Input Prices'!$C$35 -> 11 | E39: 0 | F39: 264 | G39: 264 | H39: 0
A40: Pumping Days | B40: 75.4
A41: Calculated GPM capacity per acre needed | B41: =B39*18.85694/B40 -> 6.002209019
A42: Repair & Maintenance | G42: 0 | H42: 0
A43: Implements | B43: 1 | C43: acre | D43: 3 | E43: 0 | F43: =D43*B43 -> 3 | G43: 3 | H43: 0
A44: Tractors | B44: 1 | C44: acre | D44: 6 | E44: 0 | F44: =D44*B44 -> 6 | G44: 6 | H44: 0
A45: Irrigation-Above Ground | B45: =B39 -> 24 | C45: ac-in | D45: 1 | E45: 0 | F45: =D45*B45 -> 24 | G45: 24 | H45: 0
A46: Irrigation-Below Ground | B46: 1 | C46: acre | D46: 18 | E46: 1 | F46: =D46*B46 -> 18 | G46: 0 | H46: 18
A47: Pickup | B47: 1 | C47: acre | D47: 0.5 | E47: 0 | F47: =D47*B47 -> 0.5 | G47: 0.5 | H47: 0
A48: Interest-operating capital | B48: ='2016 Universal Input Prices'!$C$36 -> 0.065 | F48: =(SUM(F15:F24,F28:F47))*$B48/2 -> 21.70579412 | G48: =(SUM(G15:G24,G28:G47))*$B48/2 -> 19.78447059 | H48: 1.921323529
A50: Total Variable Costs | F50: =SUM(F15:F48) -> 917.0763824 | G50: =SUM(G15:G48) -> 799.1624118 | H50: =SUM(H15:H48) -> 117.9139706
A51: Returns Above Variable Costs | F51: =F11-F50 -> -17.07638235 | G51: =G11-G50 -> -124.1624118 | H51: =H11-H50 -> 107.0860294
A53: Fixed Costs
A54: Implements | B54: 1 | C54: acre | D54: 10 | E54: 0 | F54: =D54*B54 -> 10 | G54: =F54*(1-E54) -> 10 | H54: =F54*E54 -> 0
A55: Tractors | B55: 1 | C55: acre | D55: 12 | E55: 0 | F55: 12 | G55: 12 | H55: 0
A56: Irrigation-Above Ground | B56: 1 | C56: acre | D56: 40 | E56: 1 | F56: 40 | G56: 0 | H56: 40
A57: Irrigation-Below Ground | B57: 1 | C57: acre | D57: 15 | E57: 1 | F57: 15 | G57: 0 | H57: 15
A58: Pickup | B58: 1 | C58: acre | D58: 1.25 | E58: 0 | F58: 1.25 | G58: 1.25 | H58: 0
A59: Management | B59: 1 | C59: acre | D59: 25 | E59: 0 | F59: 25 | G59: 25 | H59: 0
A60: Whole Farm Insurance | B60: 1 | C60: acre | D60: 2 | E60: 0 | F60: =B60*D60 -> 2 | G60: 2 | H60: 0
A61: Land | B61: 1 | C61: acre | D61: 100 | E61: 1 | F61: =D61*B61 -> 100 | G61: =IF($H$6="Cash",D61,F61*(1-E61)) -> 0 | H61: =IF($H$6="Cash",0,F61*E61) -> 100
A62: Property Tax | B62: 1 | C62: acre | D62: 12 | E62: 1 | F62: =B62*D62 -> 12 | G62: 0 | H62: 12
A63: Total Fixed Expenses | F63: =SUM(F54:F62) -> 217.25 | G63: =SUM(G54:G62) -> 50.25 | H63: =SUM(H54:H62) -> 167
A64: Total Specified Expenses | F64: =F50+F63 -> 1134.326382 | G64: =G50+G63 -> 849.4124118 | H64: =H50+H63 -> 284.9139706
A65: Returns Above Total Specified Expenses | F65: =F11-F64 -> -234.3263824 | G65: =G11-G64 -> -174.4124118 | H65: =H11-H64 -> -59.91397059
A67: If you have questions, contact Jackie Smith at 806-746-6101
A70: Supported by a grant from the
A71: Texas Cotton State Support Committee

Sheet Irr Sesame
A2: Estimated Costs and Returns per Acre
A3: Irrigated Sesame
A4: Projected for 2016
H5: Rental Agreement | I5: Share
A6: Item | B6: Quantity | C6: Unit | D6: Price | E6: Owner | H6: Share | I6: Cash
E7: Share | F7: Total | G7: Operator | H7: Owner
A8: Income
A9: sesame | B9: 1500 | C9: lbs | D9: =Sesame_Price+IF(B9<B10,0,D10) -> 0.38 | E9: 0.25 | F9: =D9*B9 -> 570 | G9: =F9*(1-E9) -> 427.5 | H9: =IF(H6="Cash", D58,F9*E9) -> 142.5
A10: bonus paid for production over: | B10: 1200 | C10: lbs | D10: 0.05
A12: Total Income | F12: =SUM(F9:F11) -> 570 | G12: =SUM(G9:G11) -> 427.5 | H12: =SUM(H9:H11) -> 142.5
A14: Variable Costs
A15: Seed | B15: 2.5 | C15: lbs | D15: 4 | E15: 0 | F15: =D15*B15 -> 10 | G15: =F15*(1-E15) -> 10 | H15: =F15*E15 -> 0
A16: Fertilizer
A17: fert (N) - liquid | B17: 75 | C17: lbs | D17: =IF(A17="",0,VLOOKUP(A17,'2016 Universal Input Prices'!$B$27:$C$31, 2)) -> 0.46875 | E17: 0.25 | F17: =D17*B17 -> 35.15625 | G17: =F17*(1-E17) -> 26.3671875 | H17: =F17*E17 -> 8.7890625
A18: fert (P) - liquid | B18: 30 | C18: lbs | D18: =IF(A18="",0,VLOOKUP(A18,'2016 Universal Input Prices'!$B$27:$C$31, 2)) -> 0.9044117647 | E18: 0.25 | F18: =D18*B18 -> 27.13235294 | G18: =F18*(1-E18) -> 20.34926471 | H18: =F18*E18 -> 6.783088235
B19: 0 | C19: lbs | D19: =IF(A19="",0,VLOOKUP(A19,'2016 Universal Input Prices'!$B$27:$C$31, 2)) -> 0 | E19: 0 | F19: =D19*B19 -> 0 | G19: =F19*(1-E19) -> 0 | H19: =F19*E19 -> 0
A20: Field Operations
A21: herbicide | B21: 1 | C21: acre | D21: 21.75 | E21: 0 | F21: =D21*B21 -> 21.75 | G21: =F21*(1-E21) -> 21.75 | H21: =F21*E21 -> 0
A22: fert application | B22: 1 | C22: acre | D22: 4.75 | E22: 0 | F22: 4.75 | G22: 4.75 | H22: 0
A23: insecticide | B23: 0 | C23: acre | D23: 0 | E23: 0.25 | F23: 0 | G23: 0 | H23: 0
A24: custom harvest & haul | B24: =B9/100 -> 15 | C24: cwt | D24: 0.12 | E24: 0.25 | F24: 1.8 | G24: 1.35 | H24: 0.45
A25: custom harvest & haul | B25: 1 | C25: acre | D25: 25 | E25: 0.25 | F25: 25 | G25: 18.75 | H25: 6.25
A26: hoeing | B26: 1 | C26: acre | D26: 15 | E26: 0 | F26: 15 | G26: 15 | H26: 0
A27: scouting | B27: 1 | C27: acre | D27: 0 | E27: 0 | F27: 0 | G27: 0 | H27: 0
A28: other | B28: 1 | C28: acre | D28: 0 | E28: 0 | F28: 0 | G28: 0 | H28: 0
A29: other | B29: 1 | C29: acre | D29: 0 | E29: 0 | F29: 0 | G29: 0 | H29: 0
A30: other | B30: 1 | C30: acre | D30: 0 | E30: 0 | F30: 0 | G30: 0 | H30: 0
A31: Crop Insurance | B31: 1 | C31: acre | D31: 12.5 | E31: 0 | F31: 12.5 | G31: 12.5 | H31: 0
A32: Operator Labor | B32: 1 | C32: hours | D32: ='[1]2013 Universal Input Prices'!$C$30 -> 10.5 | E32: 0 | F32: 10.5 | G32: 10.5 | H32: 0
A33: Irrigation Labor | B33: 1 | C33: hours | D33: ='[1]2013 Universal Input Prices'!$C$30 -> 10.5 | E33: 0 | F33: 10.5 | G33: 10.5 | H33: 0
A34: Diesel Fuel - Tractors | B34: 2.4 | C34: gallons | D34: ='[1]2013 Universal Input Prices'!$C$31 -> 3.4 | E34: 0 | F34: 8.16 | G34: 8.16 | H34: 0
A35: Gasoline - Pickup | B35: 2 | C35: gallons | D35: ='[1]2013 Universal Input Prices'!$C$32 -> 3.4 | E35: 0 | F35: 6.8 | G35: 6.8 | H35: 0
A36: Irrigation Fuel | B36: 11 | C36: ac-in | D36: ='[1]2013 Universal Input Prices'!$C$33 -> 9 | E36: 0 | F36: 99 | G36: 99 | H36: 0
A37: Pumping Days | B37: 69.2
A38: Calculated GPM capacity per acre needed | B38: =B36*18.85694/B37 -> 2.997490462
A39: Repair & Maintenance
A40: Implements | B40: 1 | C40: acre | D40: 3 | E40: 0 | F40: =D40*B40 -> 3 | G40: =F40*(1-E40) -> 3 | H40: =F40*E40 -> 0
A41: Tractors | B41: 1 | C41: acre | D41: 6 | E41: 0 | F41: =D41*B41 -> 6 | G41: =F41*(1-E41) -> 6 | H41: =F41*E41 -> 0
A42: Irrigation-Above Ground | B42: 1 | C42: acre | D42: 11 | E42: 0 | F42: =D42*B42 -> 11 | G42: =F42*(1-E42) -> 11 | H42: =F42*E42 -> 0
A43: Irrigation-Below Ground | B43: 1 | C43: acre | D43: 8.25 | E43: 1 | F43: =D43*B43 -> 8.25 | G43: =F43*(1-E43) -> 0 | H43: =F43*E43 -> 8.25
A44: Pickup | B44: 1 | C44: acre | D44: 0.5 | E44: 0 | F44: =D44*B44 -> 0.5 | G44: =F44*(1-E44) -> 0.5 | H44: =F44*E44 -> 0
A45: Interest-operating capital | B45: ='[1]2013 Universal Input Prices'!$C$34 -> 0.06 | F45: =(SUM(F15:F44)-SUM(F24:F25))*$B45/2 -> 8.699958088 | G45: =(SUM(G15:G44)-SUM(G24:G25))*$B45/2 -> 7.985293566 | H45: =(SUM(H15:H44)-SUM(H24:H25))*$B45/2 -> 0.7146645221
A47: Total Variable Costs | F47: =SUM(F15:F45) -> 325.498561 | G47: =SUM(G15:G45) -> 294.2617458 | H47: =SUM(H15:H45) -> 31.23681526
A48: Returns Above Direct Expenses | F48: =F12-F47 -> 244.501439 | G48: =G12-G47 -> 133.2382542 | H48: =H12-H47 -> 111.2631847
A50: Fixed Costs
A51: Implements | B51: 1 | C51: acre | D51: 10 | E51: 0 | F51: =D51*B51 -> 10 | G51: =F51*(1-E51) -> 10 | H51: =F51*E51 -> 0
A52: Tractors | B52: 1 | C52: acre | D52: 12 | E52: 0 | F52: 12 | G52: 12 | H52: 0
A53: Irrigation-Above Ground | B53: 1 | C53: acre | D53: 40 | E53: 1 | F53: 40 | G53: 0 | H53: 40
A54: Irrigation-Below Ground | B54: 1 | C54: acre | D54: 15 | E54: 1 | F54: 15 | G54: 0 | H54: 15
A55: Pickup | B55: 1 | C55: acre | D55: 1.25 | E55: 0 | F55: 1.25 | G55: 1.25 | H55: 0
A56: Management | B56: 1 | C56: acre | D56: 25 | E56: 0 | F56: 25 | G56: 25 | H56: 0
A57: Whole Farm Insurance | B57: 1 | C57: acre | D57: 2 | E57: 0 | F57: =B57*D57 -> 2 | G57: 2 | H57: 0
A58: Land | B58: 1 | C58: acre | D58: 75 | E58: 1 | F58: =D58*B58 -> 75 | G58: =IF($H$6="Cash",D58,F58*(1-E58)) -> 0 | H58: =IF($H$6="Cash",0,F58*E58) -> 75
A59: Property Tax | B59: 1 | C59: acre | D59: 9 | E59: 1 | F59: =B59*D59 -> 9 | G59: =F59*(1-E59) -> 0 | H59: =F59*E59 -> 9
A60: Total Fixed Expenses | F60: =SUM(F51:F59) -> 189.25 | G60: =SUM(G51:G59) -> 50.25 | H60: =SUM(H51:H59) -> 139
A61: Total Specified Expenses | F61: =F47+F60 -> 514.748561 | G61: =G47+G60 -> 344.5117458 | H61: =H47+H60 -> 170.2368153
A62: Returns Above Total Specified Expenses | F62: =F12-F61 -> 55.25143897 | G62: =G12-G61 -> 82.98825423 | H62: =H12-H61 -> -27.73681526
A64: If you have questions, contact Jackie Smith at 806-746-6101
A67: Supported by a grant from the
A68: Texas Cotton State Support Committee

Sheet Irr Sorghum
A2: Estimated Costs and Returns per Acre
A3: Irrigated Sorghum
A4: Projected for 2016
H5: Rental Agreement | I5: Share
A6: Item | B6: Quantity | C6: Unit | D6: Price | E6: Owner | H6: Share | I6: Cash
E7: Share | F7: Total | G7: Operator | H7: Owner
A8: Income
A9: sorghum grain | B9: 55 | C9: cwt | D9: ='2016 Universal Input Prices'!$C$14 -> 6.85 | E9: 0.25 | F9: =D9*B9 -> 376.75 | G9: =F9*(1-E9) -> 282.5625 | H9: =IF(H6="Cash", D57,F9*E9) -> 94.1875
A10: grazing stalks | B10: 1 | C10: acre | D10: 0 | E10: 0.25 | F10: =D10*B10 -> 0 | G10: =F10*(1-E10) -> 0 | H10: =IF(H6="Cash", 0,F10*E10) -> 0
A12: Total Income | F12: =F9+F10 -> 376.75 | G12: =G9+G10 -> 282.5625 | H12: =H9+H10 -> 94.1875
A14: Variable Costs
A15: Seed | B15: 4.5 | C15: lbs | D15: 2.4 | E15: 0 | F15: =D15*B15 -> 10.8 | G15: =F15*(1-E15) -> 10.8 | H15: =F15*E15 -> 0
A16: Fertilizer
A17: fert (N) - liquid | B17: 40 | C17: lbs | D17: =IF(A17="",0,VLOOKUP(A17,'2016 Universal Input Prices'!$B$27:$C$31, 2)) -> 0.46875 | E17: 0.25 | F17: =D17*B17 -> 18.75 | G17: =F17*(1-E17) -> 14.0625 | H17: =F17*E17 -> 4.6875
A18: fert (P) - liquid | B18: 44 | C18: lbs | D18: =IF(A18="",0,VLOOKUP(A18,'2016 Universal Input Prices'!$B$27:$C$31, 2)) -> 0.9044117647 | E18: 0.25 | F18: =D18*B18 -> 39.79411765 | G18: =F18*(1-E18) -> 29.84558824 | H18: =F18*E18 -> 9.948529412
A19: fert (N) - NH3 | B19: 70 | C19: lbs | D19: =IF(A19="",0,VLOOKUP(A19,'2016 Universal Input Prices'!$B$27:$C$31, 2)) -> 0.3658536585 | E19: 0.25 | F19: =D19*B19 -> 25.6097561 | G19: =F19*(1-E19) -> 19.20731707 | H19: =F19*E19 -> 6.402439024
A20: Field Operations
A21: herbicide & application | B21: 1 | C21: acre | D21: 21.12 | E21: 0 | F21: =D21*B21 -> 21.12 | G21: =F21*(1-E21) -> 21.12 | H21: =F21*E21 -> 0
A22: fertilizer application | B22: 1 | C22: acre | D22: 11.75 | E22: 0.25 | F22: 11.75 | G22: 8.8125 | H22: 2.9375
A23: insecticide & application | B23: 1 | C23: acre | D23: 25 | E23: 0.25 | F23: 25 | G23: 18.75 | H23: 6.25
A24: custom harvest & haul | B24: =B9 -> 55 | C24: cwt | D24: 0.6 | E24: 0.25 | F24: 33 | G24: 24.75 | H24: 8.25
A25: hoeing | B25: 1 | C25: acre | D25: 0 | E25: 0 | F25: 0 | G25: 0 | H25: 0
A26: scouting | B26: 1 | C26: acre | D26: 0 | E26: 0 | F26: =D26*B26 -> 0 | G26: =F26*(1-E26) -> 0 | H26: =F26*E26 -> 0
A27: other | B27: 1 | C27: acre | D27: 0 | E27: 0 | F27: 0 | G27: 0 | H27: 0
A28: other | B28: 1 | C28: acre | D28: 0 | E28: 0 | F28: 0 | G28: 0 | H28: 0
A29: other | B29: 1 | C29: acre | D29: 0 | E29: 0 | F29: 0 | G29: 0 | H29: 0
A30: Crop Insurance | B30: 1 | C30: acre | D30: 29 | E30: 0.25 | F30: 29 | G30: 21.75 | H30: 7.25
A31: Operator Labor & Hand Labor | B31: 1.3 | C31: hours | D31: ='2016 Universal Input Prices'!$C$32 -> 12 | E31: 0 | F31: 15.6 | G31: 15.6 | H31: 0
A32: Irrigation Labor | B32: 0.75 | C32: hours | D32: ='2016 Universal Input Prices'!$C$32 -> 12 | E32: 0 | F32: 9 | G32: 9 | H32: 0
A33: Diesel Fuel - Tractors | B33: 3.2 | C33: gallons | D33: ='2016 Universal Input Prices'!$C$33 -> 1.5 | E33: 0 | F33: 4.8 | G33: 4.8 | H33: 0
A34: Gasoline - Pickup | B34: 2 | C34: gallons | D34: ='2016 Universal Input Prices'!$C$34 -> 1.6 | E34: 0 | F34: 3.2 | G34: 3.2 | H34: 0
A35: Irrigation Fuel | B35: 9 | C35: ac-in | D35: ='2016 Universal Input Prices'!$C$35 -> 11 | E35: 0 | F35: 99 | G35: 99 | H35: 0
A36: Pumping Days | B36: 68
A37: Calculated GPM capacity per acre needed | B37: =B35*18.85694/B36 -> 2.495771471
A38: Repair & Maintenance
A39: Implements | B39: 1 | C39: acre | D39: 3 | E39: 0 | F39: =D39*B39 -> 3 | G39: =F39*(1-E39) -> 3 | H39: =F39*E39 -> 0
A40: Tractors | B40: 1 | C40: acre | D40: 6 | E40: 0 | F40: =D40*B40 -> 6 | G40: =F40*(1-E40) -> 6 | H40: =F40*E40 -> 0
A41: Irrigation-Above Ground | B41: =Sorghum_Inches -> 9 | C41: ac-in | D41: 1 | E41: 0 | F41: =D41*B41 -> 9 | G41: =F41*(1-E41) -> 9 | H41: =F41*E41 -> 0
A42: Irrigation-Below Ground | B42: 1 | C42: acre | D42: 6.75 | E42: 1 | F42: =D42*B42 -> 6.75 | G42: =F42*(1-E42) -> 0 | H42: =F42*E42 -> 6.75
A43: Pickup | B43: 1 | C43: acre | D43: 0.5 | E43: 0 | F43: =D43*B43 -> 0.5 | G43: =F43*(1-E43) -> 0.5 | H43: =F43*E43 -> 0
A44: Interest-operating capital | B44: ='2016 Universal Input Prices'!$C$36 -> 0.065 | F44: =(SUM(F15:F23,F25:F43))*$B44/2 -> 11.0069009 | G44: =(SUM(G15:G23,G25:G43))*$B44/2 -> 9.569556923 | H44: 1.437343974
A46: Total Variable Costs | F46: =SUM(F15:F44) -> 382.6807746 | G46: =SUM(G15:G44) -> 328.7674622 | H46: =SUM(H15:H44) -> 53.91331241
A47: Returns Above Variable Costs | F47: =F12-F46 -> -5.930774641 | G47: =G12-G46 -> -46.20496223 | H47: =H12-H46 -> 40.27418759
A49: Fixed Costs
A50: Implements | B50: 1 | C50: acre | D50: 10 | E50: 0 | F50: =D50*B50 -> 10 | G50: =F50*(1-E50) -> 10 | H50: =F50*E50 -> 0
A51: Tractors | B51: 1 | C51: acre | D51: 12 | E51: 0 | F51: 12 | G51: 12 | H51: 0
A52: Irrigation-Above Ground | B52: 1 | C52: acre | D52: 40 | E52: 1 | F52: 40 | G52: 0 | H52: 40
A53: Irrigation-Below Ground | B53: 1 | C53: acre | D53: 15 | E53: 1 | F53: 15 | G53: 0 | H53: 15
A54: Pickup | B54: 1 | C54: acre | D54: 1.25 | E54: 0 | F54: 1.25 | G54: 1.25 | H54: 0
A55: Management | B55: 1 | C55: acre | D55: 25 | E55: 0 | F55: 25 | G55: 25 | H55: 0
A56: Whole Farm Insurance | B56: 1 | C56: acre | D56: 2 | E56: 0 | F56: =B56*D56 -> 2 | G56: 2 | H56: 0
A57: Land | B57: 1 | C57: acre | D57: 75 | E57: 1 | F57: =D57*B57 -> 75 | G57: =IF($H$6="Cash",D57,F57*(1-E57)) -> 0 | H57: =IF($H$6="Cash",0,F57*E57) -> 75
A58: Property Tax | B58: 1 | C58: acre | D58: 9 | E58: 1 | F58: =B58*D58 -> 9 | G58: 0 | H58: 9
A59: Total Fixed Expenses | F59: =SUM(F50:F58) -> 189.25 | G59: =SUM(G50:G58) -> 50.25 | H59: =SUM(H50:H58) -> 139
A60: Total Specified Expenses | F60: =F46+F59 -> 571.9307746 | G60: =G46+G59 -> 379.0174622 | H60: =H46+H59 -> 192.9133124
A61: Returns Above Total Specified Expenses | F61: =F12-F60 -> -195.1807746 | G61: =G12-G60 -> -96.45496223 | H61: =H12-H60 -> -98.72581241
A63: If you have questions, contact Jackie Smith at 806-746-6101
A66: Supported by a grant from the
A67: Texas Cotton State Support Committee

Sheet Irr Sorghum Silage
A2: Estimated Costs and Returns per Acre
A3: Irrigated Sorghum Silage
A4: Projected for 2016
H5: Rental Agreement | I5: Share
A6: Item | B6: Quantity | C6: Unit | D6: Price | E6: Owner | H6: Share | I6: Cash
E7: Share | F7: Total | G7: Operator | H7: Owner
A8: Income
A9: sorghum silage | B9: 24 | C9: tons | D9: ='2016 Universal Input Prices'!$C$16 -> 34 | E9: 0.25 | F9: =D9*B9 -> 816 | G9: =F9*(1-E9) -> 612 | H9: =IF(H6="Cash", D56,F9*E9) -> 204
A11: Total Income | F11: =F9 -> 816 | G11: =G9 -> 612 | H11: =H9 -> 204
A13: Variable Costs
A14: Seed | B14: 7 | C14: lbs | D14: 2.4 | E14: 0 | F14: =D14*B14 -> 16.8 | G14: =F14*(1-E14) -> 16.8 | H14: =F14*E14 -> 0
A15: Fertilizer
A16: fert (N) - liquid | B16: 70 | C16: lbs | D16: =IF(A16="",0,VLOOKUP(A16,'2016 Universal Input Prices'!$B$27:$C$31, 2)) -> 0.46875 | E16: 0.25 | F16: =D16*B16 -> 32.8125 | G16: =F16*(1-E16) -> 24.609375 | H16: =F16*E16 -> 8.203125
A17: fert (P) - liquid | B17: 88 | C17: lbs | D17: =IF(A17="",0,VLOOKUP(A17,'2016 Universal Input Prices'!$B$27:$C$31, 2)) -> 0.9044117647 | E17: 0.25 | F17: =D17*B17 -> 79.58823529 | G17: =F17*(1-E17) -> 59.69117647 | H17: =F17*E17 -> 19.89705882
A18: fert (N) - NH3 | B18: 150 | C18: lbs | D18: =IF(A18="",0,VLOOKUP(A18,'2016 Universal Input Prices'!$B$27:$C$31, 2)) -> 0.3658536585 | E18: 0 | F18: =D18*B18 -> 54.87804878 | G18: =F18*(1-E18) -> 54.87804878 | H18: =F18*E18 -> 0
A19: Field Operations
A20: herbicide & application | B20: 1 | C20: acre | D20: 10.5 | E20: 0 | F20: =D20*B20 -> 10.5 | G20: =F20*(1-E20) -> 10.5 | H20: =F20*E20 -> 0
A21: fertilizer application | B21: 1 | C21: acre | D21: 11.75 | E21: 0.25 | F21: 11.75 | G21: 8.8125 | H21: 2.9375
A22: insecticide & application | B22: 1 | C22: acre | D22: 4.29 | E22: 0.25 | F22: 4.29 | G22: 3.2175 | H22: 1.0725
A23: custom harvest & haul | B23: =$B$9 -> 24 | C23: tons | D23: 7 | E23: 0.25 | F23: 168 | G23: 126 | H23: 42
A24: crop consultant | B24: 1 | C24: acre | D24: 0 | E24: 0 | F24: 0 | G24: 0 | H24: 0
A25: scouting | B25: 1 | C25: acre | D25: 0 | E25: 0 | F25: =D25*B25 -> 0 | G25: =F25*(1-E25) -> 0 | H25: =F25*E25 -> 0
A26: other | B26: 1 | C26: acre | D26: 0 | E26: 0 | F26: 0 | G26: 0 | H26: 0
A27: other | B27: 1 | C27: acre | D27: 0 | E27: 0 | F27: 0 | G27: 0 | H27: 0
A28: other | B28: 1 | C28: acre | D28: 0 | E28: 0 | F28: 0 | G28: 0 | H28: 0
A29: Crop Insurance | B29: 1 | C29: acre | D29: 23 | E29: 0.25 | F29: 23 | G29: 17.25 | H29: 5.75
A30: Operator Labor & Hand Labor | B30: 1.3 | C30: hour | D30: ='2016 Universal Input Prices'!$C$32 -> 12 | E30: 0 | F30: 15.6 | G30: 15.6 | H30: 0
A31: Irrigation Labor | B31: 1 | C31: hours | D31: ='2016 Universal Input Prices'!$C$32 -> 12 | E31: 0 | F31: 12 | G31: 12 | H31: 0
A32: Diesel Fuel - Tractors | B32: 3.2 | C32: gallons | D32: ='2016 Universal Input Prices'!$C$33 -> 1.5 | E32: 0 | F32: 4.8 | G32: 4.8 | H32: 0
A33: Gasoline - Pickup | B33: 2 | C33: gallons | D33: ='2016 Universal Input Prices'!$C$34 -> 1.6 | E33: 0 | F33: 3.2 | G33: 3.2 | H33: 0
A34: Irrigation Fuel | B34: 16 | C34: ac-in | D34: ='2016 Universal Input Prices'!$C$35 -> 11 | E34: 0 | F34: 176 | G34: 176 | H34: 0
A35: Pumping Days | B35: 70.7
A36: Calculated GPM capacity per acre needed | B36: =B34*18.85694/B35 -> 4.267482885
A37: Repair & Maintenance | G37: 0 | H37: 0
A38: Implements | B38: 1 | C38: acre | D38: 3 | E38: 0 | F38: =D38*B38 -> 3 | G38: 3 | H38: 0
A39: Tractors | B39: 1 | C39: acre | D39: 6 | E39: 0 | F39: =D39*B39 -> 6 | G39: 6 | H39: 0
A40: Irrigation-Above Ground | B40: =B34 -> 16 | C40: ac-in | D40: 1 | E40: 0 | F40: =D40*B40 -> 16 | G40: 16 | H40: 0
A41: Irrigation-Below Ground | B41: 1 | C41: acre | D41: 11.25 | E41: 1 | F41: =D41*B41 -> 11.25 | G41: 0 | H41: 11.25
A42: Pickup | B42: 1 | C42: acre | D42: 0.5 | E42: 0 | F42: =D42*B42 -> 0.5 | G42: 0.5 | H42: 0
A43: Interest-operating capital | B43: ='2016 Universal Input Prices'!$C$36 -> 0.065 | F43: =(SUM(F14:F22,F24:F42))*$B43/2 -> 15.66398548 | G43: =(SUM(G14:G22,G24:G42))*$B43/2 -> 14.06790451 | H43: 1.596080974
A45: Total Variable Costs | F45: =SUM(F14:F43) -> 665.6327696 | G45: =SUM(G14:G43) -> 572.9265048 | H45: =SUM(H14:H43) -> 92.7062648
A46: Returns Above Variable Costs | F46: =F11-F45 -> 150.3672304 | G46: =G11-G45 -> 39.07349524 | H46: =H11-H45 -> 111.2937352
A48: Fixed Costs
A49: Implements | B49: 1 | C49: acre | D49: 10 | E49: 0 | F49: =D49*B49 -> 10 | G49: =F49*(1-E49) -> 10 | H49: =F49*E49 -> 0
A50: Tractors | B50: 1 | C50: acre | D50: 12 | E50: 0 | F50: 12 | G50: 12 | H50: 0
A51: Irrigation-Above Ground | B51: 1 | C51: acre | D51: 40 | E51: 1 | F51: 40 | G51: 0 | H51: 40
A52: Irrigation-Below Ground | B52: 1 | C52: acre | D52: 15 | E52: 1 | F52: 15 | G52: 0 | H52: 15
A53: Pickup | B53: 1 | C53: acre | D53: 1.25 | E53: 0 | F53: 1.25 | G53: 1.25 | H53: 0
A54: Management | B54: 1 | C54: acre | D54: 25 | E54: 0 | F54: 25 | G54: 25 | H54: 0
A55: Whole Farm Insurance | B55: 1 | C55: acre | D55: 2 | E55: 0 | F55: =B55*D55 -> 2 | G55: 2 | H55: 0
A56: Land | B56: 1 | C56: acre | D56: 75 | E56: 1 | F56: =D56*B56 -> 75 | G56: =IF($H$6="Cash",D56,F56*(1-E56)) -> 0 | H56: =IF($H$6="Cash",0,F56*E56) -> 75
A57: Property Tax | B57: 1 | C57: acre | D57: 9 | E57: 1 | F57: =B57*D57 -> 9 | G57: 0 | H57: 9
A58: Total Fixed Expenses | F58: =SUM(F49:F57) -> 189.25 | G58: =SUM(G49:G57) -> 50.25 | H58: =SUM(H49:H57) -> 139
A59: Total Specified Expenses | F59: =F45+F58 -> 854.8827696 | G59: =G45+G58 -> 623.1765048 | H59: =H45+H58 -> 231.7062648
A60: Returns Above Total Specified Expenses | F60: =F11-F59 -> -38.88276956 | G60: =G11-G59 -> -11.17650476 | H60: =H11-H59 -> -27.7062648
A62: If you have questions, contact Jackie Smith at 806-746-6101
A65: Supported by a grant from the
A66: Texas Cotton State Support Committee

Sheet Irr Soybeans
A2: Estimated Costs and Returns per Acre
A3: Irrigated Soybeans
A4: Projected for 2016
H5: Rental Agreement | I5: Share
A6: Item | B6: Quantity | C6: Unit | D6: Price | E6: Owner | H6: Share | I6: Cash
E7: Share | F7: Total | G7: Operator | H7: Owner
A8: Income
A9: soybeans | B9: 40 | C9: bu | D9: ='2016 Universal Input Prices'!$C$17 -> 8.5 | E9: 0.25 | F9: =D9*B9 -> 340 | G9: =F9*(1-E9) -> 255 | H9: =IF(H6="Cash", D59,F9*E9) -> 85
A11: Total Income | F11: =F9 -> 340 | G11: =G9 -> 255 | H11: =H9 -> 85
A13: Variable Costs
A14: Seed
A15: soybean seed | B15: 60 | C15: lbs | D15: 0.65 | E15: 0 | F15: =D15*B15 -> 39 | G15: =F15*(1-E15) -> 39 | H15: =F15*E15 -> 0
A16: tech fee | B16: =B15 -> 60 | C16: lbs | D16: 0.625 | E16: 0.25 | F16: =D16*B16 -> 37.5 | G16: =F16*(1-E16) -> 28.125 | H16: =+F16*E16 -> 9.375
A17: innoculant | B17: 1 | C17: acre | D17: 7 | E17: 0 | F17: =D17*B17 -> 7 | G17: =F17*(1-E17) -> 7 | H17: =F17*E17 -> 0
A18: Fertilizer
A19: fert (P) - liquid | B19: 45 | C19: lbs | D19: =IF(A19="",0,VLOOKUP(A19,'2016 Universal Input Prices'!$B$27:$C$31, 2)) -> 0.9044117647 | E19: 0.25 | F19: =D19*B19 -> 40.69852941 | G19: =F19*(1-E19) -> 30.52389706 | H19: =F19*E19 -> 10.17463235
B20: 0 | C20: lbs | D20: =IF(A20="",0,VLOOKUP(A20,'2016 Universal Input Prices'!$B$27:$C$31, 2)) -> 0 | E20: 0 | F20: =D20*B20 -> 0 | G20: =F20*(1-E20) -> 0 | H20: =F20*E20 -> 0
B21: 0 | C21: lbs | D21: =IF(A21="",0,VLOOKUP(A21,'2016 Universal Input Prices'!$B$27:$C$31, 2)) -> 0 | E21: 0 | F21: =D21*B21 -> 0 | G21: =F21*(1-E21) -> 0 | H21: =F21*E21 -> 0
A22: Field Operations
A23: herbicide & application | B23: 1 | C23: acre | D23: 18 | E23: 0 | F23: =D23*B23 -> 18 | G23: =F23*(1-E23) -> 18 | H23: =F23*E23 -> 0
A24: fertilizer application | B24: 1 | C24: acre | D24: 0 | E24: 0.25 | F24: 0 | G24: 0 | H24: 0
A25: insecticide & application | B25: 1 | C25: acre | D25: 5.12 | E25: 0.25 | F25: 5.12 | G25: 3.84 | H25: 1.28
A26: custom harvest & haul | B26: =$B$9 -> 40 | C26: bu | D26: 0.5 | E26: 0.25 | F26: 20 | G26: 15 | H26: 5
A27: crop consultant | B27: 1 | C27: acre | D27: 0 | E27: 0 | F27: 0 | G27: 0 | H27: 0
A28: scouting | B28: 1 | C28: acre | D28: 0 | E28: 0 | F28: =D28*B28 -> 0 | G28: =F28*(1-E28) -> 0 | H28: =F28*E28 -> 0
A29: crop hail | B29: 2 | C29: acre | D29: 6 | E29: 0 | F29: 12 | G29: 12 | H29: 0
A30: other | B30: 1 | C30: acre | D30: 0 | E30: 0 | F30: 0 | G30: 0 | H30: 0
A31: other | B31: 1 | C31: acre | D31: 0 | E31: 0 | F31: 0 | G31: 0 | H31: 0
A32: Crop Insurance | B32: 1 | C32: acre | D32: 23 | E32: 0.25 | F32: 23 | G32: 17.25 | H32: 5.75
A33: Operator Labor & Hand Labor | B33: 1.5 | C33: hour | D33: ='2016 Universal Input Prices'!$C$32 -> 12 | E33: 0 | F33: 18 | G33: 18 | H33: 0
A34: Irrigation Labor | B34: 1 | C34: hours | D34: ='2016 Universal Input Prices'!$C$32 -> 12 | E34: 0 | F34: 12 | G34: 12 | H34: 0
A35: Diesel Fuel - Tractors | B35: 3.8 | C35: gallons | D35: ='2016 Universal Input Prices'!$C$33 -> 1.5 | E35: 0 | F35: 5.7 | G35: 5.7 | H35: 0
A36: Gasoline - Pickup | B36: 2 | C36: gallons | D36: ='2016 Universal Input Prices'!$C$34 -> 1.6 | E36: 0 | F36: 3.2 | G36: 3.2 | H36: 0
A37: Irrigation Fuel | B37: 15 | C37: ac-in | D37: ='2016 Universal Input Prices'!$C$35 -> 11 | E37: 0 | F37: 165 | G37: 165 | H37: 0
A38: Pumping Days | B38: 94.2
A39: Calculated GPM capacity per acre needed | B39: =B37*18.85694/B38 -> 3.002697452
A40: Repair & Maintenance | G40: 0 | H40: 0
A41: Implements | B41: 1 | C41: acre | D41: 3 | E41: 0 | F41: =D41*B41 -> 3 | G41: 3 | H41: 0
A42: Tractors | B42: 1 | C42: acre | D42: 6 | E42: 0 | F42: =D42*B42 -> 6 | G42: 6 | H42: 0
A43: Irrigation-Above Ground | B43: =B37 -> 15 | C43: ac-in | D43: 1 | E43: 0 | F43: =D43*B43 -> 15 | G43: 15 | H43: 0
A44: Irrigation-Below Ground | B44: 1 | C44: acre | D44: 11.25 | E44: 1 | F44: =D44*B44 -> 11.25 | G44: 0 | H44: 11.25
A45: Pickup | B45: 1 | C45: acre | D45: 0.5 | E45: 0 | F45: =D45*B45 -> 0.5 | G45: 0.5 | H45: 0
A46: Interest-operating capital | B46: ='2016 Universal Input Prices'!$C$36 -> 0.065 | F46: =(SUM(F15:F25,F27:F45))*$B46/2 -> 13.71397721 | G46: =(SUM(G15:G25,G27:G45))*$B46/2 -> 12.48451415 | H46: =(SUM(H15:H25,H27:H45))*$B46/2 -> 1.229463051
A48: Total Variable Costs | F48: =SUM(F15:F46) -> 455.6825066 | G48: =SUM(G15:G46) -> 411.6234112 | H48: =SUM(H15:H46) -> 44.0590954
A49: Returns Above Variable Costs | F49: =F11-F48 -> -115.6825066 | G49: =G11-G48 -> -156.6234112 | H49: =H11-H48 -> 40.9409046
A51: Fixed Costs
A52: Implements | B52: 1 | C52: acre | D52: 10 | E52: 0 | F52: =D52*B52 -> 10 | G52: =F52*(1-E52) -> 10 | H52: =F52*E52 -> 0
A53: Tractors | B53: 1 | C53: acre | D53: 12 | E53: 0 | F53: 12 | G53: 12 | H53: 0
A54: Irrigation-Above Ground | B54: 1 | C54: acre | D54: 40 | E54: 1 | F54: 40 | G54: 0 | H54: 40
A55: Irrigation-Below Ground | B55: 1 | C55: acre | D55: 15 | E55: 1 | F55: 15 | G55: 0 | H55: 15
A56: Pickup | B56: 1 | C56: acre | D56: 1.25 | E56: 0 | F56: 1.25 | G56: 1.25 | H56: 0
A57: Management | B57: 1 | C57: acre | D57: 25 | E57: 0 | F57: 25 | G57: 25 | H57: 0
A58: Whole Farm Insurance | B58: 1 | C58: acre | D58: 2 | E58: 0 | F58: 2 | G58: 2 | H58: 0
A59: Land | B59: 1 | C59: acre | D59: 75 | E59: 1 | F59: 75 | G59: =IF($H$6="Cash",D59,F59*(1-E59)) -> 0 | H59: =IF($H$6="Cash",0,F59*E59) -> 75
A60: Property Tax | B60: 1 | C60: acre | D60: 9 | E60: 1 | F60: 9 | G60: 0 | H60: 9
A61: Total Fixed Expenses | F61: =SUM(F52:F60) -> 189.25 | G61: =SUM(G52:G60) -> 50.25 | H61: =SUM(H52:H60) -> 139
A62: Total Specified Expenses | F62: =F48+F61 -> 644.9325066 | G62: =G48+G61 -> 461.8734112 | H62: =H48+H61 -> 183.0590954
A63: Returns Above Total Specified Expenses | F63: =F11-F62 -> -304.9325066 | G63: =G11-G62 -> -206.8734112 | H63: =H11-H62 -> -98.0590954
A65: If you have questions, contact Jackie Smith at 806-746-6101
A68: Supported by a grant from the
A69: Texas Cotton State Support Committee

Sheet Irr Sunflowers-Confection
A2: Estimated Costs and Returns per Acre
A3: Irrigated Sunflowers-Confectionary
A4: Projected for 2016
H5: Rental Agreement | I5: Share
A6: Item | B6: Quantity | C6: Unit | D6: Price | E6: Owner | H6: Share | I6: Cash
E7: Share | F7: Total | G7: Operator | H7: Owner
A8: Income
A9: Confectionary sunflower | B9: 2000 | C9: lbs | D9: =Sunflower_Conf_Price*$B$10+Sunflower_Conf_S_Price*(1-$B$10) -> 0.21336 | E9: 0.25 | F9: =D9*B9 -> 426.72 | G9: =F9*(1-E9) -> 320.04 | H9: =IF(H6="Cash", D58,F9*E9) -> 106.68
A10: Expected % Large | B10: 0.667
A12: Total Income | F12: =SUM(F8:F11) -> 426.72 | G12: =SUM(G8:G11) -> 320.04 | H12: =SUM(H8:H11) -> 106.68
A14: Variable Costs
A15: Seed | B15: 1 | C15: acre | D15: 21 | E15: 0 | F15: =D15*B15 -> 21 | G15: =F15*(1-E15) -> 21 | H15: =F15*E15 -> 0
A16: Fertilizer
A17: fert (P) - liquid | B17: 24 | C17: lbs | D17: =IF(A17="",0,VLOOKUP(A17,'2016 Universal Input Prices'!$B$27:$C$31, 2)) -> 0.9044117647 | E17: 0.25 | F17: =D17*B17 -> 21.70588235 | G17: =F17*(1-E17) -> 16.27941176 | H17: =F17*E17 -> 5.426470588
A18: fert (N) - liquid | B18: 70 | C18: lbs | D18: =IF(A18="",0,VLOOKUP(A18,'2016 Universal Input Prices'!$B$27:$C$31, 2)) -> 0.46875 | E18: 0.25 | F18: =D18*B18 -> 32.8125 | G18: =F18*(1-E18) -> 24.609375 | H18: =F18*E18 -> 8.203125
B19: 0 | C19: lbs | D19: =IF(A19="",0,VLOOKUP(A19,'2016 Universal Input Prices'!$B$27:$C$31, 2)) -> 0 | E19: 0 | F19: =D19*B19 -> 0 | G19: =F19*(1-E19) -> 0 | H19: =F19*E19 -> 0
A20: Field Operations
A21: herbicide & application | B21: 1 | C21: acre | D21: 35 | E21: 0 | F21: =D21*B21 -> 35 | G21: =F21*(1-E21) -> 35 | H21: =F21*E21 -> 0
A22: insecticide & application | B22: 1 | C22: acre | D22: 25 | E22: 0.25 | F22: 25 | G22: 18.75 | H22: 6.25
A23: custom harvest & haul | B23: 1 | C23: acre | D23: 20 | E23: 0.25 | F23: 20 | G23: 15 | H23: 5
A24: custom harvest & haul | B24: =B9/100 -> 20 | C24: cwt | D24: 0.3 | E24: 0.25 | F24: 6 | G24: 4.5 | H24: 1.5
A25: other | B25: 1 | C25: acre | D25: 0 | E25: 0 | F25: 0 | G25: 0 | H25: 0
A26: other | B26: 1 | C26: acre | D26: 0 | E26: 0 | F26: 0 | G26: 0 | H26: 0
A27: other | B27: 1 | C27: acre | D27: 0 | E27: 0 | F27: 0 | G27: 0 | H27: 0
A28: other | B28: 1 | C28: acre | D28: 0 | E28: 0 | F28: 0 | G28: 0 | H28: 0
A29: other | B29: 1 | C29: acre | D29: 0 | E29: 0 | F29: 0 | G29: 0 | H29: 0
A30: other | B30: 1 | C30: acre | D30: 0 | E30: 0 | F30: 0 | G30: 0 | H30: 0
A31: Crop Insurance | B31: 1 | C31: acre | D31: 17 | E31: 0.25 | F31: 17 | G31: 12.75 | H31: 4.25
A32: Operator Labor & Hand Labor | B32: 1.5 | C32: hours | D32: ='2016 Universal Input Prices'!$C$32 -> 12 | E32: 0 | F32: 18 | G32: 18 | H32: 0
A33: Irrigation Labor | B33: 0.75 | C33: hours | D33: ='2016 Universal Input Prices'!$C$32 -> 12 | E33: 0 | F33: 9 | G33: 9 | H33: 0
A34: Diesel Fuel - Tractors | B34: 3.8 | C34: gallons | D34: ='2016 Universal Input Prices'!$C$33 -> 1.5 | E34: 0 | F34: 5.7 | G34: 5.7 | H34: 0
A35: Gasoline - Pickup | B35: 2 | C35: gallons | D35: ='2016 Universal Input Prices'!$C$34 -> 1.6 | E35: 0 | F35: 3.2 | G35: 3.2 | H35: 0
A36: Irrigation Fuel | B36: 8 | C36: ac-in | D36: ='2016 Universal Input Prices'!$C$35 -> 11 | E36: 0 | F36: 88 | G36: 88 | H36: 0
A37: Pumping Days | B37: 60.3
A38: Calculated GPM capacity per acre needed | B38: =B36*18.85694/B37 -> 2.501749917
A39: Repair & Maintenance
A40: Implements | B40: 1 | C40: acre | D40: 3 | E40: 0 | F40: =D40*B40 -> 3 | G40: =F40*(1-E40) -> 3 | H40: =F40*E40 -> 0
A41: Tractors | B41: 1 | C41: acre | D41: 6 | E41: 0 | F41: =D41*B41 -> 6 | G41: =F41*(1-E41) -> 6 | H41: =F41*E41 -> 0
A42: Irrigation-Above Ground | B42: =B36 -> 8 | C42: ac-in | D42: 1 | E42: 1 | F42: =D42*B42 -> 8 | G42: =F42*(1-E42) -> 0 | H42: =F42*E42 -> 8
A43: Irrigation-Below Ground | B43: 1 | C43: acre | D43: 6 | E43: 1 | F43: =D43*B43 -> 6 | G43: =F43*(1-E43) -> 0 | H43: =F43*E43 -> 6
A44: Pickup | B44: 1 | C44: acre | D44: 0.5 | E44: 0 | F44: =D44*B44 -> 0.5 | G44: =F44*(1-E44) -> 0.5 | H44: =F44*E44 -> 0
A45: Interest-operating capital | B45: ='2016 Universal Input Prices'!$C$36 -> 0.065 | F45: =(SUM(F15:F22,F25:F44))*$B45/2 -> 9.747347426 | G45: =(SUM(G15:G22,G25:G44))*$B45/2 -> 8.50813557 | H45: =(SUM(H15:H22,H25:H44))*$B45/2 -> 1.239211857
A47: Total Variable Costs | F47: =SUM(F15:F45) -> 335.6657298 | G47: =SUM(G15:G45) -> 289.7969223 | H47: =SUM(H15:H45) -> 45.86880744
A48: Returns Above Variable Costs | F48: =F12-F47 -> 91.05427022 | G48: =G12-G47 -> 30.24307767 | H48: =H12-H47 -> 60.81119256
A50: Fixed Costs
A51: Implements | B51: 1 | C51: acre | D51: 10 | E51: 0 | F51: =D51*B51 -> 10 | G51: =F51*(1-E51) -> 10 | H51: =F51*E51 -> 0
A52: Tractors | B52: 1 | C52: acre | D52: 12 | E52: 0 | F52: 12 | G52: 12 | H52: 0
A53: Irrigation-Above Ground | B53: 1 | C53: acre | D53: 40 | E53: 1 | F53: 40 | G53: 0 | H53: 40
A54: Irrigation-Below Ground | B54: 1 | C54: acre | D54: 15 | E54: 1 | F54: 15 | G54: 0 | H54: 15
A55: Pickup | B55: 1 | C55: acre | D55: 1.25 | E55: 0 | F55: 1.25 | G55: 1.25 | H55: 0
A56: Management | B56: 1 | C56: acre | D56: 25 | E56: 0 | F56: 25 | G56: 25 | H56: 0
A57: Whole Farm Insurance | B57: 1 | C57: acre | D57: 2 | E57: 0 | F57: =B57*D57 -> 2 | G57: 2 | H57: 0
A58: Land | B58: 1 | C58: acre | D58: 75 | E58: 1 | F58: =D58*B58 -> 75 | G58: =IF($H$6="Cash",D58,F58*(1-E58)) -> 0 | H58: =IF($H$6="Cash",0,F58*E58) -> 75
A59: Property Tax | B59: 1 | C59: acre | D59: 9 | E59: 1 | F59: =B59*D59 -> 9 | G59: 0 | H59: 9
A60: Total Fixed Expenses | F60: =SUM(F51:F59) -> 189.25 | G60: =SUM(G51:G59) -> 50.25 | H60: =SUM(H51:H59) -> 139
A61: Total Specified Expenses | F61: =F47+F60 -> 524.9157298 | G61: =G47+G60 -> 340.0469223 | H61: =H47+H60 -> 184.8688074
A62: Returns Above Total Specified Expenses | F62: =F12-F61 -> -98.19572978 | G62: =G12-G61 -> -20.00692233 | H62: =H12-H61 -> -78.18880744
A64: If you have questions, contact Jackie Smith at 806-746-6101
A67: Supported by a grant from the
A68: Texas Cotton State Support Committee

Sheet Irr Sunflowers-Oilseed
A2: Estimated Costs and Returns per Acre
A3: Irrigated Sunflowers-Oilseed
A4: Projected for 2016
H5: Rental Agreement | I5: Share
A6: Item | B6: Quantity | C6: Unit | D6: Price | E6: Owner | H6: Share | I6: Cash
E7: Share | F7: Total | G7: Operator | H7: Owner
A8: Income
A9: oilseed sunflower | B9: 2000 | C9: lbs | D9: ='2016 Universal Input Prices'!$C$20 -> 0.14 | E9: 0.25 | F9: =D9*B9 -> 280 | G9: =F9*(1-E9) -> 210 | H9: =IF(H6="Cash", D57,F9*E9) -> 70
A11: Total Income | F11: =SUM(F8:F10) -> 280 | G11: =SUM(G8:G10) -> 210 | H11: =SUM(H8:H10) -> 70
A13: Variable Costs
A14: Seed | B14: 1 | C14: acre | D14: 21 | E14: 0 | F14: =D14*B14 -> 21 | G14: =F14*(1-E14) -> 21 | H14: =F14*E14 -> 0
A15: Fertilizer
A16: fert (P) - liquid | B16: 24 | C16: lbs | D16: =IF(A16="",0,VLOOKUP(A16,'2016 Universal Input Prices'!$B$27:$C$31, 2)) -> 0.9044117647 | E16: 0.25 | F16: =D16*B16 -> 21.70588235 | G16: =F16*(1-E16) -> 16.27941176 | H16: =F16*E16 -> 5.426470588
A17: fert (N) - liquid | B17: 70 | C17: lbs | D17: =IF(A17="",0,VLOOKUP(A17,'2016 Universal Input Prices'!$B$27:$C$31, 2)) -> 0.46875 | E17: 0.25 | F17: =D17*B17 -> 32.8125 | G17: =F17*(1-E17) -> 24.609375 | H17: =F17*E17 -> 8.203125
B18: 0 | C18: lbs | D18: =IF(A18="",0,VLOOKUP(A18,'2016 Universal Input Prices'!$B$27:$C$31, 2)) -> 0 | E18: 0 | F18: =D18*B18 -> 0 | G18: =F18*(1-E18) -> 0 | H18: =F18*E18 -> 0
A19: Field Operations
A20: herbicide & application | B20: 1 | C20: acre | D20: 34.75 | E20: 0 | F20: =D20*B20 -> 34.75 | G20: =F20*(1-E20) -> 34.75 | H20: =F20*E20 -> 0
A21: seed insecticide & application | B21: 1 | C21: acre | D21: 12.63 | E21: 0.25 | F21: 12.63 | G21: 9.4725 | H21: 3.1575
A22: custom harvest & haul | B22: 1 | C22: acre | D22: 20 | E22: 0.25 | F22: 20 | G22: 15 | H22: 5
A23: custom harvest & haul | B23: =B9/100 -> 20 | C23: cwt | D23: 0.3 | E23: 0.25 | F23: 6 | G23: 4.5 | H23: 1.5
A24: other | B24: 1 | C24: acre | D24: 0 | E24: 0 | F24: =D24*B24 -> 0 | G24: =F24*(1-E24) -> 0 | H24: =F24*E24 -> 0
A25: other | B25: 1 | C25: acre | D25: 0 | E25: 0 | F25: =D25*B25 -> 0 | G25: =F25*(1-E25) -> 0 | H25: =F25*E25 -> 0
A26: other | B26: 1 | C26: acre | D26: 0 | E26: 0 | F26: =D26*B26 -> 0 | G26: =F26*(1-E26) -> 0 | H26: =F26*E26 -> 0
A27: other | B27: 1 | C27: acre | D27: 0 | E27: 0 | F27: 0 | G27: 0 | H27: 0
A28: other | B28: 1 | C28: acre | D28: 0 | E28: 0 | F28: 0 | G28: 0 | H28: 0
A29: other | B29: 1 | C29: acre | D29: 0 | E29: 0 | F29: 0 | G29: 0 | H29: 0
A30: Crop Insurance | B30: 1 | C30: acre | D30: 13 | E30: 0.25 | F30: 13 | G30: 9.75 | H30: 3.25
A31: Operator Labor & Hand Labor | B31: 1.5 | C31: hours | D31: ='2016 Universal Input Prices'!$C$32 -> 12 | E31: 0 | F31: 18 | G31: 18 | H31: 0
A32: Irrigation Labor | B32: 0.75 | C32: hours | D32: ='2016 Universal Input Prices'!$C$32 -> 12 | E32: 0 | F32: 9 | G32: 9 | H32: 0
A33: Diesel Fuel - Tractors | B33: 3.8 | C33: gallons | D33: ='2016 Universal Input Prices'!$C$33 -> 1.5 | E33: 0 | F33: 5.7 | G33: 5.7 | H33: 0
A34: Gasoline - Pickup | B34: 2 | C34: gallons | D34: ='2016 Universal Input Prices'!$C$34 -> 1.6 | E34: 0 | F34: 3.2 | G34: 3.2 | H34: 0
A35: Irrigation Fuel | B35: 8 | C35: ac-in | D35: ='2016 Universal Input Prices'!$C$35 -> 11 | E35: 0 | F35: 88 | G35: 88 | H35: 0
A36: Pumping Days | B36: 60.3
A37: Calculated GPM capacity per acre needed | B37: =B35*18.85694/B36 -> 2.501749917
A38: Repair & Maintenance
A39: Implements | B39: 1 | C39: acre | D39: 3 | E39: 0 | F39: =D39*B39 -> 3 | G39: =F39*(1-E39) -> 3 | H39: =F39*E39 -> 0
A40: Tractors | B40: 1 | C40: acre | D40: 6 | E40: 0 | F40: =D40*B40 -> 6 | G40: =F40*(1-E40) -> 6 | H40: =F40*E40 -> 0
A41: Irrigation-Above Ground | B41: =B35 -> 8 | C41: ac-in | D41: 1 | E41: 0 | F41: =D41*B41 -> 8 | G41: =F41*(1-E41) -> 8 | H41: =F41*E41 -> 0
A42: Irrigation-Below Ground | B42: 1 | C42: acre | D42: 6 | E42: 1 | F42: =D42*B42 -> 6 | G42: =F42*(1-E42) -> 0 | H42: =F42*E42 -> 6
A43: Pickup | B43: 1 | C43: acre | D43: 0.5 | E43: 0 | F43: =D43*B43 -> 0.5 | G43: =F43*(1-E43) -> 0.5 | H43: =F43*E43 -> 0
A44: Interest-operating capital | B44: ='2016 Universal Input Prices'!$C$36 -> 0.065 | F44: =(SUM(F14:F21,F24:F43))*$B44/2 -> 9.207197426 | G44: =(SUM(G14:G21,G24:G43))*$B44/2 -> 8.36099182 | H44: =(SUM(H14:H21,H24:H43))*$B44/2 -> 0.8462056066
A46: Total Variable Costs | F46: =SUM(F14:F44) -> 318.5055798 | G46: =SUM(G14:G44) -> 285.1222786 | H46: =SUM(H14:H44) -> 33.38330119
A47: Returns Above Variable Costs | F47: =F11-F46 -> -38.50557978 | G47: =G11-G46 -> -75.12227858 | H47: =H11-H46 -> 36.61669881
A49: Fixed Costs
A50: Implements | B50: 1 | C50: acre | D50: 10 | E50: 0 | F50: =D50*B50 -> 10 | G50: =F50*(1-E50) -> 10 | H50: =F50*E50 -> 0
A51: Tractors | B51: 1 | C51: acre | D51: 12 | E51: 0 | F51: 12 | G51: 12 | H51: 0
A52: Irrigation-Above Ground | B52: 1 | C52: acre | D52: 40 | E52: 1 | F52: 40 | G52: 0 | H52: 40
A53: Irrigation-Below Ground | B53: 1 | C53: acre | D53: 15 | E53: 1 | F53: 15 | G53: 0 | H53: 15
A54: Pickup | B54: 1 | C54: acre | D54: 1.25 | E54: 0 | F54: 1.25 | G54: 1.25 | H54: 0
A55: Management | B55: 1 | C55: acre | D55: 25 | E55: 0 | F55: 25 | G55: 25 | H55: 0
A56: Whole Farm Insurance | B56: 1 | C56: acre | D56: 2 | E56: 0 | F56: =B56*D56 -> 2 | G56: 2 | H56: 0
A57: Land | B57: 1 | C57: acre | D57: 75 | E57: 1 | F57: =D57*B57 -> 75 | G57: =IF($H$6="Cash",D57,F57*(1-E57)) -> 0 | H57: =IF($H$6="Cash",0,F57*E57) -> 75
A58: Property Tax | B58: 1 | C58: acre | D58: 9 | E58: 1 | F58: =B58*D58 -> 9 | G58: 0 | H58: 9
A59: Total Fixed Expenses | F59: =SUM(F50:F58) -> 189.25 | G59: =SUM(G50:G58) -> 50.25 | H59: =SUM(H50:H58) -> 139
A60: Total Specified Expenses | F60: =F46+F59 -> 507.7555798 | G60: =G46+G59 -> 335.3722786 | H60: =H46+H59 -> 172.3833012
A61: Returns Above Total Specified Expenses | F61: =F11-F60 -> -227.7555798 | G61: =G11-G60 -> -125.3722786 | H61: =H11-H60 -> -102.3833012
A63: If you have questions, contact Jackie Smith at 806-746-6101
A66: Supported by a grant from the
A67: Texas Cotton State Support Committee

Sheet Irr Wheat
A2: Estimated Costs and Returns per Acre
A3: Irrigated Wheat
A4: Projected for 2016
H5: Rental Agreement | I5: Share
A6: Item | B6: Quantity | C6: Unit | D6: Price | E6: Owner | H6: Share | I6: Cash
E7: Share | F7: Total | G7: Operator | H7: Owner
A8: Income
A9: wheat | B9: 60 | C9: bu | D9: ='2016 Universal Input Prices'!$C$21 -> 4.75 | E9: 0.25 | F9: =D9*B9 -> 285 | G9: =F9*(1-E9) -> 213.75 | H9: =IF(H6="Cash", D56,F9*E9) -> 71.25
A10: grazing | B10: 136 | C10: lbs | D10: =Grazing_Price -> 0.45 | E10: 0.25 | F10: =D10*B10 -> 61.2 | G10: =F10*(1-E10) -> 45.9 | H10: =IF(H6="Cash", 0,F10*E10) -> 15.3
A12: Total Income | F12: =F9+F10 -> 346.2 | G12: =G9+G10 -> 259.65 | H12: =H9+H10 -> 86.55
A14: Variable Costs
A15: Seed | B15: 1.5 | C15: bu | D15: 25 | E15: 0 | F15: =D15*B15 -> 37.5 | G15: =F15*(1-E15) -> 37.5 | H15: =F15*E15 -> 0
A16: Fertilizer
A17: fert (N) - liquid | B17: 50 | C17: lbs | D17: =IF(A17="",0,VLOOKUP(A17,'2016 Universal Input Prices'!$B$27:$C$31, 2)) -> 0.46875 | E17: 0.25 | F17: =D17*B17 -> 23.4375 | G17: =F17*(1-E17) -> 17.578125 | H17: =F17*E17 -> 5.859375
A18: fert (P) - liquid | B18: 56 | C18: lbs | D18: =IF(A18="",0,VLOOKUP(A18,'2016 Universal Input Prices'!$B$27:$C$31, 2)) -> 0.9044117647 | E18: 0.25 | F18: =D18*B18 -> 50.64705882 | G18: =F18*(1-E18) -> 37.98529412 | H18: =F18*E18 -> 12.66176471
A19: fert (N) - NH3 | B19: 90 | C19: lbs | D19: =IF(A19="",0,VLOOKUP(A19,'2016 Universal Input Prices'!$B$27:$C$31, 2)) -> 0.3658536585 | E19: 0.25 | F19: =D19*B19 -> 32.92682927 | G19: =F19*(1-E19) -> 24.69512195 | H19: =F19*E19 -> 8.231707317
A20: Field Operations
A21: herbicide & application | B21: 1 | C21: acre | D21: 0 | E21: 0 | F21: =D21*B21 -> 0 | G21: =F21*(1-E21) -> 0 | H21: =F21*E21 -> 0
A22: fertilizer application | B22: 1 | C22: acre | D22: 11.75 | E22: 0 | F22: 11.75 | G22: 11.75 | H22: 0
A23: insecticide & application | B23: 1 | C23: acre | D23: 11 | E23: 0.25 | F23: 11 | G23: 8.25 | H23: 2.75
A24: custom harvest & haul | B24: =B9 -> 60 | C24: bu | D24: 0.5 | E24: 0.25 | F24: 30 | G24: 22.5 | H24: 7.5
A25: scouting | B25: 1 | C25: acre | D25: 0 | E25: 0 | F25: =D25*B25 -> 0 | G25: =F25*(1-E25) -> 0 | H25: =F25*E25 -> 0
A26: other | B26: 1 | C26: acre | D26: 0 | E26: 0 | F26: 0 | G26: 0 | H26: 0
A27: other | B27: 1 | C27: acre | D27: 0 | E27: 0 | F27: 0 | G27: 0 | H27: 0
A28: other | B28: 1 | C28: acre | D28: 0 | E28: 0 | F28: 0 | G28: 0 | H28: 0
A29: Crop Insurance | B29: 1 | C29: acre | D29: 19.5 | E29: 0.25 | F29: 19.5 | G29: 14.625 | H29: 4.875
A30: Operator Labor & Hand Labor | B30: 1 | C30: hours | D30: ='2016 Universal Input Prices'!$C$32 -> 12 | E30: 0 | F30: 12 | G30: 12 | H30: 0
A31: Irrigation Labor | B31: 1 | C31: hours | D31: ='2016 Universal Input Prices'!$C$32 -> 12 | E31: 0 | F31: 12 | G31: 12 | H31: 0
A32: Diesel Fuel - Tractors | B32: 2.4 | C32: gallons | D32: ='2016 Universal Input Prices'!$C$33 -> 1.5 | E32: 0 | F32: 3.6 | G32: 3.6 | H32: 0
A33: Gasoline - Pickup | B33: 2 | C33: gallons | D33: ='2016 Universal Input Prices'!$C$34 -> 1.6 | E33: 0 | F33: 3.2 | G33: 3.2 | H33: 0
A34: Irrigation Fuel | B34: 14 | C34: ac-in | D34: ='2016 Universal Input Prices'!$C$35 -> 11 | E34: 0 | F34: 154 | G34: 154 | H34: 0
A35: Pumping Days | B35: 94.2
A36: Calculated GPM capacity per acre needed | B36: =B34*18.85694/B35 -> 2.802517622
A37: Repair & Maintenance
A38: Implements | B38: 1 | C38: acre | D38: 3 | E38: 0 | F38: =D38*B38 -> 3 | G38: 3 | H38: 0
A39: Tractors | B39: 1 | C39: acre | D39: 6 | E39: 0 | F39: =D39*B39 -> 6 | G39: 6 | H39: 0
A40: Irrigation-Above Ground | B40: =B34 -> 14 | C40: ac-in | D40: 1 | E40: 0 | F40: =D40*B40 -> 14 | G40: 14 | H40: 0
A41: Irrigation-Below Ground | B41: 1 | C41: acre | D41: 11.25 | E41: 1 | F41: =D41*B41 -> 11.25 | G41: 0 | H41: 11.25
A42: Pickup | B42: 1 | C42: acre | D42: 0.5 | E42: 0 | F42: =D42*B42 -> 0.5 | G42: 0.5 | H42: 0
A43: Interest-operating capital | B43: ='2016 Universal Input Prices'!$C$36 -> 0.065 | F43: =(SUM(F15:F23,F25:F42))*$B43/2 -> 13.20512011 | G43: =(SUM(G15:G23,G25:G42))*$B43/2 -> 11.72221508 | H43: =(SUM(H15:H23,H25:H42))*$B43/2 -> 1.482905028
A45: Total Variable Costs | F45: =SUM(F15:F43) -> 449.5165082 | G45: =SUM(G15:G43) -> 394.9057562 | H45: =SUM(H15:H43) -> 54.61075205
A46: Returns Above Variable Costs | F46: =F12-F45 -> -103.3165082 | G46: =G12-G45 -> -135.2557562 | H46: =H12-H45 -> 31.93924795
A48: Fixed Costs
A49: Implements | B49: 1 | C49: acre | D49: 10 | E49: 0 | F49: =D49*B49 -> 10 | G49: =F49*(1-E49) -> 10 | H49: =F49*E49 -> 0
A50: Tractors | B50: 1 | C50: acre | D50: 12 | E50: 0 | F50: 12 | G50: 12 | H50: 0
A51: Irrigation-Above Ground | B51: 1 | C51: acre | D51: 40 | E51: 1 | F51: 40 | G51: 0 | H51: 40
A52: Irrigation-Below Ground | B52: 1 | C52: acre | D52: 15 | E52: 1 | F52: 15 | G52: 0 | H52: 15
A53: Pickup | B53: 1 | C53: acre | D53: 1.25 | E53: 0 | F53: 1.25 | G53: 1.25 | H53: 0
A54: Management | B54: 1 | C54: acre | D54: 25 | E54: 0 | F54: 25 | G54: 25 | H54: 0
A55: Whole Farm Insurance | B55: 1 | C55: acre | D55: 2 | E55: 0 | F55: =B55*D55 -> 2 | G55: 2 | H55: 0
A56: Land | B56: 1 | C56: acre | D56: 75 | E56: 1 | F56: =D56*B56 -> 75 | G56: =IF($H$6="Cash",D56,F56*(1-E56)) -> 0 | H56: =IF($H$6="Cash",0,F56*E56) -> 75
A57: Property Tax | B57: 1 | C57: acre | D57: 9 | E57: 1 | F57: =B57*D57 -> 9 | G57: 0 | H57: 9
A58: Total Fixed Expenses | F58: =SUM(F49:F57) -> 189.25 | G58: =SUM(G49:G57) -> 50.25 | H58: =SUM(H49:H57) -> 139
A59: Total Specified Expenses | F59: =F45+F58 -> 638.7665082 | G59: =G45+G58 -> 445.1557562 | H59: =H45+H58 -> 193.6107521
A60: Returns Above Total Specified Expenses | F60: =F12-F59 -> -292.5665082 | G60: =G12-G59 -> -185.5057562 | H60: =H12-H59 -> -107.0607521
A62: If you have questions, contact Jackie Smith at 806-746-6101
A65: Supported by a grant from the
A66: Texas Cotton State Support Committee

Sheet Dry Cotton Conventional
A2: Estimated Costs and Returns per Acre
A3: Dryland Cotton - Conventional
A4: Projected for 2016
H5: Rental Agreement | I5: Share
A6: Item | B6: Quantity | C6: Unit | D6: Price | E6: Owner | H6: Share | I6: Cash
E7: Share | F7: Total | G7: Operator | H7: Owner
A8: Income
A9: cotton lint | B9: 350 | C9: lbs | D9: ='2016 Universal Input Prices'!$C$8 -> 0.6 | E9: 0.25 | F9: =D9*B9 -> 210 | G9: =F9*(1-E9) -> 157.5 | H9: =IF(H6="Cash", D55,F9*E9) -> 52.5
A10: cotton seed | B10: =B9/500*'2016 Universal Input Prices'!C40/2000 -> 0.2485 | C10: tons | D10: ='2016 Universal Input Prices'!$C$9 -> 200 | E10: 0.25 | F10: =D10*B10 -> 49.7 | G10: =F10*(1-E10) -> 37.275 | H10: =IF(H6="Cash", 0,F10*E10) -> 12.425
A11: Expected Turnout | B11: 0.26
A12: Total Income | F12: =F9+F10 -> 259.7 | G12: =G9+G10 -> 194.775 | H12: =H9+H10 -> 64.925
A14: Variable Costs
A15: Seed
A16: cotton seed | B16: 39 | C16: thousand | D16: 0.26 | E16: 0 | F16: =D16*B16 -> 10.14 | G16: =F16*(1-E16) -> 10.14 | H16: =F16*E16 -> 0
A17: Boll Weevil Assess.-Dry | B17: 1 | C17: acre | D17: 1 | E17: 0.25 | F17: =D17*B17 -> 1 | G17: =F17*(1-E17) -> 0.75 | H17: =F17*E17 -> 0.25
A18: Fertilizer
A19: fert (N) - liquid | B19: 30 | C19: lbs | D19: =IF(A19="",0,VLOOKUP(A19,'2016 Universal Input Prices'!$B$27:$C$31, 2)) -> 0.46875 | E19: 0.25 | F19: =D19*B19 -> 14.0625 | G19: =F19*(1-E19) -> 10.546875 | H19: =F19*E19 -> 3.515625
A20: fert (P) - liquid | B20: 12 | C20: lbs | D20: =IF(A20="",0,VLOOKUP(A20,'2016 Universal Input Prices'!$B$27:$C$31, 2)) -> 0.9044117647 | E20: 0.25 | F20: =D20*B20 -> 10.85294118 | G20: =F20*(1-E20) -> 8.139705882 | H20: =F20*E20 -> 2.713235294
B21: 0 | C21: lbs | D21: =IF(A21="",0,VLOOKUP(A21,'2016 Universal Input Prices'!$B$27:$C$31, 2)) -> 0 | E21: 0 | F21: =D21*B21 -> 0 | G21: =F21*(1-E21) -> 0 | H21: =F21*E21 -> 0
A22: Field Operations
A23: preplant herbicide & application | B23: 1 | C23: acre | D23: 8.75 | E23: 0 | F23: =D23*B23 -> 8.75 | G23: =F23*(1-E23) -> 8.75 | H23: =F23*E23 -> 0
A24: at-plant herbicide | B24: 1 | C24: acre | D24: 5.75 | E24: 0 | F24: 5.75 | G24: 5.75 | H24: =+F24*E24 -> 0
A25: post emergence herbicide & application | B25: 1 | C25: acre | D25: 17 | E25: 0 | F25: 17 | G25: 17 | H25: 0
A26: fertilizer application | B26: 1 | C26: acre | D26: 4.75 | E26: 0.25 | F26: 4.75 | G26: 3.5625 | H26: 1.1875
A27: insecticide & application | B27: 1 | C27: acre | D27: 6 | E27: 0.25 | F27: 6 | G27: 4.5 | H27: 1.5
A28: harvest aids | B28: 1 | C28: acre | D28: 10 | E28: 0.25 | F28: 10 | G28: 7.5 | H28: 2.5
A29: strip (field cleaner) | B29: =B9 -> 350 | C29: lb. | D29: ='2016 Universal Input Prices'!$C$38 -> 0.08 | E29: 0 | F29: 28 | G29: 28 | H29: 0
A30: ginning | B30: =B9/B11/100 -> 13.46153846 | C30: cwt. | D30: ='2016 Universal Input Prices'!$C$39 -> 3.1 | E30: 0.25 | F30: 41.73076923 | G30: 31.29807692 | H30: 10.43269231
A31: hoeing | B31: 1 | C31: acre | D31: 18 | E31: 0 | F31: 18 | G31: 18 | H31: 0
A32: scouting | B32: 1 | C32: acre | D32: 5 | E32: 0 | F32: =D32*B32 -> 5 | G32: =F32*(1-E32) -> 5 | H32: =F32*E32 -> 0
A33: spot spraying | B33: 1 | C33: acre | D33: 15 | E33: 0 | F33: 15 | G33: 15 | H33: 0
A34: other | B34: 1 | C34: acre | D34: 0 | E34: 0 | F34: 0 | G34: 0 | H34: 0
A35: other | B35: 1 | C35: acre | D35: 0 | E35: 0 | F35: 0 | G35: 0 | H35: 0
A36: Crop Insurance | B36: 1 | C36: acre | D36: 32 | E36: 0.25 | F36: 32 | G36: 24 | H36: 8
A37: Operator Labor & Hand Labor | B37: 2.5 | C37: hours | D37: ='2016 Universal Input Prices'!$C$32 -> 12 | E37: 0 | F37: 30 | G37: 30 | H37: 0
A38: Diesel Fuel - Tractors | B38: 6 | C38: gallons | D38: ='2016 Universal Input Prices'!$C$33 -> 1.5 | E38: 0 | F38: 9 | G38: 9 | H38: 0
A39: Gasoline - Pickup | B39: 2 | C39: gallons | D39: ='2016 Universal Input Prices'!$C$34 -> 1.6 | E39: 0 | F39: 3.2 | G39: 3.2 | H39: 0
A40: Repair & Maintenance
A41: Implements | B41: 1 | C41: acre | D41: 3 | E41: 0 | F41: =D41*B41 -> 3 | G41: =F41*(1-E41) -> 3 | H41: =F41*E41 -> 0
A42: Tractors | B42: 1 | C42: acre | D42: 6 | E42: 0 | F42: =D42*B42 -> 6 | G42: =F42*(1-E42) -> 6 | H42: =F42*E42 -> 0
A43: Pickup | B43: 1 | C43: acre | D43: 0.5 | E43: 0 | F43: =D43*B43 -> 0.5 | G43: =F43*(1-E43) -> 0.5 | H43: =F43*E43 -> 0
A44: Interest-operating capital | B44: ='2016 Universal Input Prices'!$C$36 -> 0.065 | F44: =(SUM(F16:F27,F31:F43))*$B44/2 -> 6.500176838 | G44: =(SUM(G16:G27,G31:G43))*$B44/2 -> 5.942270129 | H44: =(SUM(H16:H27,H31:H43))*$B44/2 -> 0.5579067096
A46: Total Variable Costs | F46: =SUM(F16:F44) -> 286.2363872 | G46: =SUM(G16:G44) -> 255.5794279 | H46: =SUM(H16:H44) -> 30.65695931
A47: Returns Above Variable Costs | F47: =F12-F46 -> -26.53638725 | G47: =G12-G46 -> -60.80442793 | H47: =H12-H46 -> 34.26804069
A49: Fixed Costs
A50: Implements | B50: 1 | C50: acre | D50: 10 | E50: 0 | F50: =D50*B50 -> 10 | G50: =F50*(1-E50) -> 10 | H50: =F50*E50 -> 0
A51: Tractors | B51: 1 | C51: acre | D51: 12 | E51: 0 | F51: 12 | G51: 12 | H51: 0
A52: Pickup | B52: 1 | C52: acre | D52: 1.25 | E52: 0 | F52: 1.25 | G52: 1.25 | H52: 0
A53: Management | B53: 1 | C53: acre | D53: 25 | E53: 0 | F53: 25 | G53: 25 | H53: 0
A54: Whole Farm Insurance | B54: 1 | C54: acre | D54: 2 | E54: 0 | F54: 2 | G54: 2 | H54: 0
A55: Land | B55: 1 | C55: acre | D55: 50 | E55: 1 | F55: 50 | G55: =IF($H$6="Cash",D55,F55*(1-E55)) -> 0 | H55: =IF($H$6="Cash",0,F55*E55) -> 50
A56: Property Tax | B56: 1 | C56: acre | D56: 3 | E56: 1 | F56: 3 | G56: 0 | H56: 3
A57: Total Fixed Expenses | F57: =SUM(F50:F56) -> 103.25 | G57: =SUM(G50:G56) -> 50.25 | H57: =SUM(H50:H56) -> 53
A58: Total Specified Expenses | F58: =F46+F57 -> 389.4863872 | G58: =G46+G57 -> 305.8294279 | H58: =H46+H57 -> 83.65695931
A59: Returns Above Total Specified Expenses | F59: =F12-F58 -> -129.7863872 | G59: =G12-G58 -> -111.0544279 | H59: =H12-H58 -> -18.73195931
A61: If you have questions, contact Jackie Smith at 806-746-6101
A64: Supported by a grant from the
A65: Texas Cotton State Support Committee

Sheet Dry Cotton HT
A2: Estimated Costs and Returns per Acre
A3: Dryland Cotton - Herbicide Tolerant
A4: Projected for 2016
H5: Rental Agreement | I5: Share
A6: Item | B6: Quantity | C6: Unit | D6: Price | E6: Owner | H6: Share | I6: Cash
E7: Share | F7: Total | G7: Operator | H7: Owner
A8: Income
A9: cotton lint | B9: 350 | C9: lbs | D9: ='2016 Universal Input Prices'!$C$8 -> 0.6 | E9: 0.25 | F9: =D9*B9 -> 210 | G9: =F9*(1-E9) -> 157.5 | H9: =IF(H6="Cash", D56,F9*E9) -> 52.5
A10: cotton seed | B10: =B9/500*'2016 Universal Input Prices'!C40/2000 -> 0.2485 | C10: tons | D10: ='2016 Universal Input Prices'!$C$9 -> 200 | E10: 0.25 | F10: =D10*B10 -> 49.7 | G10: =F10*(1-E10) -> 37.275 | H10: =IF(H6="Cash", 0,F10*E10) -> 12.425
A11: Expected Turnout | B11: 0.26
A12: Total Income | F12: =F9+F10 -> 259.7 | G12: =G9+G10 -> 194.775 | H12: =H9+H10 -> 64.925
A14: Variable Costs
A15: Seed
A16: cotton seed | B16: 39 | C16: thousand | D16: 0.6 | E16: 0 | F16: =D16*B16 -> 23.4 | G16: =F16*(1-E16) -> 23.4 | H16: =F16*E16 -> 0
A17: tech fee | B17: =B16 -> 39 | C17: thousand | D17: 0.62 | E17: 0.25 | F17: =D17*B17 -> 24.18 | G17: =F17*(1-E17) -> 18.135 | H17: =+F17*E17 -> 6.045
A18: Boll Weevil Assess.-Dry | B18: 1 | C18: acre | D18: 1 | E18: 0.25 | F18: =D18*B18 -> 1 | G18: =F18*(1-E18) -> 0.75 | H18: =F18*E18 -> 0.25
A19: Fertilizer
A20: fert (N) - liquid | B20: 35 | C20: lbs | D20: =IF(A20="",0,VLOOKUP(A20,'2016 Universal Input Prices'!$B$27:$C$31, 2)) -> 0.46875 | E20: 0.25 | F20: =D20*B20 -> 16.40625 | G20: =F20*(1-E20) -> 12.3046875 | H20: =F20*E20 -> 4.1015625
A21: fert (P) - liquid | B21: 14 | C21: lbs | D21: =IF(A21="",0,VLOOKUP(A21,'2016 Universal Input Prices'!$B$27:$C$31, 2)) -> 0.9044117647 | E21: 0.25 | F21: =D21*B21 -> 12.66176471 | G21: =F21*(1-E21) -> 9.496323529 | H21: =F21*E21 -> 3.165441176
B22: 0 | C22: lbs | D22: =IF(A22="",0,VLOOKUP(A22,'2016 Universal Input Prices'!$B$27:$C$31, 2)) -> 0 | E22: 0 | F22: =D22*B22 -> 0 | G22: =F22*(1-E22) -> 0 | H22: =F22*E22 -> 0
A23: Field Operations
A24: preplant herbicide & application | B24: 1 | C24: acre | D24: 9.5 | E24: 0 | F24: =D24*B24 -> 9.5 | G24: =F24*(1-E24) -> 9.5 | H24: =F24*E24 -> 0
A25: at-plant herbicide | B25: 1 | C25: acre | D25: 4.5 | E25: 0 | F25: 4.5 | G25: 4.5 | H25: =+F25*E25 -> 0
A26: 1 post emergence herbicide & application | B26: 1 | C26: acre | D26: 12.5 | E26: 0 | F26: 12.5 | G26: 12.5 | H26: 0
A27: fertilizer application | B27: 1 | C27: acre | D27: 4.75 | E27: 0.25 | F27: 4.75 | G27: 3.5625 | H27: 1.1875
A28: insecticide & application | B28: 1 | C28: acre | D28: 6 | E28: 0.25 | F28: 6 | G28: 4.5 | H28: 1.5
A29: harvest aids | B29: 1 | C29: acre | D29: 10 | E29: 0.25 | F29: 10 | G29: 7.5 | H29: 2.5
A30: strip (field cleaner) | B30: =B9 -> 350 | C30: lb. | D30: ='2016 Universal Input Prices'!$C$38 -> 0.08 | E30: 0 | F30: 28 | G30: 28 | H30: 0
A31: ginning | B31: =B9/B11/100 -> 13.46153846 | C31: cwt. | D31: ='2016 Universal Input Prices'!$C$39 -> 3.1 | E31: 0.25 | F31: 41.73076923 | G31: 31.29807692 | H31: 10.43269231
A32: hoeing | B32: 0.1 | C32: acre | D32: 15 | E32: 0 | F32: 1.5 | G32: 1.5 | H32: 0
A33: scouting | B33: 1 | C33: acre | D33: 5 | E33: 0 | F33: =D33*B33 -> 5 | G33: =F33*(1-E33) -> 5 | H33: =F33*E33 -> 0
A34: spot spraying | B34: 0.1 | C34: acre | D34: 15 | E34: 0 | F34: 1.5 | G34: 1.5 | H34: 0
A35: other | B35: 1 | C35: acre | D35: 0 | E35: 0 | F35: 0 | G35: 0 | H35: 0
A36: other | B36: 1 | C36: acre | D36: 0 | E36: 0 | F36: 0 | G36: 0 | H36: 0
A37: Crop Insurance | B37: 1 | C37: acre | D37: 32 | E37: 0.25 | F37: 32 | G37: 24 | H37: 8
A38: Operator Labor & Hand Labor | B38: 1.4 | C38: hours | D38: ='2016 Universal Input Prices'!$C$32 -> 12 | E38: 0 | F38: 16.8 | G38: 16.8 | H38: 0
A39: Diesel Fuel - Tractors | B39: 3.4 | C39: gallons | D39: ='2016 Universal Input Prices'!$C$33 -> 1.5 | E39: 0 | F39: 5.1 | G39: 5.1 | H39: 0
A40: Gasoline - Pickup | B40: 2 | C40: gallons | D40: ='2016 Universal Input Prices'!$C$34 -> 1.6 | E40: 0 | F40: 3.2 | G40: 3.2 | H40: 0
A41: Repair & Maintenance
A42: Implements | B42: 1 | C42: acre | D42: 3 | E42: 0 | F42: =D42*B42 -> 3 | G42: =F42*(1-E42) -> 3 | H42: =F42*E42 -> 0
A43: Tractors | B43: 1 | C43: acre | D43: 6 | E43: 0 | F43: =D43*B43 -> 6 | G43: =F43*(1-E43) -> 6 | H43: =F43*E43 -> 0
A44: Pickup | B44: 1 | C44: acre | D44: 0.5 | E44: 0 | F44: =D44*B44 -> 0.5 | G44: =F44*(1-E44) -> 0.5 | H44: =F44*E44 -> 0
A45: Interest-operating capital | B45: ='2016 Universal Input Prices'!$C$36 -> 0.065 | F45: =(SUM(F16:F28,F32:F44))*$B45/2 -> 6.158685478 | G45: =(SUM(G16:G28,G32:G44))*$B45/2 -> 5.370576608 | H45: =(SUM(H16:H28,H32:H44))*$B45/2 -> 0.7881088695
A47: Total Variable Costs | F47: =SUM(F16:F45) -> 275.3874694 | G47: =SUM(G16:G45) -> 237.4171646 | H47: =SUM(H16:H45) -> 37.97030485
A48: Returns Above Variable Costs | F48: =F12-F47 -> -15.68746941 | G48: =G12-G47 -> -42.64216456 | H48: =H12-H47 -> 26.95469515
A50: Fixed Costs
A51: Implements | B51: 1 | C51: acre | D51: 10 | E51: 0 | F51: =D51*B51 -> 10 | G51: =F51*(1-E51) -> 10 | H51: =F51*E51 -> 0
A52: Tractors | B52: 1 | C52: acre | D52: 12 | E52: 0 | F52: 12 | G52: 12 | H52: 0
A53: Pickup | B53: 1 | C53: acre | D53: 1.25 | E53: 0 | F53: 1.25 | G53: 1.25 | H53: 0
A54: Management | B54: 1 | C54: acre | D54: 25 | E54: 0 | F54: 25 | G54: 25 | H54: 0
A55: Whole Farm Insurance | B55: 1 | C55: acre | D55: 2 | E55: 0 | F55: 2 | G55: 2 | H55: 0
A56: Land | B56: 1 | C56: acre | D56: 50 | E56: 1 | F56: 50 | G56: =IF($H$6="Cash",D56,F56*(1-E56)) -> 0 | H56: =IF($H$6="Cash",0,F56*E56) -> 50
A57: Property Tax | B57: 1 | C57: acre | D57: 3 | E57: 1 | F57: 3 | G57: 0 | H57: 3
A58: Total Fixed Expenses | F58: =SUM(F51:F57) -> 103.25 | G58: =SUM(G51:G57) -> 50.25 | H58: =SUM(H51:H57) -> 53
A59: Total Specified Expenses | F59: =F47+F58 -> 378.6374694 | G59: =G47+G58 -> 287.6671646 | H59: =H47+H58 -> 90.97030485
A60: Returns Above Total Specified Expenses | F60: =F12-F59 -> -118.9374694 | G60: =G12-G59 -> -92.89216456 | H60: =H12-H59 -> -26.04530485
A62: If you have questions, contact Jackie Smith at 806-746-6101
A65: Supported by a grant from the
A66: Texas Cotton State Support Committee

Sheet Dry Guar
A2: Estimated Costs and Returns per Ground Acre
A3: Dryland Guar
A4: Projected for 2016
H5: Rental Agreement | I5: Share
A6: Item | B6: Quantity | C6: Unit | D6: Price | E6: Owner | H6: Share | I6: Cash
E7: Share | F7: Total | G7: Operator | H7: Owner
A8: Income
A9: guar | B9: 600 | C9: lbs | D9: ='2016 Universal Input Prices'!C10 -> 0.15 | E9: 0.25 | F9: =D9*B9 -> 90 | G9: =F9*(1-E9) -> 67.5 | H9: =IF(H6="Cash", D50,F9*E9) -> 22.5
A11: Total Income | F11: =SUM(F9:F10) -> 90 | G11: =SUM(G9:G10) -> 67.5 | H11: =SUM(H9:H10) -> 22.5
A13: Variable Costs
A14: Seed | B14: 8 | C14: lbs | D14: 1.5 | E14: 0 | F14: =D14*B14 -> 12 | G14: =F14*(1-E14) -> 12 | H14: =F14*E14 -> 0
A15: Innoculant | B15: 1 | C15: lbs | D15: 3 | E15: 0 | F15: =D15*B15 -> 3 | G15: =F15*(1-E15) -> 3 | H15: =F15*E15 -> 0
A16: Fertilizer
A17: fert (P) - dry | B17: 8 | C17: lbs | D17: =IF(A17="",0,VLOOKUP(A17,'2016 Universal Input Prices'!$B$27:$C$31, 2)) -> 0.5192307692 | E17: 0.25 | F17: =D17*B17 -> 4.153846154 | G17: =F17*(1-E17) -> 3.115384615 | H17: =F17*E17 -> 1.038461538
B18: 0 | C18: lbs | D18: =IF(A18="",0,VLOOKUP(A18,'2016 Universal Input Prices'!$B$27:$C$31, 2)) -> 0 | E18: 0 | F18: =D18*B18 -> 0 | G18: =F18*(1-E18) -> 0 | H18: =F18*E18 -> 0
B19: 0 | C19: lbs | D19: =IF(A19="",0,VLOOKUP(A19,'2016 Universal Input Prices'!$B$27:$C$31, 2)) -> 0 | E19: 0 | F19: =D19*B19 -> 0 | G19: =F19*(1-E19) -> 0 | H19: =F19*E19 -> 0
A20: Field Operations
A21: herbicide | B21: 1 | C21: acre | D21: 2.34 | E21: 0 | F21: =D21*B21 -> 2.34 | G21: =F21*(1-E21) -> 2.34 | H21: =F21*E21 -> 0
A22: fertilizer application | B22: 0 | C22: acre | D22: 0 | E22: 0.25 | F22: 0 | G22: 0 | H22: 0
A23: insecticide | B23: 0 | C23: acre | D23: 0 | E23: 0.25 | F23: 0 | G23: 0 | H23: 0
A24: custom harvest and haul | B24: 1 | C24: acre | D24: 37.5 | E24: 0.25 | F24: 37.5 | G24: 28.125 | H24: 9.375
A25: custom harvest and haul | B25: =B9/100 -> 6 | C25: cwt | D25: 0.2 | E25: 0.25 | F25: 1.2 | G25: 0.9 | H25: 0.3
A26: hoeing | B26: 0 | C26: acre | D26: 0 | E26: 0 | F26: 0 | G26: 0 | H26: 0
A27: scouting | B27: 1 | C27: acre | D27: 0 | E27: 0 | F27: 0 | G27: 0 | H27: 0
A28: other | B28: 1 | C28: acre | D28: 0 | E28: 0 | F28: 0 | G28: 0 | H28: 0
A29: other | B29: 1 | C29: acre | D29: 0 | E29: 0 | F29: 0 | G29: 0 | H29: 0
A30: other | B30: 1 | C30: acre | D30: 0 | E30: 0 | F30: 0 | G30: 0 | H30: 0
A31: Crop Insurance | B31: 1 | C31: acre | D31: 2.5 | E31: 0 | F31: 2.5 | G31: 2.5 | H31: 0
A32: Operator Labor | B32: 0 | C32: hours | D32: ='2016 Universal Input Prices'!$C$32 -> 12 | E32: 0 | F32: 0 | G32: 0 | H32: 0
A33: Diesel Fuel - Tractors | B33: 2.4 | C33: gallons | D33: ='2016 Universal Input Prices'!$C$33 -> 1.5 | E33: 0 | F33: 3.6 | G33: 3.6 | H33: 0
A34: Gasoline - Pickup | B34: 2 | C34: gallons | D34: ='2016 Universal Input Prices'!$C$34 -> 1.6 | E34: 0 | F34: 3.2 | G34: 3.2 | H34: 0
A35: Repair & Maintenance
A36: Implements | B36: 1 | C36: acre | D36: 3 | E36: 0 | F36: =D36*B36 -> 3 | G36: =F36*(1-E36) -> 3 | H36: =F36*E36 -> 0
A37: Tractors | B37: 1 | C37: acre | D37: 6 | E37: 0 | F37: =D37*B37 -> 6 | G37: =F37*(1-E37) -> 6 | H37: =F37*E37 -> 0
A38: Pickup | B38: 1 | C38: acre | D38: 0.5 | E38: 0 | F38: =D38*B38 -> 0.5 | G38: =F38*(1-E38) -> 0.5 | H38: =F38*E38 -> 0
A39: Interest-operating capital | B39: ='2016 Universal Input Prices'!$C$36 -> 0.065 | F39: =(SUM(F14:F38)-SUM(F24:F25))*$B39/2 -> 1.30955 | G39: =(SUM(G14:G38)-SUM(G24:G25))*$B39/2 -> 1.2758 | H39: =(SUM(H14:H38)-SUM(H24:H25))*$B39/2 -> 0.03375
A41: Total Variable Costs | F41: =SUM(F14:F39) -> 80.30339615 | G41: =SUM(G14:G39) -> 69.55618462 | H41: =SUM(H14:H39) -> 10.74721154
A42: Returns Above Variable Costs | F42: =F11-F41 -> 9.696603846 | G42: =G11-G41 -> -2.056184615 | H42: =H11-H41 -> 11.75278846
A44: Fixed Costs
A45: Implements | B45: 1 | C45: acre | D45: 10 | E45: 0 | F45: =D45*B45 -> 10 | G45: =F45*(1-E45) -> 10 | H45: =F45*E45 -> 0
A46: Tractors | B46: 1 | C46: acre | D46: 12 | E46: 0 | F46: 12 | G46: 12 | H46: 0
A47: Pickup | B47: 1 | C47: acre | D47: 1.25 | E47: 0 | F47: 1.25 | G47: 1.25 | H47: 0
A48: Management | B48: 1 | C48: acre | D48: 25 | E48: 0 | F48: 25 | G48: 25 | H48: 0
A49: Whole Farm Insurance | B49: 1 | C49: acre | D49: 2 | E49: 0 | F49: =B49*D49 -> 2 | G49: 2 | H49: 0
A50: Land | B50: 1 | C50: acre | D50: 50 | E50: 1 | F50: =D50*B50 -> 50 | G50: =IF($H$6="Cash",D50,F50*(1-E50)) -> 0 | H50: =IF($H$6="Cash",0,F50*E50) -> 50
A51: Property Tax | B51: 1 | C51: acre | D51: 3 | E51: 1 | F51: =B51*D51 -> 3 | G51: =F51*(1-E51) -> 0 | H51: =F51*E51 -> 3
A52: Total Fixed Expenses | F52: =SUM(F45:F51) -> 103.25 | G52: =SUM(G45:G51) -> 50.25 | H52: =SUM(H45:H51) -> 53
A53: Total Specified Expenses | F53: =F41+F52 -> 183.5533962 | G53: =G41+G52 -> 119.8061846 | H53: =H41+H52 -> 63.74721154
A54: Returns Above Total Specified Expenses | F54: =F11-F53 -> -93.55339615 | G54: =G11-G53 -> -52.30618462 | H54: =H11-H53 -> -41.24721154
A56: If you have questions, contact Jackie Smith at 806-746-6101
A59: Supported by a grant from the
A60: Texas Cotton State Support Committee

Sheet Dry Sesame
A2: Estimated Costs and Returns per Ground Acre
A3: Dryland Sesame
A4: Projected for 2016
H5: Rental Agreement | I5: Share
A6: Item | B6: Quantity | C6: Unit | D6: Price | E6: Owner | H6: Share | I6: Cash
E7: Share | F7: Total | G7: Operator | H7: Owner
A8: Income
A9: sesame | B9: 700 | C9: lbs | D9: =Sesame_NI_Price -> 0.33 | E9: 0.25 | F9: =D9*B9 -> 231 | G9: =F9*(1-E9) -> 173.25 | H9: =IF(H6="Cash", D49,F9*E9) -> 57.75
A11: Total Income | F11: =SUM(F9:F10) -> 231 | G11: =SUM(G9:G10) -> 173.25 | H11: =SUM(H9:H10) -> 57.75
A13: Variable Costs
A14: Seed | B14: 2.5 | C14: lbs | D14: 4 | E14: 0 | F14: =D14*B14 -> 10 | G14: =F14*(1-E14) -> 10 | H14: =F14*E14 -> 0
A15: Fertilizer
A16: fert (N) - liquid | B16: 30 | C16: lbs | D16: =IF(A16="",0,VLOOKUP(A16,'2016 Universal Input Prices'!$B$27:$C$31, 2)) -> 0.46875 | E16: 0.25 | F16: =D16*B16 -> 14.0625 | G16: =F16*(1-E16) -> 10.546875 | H16: =F16*E16 -> 3.515625
B17: 0 | C17: lbs | D17: =IF(A17="",0,VLOOKUP(A17,'2016 Universal Input Prices'!$B$27:$C$31, 2)) -> 0 | E17: 0 | F17: =D17*B17 -> 0 | G17: =F17*(1-E17) -> 0 | H17: =F17*E17 -> 0
B18: 0 | C18: lbs | D18: =IF(A18="",0,VLOOKUP(A18,'2016 Universal Input Prices'!$B$27:$C$31, 2)) -> 0 | E18: 0 | F18: =D18*B18 -> 0 | G18: =F18*(1-E18) -> 0 | H18: =F18*E18 -> 0
A19: Field Operations
A20: herbicide | B20: 1 | C20: acre | D20: 21.75 | E20: 0 | F20: =D20*B20 -> 21.75 | G20: =F20*(1-E20) -> 21.75 | H20: =F20*E20 -> 0
A21: fertilizer application | B21: 1 | C21: acre | D21: 4.75 | E21: 0.25 | F21: 4.75 | G21: 3.5625 | H21: 1.1875
A22: insecticide | B22: 0 | C22: acre | D22: 0 | E22: 0.25 | F22: 0 | G22: 0 | H22: 0
A23: custom harvest and haul | B23: 1 | C23: acre | D23: 25 | E23: 0.25 | F23: 25 | G23: 18.75 | H23: 6.25
A24: custom harvest and haul | B24: =B9/100 -> 7 | C24: cwt | D24: 0.12 | E24: 0.25 | F24: 0.84 | G24: 0.63 | H24: 0.21
A25: hoeing | B25: 0 | C25: acre | D25: 0 | E25: 0 | F25: 0 | G25: 0 | H25: 0
A26: scouting | B26: 1 | C26: acre | D26: 0 | E26: 0 | F26: 0 | G26: 0 | H26: 0
A27: other | B27: 1 | C27: acre | D27: 0 | E27: 0 | F27: 0 | G27: 0 | H27: 0
A28: other | B28: 1 | C28: acre | D28: 0 | E28: 0 | F28: 0 | G28: 0 | H28: 0
A29: other | B29: 1 | C29: acre | D29: 0 | E29: 0 | F29: 0 | G29: 0 | H29: 0
A30: Crop Insurance | B30: 1 | C30: acre | D30: 10 | E30: 0 | F30: 10 | G30: 10 | H30: 0
A31: Operator Labor | B31: 1 | C31: hours | D31: ='2016 Universal Input Prices'!$C$32 -> 12 | E31: 0 | F31: 12 | G31: 12 | H31: 0
A32: Diesel Fuel - Tractors | B32: 2.2 | C32: gallons | D32: ='2016 Universal Input Prices'!$C$33 -> 1.5 | E32: 0 | F32: 3.3 | G32: 3.3 | H32: 0
A33: Gasoline - Pickup | B33: 2 | C33: gallons | D33: ='2016 Universal Input Prices'!$C$34 -> 1.6 | E33: 0 | F33: 3.2 | G33: 3.2 | H33: 0
A34: Repair & Maintenance
A35: Implements | B35: 1 | C35: acre | D35: 3 | E35: 0 | F35: =D35*B35 -> 3 | G35: =F35*(1-E35) -> 3 | H35: =F35*E35 -> 0
A36: Tractors | B36: 1 | C36: acre | D36: 6 | E36: 0 | F36: =D36*B36 -> 6 | G36: =F36*(1-E36) -> 6 | H36: =F36*E36 -> 0
A37: Pickup | B37: 1 | C37: acre | D37: 0.5 | E37: 0 | F37: =D37*B37 -> 0.5 | G37: =F37*(1-E37) -> 0.5 | H37: =F37*E37 -> 0
A38: Interest-operating capital | B38: ='2016 Universal Input Prices'!$C$36 -> 0.065 | F38: =(SUM(F14:F37)-SUM(F23:F24))*$B38/2 -> 2.87828125 | G38: =(SUM(G14:G37)-SUM(G23:G24))*$B38/2 -> 2.725429688 | H38: =(SUM(H14:H37)-SUM(H23:H24))*$B38/2 -> 0.1528515625
A40: Total Variable Costs | F40: =SUM(F14:F38) -> 117.2807813 | G40: =SUM(G14:G38) -> 105.9648047 | H40: =SUM(H14:H38) -> 11.31597656
A41: Returns Above Variable Costs | F41: =F11-F40 -> 113.7192187 | G41: =G11-G40 -> 67.28519531 | H41: =H11-H40 -> 46.43402344
A43: Fixed Costs
A44: Implements | B44: 1 | C44: acre | D44: 10 | E44: 0 | F44: =D44*B44 -> 10 | G44: =F44*(1-E44) -> 10 | H44: =F44*E44 -> 0
A45: Tractors | B45: 1 | C45: acre | D45: 12 | E45: 0 | F45: 12 | G45: 12 | H45: 0
A46: Pickup | B46: 1 | C46: acre | D46: 1.25 | E46: 0 | F46: 1.25 | G46: 1.25 | H46: 0
A47: Management | B47: 1 | C47: acre | D47: 25 | E47: 0 | F47: 25 | G47: 25 | H47: 0
A48: Whole Farm Insurance | B48: 1 | C48: acre | D48: 2 | E48: 0 | F48: =B48*D48 -> 2 | G48: 2 | H48: 0
A49: Land | B49: 1 | C49: acre | D49: 50 | E49: 1 | F49: =D49*B49 -> 50 | G49: =IF($H$6="Cash",D49,F49*(1-E49)) -> 0 | H49: =IF($H$6="Cash",0,F49*E49) -> 50
A50: Property Tax | B50: 1 | C50: acre | D50: 3 | E50: 1 | F50: =B50*D50 -> 3 | G50: =F50*(1-E50) -> 0 | H50: =F50*E50 -> 3
A51: Total Fixed Expenses | F51: =SUM(F44:F50) -> 103.25 | G51: =SUM(G44:G50) -> 50.25 | H51: =SUM(H44:H50) -> 53
A52: Total Specified Expenses | F52: =F40+F51 -> 220.5307813 | G52: =G40+G51 -> 156.2148047 | H52: =H40+H51 -> 64.31597656
A53: Returns Above Total Specified Expenses | F53: =F11-F52 -> 10.46921875 | G53: =G11-G52 -> 17.03519531 | H53: =H11-H52 -> -6.565976562
A55: If you have questions, contact Jackie Smith at 806-746-6101
A58: Supported by a grant from the
A59: Texas Cotton State Support Committee

Sheet Dry Sorghum
A2: Estimated Costs and Returns per Acre
A3: Dryland Sorghum
A4: Projected for 2016
H5: Rental Agreement | I5: Share
A6: Item | B6: Quantity | C6: Unit | D6: Price | E6: Owner | H6: Share | I6: Cash
E7: Share | F7: Total | G7: Operator | H7: Owner
A8: Income
A9: sorghum grain | B9: 18 | C9: cwt | D9: ='2016 Universal Input Prices'!$C$14 -> 6.85 | E9: 0.25 | F9: =B9*D9 -> 123.3 | G9: =F9*(1-E9) -> 92.475 | H9: =IF(H6="Cash", D50,F9*E9) -> 30.825
A10: grazing stalks | B10: 1 | C10: acre | D10: 0 | E10: 0.25 | F10: =D10*B10 -> 0 | G10: =F10*(1-E10) -> 0 | H10: =IF(H6="Cash", 0,F10*E10) -> 0
A12: Total Income | F12: =SUM(F9:F11) -> 123.3 | G12: =SUM(G9:G11) -> 92.475 | H12: =SUM(H9:H11) -> 30.825
A14: Variable Costs
A15: Seed | B15: 2.25 | C15: lbs | D15: 2.4 | E15: 0 | F15: =D15*B15 -> 5.4 | G15: =F15*(1-E15) -> 5.4 | H15: =F15*E15 -> 0
A16: Fertilizer
A17: fert (N) - liquid | B17: 30 | C17: lbs | D17: =IF(A17="",0,VLOOKUP(A17,'2016 Universal Input Prices'!$B$27:$C$31, 2)) -> 0.46875 | E17: 0.25 | F17: =D17*B17 -> 14.0625 | G17: =F17*(1-E17) -> 10.546875 | H17: =F17*E17 -> 3.515625
B18: 0 | C18: lbs | D18: =IF(A18="",0,VLOOKUP(A18,'2016 Universal Input Prices'!$B$27:$C$31, 2)) -> 0 | E18: 0 | F18: =D18*B18 -> 0 | G18: =F18*(1-E18) -> 0 | H18: =F18*E18 -> 0
B19: 0 | C19: lbs | D19: =IF(A19="",0,VLOOKUP(A19,'2016 Universal Input Prices'!$B$27:$C$31, 2)) -> 0 | E19: 0 | F19: =D19*B19 -> 0 | G19: =F19*(1-E19) -> 0 | H19: =F19*E19 -> 0
A20: Field Operations
A21: herbicide & application | B21: 1 | C21: acre | D21: 10.5 | E21: 0.25 | F21: =D21*B21 -> 10.5 | G21: =F21*(1-E21) -> 7.875 | H21: =F21*E21 -> 2.625
A22: fertilizer application | B22: 1 | C22: acre | D22: 4.75 | E22: 0.25 | F22: 4.75 | G22: 3.5625 | H22: 1.1875
A23: insecticide & application | B23: 1 | C23: acre | D23: 25 | E23: 0.25 | F23: 25 | G23: 18.75 | H23: 6.25
A24: custom harvest & haul | B24: 1 | C24: acre | D24: 14 | E24: 0 | F24: 14 | G24: 14 | H24: 0
A25: custom harvest & haul | B25: =B9 -> 18 | C25: cwt | D25: 0.4 | E25: 0 | F25: =D25*B25 -> 7.2 | G25: 7.2 | H25: 0
A26: hoeing | B26: 1 | C26: acre | D26: 0 | E26: 0 | F26: 0 | G26: 0 | H26: 0
A27: scouting | B27: 1 | C27: acre | D27: 0 | E27: 0 | F27: =D27*B27 -> 0 | G27: =F27*(1-E27) -> 0 | H27: =F27*E27 -> 0
A28: other | B28: 1 | C28: acre | D28: 0 | E28: 0 | F28: 0 | G28: 0 | H28: 0
A29: other | B29: 1 | C29: acre | D29: 0 | E29: 0 | F29: 0 | G29: 0 | H29: 0
A30: other | B30: 1 | C30: acre | D30: 0 | E30: 0 | F30: 0 | G30: 0 | H30: 0
A31: Crop Insurance | B31: 1 | C31: acre | D31: 16.5 | E31: 0.25 | F31: 16.5 | G31: 12.375 | H31: 4.125
A32: Operator Labor & Hand Labor | B32: 1 | C32: hours | D32: ='2016 Universal Input Prices'!$C$32 -> 12 | E32: 0 | F32: 12 | G32: 12 | H32: 0
A33: Diesel Fuel - Tractors | B33: 2.4 | C33: gallons | D33: ='2016 Universal Input Prices'!$C$33 -> 1.5 | E33: 0 | F33: 3.6 | G33: 3.6 | H33: 0
A34: Gasoline - Pickup | B34: 2 | C34: gallons | D34: ='2016 Universal Input Prices'!$C$34 -> 1.6 | E34: 0 | F34: 3.2 | G34: 3.2 | H34: 0
A35: Repair & Maintenance
A36: Implements | B36: 1 | C36: acre | D36: 3 | E36: 0 | F36: =D36*B36 -> 3 | G36: =F36*(1-E36) -> 3 | H36: =F36*E36 -> 0
A37: Tractors | B37: 1 | C37: acre | D37: 6 | E37: 0 | F37: =D37*B37 -> 6 | G37: =F37*(1-E37) -> 6 | H37: =F37*E37 -> 0
A38: Pickup | B38: 1 | C38: acre | D38: 0.5 | E38: 0 | F38: =D38*B38 -> 0.5 | G38: =F38*(1-E38) -> 0.5 | H38: =F38*E38 -> 0
A39: Interest-operating capital | B39: ='2016 Universal Input Prices'!$C$36 -> 0.065 | F39: =(SUM(F15:F23,F26:F38))*$B39/2 -> 3.39665625 | G39: =(SUM(G15:G23,G26:G38))*$B39/2 -> 2.821304688 | H39: =(SUM(H15:H23,H26:H38))*$B39/2 -> 0.5753515625
A41: Total Variable Costs | F41: =SUM(F15:F39) -> 129.1091563 | G41: =SUM(G15:G39) -> 110.8306797 | H41: =SUM(H15:H39) -> 18.27847656
A42: Returns Above Variable Costs | F42: =F12-F41 -> -5.80915625 | G42: =G12-G41 -> -18.35567969 | H42: =H12-H41 -> 12.54652344
A44: Fixed Costs
A45: Implements | B45: 1 | C45: acre | D45: 10 | E45: 0 | F45: =D45*B45 -> 10 | G45: =F45*(1-E45) -> 10 | H45: =F45*E45 -> 0
A46: Tractors | B46: 1 | C46: acre | D46: 12 | E46: 0 | F46: 12 | G46: 12 | H46: 0
A47: Pickup | B47: 1 | C47: acre | D47: 1.25 | E47: 0 | F47: 1.25 | G47: 1.25 | H47: 0
A48: Management | B48: 1 | C48: acre | D48: 25 | E48: 0 | F48: 25 | G48: 25 | H48: 0
A49: Whole Farm Insurance | B49: 1 | C49: acre | D49: 2 | E49: 0 | F49: =B49*D49 -> 2 | G49: 2 | H49: 0
A50: Land | B50: 1 | C50: acre | D50: 50 | E50: 1 | F50: =D50*B50 -> 50 | G50: =IF($H$6="Cash",D50,F50*(1-E50)) -> 0 | H50: =IF($H$6="Cash",0,F50*E50) -> 50
A51: Property Tax | B51: 1 | C51: acre | D51: 3 | E51: 1 | F51: =B51*D51 -> 3 | G51: 0 | H51: 3
A52: Total Fixed Expenses | F52: =SUM(F45:F51) -> 103.25 | G52: =SUM(G45:G51) -> 50.25 | H52: =SUM(H45:H51) -> 53
A53: Total Specified Expenses | F53: =F41+F52 -> 232.3591563 | G53: =G41+G52 -> 161.0806797 | H53: =H41+H52 -> 71.27847656
A54: Returns Above Total Specified Expenses | F54: =F12-F53 -> -109.0591563 | G54: =G12-G53 -> -68.60567969 | H54: =H12-H53 -> -40.45347656
A56: If you have questions, contact Jackie Smith at 806-746-6101
A59: Supported by a grant from the
A60: Texas Cotton State Support Committee

Sheet Dry Sunflowers-Oilseed
A2: Estimated Costs and Returns per Acre
A3: Dryland Sunflowers-Oilseed
A4: Projected for 2016
H5: Rental Agreement | I5: Share
A6: Item | B6: Quantity | C6: Unit | D6: Price | E6: Owner | H6: Share | I6: Cash
E7: Share | F7: Total | G7: Operator | H7: Owner
A8: Income
A9: oilseed sunflowers | B9: 1000 | C9: lbs | D9: =Sunflower_Oil_Price -> 0.14 | E9: 0.25 | F9: =D9*B9 -> 140 | G9: =F9*(1-E9) -> 105 | H9: =IF(H6="Cash", D49,F9*E9) -> 35
A11: Total Income | F11: =SUM(F8:F10) -> 140 | G11: =SUM(G8:G10) -> 105 | H11: =SUM(H8:H10) -> 35
A13: Variable Costs
A14: Seed | B14: 1 | C14: acre | D14: 12.5 | E14: 0 | F14: =D14*B14 -> 12.5 | G14: =F14*(1-E14) -> 12.5 | H14: =F14*E14 -> 0
A15: Fertilizer
A16: fert (N) - liquid | B16: 40 | C16: lbs | D16: =IF(A16="",0,VLOOKUP(A16,'2016 Universal Input Prices'!$B$27:$C$31, 2)) -> 0.46875 | E16: 0.25 | F16: =D16*B16 -> 18.75 | G16: =F16*(1-E16) -> 14.0625 | H16: =F16*E16 -> 4.6875
B17: 0 | C17: lbs | D17: =IF(A17="",0,VLOOKUP(A17,'2016 Universal Input Prices'!$B$27:$C$31, 2)) -> 0 | E17: 0 | F17: =D17*B17 -> 0 | G17: =F17*(1-E17) -> 0 | H17: =F17*E17 -> 0
B18: 0 | C18: lbs | D18: =IF(A18="",0,VLOOKUP(A18,'2016 Universal Input Prices'!$B$27:$C$31, 2)) -> 0 | E18: 0 | F18: =D18*B18 -> 0 | G18: =F18*(1-E18) -> 0 | H18: =F18*E18 -> 0
A19: Field Operations
A20: herbicide & application | B20: 1 | C20: acre | D20: 34.75 | E20: 0 | F20: =D20*B20 -> 34.75 | G20: =F20*(1-E20) -> 34.75 | H20: =F20*E20 -> 0
A21: fertilizer application | B21: 1 | C21: acre | D21: 4.75 | E21: 0.25 | F21: =D21*B21 -> 4.75 | G21: =F21*(1-E21) -> 3.5625 | H21: =F21*E21 -> 1.1875
A22: insecticide & application | B22: 1 | C22: acre | D22: 11.63 | E22: 0.25 | F22: =D22*B22 -> 11.63 | G22: =F22*(1-E22) -> 8.7225 | H22: =F22*E22 -> 2.9075
A23: custom harvest & haul | B23: 1 | C23: acre | D23: 15 | E23: 0.25 | F23: 15 | G23: 11.25 | H23: 3.75
A24: custom harvest & haul | B24: =B9/100 -> 10 | C24: cwt | D24: 0.3 | E24: 0.25 | F24: 3 | G24: 2.25 | H24: 0.75
A25: scouting | B25: 1 | C25: acre | D25: 0 | E25: 0 | F25: =D25*B25 -> 0 | G25: =F25*(1-E25) -> 0 | H25: =F25*E25 -> 0
A26: other | B26: 1 | C26: acre | D26: 0 | E26: 0 | F26: =D26*B26 -> 0 | G26: =F26*(1-E26) -> 0 | H26: =F26*E26 -> 0
A27: other | B27: 1 | C27: acre | D27: 0 | E27: 0 | F27: 0 | G27: 0 | H27: 0
A28: other | B28: 1 | C28: acre | D28: 0 | E28: 0 | F28: 0 | G28: 0 | H28: 0
A29: other | B29: 1 | C29: acre | D29: 0 | E29: 0 | F29: 0 | G29: 0 | H29: 0
A30: Crop Insurance | B30: 1 | C30: acre | D30: 11 | E30: 0.25 | F30: 11 | G30: 8.25 | H30: 2.75
A31: Operator Labor & Hand Labor | B31: 1 | C31: hours | D31: ='2016 Universal Input Prices'!$C$32 -> 12 | E31: 0 | F31: 12 | G31: 12 | H31: 0
A32: Diesel Fuel - Tractors | B32: 2.4 | C32: gallons | D32: ='2016 Universal Input Prices'!$C$33 -> 1.5 | E32: 0 | F32: 3.6 | G32: 3.6 | H32: 0
A33: Gasoline - Pickup | B33: 2 | C33: gallons | D33: ='2016 Universal Input Prices'!$C$34 -> 1.6 | E33: 0 | F33: 3.2 | G33: 3.2 | H33: 0
A34: Repair & Maintenance
A35: Implements | B35: 1 | C35: acre | D35: 3 | E35: 0 | F35: =D35*B35 -> 3 | G35: =F35*(1-E35) -> 3 | H35: =F35*E35 -> 0
A36: Tractors | B36: 1 | C36: acre | D36: 6 | E36: 0 | F36: =D36*B36 -> 6 | G36: =F36*(1-E36) -> 6 | H36: =F36*E36 -> 0
A37: Pickup | B37: 1 | C37: acre | D37: 0.5 | E37: 0 | F37: =D37*B37 -> 0.5 | G37: =F37*(1-E37) -> 0.5 | H37: =F37*E37 -> 0
A38: Interest-operating capital | B38: ='2016 Universal Input Prices'!$C$36 -> 0.065 | F38: =(SUM(F14:F22,F26:F37))*$B38/2 -> 3.9546 | G38: =(SUM(G14:G22,G26:G37))*$B38/2 -> 3.57979375 | H38: =(SUM(H14:H22,H26:H37))*$B38/2 -> 0.37480625
A40: Total Variable Costs | F40: =SUM(F14:F38) -> 143.6346 | G40: =SUM(G14:G38) -> 127.2272937 | H40: =SUM(H14:H38) -> 16.40730625
A41: Returns Above Variable Costs | F41: =F11-F40 -> -3.6346 | G41: =G11-G40 -> -22.22729375 | H41: =H11-H40 -> 18.59269375
A43: Fixed Costs
A44: Implements | B44: 1 | C44: acre | D44: 10 | E44: 0 | F44: =D44*B44 -> 10 | G44: =F44*(1-E44) -> 10 | H44: =F44*E44 -> 0
A45: Tractors | B45: 1 | C45: acre | D45: 12 | E45: 0 | F45: 12 | G45: 12 | H45: 0
A46: Pickup | B46: 1 | C46: acre | D46: 1.25 | E46: 0 | F46: 1.25 | G46: 1.25 | H46: 0
A47: Management | B47: 1 | C47: acre | D47: 25 | E47: 0 | F47: 25 | G47: 25 | H47: 0
A48: Whole Farm Insurance | B48: 1 | C48: acre | D48: 2 | E48: 0 | F48: =B48*D48 -> 2 | G48: 2 | H48: 0
A49: Land | B49: 1 | C49: acre | D49: 50 | E49: 1 | F49: =D49*B49 -> 50 | G49: =IF($H$6="Cash",D49,F49*(1-E49)) -> 0 | H49: =IF($H$6="Cash",0,F49*E49) -> 50
A50: Property Tax | B50: 1 | C50: acre | D50: 3 | E50: 1 | F50: =B50*D50 -> 3 | G50: 0 | H50: 3
A51: Total Fixed Expenses | F51: =SUM(F44:F50) -> 103.25 | G51: =SUM(G44:G50) -> 50.25 | H51: =SUM(H44:H50) -> 53
A52: Total Specified Expenses | F52: =F40+F51 -> 246.8846 | G52: =G40+G51 -> 177.4772938 | H52: =H40+H51 -> 69.40730625
A53: Returns Above Total Specified Expenses | F53: =F11-F52 -> -106.8846 | G53: =G11-G52 -> -72.47729375 | H53: =H11-H52 -> -34.40730625
A55: If you have questions, contact Jackie Smith at 806-746-6101
A58: Supported by a grant from the
A59: Texas Cotton State Support Committee

Sheet Dry Wheat
A2: Estimated Costs and Returns per Acre
A3: Dryland Wheat
A4: Projected for 2016
H5: Rental Agreement | I5: Share
A6: Item | B6: Quantity | C6: Unit | D6: Price | E6: Owner | H6: Share | I6: Cash
E7: Share | F7: Total | G7: Operator | H7: Owner
A8: Income
A9: wheat | B9: 18 | C9: bu | D9: ='2016 Universal Input Prices'!$C$21 -> 4.75 | E9: 0.25 | F9: =D9*B9 -> 85.5 | G9: =F9*(1-E9) -> 64.125 | H9: =IF(H6="Cash", D49,F9*E9) -> 21.375
A10: grazing | B10: 68 | C10: lbs | D10: =Grazing_Price -> 0.45 | E10: 0.25 | F10: =D10*B10 -> 30.6 | G10: =F10*(1-E10) -> 22.95 | H10: =IF(H6="Cash", 0,F10*E10) -> 7.65
A12: Total Income | F12: =F9+F10 -> 116.1 | G12: =G9+G10 -> 87.075 | H12: =H9+H10 -> 29.025
A14: Variable Costs
A15: Seed | B15: 1 | C15: bu | D15: 25 | E15: 0 | F15: =D15*B15 -> 25 | G15: =F15*(1-E15) -> 25 | H15: =F15*E15 -> 0
A16: Fertilizer
A17: fert (N) - liquid | B17: 30 | C17: lbs | D17: =IF(A17="",0,VLOOKUP(A17,'2016 Universal Input Prices'!$B$27:$C$31, 2)) -> 0.46875 | E17: 0.25 | F17: =D17*B17 -> 14.0625 | G17: =F17*(1-E17) -> 10.546875 | H17: =F17*E17 -> 3.515625
B18: 0 | C18: lbs | D18: =IF(A18="",0,VLOOKUP(A18,'2016 Universal Input Prices'!$B$27:$C$31, 2)) -> 0 | E18: 0 | F18: =D18*B18 -> 0 | G18: =F18*(1-E18) -> 0 | H18: =F18*E18 -> 0
B19: 0 | C19: lbs | D19: =IF(A19="",0,VLOOKUP(A19,'2016 Universal Input Prices'!$B$27:$C$31, 2)) -> 0 | E19: 0 | F19: =D19*B19 -> 0 | G19: =F19*(1-E19) -> 0 | H19: =F19*E19 -> 0
A20: Field Operations
A21: herbicide & application | B21: 1 | C21: acre | D21: 16.75 | E21: 0 | F21: =D21*B21 -> 16.75 | G21: =F21*(1-E21) -> 16.75 | H21: =F21*E21 -> 0
A22: fertilizer application | B22: 1 | C22: acre | D22: 4.75 | E22: 0.25 | F22: 4.75 | G22: 3.5625 | H22: 1.1875
A23: insecticide & application | B23: 1 | C23: acre | D23: 5.5 | E23: 0.25 | F23: 5.5 | G23: 4.125 | H23: 1.375
A24: custom harvest & haul | B24: 1 | C24: acre | D24: 14 | E24: 0.25 | F24: 14 | G24: 10.5 | H24: 3.5
A25: custom harvest & haul | B25: =B9 -> 18 | C25: bu | D25: 0.14 | E25: 0.25 | F25: =D25*B25 -> 2.52 | G25: 1.89 | H25: 0.63
A26: scouting | B26: 1 | C26: acre | D26: 0 | E26: 0 | F26: =D26*B26 -> 0 | G26: =F26*(1-E26) -> 0 | H26: =F26*E26 -> 0
A27: other | B27: 1 | C27: acre | D27: 0 | E27: 0 | F27: 0 | G27: 0 | H27: 0
A28: other | B28: 1 | C28: acre | D28: 0 | E28: 0 | F28: 0 | G28: 0 | H28: 0
A29: other | B29: 1 | C29: acre | D29: 0 | E29: 0 | F29: 0 | G29: 0 | H29: 0
A30: Crop Insurance | B30: 1 | C30: acre | D30: 19 | E30: 0.25 | F30: 19 | G30: 14.25 | H30: 4.75
A31: Operator Labor & Hand Labor | B31: 0.9 | C31: hours | D31: ='2016 Universal Input Prices'!$C$32 -> 12 | E31: 0 | F31: 10.8 | G31: 10.8 | H31: 0
A32: Diesel Fuel - Tractors | B32: 2.2 | C32: gallons | D32: ='2016 Universal Input Prices'!$C$33 -> 1.5 | E32: 0 | F32: 3.3 | G32: 3.3 | H32: 0
A33: Gasoline - Pickup | B33: 2 | C33: gallons | D33: ='2016 Universal Input Prices'!$C$34 -> 1.6 | E33: 0 | F33: 3.2 | G33: 3.2 | H33: 0
A34: Repair & Maintenance
A35: Implements | B35: 1 | C35: acre | D35: 3 | E35: 0 | F35: =D35*B35 -> 3 | G35: =F35*(1-E35) -> 3 | H35: =F35*E35 -> 0
A36: Tractors | B36: 1 | C36: acre | D36: 6 | E36: 0 | F36: =D36*B36 -> 6 | G36: =F36*(1-E36) -> 6 | H36: =F36*E36 -> 0
A37: Pickup | B37: 1 | C37: acre | D37: 0.5 | E37: 0 | F37: =D37*B37 -> 0.5 | G37: =F37*(1-E37) -> 0.5 | H37: =F37*E37 -> 0
A38: Interest-operating capital | B38: ='2016 Universal Input Prices'!$C$36 -> 0.065 | F38: =(SUM(F15:F23,F26:F37))*$B38/2 -> 3.63553125 | G38: =(SUM(G15:G23,G26:G37))*$B38/2 -> 3.283617187 | H38: =(SUM(H15:H23,H26:H37))*$B38/2 -> 0.3519140625
A40: Total Variable Costs | F40: =SUM(F15:F38) -> 132.0180313 | G40: =SUM(G15:G38) -> 116.7079922 | H40: =SUM(H15:H38) -> 15.31003906
A41: Returns Above Variable Costs | F41: =F12-F40 -> -15.91803125 | G41: =G12-G40 -> -29.63299219 | H41: =H12-H40 -> 13.71496094
A43: Fixed Costs
A44: Implements | B44: 1 | C44: acre | D44: 10 | E44: 0 | F44: =D44*B44 -> 10 | G44: =F44*(1-E44) -> 10 | H44: =F44*E44 -> 0
A45: Tractors | B45: 1 | C45: acre | D45: 12 | E45: 0 | F45: 12 | G45: 12 | H45: 0
A46: Pickup | B46: 1 | C46: acre | D46: 1.25 | E46: 0 | F46: 1.25 | G46: 1.25 | H46: 0
A47: Management | B47: 1 | C47: acre | D47: 25 | E47: 0 | F47: 25 | G47: 25 | H47: 0
A48: Whole Farm Insurance | B48: 1 | C48: acre | D48: 2 | E48: 0 | F48: =B48*D48 -> 2 | G48: 2 | H48: 0
A49: Land | B49: 1 | C49: acre | D49: 50 | E49: 1 | F49: =D49*B49 -> 50 | G49: =IF($H$6="Cash",D49,F49*(1-E49)) -> 0 | H49: =IF($H$6="Cash",0,F49*E49) -> 50
A50: Property Tax | B50: 1 | C50: acre | D50: 3 | E50: 1 | F50: =B50*D50 -> 3 | G50: 0 | H50: 3
A51: Total Fixed Expenses | F51: =SUM(F44:F50) -> 103.25 | G51: =SUM(G44:G50) -> 50.25 | H51: =SUM(H44:H50) -> 53
A52: Total Specified Expenses | F52: =F40+F51 -> 235.2680313 | G52: =G40+G51 -> 166.9579922 | H52: =H40+H51 -> 68.31003906
A53: Returns Above Total Specified Expenses | F53: =F12-F52 -> -119.1680313 | G53: =G12-G52 -> -79.88299219 | H53: =H12-H52 -> -39.28503906
A55: If you have questions, contact Jackie Smith at 806-746-6101
A58: Supported by a grant from the
A59: Texas Cotton State Support Committee

Sheet Break-Even Comparison
A2: Comparative Break-Even Analysis Projected for 2016
A5: ='Irr Alfalfa'!A3:H3 -> Irrigated Alfalfa
E6: BE Price to Cover Variable Costs | G6: BE Price to Cover Total Costs
A7: Yield | B7: ='Irr Alfalfa'!C9 -> tons | E7: Total | F7: Operator | G7: Total | H7: Operator | I7: Owner
A8: 0.75 | B8: ='Irr Alfalfa'!$B$9*$A8 -> 4.5 | C8: ='Irr Alfalfa'!$B$9*(1-'Irr Alfalfa'!$E$9)*$A8 -> 3.375 | D8: ='Irr Alfalfa'!$B$9*'Irr Alfalfa'!$E$9*$A8 -> 1.125 | E8: =('Irr Alfalfa'!F$47+(B8-B$10)*('Irr Alfalfa'!$D$25))/B8 -> 158.6853702 | F8: =('Irr Alfalfa'!G$47+(C8-C$10)*('Irr Alfalfa'!$D$25))/C8 -> 181.4768517 | G8: =('Irr Alfalfa'!F$62+(B8-B$10)*('Irr Alfalfa'!$D$25))/B8 -> 222.5187035 | H8: =('Irr Alfalfa'!G$62+(C8-C$10)*('Irr Alfalfa'!$D$25))/C8 -> 225.4027776 | I8: =IF($D8=0,"N/A",('Irr Alfalfa'!H$62+(D8-D$10)*('Irr Alfalfa'!$D$25))/D8) -> 213.8664813
A9: 0.9 | B9: ='Irr Alfalfa'!$B$9*$A9 -> 5.4 | C9: ='Irr Alfalfa'!$B$9*(1-'Irr Alfalfa'!$E$9)*$A9 -> 4.05 | D9: ='Irr Alfalfa'!$B$9*'Irr Alfalfa'!$E$9*$A9 -> 1.35 | E9: =('Irr Alfalfa'!F$47+(B9-B$10)*('Irr Alfalfa'!$D$25))/B9 -> 140.5711418 | F9: =('Irr Alfalfa'!G$47+(C9-C$10)*('Irr Alfalfa'!$D$25))/C9 -> 159.5640431 | G9: =('Irr Alfalfa'!F$62+(B9-B$10)*('Irr Alfalfa'!$D$25))/B9 -> 193.7655863 | H9: =('Irr Alfalfa'!G$62+(C9-C$10)*('Irr Alfalfa'!$D$25))/C9 -> 196.1689813 | I9: =IF($D9=0,"N/A",('Irr Alfalfa'!H$62+(D9-D$10)*('Irr Alfalfa'!$D$25))/D9) -> 186.5554011
A10: 1 | B10: ='Irr Alfalfa'!$B$9*$A10 -> 6 | C10: ='Irr Alfalfa'!$B$9*(1-'Irr Alfalfa'!$E$9)*$A10 -> 4.5 | D10: ='Irr Alfalfa'!$B$9*'Irr Alfalfa'!$E$9*$A10 -> 1.5 | E10: =('Irr Alfalfa'!F$47+(B10-B$10)*('Irr Alfalfa'!$D$25))/B10 -> 131.5140276 | F10: =('Irr Alfalfa'!G$47+(C10-C$10)*('Irr Alfalfa'!$D$25))/C10 -> 148.6076387 | G10: =('Irr Alfalfa'!F$62+(B10-B$10)*('Irr Alfalfa'!$D$25))/B10 -> 179.3890276 | H10: =('Irr Alfalfa'!G$62+(C10-C$10)*('Irr Alfalfa'!$D$25))/C10 -> 181.5520832 | I10: =IF($D10=0,"N/A",('Irr Alfalfa'!H$62+(D10-D$10)*('Irr Alfalfa'!$D$25))/D10) -> 172.899861
A11: 1.1 | B11: ='Irr Alfalfa'!$B$9*$A11 -> 6.6 | C11: ='Irr Alfalfa'!$B$9*(1-'Irr Alfalfa'!$E$9)*$A11 -> 4.95 | D11: ='Irr Alfalfa'!$B$9*'Irr Alfalfa'!$E$9*$A11 -> 1.65 | E11: =('Irr Alfalfa'!F$47+(B11-B$10)*('Irr Alfalfa'!$D$25))/B11 -> 124.1036615 | F11: =('Irr Alfalfa'!G$47+(C11-C$10)*('Irr Alfalfa'!$D$25))/C11 -> 139.643308 | G11: =('Irr Alfalfa'!F$62+(B11-B$10)*('Irr Alfalfa'!$D$25))/B11 -> 167.6263888 | H11: =('Irr Alfalfa'!G$62+(C11-C$10)*('Irr Alfalfa'!$D$25))/C11 -> 169.5928029 | I11: =IF($D11=0,"N/A",('Irr Alfalfa'!H$62+(D11-D$10)*('Irr Alfalfa'!$D$25))/D11) -> 161.7271463
A12: 1.25 | B12: ='Irr Alfalfa'!$B$9*$A12 -> 7.5 | C12: ='Irr Alfalfa'!$B$9*(1-'Irr Alfalfa'!$E$9)*$A12 -> 5.625 | D12: ='Irr Alfalfa'!$B$9*'Irr Alfalfa'!$E$9*$A12 -> 1.875 | E12: =('Irr Alfalfa'!F$47+(B12-B$10)*('Irr Alfalfa'!$D$25))/B12 -> 115.2112221 | F12: =('Irr Alfalfa'!G$47+(C12-C$10)*('Irr Alfalfa'!$D$25))/C12 -> 128.886111 | G12: =('Irr Alfalfa'!F$62+(B12-B$10)*('Irr Alfalfa'!$D$25))/B12 -> 153.5112221 | H12: =('Irr Alfalfa'!G$62+(C12-C$10)*('Irr Alfalfa'!$D$25))/C12 -> 155.2416666 | I12: =IF($D12=0,"N/A",('Irr Alfalfa'!H$62+(D12-D$10)*('Irr Alfalfa'!$D$25))/D12) -> 148.3198888
A14: ='Irr Blackeyes'!A3:H3 -> Irrigated Blackeyed Peas
E15: BE Price to Cover Variable Costs | G15: BE Price to Cover Total Costs
A16: Yield | B16: ='Irr Blackeyes'!C9 -> lbs | E16: Total | F16: Operator | G16: Total | H16: Operator | I16: Owner
A17: 0.75 | B17: ='Irr Blackeyes'!$B$9*$A17 -> 1387.5 | C17: ='Irr Blackeyes'!$B$9*(1-'Irr Blackeyes'!$E$9)*$A17 -> 1040.625 | D17: ='Irr Blackeyes'!$B$9*'Irr Blackeyes'!$E$9*$A17 -> 346.875 | E17: =('Irr Blackeyes'!F$46+(B17-B$19)*('Irr Blackeyes'!$D$24))/B17 -> -9.804167532 | F17: =('Irr Blackeyes'!G$46+(C17-C$19)*('Irr Blackeyes'!$D$24))/C17 -> -9.766472625 | G17: =('Irr Blackeyes'!F$60+(B17-B$19)*('Irr Blackeyes'!$D$24))/B17 -> -9.667771135 | H17: =('Irr Blackeyes'!G$60+(C17-C$19)*('Irr Blackeyes'!$D$24))/C17 -> -9.718184336 | I17: =IF($D17=0,"N/A",('Irr Blackeyes'!H$60+(D17-D$19)*('Irr Blackeyes'!$D$24))/D17) -> -9.516531532
A18: 0.9 | B18: ='Irr Blackeyes'!$B$9*$A18 -> 1665 | C18: ='Irr Blackeyes'!$B$9*(1-'Irr Blackeyes'!$E$9)*$A18 -> 1248.75 | D18: ='Irr Blackeyes'!$B$9*'Irr Blackeyes'!$E$9*$A18 -> 416.25 | E18: =('Irr Blackeyes'!F$46+(B18-B$19)*('Irr Blackeyes'!$D$24))/B18 -> -3.17013961 | F18: =('Irr Blackeyes'!G$46+(C18-C$19)*('Irr Blackeyes'!$D$24))/C18 -> -3.138727187 | G18: =('Irr Blackeyes'!F$60+(B18-B$19)*('Irr Blackeyes'!$D$24))/B18 -> -3.056475946 | H18: =('Irr Blackeyes'!G$60+(C18-C$19)*('Irr Blackeyes'!$D$24))/C18 -> -3.098486947 | I18: =IF($D18=0,"N/A",('Irr Blackeyes'!H$60+(D18-D$19)*('Irr Blackeyes'!$D$24))/D18) -> -2.930442943
A19: 1 | B19: ='Irr Blackeyes'!$B$9*$A19 -> 1850 | C19: ='Irr Blackeyes'!$B$9*(1-'Irr Blackeyes'!$E$9)*$A19 -> 1387.5 | D19: ='Irr Blackeyes'!$B$9*'Irr Blackeyes'!$E$9*$A19 -> 462.5 | E19: =('Irr Blackeyes'!F$46+(B19-B$19)*('Irr Blackeyes'!$D$24))/B19 -> 0.1468743514 | F19: =('Irr Blackeyes'!G$46+(C19-C$19)*('Irr Blackeyes'!$D$24))/C19 -> 0.1751455315 | G19: =('Irr Blackeyes'!F$60+(B19-B$19)*('Irr Blackeyes'!$D$24))/B19 -> 0.2491716486 | H19: =('Irr Blackeyes'!G$60+(C19-C$19)*('Irr Blackeyes'!$D$24))/C19 -> 0.2113617477 | I19: =IF($D19=0,"N/A",('Irr Blackeyes'!H$60+(D19-D$19)*('Irr Blackeyes'!$D$24))/D19) -> 0.3626013514
A20: 1.1 | B20: ='Irr Blackeyes'!$B$9*$A20 -> 2035 | C20: ='Irr Blackeyes'!$B$9*(1-'Irr Blackeyes'!$E$9)*$A20 -> 1526.25 | D20: ='Irr Blackeyes'!$B$9*'Irr Blackeyes'!$E$9*$A20 -> 508.75 | E20: =('Irr Blackeyes'!F$46+(B20-B$19)*('Irr Blackeyes'!$D$24))/B20 -> 2.860794865 | F20: =('Irr Blackeyes'!G$46+(C20-C$19)*('Irr Blackeyes'!$D$24))/C20 -> 2.886495938 | G20: =('Irr Blackeyes'!F$60+(B20-B$19)*('Irr Blackeyes'!$D$24))/B20 -> 2.953792408 | H20: =('Irr Blackeyes'!G$60+(C20-C$19)*('Irr Blackeyes'!$D$24))/C20 -> 2.919419771 | I20: =IF($D20=0,"N/A",('Irr Blackeyes'!H$60+(D20-D$19)*('Irr Blackeyes'!$D$24))/D20) -> 3.056910319
A21: 1.25 | B21: ='Irr Blackeyes'!$B$9*$A21 -> 2312.5 | C21: ='Irr Blackeyes'!$B$9*(1-'Irr Blackeyes'!$E$9)*$A21 -> 1734.375 | D21: ='Irr Blackeyes'!$B$9*'Irr Blackeyes'!$E$9*$A21 -> 578.125 | E21: =('Irr Blackeyes'!F$46+(B21-B$19)*('Irr Blackeyes'!$D$24))/B21 -> 6.117499481 | F21: =('Irr Blackeyes'!G$46+(C21-C$19)*('Irr Blackeyes'!$D$24))/C21 -> 6.140116425 | G21: =('Irr Blackeyes'!F$60+(B21-B$19)*('Irr Blackeyes'!$D$24))/B21 -> 6.199337319 | H21: =('Irr Blackeyes'!G$60+(C21-C$19)*('Irr Blackeyes'!$D$24))/C21 -> 6.169089398 | I21: =IF($D21=0,"N/A",('Irr Blackeyes'!H$60+(D21-D$19)*('Irr Blackeyes'!$D$24))/D21) -> 6.290081081
A23: ='Irr Corn'!A3:H3 -> Irrigated Corn
E24: BE Price to Cover Variable Costs | G24: BE Price to Cover Total Costs
A25: Yield | B25: ='Irr Corn'!C9 -> bu | E25: Total | F25: Operator | G25: Total | H25: Operator | I25: Owner
A26: 0.75 | B26: ='Irr Corn'!$B$9*$A26 -> 157.5 | C26: ='Irr Corn'!$B$9*(1-'Irr Corn'!$E$9)*$A26 -> 118.125 | D26: ='Irr Corn'!$B$9*'Irr Corn'!$E$9*$A26 -> 39.375 | E26: =('Irr Corn'!F$46+(B26-B$28)*('Irr Corn'!$D$24))/B26 -> 5.194588149 | F26: =('Irr Corn'!G$46+(C26-C$28)*('Irr Corn'!$D$24))/C26 -> 6.172021482 | G26: =('Irr Corn'!F$60+(B26-B$28)*('Irr Corn'!$D$24))/B26 -> 6.573953228 | H26: =('Irr Corn'!G$60+(C26-C$28)*('Irr Corn'!$D$24))/C26 -> 6.597418308 | I26: =IF($D26=0,"N/A",('Irr Corn'!H$60+(D26-D$28)*('Irr Corn'!$D$24))/D26) -> 6.50355799
A27: 0.9 | B27: ='Irr Corn'!$B$9*$A27 -> 189 | C27: ='Irr Corn'!$B$9*(1-'Irr Corn'!$E$9)*$A27 -> 141.75 | D27: ='Irr Corn'!$B$9*'Irr Corn'!$E$9*$A27 -> 47.25 | E27: =('Irr Corn'!F$46+(B27-B$28)*('Irr Corn'!$D$24))/B27 -> 4.387156791 | F27: =('Irr Corn'!G$46+(C27-C$28)*('Irr Corn'!$D$24))/C27 -> 5.201684568 | G27: =('Irr Corn'!F$60+(B27-B$28)*('Irr Corn'!$D$24))/B27 -> 5.53662769 | H27: =('Irr Corn'!G$60+(C27-C$28)*('Irr Corn'!$D$24))/C27 -> 5.556181923 | I27: =IF($D27=0,"N/A",('Irr Corn'!H$60+(D27-D$28)*('Irr Corn'!$D$24))/D27) -> 5.477964992
A28: 1 | B28: ='Irr Corn'!$B$9*$A28 -> 210 | C28: ='Irr Corn'!$B$9*(1-'Irr Corn'!$E$9)*$A28 -> 157.5 | D28: ='Irr Corn'!$B$9*'Irr Corn'!$E$9*$A28 -> 52.5 | E28: =('Irr Corn'!F$46+(B28-B$28)*('Irr Corn'!$D$24))/B28 -> 3.983441112 | F28: =('Irr Corn'!G$46+(C28-C$28)*('Irr Corn'!$D$24))/C28 -> 4.716516112 | G28: =('Irr Corn'!F$60+(B28-B$28)*('Irr Corn'!$D$24))/B28 -> 5.017964921 | H28: =('Irr Corn'!G$60+(C28-C$28)*('Irr Corn'!$D$24))/C28 -> 5.035563731 | I28: =IF($D28=0,"N/A",('Irr Corn'!H$60+(D28-D$28)*('Irr Corn'!$D$24))/D28) -> 4.965168493
A29: 1.1 | B29: ='Irr Corn'!$B$9*$A29 -> 231 | C29: ='Irr Corn'!$B$9*(1-'Irr Corn'!$E$9)*$A29 -> 173.25 | D29: ='Irr Corn'!$B$9*'Irr Corn'!$E$9*$A29 -> 57.75 | E29: =('Irr Corn'!F$46+(B29-B$28)*('Irr Corn'!$D$24))/B29 -> 3.653128283 | F29: =('Irr Corn'!G$46+(C29-C$28)*('Irr Corn'!$D$24))/C29 -> 4.319560101 | G29: =('Irr Corn'!F$60+(B29-B$28)*('Irr Corn'!$D$24))/B29 -> 4.593604474 | H29: =('Irr Corn'!G$60+(C29-C$28)*('Irr Corn'!$D$24))/C29 -> 4.609603392 | I29: =IF($D29=0,"N/A",('Irr Corn'!H$60+(D29-D$28)*('Irr Corn'!$D$24))/D29) -> 4.545607721
A30: 1.25 | B30: ='Irr Corn'!$B$9*$A30 -> 262.5 | C30: ='Irr Corn'!$B$9*(1-'Irr Corn'!$E$9)*$A30 -> 196.875 | D30: ='Irr Corn'!$B$9*'Irr Corn'!$E$9*$A30 -> 65.625 | E30: =('Irr Corn'!F$46+(B30-B$28)*('Irr Corn'!$D$24))/B30 -> 3.256752889 | F30: =('Irr Corn'!G$46+(C30-C$28)*('Irr Corn'!$D$24))/C30 -> 3.843212889 | G30: =('Irr Corn'!F$60+(B30-B$28)*('Irr Corn'!$D$24))/B30 -> 4.084371937 | H30: =('Irr Corn'!G$60+(C30-C$28)*('Irr Corn'!$D$24))/C30 -> 4.098450985 | I30: =IF($D30=0,"N/A",('Irr Corn'!H$60+(D30-D$28)*('Irr Corn'!$D$24))/D30) -> 4.042134794
A32: ='Irr Corn Silage'!A3:H3 -> Irrigated Corn Silage
E33: BE Price to Cover Variable Costs | G33: BE Price to Cover Total Costs
A34: Yield | B34: ='Irr Corn Silage'!C9 -> tons | E34: Total | F34: Operator | G34: Total | H34: Operator | I34: Owner
A35: 0.75 | B35: ='Irr Corn Silage'!$B$9*$A35 -> 19.5 | C35: ='Irr Corn Silage'!$B$9*(1-'Irr Corn Silage'!$E$9)*$A35 -> 14.625 | D35: ='Irr Corn Silage'!$B$9*'Irr Corn Silage'!$E$9*$A35 -> 4.875 | E35: =('Irr Corn Silage'!F$46+(B35-B$37)*('Irr Corn Silage'!$D$24))/B35 -> 45.46325567 | F35: =('Irr Corn Silage'!G$46+(C35-C$37)*('Irr Corn Silage'!$D$24))/C35 -> 52.70699328 | G35: =('Irr Corn Silage'!F$60+(B35-B$37)*('Irr Corn Silage'!$D$24))/B35 -> 56.60428131 | H35: =('Irr Corn Silage'!G$60+(C35-C$37)*('Irr Corn Silage'!$D$24))/C35 -> 56.14289071 | I35: =IF($D35=0,"N/A",('Irr Corn Silage'!H$60+(D35-D$37)*('Irr Corn Silage'!$D$24))/D35) -> 57.98845311
A36: 0.9 | B36: ='Irr Corn Silage'!$B$9*$A36 -> 23.4 | C36: ='Irr Corn Silage'!$B$9*(1-'Irr Corn Silage'!$E$9)*$A36 -> 17.55 | D36: ='Irr Corn Silage'!$B$9*'Irr Corn Silage'!$E$9*$A36 -> 5.85 | E36: =('Irr Corn Silage'!F$46+(B36-B$37)*('Irr Corn Silage'!$D$24))/B36 -> 39.05271306 | F36: =('Irr Corn Silage'!G$46+(C36-C$37)*('Irr Corn Silage'!$D$24))/C36 -> 45.08916107 | G36: =('Irr Corn Silage'!F$60+(B36-B$37)*('Irr Corn Silage'!$D$24))/B36 -> 48.33690109 | H36: =('Irr Corn Silage'!G$60+(C36-C$37)*('Irr Corn Silage'!$D$24))/C36 -> 47.95240893 | I36: =IF($D36=0,"N/A",('Irr Corn Silage'!H$60+(D36-D$37)*('Irr Corn Silage'!$D$24))/D36) -> 49.49037759
A37: 1 | B37: ='Irr Corn Silage'!$B$9*$A37 -> 26 | C37: ='Irr Corn Silage'!$B$9*(1-'Irr Corn Silage'!$E$9)*$A37 -> 19.5 | D37: ='Irr Corn Silage'!$B$9*'Irr Corn Silage'!$E$9*$A37 -> 6.5 | E37: =('Irr Corn Silage'!F$46+(B37-B$37)*('Irr Corn Silage'!$D$24))/B37 -> 35.84744175 | F37: =('Irr Corn Silage'!G$46+(C37-C$37)*('Irr Corn Silage'!$D$24))/C37 -> 41.28024496 | G37: =('Irr Corn Silage'!F$60+(B37-B$37)*('Irr Corn Silage'!$D$24))/B37 -> 44.20321098 | H37: =('Irr Corn Silage'!G$60+(C37-C$37)*('Irr Corn Silage'!$D$24))/C37 -> 43.85716804 | I37: =IF($D37=0,"N/A",('Irr Corn Silage'!H$60+(D37-D$37)*('Irr Corn Silage'!$D$24))/D37) -> 45.24133983
A38: 1.1 | B38: ='Irr Corn Silage'!$B$9*$A38 -> 28.6 | C38: ='Irr Corn Silage'!$B$9*(1-'Irr Corn Silage'!$E$9)*$A38 -> 21.45 | D38: ='Irr Corn Silage'!$B$9*'Irr Corn Silage'!$E$9*$A38 -> 7.15 | E38: =('Irr Corn Silage'!F$46+(B38-B$37)*('Irr Corn Silage'!$D$24))/B38 -> 33.22494705 | F38: =('Irr Corn Silage'!G$46+(C38-C$37)*('Irr Corn Silage'!$D$24))/C38 -> 38.16385905 | G38: =('Irr Corn Silage'!F$60+(B38-B$37)*('Irr Corn Silage'!$D$24))/B38 -> 40.8211009 | H38: =('Irr Corn Silage'!G$60+(C38-C$37)*('Irr Corn Silage'!$D$24))/C38 -> 40.5065164 | I38: =IF($D38=0,"N/A",('Irr Corn Silage'!H$60+(D38-D$37)*('Irr Corn Silage'!$D$24))/D38) -> 41.76485439
A39: 1.25 | B39: ='Irr Corn Silage'!$B$9*$A39 -> 32.5 | C39: ='Irr Corn Silage'!$B$9*(1-'Irr Corn Silage'!$E$9)*$A39 -> 24.375 | D39: ='Irr Corn Silage'!$B$9*'Irr Corn Silage'!$E$9*$A39 -> 8.125 | E39: =('Irr Corn Silage'!F$46+(B39-B$37)*('Irr Corn Silage'!$D$24))/B39 -> 30.0779534 | F39: =('Irr Corn Silage'!G$46+(C39-C$37)*('Irr Corn Silage'!$D$24))/C39 -> 34.42419597 | G39: =('Irr Corn Silage'!F$60+(B39-B$37)*('Irr Corn Silage'!$D$24))/B39 -> 36.76256879 | H39: =('Irr Corn Silage'!G$60+(C39-C$37)*('Irr Corn Silage'!$D$24))/C39 -> 36.48573443 | I39: =IF($D39=0,"N/A",('Irr Corn Silage'!H$60+(D39-D$37)*('Irr Corn Silage'!$D$24))/D39) -> 37.59307186
A41: ='Irr Cotton Drip'!A3:H3 -> Irrigated Cotton - Drip
E42: BE Price to Cover Variable Costs | G42: BE Price to Cover Total Costs
A43: Yield | B43: ='Irr Cotton Drip'!C9 -> lbs | E43: Total | F43: Operator | G43: Total | H43: Operator | I43: Owner
A44: 0.75 | B44: ='Irr Cotton Drip'!$B$9*$A44 -> 1312.5 | C44: ='Irr Cotton Drip'!$B$9*(1-'Irr Cotton Drip'!$E$9)*$A44 -> 879.375 | D44: ='Irr Cotton Drip'!$B$9*'Irr Cotton Drip'!$E$9*$A44 -> 433.125 | E44: =('Irr Cotton Drip'!F$54-B44/500*'2016 Universal Input Prices'!$C$40/2000*Cottonseed_Price+(B44-B$46)*'Irr Cotton Drip'!$D$31+(B44-B$46)/'Irr Cotton Drip'!$B$11/100*'Irr Cotton Drip'!$D$32)/B44 -> 0.5827553531 | F44: =('Irr Cotton Drip'!G$54-C44/500*'2016 Universal Input Prices'!$C$40/2000*Cottonseed_Price+(C44-C$46)*'Irr Cotton Drip'!$D$31+(C44-C$46)/'Irr Cotton Drip'!$B$11/100*'Irr Cotton Drip'!$D$32)/C44 -> 0.8096737437 | G44: =('Irr Cotton Drip'!F$68-B44/500*'2016 Universal Input Prices'!$C$40/2000*Cottonseed_Price+(B44-B$46)*'Irr Cotton Drip'!$D$31+(B44-B$46)/'Irr Cotton Drip'!$B$11/100*'Irr Cotton Drip'!$D$32)/B44 -> 0.7635172578 | H44: =('Irr Cotton Drip'!G$68-C44/500*'2016 Universal Input Prices'!$C$40/2000*Cottonseed_Price+(C44-C$46)*'Irr Cotton Drip'!$D$31+(C44-C$46)/'Irr Cotton Drip'!$B$11/100*'Irr Cotton Drip'!$D$32)/C44 -> 0.8668166008 | I44: =IF($D44=0,"N/A",('Irr Cotton Drip'!H$68-D44/500*'2016 Universal Input Prices'!$C$40/2000*Cottonseed_Price+(D44-D$46)*'Irr Cotton Drip'!$D$31+(D44-D$46)/'Irr Cotton Drip'!$B$11/100*'Irr Cotton Drip'!$D$32)/D44) -> 0.5537882887
A45: 0.9 | B45: ='Irr Cotton Drip'!$B$9*$A45 -> 1575 | C45: ='Irr Cotton Drip'!$B$9*(1-'Irr Cotton Drip'!$E$9)*$A45 -> 1055.25 | D45: ='Irr Cotton Drip'!$B$9*'Irr Cotton Drip'!$E$9*$A45 -> 519.75 | E45: =('Irr Cotton Drip'!F$54-B45/500*'2016 Universal Input Prices'!$C$40/2000*Cottonseed_Price+(B45-B$46)*'Irr Cotton Drip'!$D$31+(B45-B$46)/'Irr Cotton Drip'!$B$11/100*'Irr Cotton Drip'!$D$32)/B45 -> 0.4937485085 | F45: =('Irr Cotton Drip'!G$54-C45/500*'2016 Universal Input Prices'!$C$40/2000*Cottonseed_Price+(C45-C$46)*'Irr Cotton Drip'!$D$31+(C45-C$46)/'Irr Cotton Drip'!$B$11/100*'Irr Cotton Drip'!$D$32)/C45 -> 0.6828471674 | G45: =('Irr Cotton Drip'!F$68-B45/500*'2016 Universal Input Prices'!$C$40/2000*Cottonseed_Price+(B45-B$46)*'Irr Cotton Drip'!$D$31+(B45-B$46)/'Irr Cotton Drip'!$B$11/100*'Irr Cotton Drip'!$D$32)/B45 -> 0.6443834292 | H45: =('Irr Cotton Drip'!G$68-C45/500*'2016 Universal Input Prices'!$C$40/2000*Cottonseed_Price+(C45-C$46)*'Irr Cotton Drip'!$D$31+(C45-C$46)/'Irr Cotton Drip'!$B$11/100*'Irr Cotton Drip'!$D$32)/C45 -> 0.730466215 | I45: =IF($D45=0,"N/A",('Irr Cotton Drip'!H$68-D45/500*'2016 Universal Input Prices'!$C$40/2000*Cottonseed_Price+(D45-D$46)*'Irr Cotton Drip'!$D$31+(D45-D$46)/'Irr Cotton Drip'!$B$11/100*'Irr Cotton Drip'!$D$32)/D45) -> 0.4696092882
A46: 1 | B46: ='Irr Cotton Drip'!$B$9*$A46 -> 1750 | C46: ='Irr Cotton Drip'!$B$9*(1-'Irr Cotton Drip'!$E$9)*$A46 -> 1172.5 | D46: ='Irr Cotton Drip'!$B$9*'Irr Cotton Drip'!$E$9*$A46 -> 577.5 | E46: =('Irr Cotton Drip'!F$54-B46/500*'2016 Universal Input Prices'!$C$40/2000*Cottonseed_Price+(B46-B$46)*'Irr Cotton Drip'!$D$31+(B46-B$46)/'Irr Cotton Drip'!$B$11/100*'Irr Cotton Drip'!$D$32)/B46 -> 0.4492450862 | F46: =('Irr Cotton Drip'!G$54-C46/500*'2016 Universal Input Prices'!$C$40/2000*Cottonseed_Price+(C46-C$46)*'Irr Cotton Drip'!$D$31+(C46-C$46)/'Irr Cotton Drip'!$B$11/100*'Irr Cotton Drip'!$D$32)/C46 -> 0.6194338792 | G46: =('Irr Cotton Drip'!F$68-B46/500*'2016 Universal Input Prices'!$C$40/2000*Cottonseed_Price+(B46-B$46)*'Irr Cotton Drip'!$D$31+(B46-B$46)/'Irr Cotton Drip'!$B$11/100*'Irr Cotton Drip'!$D$32)/B46 -> 0.5848165148 | H46: =('Irr Cotton Drip'!G$68-C46/500*'2016 Universal Input Prices'!$C$40/2000*Cottonseed_Price+(C46-C$46)*'Irr Cotton Drip'!$D$31+(C46-C$46)/'Irr Cotton Drip'!$B$11/100*'Irr Cotton Drip'!$D$32)/C46 -> 0.6622910221 | I46: =IF($D46=0,"N/A",('Irr Cotton Drip'!H$68-D46/500*'2016 Universal Input Prices'!$C$40/2000*Cottonseed_Price+(D46-D$46)*'Irr Cotton Drip'!$D$31+(D46-D$46)/'Irr Cotton Drip'!$B$11/100*'Irr Cotton Drip'!$D$32)/D46) -> 0.427519788
A47: 1.1 | B47: ='Irr Cotton Drip'!$B$9*$A47 -> 1925 | C47: ='Irr Cotton Drip'!$B$9*(1-'Irr Cotton Drip'!$E$9)*$A47 -> 1289.75 | D47: ='Irr Cotton Drip'!$B$9*'Irr Cotton Drip'!$E$9*$A47 -> 635.25 | E47: =('Irr Cotton Drip'!F$54-B47/500*'2016 Universal Input Prices'!$C$40/2000*Cottonseed_Price+(B47-B$46)*'Irr Cotton Drip'!$D$31+(B47-B$46)/'Irr Cotton Drip'!$B$11/100*'Irr Cotton Drip'!$D$32)/B47 -> 0.4128331953 | F47: =('Irr Cotton Drip'!G$54-C47/500*'2016 Universal Input Prices'!$C$40/2000*Cottonseed_Price+(C47-C$46)*'Irr Cotton Drip'!$D$31+(C47-C$46)/'Irr Cotton Drip'!$B$11/100*'Irr Cotton Drip'!$D$32)/C47 -> 0.5675502798 | G47: =('Irr Cotton Drip'!F$68-B47/500*'2016 Universal Input Prices'!$C$40/2000*Cottonseed_Price+(B47-B$46)*'Irr Cotton Drip'!$D$31+(B47-B$46)/'Irr Cotton Drip'!$B$11/100*'Irr Cotton Drip'!$D$32)/B47 -> 0.5360799485 | H47: =('Irr Cotton Drip'!G$68-C47/500*'2016 Universal Input Prices'!$C$40/2000*Cottonseed_Price+(C47-C$46)*'Irr Cotton Drip'!$D$31+(C47-C$46)/'Irr Cotton Drip'!$B$11/100*'Irr Cotton Drip'!$D$32)/C47 -> 0.6065113188 | I47: =IF($D47=0,"N/A",('Irr Cotton Drip'!H$68-D47/500*'2016 Universal Input Prices'!$C$40/2000*Cottonseed_Price+(D47-D$46)*'Irr Cotton Drip'!$D$31+(D47-D$46)/'Irr Cotton Drip'!$B$11/100*'Irr Cotton Drip'!$D$32)/D47) -> 0.3930829241
A48: 1.25 | B48: ='Irr Cotton Drip'!$B$9*$A48 -> 2187.5 | C48: ='Irr Cotton Drip'!$B$9*(1-'Irr Cotton Drip'!$E$9)*$A48 -> 1465.625 | D48: ='Irr Cotton Drip'!$B$9*'Irr Cotton Drip'!$E$9*$A48 -> 721.875 | E48: =('Irr Cotton Drip'!F$54-B48/500*'2016 Universal Input Prices'!$C$40/2000*Cottonseed_Price+(B48-B$46)*'Irr Cotton Drip'!$D$31+(B48-B$46)/'Irr Cotton Drip'!$B$11/100*'Irr Cotton Drip'!$D$32)/B48 -> 0.3691389261 | F48: =('Irr Cotton Drip'!G$54-C48/500*'2016 Universal Input Prices'!$C$40/2000*Cottonseed_Price+(C48-C$46)*'Irr Cotton Drip'!$D$31+(C48-C$46)/'Irr Cotton Drip'!$B$11/100*'Irr Cotton Drip'!$D$32)/C48 -> 0.5052899605 | G48: =('Irr Cotton Drip'!F$68-B48/500*'2016 Universal Input Prices'!$C$40/2000*Cottonseed_Price+(B48-B$46)*'Irr Cotton Drip'!$D$31+(B48-B$46)/'Irr Cotton Drip'!$B$11/100*'Irr Cotton Drip'!$D$32)/B48 -> 0.477596069 | H48: =('Irr Cotton Drip'!G$68-C48/500*'2016 Universal Input Prices'!$C$40/2000*Cottonseed_Price+(C48-C$46)*'Irr Cotton Drip'!$D$31+(C48-C$46)/'Irr Cotton Drip'!$B$11/100*'Irr Cotton Drip'!$D$32)/C48 -> 0.5395756748 | I48: =IF($D48=0,"N/A",('Irr Cotton Drip'!H$68-D48/500*'2016 Universal Input Prices'!$C$40/2000*Cottonseed_Price+(D48-D$46)*'Irr Cotton Drip'!$D$31+(D48-D$46)/'Irr Cotton Drip'!$B$11/100*'Irr Cotton Drip'!$D$32)/D48) -> 0.3517586875
A50: ='Irr Cotton Pivot'!A3:H3 -> Irrigated Cotton - Pivot
E51: BE Price to Cover Variable Costs | G51: BE Price to Cover Total Costs
A52: Yield | B52: ='Irr Cotton Pivot'!C9 -> lbs | E52: Total | F52: Operator | G52: Total | H52: Operator | I52: Owner
A53: 0.75 | B53: ='Irr Cotton Pivot'!$B$9*$A53 -> 937.5 | C53: ='Irr Cotton Pivot'!$B$9*(1-'Irr Cotton Pivot'!$E$9)*$A53 -> 703.125 | D53: ='Irr Cotton Pivot'!$B$9*'Irr Cotton Pivot'!$E$9*$A53 -> 234.375 | E53: =('Irr Cotton Pivot'!F$53-B53/500*'2016 Universal Input Prices'!$C$40/2000*Cottonseed_Price+(B53-B$55)*'Irr Cotton Pivot'!$D$30+(B53-B$55)/'Irr Cotton Pivot'!$B$11/100*'Irr Cotton Pivot'!$D$31)/B53 -> 0.6169994369 | F53: =('Irr Cotton Pivot'!G$53-C53/500*'2016 Universal Input Prices'!$C$40/2000*Cottonseed_Price+(C53-C$55)*'Irr Cotton Pivot'!$D$30+(C53-C$55)/'Irr Cotton Pivot'!$B$11/100*'Irr Cotton Pivot'!$D$31)/C53 -> 0.7280550636 | G53: =('Irr Cotton Pivot'!F$67-B53/500*'2016 Universal Input Prices'!$C$40/2000*Cottonseed_Price+(B53-B$55)*'Irr Cotton Pivot'!$D$30+(B53-B$55)/'Irr Cotton Pivot'!$B$11/100*'Irr Cotton Pivot'!$D$31)/B53 -> 0.8188661036 | H53: =('Irr Cotton Pivot'!G$67-C53/500*'2016 Universal Input Prices'!$C$40/2000*Cottonseed_Price+(C53-C$55)*'Irr Cotton Pivot'!$D$30+(C53-C$55)/'Irr Cotton Pivot'!$B$11/100*'Irr Cotton Pivot'!$D$31)/C53 -> 0.7995217302 | I53: =IF($D53=0,"N/A",('Irr Cotton Pivot'!H$67-D53/500*'2016 Universal Input Prices'!$C$40/2000*Cottonseed_Price+(D53-D$55)*'Irr Cotton Pivot'!$D$30+(D53-D$55)/'Irr Cotton Pivot'!$B$11/100*'Irr Cotton Pivot'!$D$31)/D53) -> 0.8768992236
A54: 0.9 | B54: ='Irr Cotton Pivot'!$B$9*$A54 -> 1125 | C54: ='Irr Cotton Pivot'!$B$9*(1-'Irr Cotton Pivot'!$E$9)*$A54 -> 843.75 | D54: ='Irr Cotton Pivot'!$B$9*'Irr Cotton Pivot'!$E$9*$A54 -> 281.25 | E54: =('Irr Cotton Pivot'!F$53-B54/500*'2016 Universal Input Prices'!$C$40/2000*Cottonseed_Price+(B54-B$55)*'Irr Cotton Pivot'!$D$30+(B54-B$55)/'Irr Cotton Pivot'!$B$11/100*'Irr Cotton Pivot'!$D$31)/B54 -> 0.522285245 | F54: =('Irr Cotton Pivot'!G$53-C54/500*'2016 Universal Input Prices'!$C$40/2000*Cottonseed_Price+(C54-C$55)*'Irr Cotton Pivot'!$D$30+(C54-C$55)/'Irr Cotton Pivot'!$B$11/100*'Irr Cotton Pivot'!$D$31)/C54 -> 0.6148316006 | G54: =('Irr Cotton Pivot'!F$67-B54/500*'2016 Universal Input Prices'!$C$40/2000*Cottonseed_Price+(B54-B$55)*'Irr Cotton Pivot'!$D$30+(B54-B$55)/'Irr Cotton Pivot'!$B$11/100*'Irr Cotton Pivot'!$D$31)/B54 -> 0.6905074673 | H54: =('Irr Cotton Pivot'!G$67-C54/500*'2016 Universal Input Prices'!$C$40/2000*Cottonseed_Price+(C54-C$55)*'Irr Cotton Pivot'!$D$30+(C54-C$55)/'Irr Cotton Pivot'!$B$11/100*'Irr Cotton Pivot'!$D$31)/C54 -> 0.6743871561 | I54: =IF($D54=0,"N/A",('Irr Cotton Pivot'!H$67-D54/500*'2016 Universal Input Prices'!$C$40/2000*Cottonseed_Price+(D54-D$55)*'Irr Cotton Pivot'!$D$30+(D54-D$55)/'Irr Cotton Pivot'!$B$11/100*'Irr Cotton Pivot'!$D$31)/D54) -> 0.7388684006
A55: 1 | B55: ='Irr Cotton Pivot'!$B$9*$A55 -> 1250 | C55: ='Irr Cotton Pivot'!$B$9*(1-'Irr Cotton Pivot'!$E$9)*$A55 -> 937.5 | D55: ='Irr Cotton Pivot'!$B$9*'Irr Cotton Pivot'!$E$9*$A55 -> 312.5 | E55: =('Irr Cotton Pivot'!F$53-B55/500*'2016 Universal Input Prices'!$C$40/2000*Cottonseed_Price+(B55-B$55)*'Irr Cotton Pivot'!$D$30+(B55-B$55)/'Irr Cotton Pivot'!$B$11/100*'Irr Cotton Pivot'!$D$31)/B55 -> 0.4749281491 | F55: =('Irr Cotton Pivot'!G$53-C55/500*'2016 Universal Input Prices'!$C$40/2000*Cottonseed_Price+(C55-C$55)*'Irr Cotton Pivot'!$D$30+(C55-C$55)/'Irr Cotton Pivot'!$B$11/100*'Irr Cotton Pivot'!$D$31)/C55 -> 0.5582198691 | G55: =('Irr Cotton Pivot'!F$67-B55/500*'2016 Universal Input Prices'!$C$40/2000*Cottonseed_Price+(B55-B$55)*'Irr Cotton Pivot'!$D$30+(B55-B$55)/'Irr Cotton Pivot'!$B$11/100*'Irr Cotton Pivot'!$D$31)/B55 -> 0.6263281491 | H55: =('Irr Cotton Pivot'!G$67-C55/500*'2016 Universal Input Prices'!$C$40/2000*Cottonseed_Price+(C55-C$55)*'Irr Cotton Pivot'!$D$30+(C55-C$55)/'Irr Cotton Pivot'!$B$11/100*'Irr Cotton Pivot'!$D$31)/C55 -> 0.6118198691 | I55: =IF($D55=0,"N/A",('Irr Cotton Pivot'!H$67-D55/500*'2016 Universal Input Prices'!$C$40/2000*Cottonseed_Price+(D55-D$55)*'Irr Cotton Pivot'!$D$30+(D55-D$55)/'Irr Cotton Pivot'!$B$11/100*'Irr Cotton Pivot'!$D$31)/D55) -> 0.6698529891
A56: 1.1 | B56: ='Irr Cotton Pivot'!$B$9*$A56 -> 1375 | C56: ='Irr Cotton Pivot'!$B$9*(1-'Irr Cotton Pivot'!$E$9)*$A56 -> 1031.25 | D56: ='Irr Cotton Pivot'!$B$9*'Irr Cotton Pivot'!$E$9*$A56 -> 343.75 | E56: =('Irr Cotton Pivot'!F$53-B56/500*'2016 Universal Input Prices'!$C$40/2000*Cottonseed_Price+(B56-B$55)*'Irr Cotton Pivot'!$D$30+(B56-B$55)/'Irr Cotton Pivot'!$B$11/100*'Irr Cotton Pivot'!$D$31)/B56 -> 0.4361814342 | F56: =('Irr Cotton Pivot'!G$53-C56/500*'2016 Universal Input Prices'!$C$40/2000*Cottonseed_Price+(C56-C$55)*'Irr Cotton Pivot'!$D$30+(C56-C$55)/'Irr Cotton Pivot'!$B$11/100*'Irr Cotton Pivot'!$D$31)/C56 -> 0.5119011797 | G56: =('Irr Cotton Pivot'!F$67-B56/500*'2016 Universal Input Prices'!$C$40/2000*Cottonseed_Price+(B56-B$55)*'Irr Cotton Pivot'!$D$30+(B56-B$55)/'Irr Cotton Pivot'!$B$11/100*'Irr Cotton Pivot'!$D$31)/B56 -> 0.5738177979 | H56: =('Irr Cotton Pivot'!G$67-C56/500*'2016 Universal Input Prices'!$C$40/2000*Cottonseed_Price+(C56-C$55)*'Irr Cotton Pivot'!$D$30+(C56-C$55)/'Irr Cotton Pivot'!$B$11/100*'Irr Cotton Pivot'!$D$31)/C56 -> 0.5606284524 | I56: =IF($D56=0,"N/A",('Irr Cotton Pivot'!H$67-D56/500*'2016 Universal Input Prices'!$C$40/2000*Cottonseed_Price+(D56-D$55)*'Irr Cotton Pivot'!$D$30+(D56-D$55)/'Irr Cotton Pivot'!$B$11/100*'Irr Cotton Pivot'!$D$31)/D56) -> 0.6133858342
A57: 1.25 | B57: ='Irr Cotton Pivot'!$B$9*$A57 -> 1562.5 | C57: ='Irr Cotton Pivot'!$B$9*(1-'Irr Cotton Pivot'!$E$9)*$A57 -> 1171.875 | D57: ='Irr Cotton Pivot'!$B$9*'Irr Cotton Pivot'!$E$9*$A57 -> 390.625 | E57: =('Irr Cotton Pivot'!F$53-B57/500*'2016 Universal Input Prices'!$C$40/2000*Cottonseed_Price+(B57-B$55)*'Irr Cotton Pivot'!$D$30+(B57-B$55)/'Irr Cotton Pivot'!$B$11/100*'Irr Cotton Pivot'!$D$31)/B57 -> 0.3896853764 | F57: =('Irr Cotton Pivot'!G$53-C57/500*'2016 Universal Input Prices'!$C$40/2000*Cottonseed_Price+(C57-C$55)*'Irr Cotton Pivot'!$D$30+(C57-C$55)/'Irr Cotton Pivot'!$B$11/100*'Irr Cotton Pivot'!$D$31)/C57 -> 0.4563187524 | G57: =('Irr Cotton Pivot'!F$67-B57/500*'2016 Universal Input Prices'!$C$40/2000*Cottonseed_Price+(B57-B$55)*'Irr Cotton Pivot'!$D$30+(B57-B$55)/'Irr Cotton Pivot'!$B$11/100*'Irr Cotton Pivot'!$D$31)/B57 -> 0.5108053764 | H57: =('Irr Cotton Pivot'!G$67-C57/500*'2016 Universal Input Prices'!$C$40/2000*Cottonseed_Price+(C57-C$55)*'Irr Cotton Pivot'!$D$30+(C57-C$55)/'Irr Cotton Pivot'!$B$11/100*'Irr Cotton Pivot'!$D$31)/C57 -> 0.4991987524 | I57: =IF($D57=0,"N/A",('Irr Cotton Pivot'!H$67-D57/500*'2016 Universal Input Prices'!$C$40/2000*Cottonseed_Price+(D57-D$55)*'Irr Cotton Pivot'!$D$30+(D57-D$55)/'Irr Cotton Pivot'!$B$11/100*'Irr Cotton Pivot'!$D$31)/D57) -> 0.5456252484
A59: ='Irr Guar'!A3:H3 -> Irrigated Guar
E60: BE Price to Cover Variable Costs | G60: BE Price to Cover Total Costs
A61: Yield | B61: ='Irr Guar'!C9 -> lb | E61: Total | F61: Operator | G61: Total | H61: Operator | I61: Owner
A62: 0.75 | B62: ='Irr Guar'!$B$9*$A62 -> 900 | C62: ='Irr Guar'!$B$9*(1-'Irr Guar'!$E$9)*$A62 -> 675 | D62: ='Irr Guar'!$B$9*'Irr Guar'!$E$9*$A62 -> 225 | E62: =('Irr Guar'!$F$47+($B62-$B$73)*'Irr Guar'!$D$25)/$B62 -> 0.3956920214 | F62: =('Irr Guar'!$G$47+($C62-$C$73)*'Irr Guar'!$D$25)/$C62 -> 0.4154395399 | G62: =('Irr Guar'!$F$61+($B62-$B$73)*'Irr Guar'!$D$25)/$B62 -> 0.6093031325 | H62: =('Irr Guar'!$G$61+($C62-$C$73)*'Irr Guar'!$D$25)/$C62 -> 0.4898839843 | I62: =IF($D62=0, "N/A", ('Irr Guar'!$H$61+($D62-$D$73)*'Irr Guar'!$D$25)/$D62) -> 0.9675605769
A63: 0.9 | B63: ='Irr Guar'!$B$9*$A63 -> 1080 | C63: ='Irr Guar'!$B$9*(1-'Irr Guar'!$E$9)*$A63 -> 810 | D63: ='Irr Guar'!$B$9*'Irr Guar'!$E$9*$A63 -> 270 | E63: =('Irr Guar'!$F$47+($B63-$B$73)*'Irr Guar'!$D$25)/$B63 -> 0.3630766845 | F63: =('Irr Guar'!$G$47+($C63-$C$73)*'Irr Guar'!$D$25)/$C63 -> 0.3795329499 | G63: =('Irr Guar'!$F$61+($B63-$B$73)*'Irr Guar'!$D$25)/$B63 -> 0.5410859437 | H63: =('Irr Guar'!$G$61+($C63-$C$73)*'Irr Guar'!$D$25)/$C63 -> 0.4415699869 | I63: =IF($D63=0, "N/A", ('Irr Guar'!$H$61+($D63-$D$73)*'Irr Guar'!$D$25)/$D63) -> 0.8396338141
A64: 1 | B64: ='Irr Guar'!$B$9*$A64 -> 1200 | C64: ='Irr Guar'!$B$9*(1-'Irr Guar'!$E$9)*$A64 -> 900 | D64: ='Irr Guar'!$B$9*'Irr Guar'!$E$9*$A64 -> 300 | E64: =('Irr Guar'!$F$47+($B64-$B$73)*'Irr Guar'!$D$25)/$B64 -> 0.346769016 | F64: =('Irr Guar'!$G$47+($C64-$C$73)*'Irr Guar'!$D$25)/$C64 -> 0.3615796549 | G64: =('Irr Guar'!$F$61+($B64-$B$73)*'Irr Guar'!$D$25)/$B64 -> 0.5069773494 | H64: =('Irr Guar'!$G$61+($C64-$C$73)*'Irr Guar'!$D$25)/$C64 -> 0.4174129882 | I64: =IF($D64=0, "N/A", ('Irr Guar'!$H$61+($D64-$D$73)*'Irr Guar'!$D$25)/$D64) -> 0.7756704327
A65: 1.1 | B65: ='Irr Guar'!$B$9*$A65 -> 1320 | C65: ='Irr Guar'!$B$9*(1-'Irr Guar'!$E$9)*$A65 -> 990 | D65: ='Irr Guar'!$B$9*'Irr Guar'!$E$9*$A65 -> 330 | E65: =('Irr Guar'!$F$47+($B65-$B$73)*'Irr Guar'!$D$25)/$B65 -> 0.3334263782 | F65: =('Irr Guar'!$G$47+($C65-$C$73)*'Irr Guar'!$D$25)/$C65 -> 0.3468905954 | G65: =('Irr Guar'!$F$61+($B65-$B$73)*'Irr Guar'!$D$25)/$B65 -> 0.4790703176 | H65: =('Irr Guar'!$G$61+($C65-$C$73)*'Irr Guar'!$D$25)/$C65 -> 0.3976481711 | I65: =IF($D65=0, "N/A", ('Irr Guar'!$H$61+($D65-$D$73)*'Irr Guar'!$D$25)/$D65) -> 0.723336757
A66: 1.25 | B66: ='Irr Guar'!$B$9*$A66 -> 1500 | C66: ='Irr Guar'!$B$9*(1-'Irr Guar'!$E$9)*$A66 -> 1125 | D66: ='Irr Guar'!$B$9*'Irr Guar'!$E$9*$A66 -> 375 | E66: =('Irr Guar'!$F$47+($B66-$B$73)*'Irr Guar'!$D$25)/$B66 -> 0.3174152128 | F66: =('Irr Guar'!$G$47+($C66-$C$73)*'Irr Guar'!$D$25)/$C66 -> 0.3292637239 | G66: =('Irr Guar'!$F$61+($B66-$B$73)*'Irr Guar'!$D$25)/$B66 -> 0.4455818795 | H66: =('Irr Guar'!$G$61+($C66-$C$73)*'Irr Guar'!$D$25)/$C66 -> 0.3739303906 | I66: =IF($D66=0, "N/A", ('Irr Guar'!$H$61+($D66-$D$73)*'Irr Guar'!$D$25)/$D66) -> 0.6605363462
A68: ='Irr Peanuts'!A3:H3 -> Irrigated Peanuts
E69: BE Price to Cover Variable Costs | G69: BE Price to Cover Total Costs
A70: Yield | B70: ='Irr Peanuts'!C9 -> tons | E70: Total | F70: Operator | G70: Total | H70: Operator | I70: Owner
A71: 0.75 | B71: ='Irr Peanuts'!$B$9*$A71 -> 1.6875 | C71: ='Irr Peanuts'!$B$9*(1-'Irr Peanuts'!$E$9)*$A71 -> 1.265625 | D71: ='Irr Peanuts'!$B$9*'Irr Peanuts'!$E$9*$A71 -> 0.421875 | E71: =('Irr Peanuts'!$F$50+($B71-$B$73)*(SUM('Irr Peanuts'!$D$26:$D$27)))/$B71 -> 513.452671 | F71: =('Irr Peanuts'!$G$50+($C71-$C$73)*(SUM('Irr Peanuts'!$D$26:$D$27)))/$C71 -> 601.4369673 | G71: =('Irr Peanuts'!$F$64+($B71-$B$73)*(SUM('Irr Peanuts'!$D$26:$D$27)))/$B71 -> 642.1934118 | H71: =('Irr Peanuts'!$G$64+($C71-$C$73)*(SUM('Irr Peanuts'!$D$26:$D$27)))/$C71 -> 641.140671 | I71: =IF($D71=0, "N/A", ('Irr Peanuts'!$H$64+($D71-$D$73)*(SUM('Irr Peanuts'!$D$26:$D$27)))/$D71) -> 645.351634
A72: 0.9 | B72: ='Irr Peanuts'!$B$9*$A72 -> 2.025 | C72: ='Irr Peanuts'!$B$9*(1-'Irr Peanuts'!$E$9)*$A72 -> 1.51875 | D72: ='Irr Peanuts'!$B$9*'Irr Peanuts'!$E$9*$A72 -> 0.50625 | E72: =('Irr Peanuts'!$F$50+($B72-$B$73)*(SUM('Irr Peanuts'!$D$26:$D$27)))/$B72 -> 442.8772259 | F72: =('Irr Peanuts'!$G$50+($C72-$C$73)*(SUM('Irr Peanuts'!$D$26:$D$27)))/$C72 -> 516.1974728 | G72: =('Irr Peanuts'!$F$64+($B72-$B$73)*(SUM('Irr Peanuts'!$D$26:$D$27)))/$B72 -> 550.1611765 | H72: =('Irr Peanuts'!$G$64+($C72-$C$73)*(SUM('Irr Peanuts'!$D$26:$D$27)))/$C72 -> 549.2838925 | I72: =IF($D72=0, "N/A", ('Irr Peanuts'!$H$64+($D72-$D$73)*(SUM('Irr Peanuts'!$D$26:$D$27)))/$D72) -> 552.7930283
A73: 1 | B73: ='Irr Peanuts'!$B$9*$A73 -> 2.25 | C73: ='Irr Peanuts'!$B$9*(1-'Irr Peanuts'!$E$9)*$A73 -> 1.6875 | D73: ='Irr Peanuts'!$B$9*'Irr Peanuts'!$E$9*$A73 -> 0.5625 | E73: =('Irr Peanuts'!$F$50+($B73-$B$73)*(SUM('Irr Peanuts'!$D$26:$D$27)))/$B73 -> 407.5895033 | F73: =('Irr Peanuts'!$G$50+($C73-$C$73)*(SUM('Irr Peanuts'!$D$26:$D$27)))/$C73 -> 473.5777255 | G73: =('Irr Peanuts'!$F$64+($B73-$B$73)*(SUM('Irr Peanuts'!$D$26:$D$27)))/$B73 -> 504.1450588 | H73: =('Irr Peanuts'!$G$64+($C73-$C$73)*(SUM('Irr Peanuts'!$D$26:$D$27)))/$C73 -> 503.3555033 | I73: =IF($D73=0, "N/A", ('Irr Peanuts'!$H$64+($D73-$D$73)*(SUM('Irr Peanuts'!$D$26:$D$27)))/$D73) -> 506.5137255
A74: 1.1 | B74: ='Irr Peanuts'!$B$9*$A74 -> 2.475 | C74: ='Irr Peanuts'!$B$9*(1-'Irr Peanuts'!$E$9)*$A74 -> 1.85625 | D74: ='Irr Peanuts'!$B$9*'Irr Peanuts'!$E$9*$A74 -> 0.61875 | E74: =('Irr Peanuts'!$F$50+($B74-$B$73)*(SUM('Irr Peanuts'!$D$26:$D$27)))/$B74 -> 378.7177302 | F74: =('Irr Peanuts'!$G$50+($C74-$C$73)*(SUM('Irr Peanuts'!$D$26:$D$27)))/$C74 -> 438.7070232 | G74: =('Irr Peanuts'!$F$64+($B74-$B$73)*(SUM('Irr Peanuts'!$D$26:$D$27)))/$B74 -> 466.495508 | H74: =('Irr Peanuts'!$G$64+($C74-$C$73)*(SUM('Irr Peanuts'!$D$26:$D$27)))/$C74 -> 465.7777302 | I74: =IF($D74=0, "N/A", ('Irr Peanuts'!$H$64+($D74-$D$73)*(SUM('Irr Peanuts'!$D$26:$D$27)))/$D74) -> 468.6488414
A75: 1.25 | B75: ='Irr Peanuts'!$B$9*$A75 -> 2.8125 | C75: ='Irr Peanuts'!$B$9*(1-'Irr Peanuts'!$E$9)*$A75 -> 2.109375 | D75: ='Irr Peanuts'!$B$9*'Irr Peanuts'!$E$9*$A75 -> 0.703125 | E75: =('Irr Peanuts'!$F$50+($B75-$B$73)*(SUM('Irr Peanuts'!$D$26:$D$27)))/$B75 -> 344.0716026 | F75: =('Irr Peanuts'!$G$50+($C75-$C$73)*(SUM('Irr Peanuts'!$D$26:$D$27)))/$C75 -> 396.8621804 | G75: =('Irr Peanuts'!$F$64+($B75-$B$73)*(SUM('Irr Peanuts'!$D$26:$D$27)))/$B75 -> 421.3160471 | H75: =('Irr Peanuts'!$G$64+($C75-$C$73)*(SUM('Irr Peanuts'!$D$26:$D$27)))/$C75 -> 420.6844026 | I75: =IF($D75=0, "N/A", ('Irr Peanuts'!$H$64+($D75-$D$73)*(SUM('Irr Peanuts'!$D$26:$D$27)))/$D75) -> 423.2109804
A77: ='Irr Sesame'!A3:H3 -> Irrigated Sesame
E78: BE Price to Cover Variable Costs | G78: BE Price to Cover Total Costs
A79: Yield | B79: ='Irr Sesame'!C9 -> lbs | E79: Total | F79: Operator | G79: Total | H79: Operator | I79: Owner
A80: 0.75 | B80: ='Irr Sesame'!$B$9*$A80 -> 1125 | C80: ='Irr Sesame'!$B$9*(1-'Irr Sesame'!$E$9)*$A80 -> 843.75 | D80: ='Irr Sesame'!$B$9*'Irr Sesame'!$E$9*$A80 -> 281.25 | E80: =('Irr Sesame'!$F$47+($B80-$B$82)*'Irr Sesame'!$D$24)/$B80 -> 0.2493320542 | F80: =('Irr Sesame'!$G$47+($C80-$C$82)*'Irr Sesame'!$D$24)/$C80 -> 0.3087546617 | G80: =('Irr Sesame'!$F$61+($B80-$B$82)*'Irr Sesame'!$D$24)/$B80 -> 0.4175542765 | H80: =('Irr Sesame'!$G$61+($C80-$C$82)*'Irr Sesame'!$D$24)/$C80 -> 0.3683102172 | I80: =IF($D80=0, "N/A", ('Irr Sesame'!$H$61+($D80-$D$82)*'Irr Sesame'!$D$24)/$D80) -> 0.5652864542
A81: 0.9 | B81: ='Irr Sesame'!$B$9*$A81 -> 1350 | C81: ='Irr Sesame'!$B$9*(1-'Irr Sesame'!$E$9)*$A81 -> 1012.5 | D81: ='Irr Sesame'!$B$9*'Irr Sesame'!$E$9*$A81 -> 337.5 | E81: =('Irr Sesame'!$F$47+($B81-$B$82)*'Irr Sesame'!$D$24)/$B81 -> 0.2277767119 | F81: =('Irr Sesame'!$G$47+($C81-$C$82)*'Irr Sesame'!$D$24)/$C81 -> 0.2772955514 | G81: =('Irr Sesame'!$F$61+($B81-$B$82)*'Irr Sesame'!$D$24)/$B81 -> 0.3679618971 | H81: =('Irr Sesame'!$G$61+($C81-$C$82)*'Irr Sesame'!$D$24)/$C81 -> 0.326925181 | I81: =IF($D81=0, "N/A", ('Irr Sesame'!$H$61+($D81-$D$82)*'Irr Sesame'!$D$24)/$D81) -> 0.4910720452
A82: 1 | B82: ='Irr Sesame'!$B$9*$A82 -> 1500 | C82: ='Irr Sesame'!$B$9*(1-'Irr Sesame'!$E$9)*$A82 -> 1125 | D82: ='Irr Sesame'!$B$9*'Irr Sesame'!$E$9*$A82 -> 375 | E82: =('Irr Sesame'!$F$47+($B82-$B$82)*'Irr Sesame'!$D$24)/$B82 -> 0.2169990407 | F82: =('Irr Sesame'!$G$47+($C82-$C$82)*'Irr Sesame'!$D$24)/$C82 -> 0.2615659962 | G82: =('Irr Sesame'!$F$61+($B82-$B$82)*'Irr Sesame'!$D$24)/$B82 -> 0.3431657074 | H82: =('Irr Sesame'!$G$61+($C82-$C$82)*'Irr Sesame'!$D$24)/$C82 -> 0.3062326629 | I82: =IF($D82=0, "N/A", ('Irr Sesame'!$H$61+($D82-$D$82)*'Irr Sesame'!$D$24)/$D82) -> 0.4539648407
A83: 1.1 | B83: ='Irr Sesame'!$B$9*$A83 -> 1650 | C83: ='Irr Sesame'!$B$9*(1-'Irr Sesame'!$E$9)*$A83 -> 1237.5 | D83: ='Irr Sesame'!$B$9*'Irr Sesame'!$E$9*$A83 -> 412.5 | E83: =('Irr Sesame'!$F$47+($B83-$B$82)*'Irr Sesame'!$D$24)/$B83 -> 0.2081809461 | F83: =('Irr Sesame'!$G$47+($C83-$C$82)*'Irr Sesame'!$D$24)/$C83 -> 0.2486963602 | G83: =('Irr Sesame'!$F$61+($B83-$B$82)*'Irr Sesame'!$D$24)/$B83 -> 0.3228779158 | H83: =('Irr Sesame'!$G$61+($C83-$C$82)*'Irr Sesame'!$D$24)/$C83 -> 0.2893024208 | I83: =IF($D83=0, "N/A", ('Irr Sesame'!$H$61+($D83-$D$82)*'Irr Sesame'!$D$24)/$D83) -> 0.4236044006
A84: 1.25 | B84: ='Irr Sesame'!$B$9*$A84 -> 1875 | C84: ='Irr Sesame'!$B$9*(1-'Irr Sesame'!$E$9)*$A84 -> 1406.25 | D84: ='Irr Sesame'!$B$9*'Irr Sesame'!$E$9*$A84 -> 468.75 | E84: =('Irr Sesame'!$F$47+($B84-$B$82)*'Irr Sesame'!$D$24)/$B84 -> 0.1975992325 | F84: =('Irr Sesame'!$G$47+($C84-$C$82)*'Irr Sesame'!$D$24)/$C84 -> 0.233252797 | G84: =('Irr Sesame'!$F$61+($B84-$B$82)*'Irr Sesame'!$D$24)/$B84 -> 0.2985325659 | H84: =('Irr Sesame'!$G$61+($C84-$C$82)*'Irr Sesame'!$D$24)/$C84 -> 0.2689861303 | I84: =IF($D84=0, "N/A", ('Irr Sesame'!$H$61+($D84-$D$82)*'Irr Sesame'!$D$24)/$D84) -> 0.3871718725
A86: ='Irr Sorghum'!A3:H3 -> Irrigated Sorghum
E87: BE Price to Cover Variable Costs | G87: BE Price to Cover Total Costs
A88: Yield | B88: ='Irr Sorghum'!C9 -> cwt | E88: Total | F88: Operator | G88: Total | H88: Operator | I88: Owner
A89: 0.75 | B89: ='Irr Sorghum'!$B$9*$A89 -> 41.25 | C89: ='Irr Sorghum'!$B$9*(1-'Irr Sorghum'!$E$9)*$A89 -> 30.9375 | D89: ='Irr Sorghum'!$B$9*'Irr Sorghum'!$E$9*$A89 -> 10.3125 | E89: =('Irr Sorghum'!$F$46-'Irr Sorghum'!$F$10+($B89-$B$91)*'Irr Sorghum'!$D$24)/$B89 -> 9.077109688 | F89: =('Irr Sorghum'!$G$46-'Irr Sorghum'!$G$10+($C89-$C$91)*'Irr Sorghum'!$D$24)/$C89 -> 10.42682706 | G89: =('Irr Sorghum'!$F$60-'Irr Sorghum'!$F$10+($B89-$B$91)*'Irr Sorghum'!$D$24)/$B89 -> 13.66498848 | H89: =('Irr Sorghum'!$G$60-'Irr Sorghum'!$G$10+($C89-$C$91)*'Irr Sorghum'!$D$24)/$C89 -> 12.05106949 | I89: =IF($D89=0, "N/A", ('Irr Sorghum'!$H$60-'Irr Sorghum'!$H$10+($D89-$D$91)*'Irr Sorghum'!$D$24)/$D89) -> 18.50674545
A90: 0.9 | B90: ='Irr Sorghum'!$B$9*$A90 -> 49.5 | C90: ='Irr Sorghum'!$B$9*(1-'Irr Sorghum'!$E$9)*$A90 -> 37.125 | D90: ='Irr Sorghum'!$B$9*'Irr Sorghum'!$E$9*$A90 -> 12.375 | E90: =('Irr Sorghum'!$F$46-'Irr Sorghum'!$F$10+($B90-$B$91)*'Irr Sorghum'!$D$24)/$B90 -> 7.664258074 | F90: =('Irr Sorghum'!$G$46-'Irr Sorghum'!$G$10+($C90-$C$91)*'Irr Sorghum'!$D$24)/$C90 -> 8.789022552 | G90: =('Irr Sorghum'!$F$60-'Irr Sorghum'!$F$10+($B90-$B$91)*'Irr Sorghum'!$D$24)/$B90 -> 11.4874904 | H90: =('Irr Sorghum'!$G$60-'Irr Sorghum'!$G$10+($C90-$C$91)*'Irr Sorghum'!$D$24)/$C90 -> 10.14255791 | I90: =IF($D90=0, "N/A", ('Irr Sorghum'!$H$60-'Irr Sorghum'!$H$10+($D90-$D$91)*'Irr Sorghum'!$D$24)/$D90) -> 15.52228787
A91: 1 | B91: ='Irr Sorghum'!$B$9*$A91 -> 55 | C91: ='Irr Sorghum'!$B$9*(1-'Irr Sorghum'!$E$9)*$A91 -> 41.25 | D91: ='Irr Sorghum'!$B$9*'Irr Sorghum'!$E$9*$A91 -> 13.75 | E91: =('Irr Sorghum'!$F$46-'Irr Sorghum'!$F$10+($B91-$B$91)*'Irr Sorghum'!$D$24)/$B91 -> 6.957832266 | F91: =('Irr Sorghum'!$G$46-'Irr Sorghum'!$G$10+($C91-$C$91)*'Irr Sorghum'!$D$24)/$C91 -> 7.970120297 | G91: =('Irr Sorghum'!$F$60-'Irr Sorghum'!$F$10+($B91-$B$91)*'Irr Sorghum'!$D$24)/$B91 -> 10.39874136 | H91: =('Irr Sorghum'!$G$60-'Irr Sorghum'!$G$10+($C91-$C$91)*'Irr Sorghum'!$D$24)/$C91 -> 9.188302115 | I91: =IF($D91=0, "N/A", ('Irr Sorghum'!$H$60-'Irr Sorghum'!$H$10+($D91-$D$91)*'Irr Sorghum'!$D$24)/$D91) -> 14.03005908
A92: 1.1 | B92: ='Irr Sorghum'!$B$9*$A92 -> 60.5 | C92: ='Irr Sorghum'!$B$9*(1-'Irr Sorghum'!$E$9)*$A92 -> 45.375 | D92: ='Irr Sorghum'!$B$9*'Irr Sorghum'!$E$9*$A92 -> 15.125 | E92: =('Irr Sorghum'!$F$46-'Irr Sorghum'!$F$10+($B92-$B$91)*'Irr Sorghum'!$D$24)/$B92 -> 6.379847515 | F92: =('Irr Sorghum'!$G$46-'Irr Sorghum'!$G$10+($C92-$C$91)*'Irr Sorghum'!$D$24)/$C92 -> 7.30010936 | G92: =('Irr Sorghum'!$F$60-'Irr Sorghum'!$F$10+($B92-$B$91)*'Irr Sorghum'!$D$24)/$B92 -> 9.507946688 | H92: =('Irr Sorghum'!$G$60-'Irr Sorghum'!$G$10+($C92-$C$91)*'Irr Sorghum'!$D$24)/$C92 -> 8.407547377 | I92: =IF($D92=0, "N/A", ('Irr Sorghum'!$H$60-'Irr Sorghum'!$H$10+($D92-$D$91)*'Irr Sorghum'!$D$24)/$D92) -> 12.80914462
A93: 1.25 | B93: ='Irr Sorghum'!$B$9*$A93 -> 68.75 | C93: ='Irr Sorghum'!$B$9*(1-'Irr Sorghum'!$E$9)*$A93 -> 51.5625 | D93: ='Irr Sorghum'!$B$9*'Irr Sorghum'!$E$9*$A93 -> 17.1875 | E93: =('Irr Sorghum'!$F$46-'Irr Sorghum'!$F$10+($B93-$B$91)*'Irr Sorghum'!$D$24)/$B93 -> 5.686265813 | F93: =('Irr Sorghum'!$G$46-'Irr Sorghum'!$G$10+($C93-$C$91)*'Irr Sorghum'!$D$24)/$C93 -> 6.496096237 | G93: =('Irr Sorghum'!$F$60-'Irr Sorghum'!$F$10+($B93-$B$91)*'Irr Sorghum'!$D$24)/$B93 -> 8.438993086 | H93: =('Irr Sorghum'!$G$60-'Irr Sorghum'!$G$10+($C93-$C$91)*'Irr Sorghum'!$D$24)/$C93 -> 7.470641692 | I93: =IF($D93=0, "N/A", ('Irr Sorghum'!$H$60-'Irr Sorghum'!$H$10+($D93-$D$91)*'Irr Sorghum'!$D$24)/$D93) -> 11.34404727
A95: ='Irr Sorghum Silage'!A3:H3 -> Irrigated Sorghum Silage
E96: BE Price to Cover Variable Costs | G96: BE Price to Cover Total Costs
A97: Yield | B97: ='Irr Sorghum Silage'!C9 -> tons | E97: Total | F97: Operator | G97: Total | H97: Operator | I97: Owner
A98: 0.75 | B98: ='Irr Sorghum Silage'!$B$9*$A98 -> 18 | C98: ='Irr Sorghum Silage'!$B$9*(1-'Irr Sorghum Silage'!$E$9)*$A98 -> 13.5 | D98: ='Irr Sorghum Silage'!$B$9*'Irr Sorghum Silage'!$E$9*$A98 -> 4.5 | E98: =('Irr Sorghum Silage'!F$45+(B98-B$100)*('Irr Sorghum Silage'!$D$23))/B98 -> 34.64626498 | F98: =('Irr Sorghum Silage'!G$45+(C98-C$100)*('Irr Sorghum Silage'!$D$23))/C98 -> 40.10566702 | G98: =('Irr Sorghum Silage'!F$59+(B98-B$100)*('Irr Sorghum Silage'!$D$23))/B98 -> 45.16015386 | H98: =('Irr Sorghum Silage'!G$59+(C98-C$100)*('Irr Sorghum Silage'!$D$23))/C98 -> 43.82788924 | I98: =IF($D98=0,"N/A",('Irr Sorghum Silage'!H$59+(D98-D$100)*('Irr Sorghum Silage'!$D$23))/D98) -> 49.15694773
A99: 0.9 | B99: ='Irr Sorghum Silage'!$B$9*$A99 -> 21.6 | C99: ='Irr Sorghum Silage'!$B$9*(1-'Irr Sorghum Silage'!$E$9)*$A99 -> 16.2 | D99: ='Irr Sorghum Silage'!$B$9*'Irr Sorghum Silage'!$E$9*$A99 -> 5.4 | E99: =('Irr Sorghum Silage'!F$45+(B99-B$100)*('Irr Sorghum Silage'!$D$23))/B99 -> 30.03855415 | F99: =('Irr Sorghum Silage'!G$45+(C99-C$100)*('Irr Sorghum Silage'!$D$23))/C99 -> 34.58805585 | G99: =('Irr Sorghum Silage'!F$59+(B99-B$100)*('Irr Sorghum Silage'!$D$23))/B99 -> 38.80012822 | H99: =('Irr Sorghum Silage'!G$59+(C99-C$100)*('Irr Sorghum Silage'!$D$23))/C99 -> 37.6899077 | I99: =IF($D99=0,"N/A",('Irr Sorghum Silage'!H$59+(D99-D$100)*('Irr Sorghum Silage'!$D$23))/D99) -> 42.13078978
A100: 1 | B100: ='Irr Sorghum Silage'!$B$9*$A100 -> 24 | C100: ='Irr Sorghum Silage'!$B$9*(1-'Irr Sorghum Silage'!$E$9)*$A100 -> 18 | D100: ='Irr Sorghum Silage'!$B$9*'Irr Sorghum Silage'!$E$9*$A100 -> 6 | E100: =('Irr Sorghum Silage'!F$45+(B100-B$100)*('Irr Sorghum Silage'!$D$23))/B100 -> 27.73469873 | F100: =('Irr Sorghum Silage'!G$45+(C100-C$100)*('Irr Sorghum Silage'!$D$23))/C100 -> 31.82925026 | G100: =('Irr Sorghum Silage'!F$59+(B100-B$100)*('Irr Sorghum Silage'!$D$23))/B100 -> 35.6201154 | H100: =('Irr Sorghum Silage'!G$59+(C100-C$100)*('Irr Sorghum Silage'!$D$23))/C100 -> 34.62091693 | I100: =IF($D100=0,"N/A",('Irr Sorghum Silage'!H$59+(D100-D$100)*('Irr Sorghum Silage'!$D$23))/D100) -> 38.6177108
A101: 1.1 | B101: ='Irr Sorghum Silage'!$B$9*$A101 -> 26.4 | C101: ='Irr Sorghum Silage'!$B$9*(1-'Irr Sorghum Silage'!$E$9)*$A101 -> 19.8 | D101: ='Irr Sorghum Silage'!$B$9*'Irr Sorghum Silage'!$E$9*$A101 -> 6.6 | E101: =('Irr Sorghum Silage'!F$45+(B101-B$100)*('Irr Sorghum Silage'!$D$23))/B101 -> 25.84972612 | F101: =('Irr Sorghum Silage'!G$45+(C101-C$100)*('Irr Sorghum Silage'!$D$23))/C101 -> 29.57204569 | G101: =('Irr Sorghum Silage'!F$59+(B101-B$100)*('Irr Sorghum Silage'!$D$23))/B101 -> 33.01828673 | H101: =('Irr Sorghum Silage'!G$59+(C101-C$100)*('Irr Sorghum Silage'!$D$23))/C101 -> 32.10992448 | I101: =IF($D101=0,"N/A",('Irr Sorghum Silage'!H$59+(D101-D$100)*('Irr Sorghum Silage'!$D$23))/D101) -> 35.74337345
A102: 1.25 | B102: ='Irr Sorghum Silage'!$B$9*$A102 -> 30 | C102: ='Irr Sorghum Silage'!$B$9*(1-'Irr Sorghum Silage'!$E$9)*$A102 -> 22.5 | D102: ='Irr Sorghum Silage'!$B$9*'Irr Sorghum Silage'!$E$9*$A102 -> 7.5 | E102: =('Irr Sorghum Silage'!F$45+(B102-B$100)*('Irr Sorghum Silage'!$D$23))/B102 -> 23.58775899 | F102: =('Irr Sorghum Silage'!G$45+(C102-C$100)*('Irr Sorghum Silage'!$D$23))/C102 -> 26.86340021 | G102: =('Irr Sorghum Silage'!F$59+(B102-B$100)*('Irr Sorghum Silage'!$D$23))/B102 -> 29.89609232 | H102: =('Irr Sorghum Silage'!G$59+(C102-C$100)*('Irr Sorghum Silage'!$D$23))/C102 -> 29.09673354 | I102: =IF($D102=0,"N/A",('Irr Sorghum Silage'!H$59+(D102-D$100)*('Irr Sorghum Silage'!$D$23))/D102) -> 32.29416864
A104: ='Irr Soybeans'!A3:H3 -> Irrigated Soybeans
E105: BE Price to Cover Variable Costs | G105: BE Price to Cover Total Costs
A106: Yield | B106: ='Irr Soybeans'!C9 -> bu | E106: Total | F106: Operator | G106: Total | H106: Operator | I106: Owner
A107: 0.75 | B107: ='Irr Soybeans'!$B$9*$A107 -> 30 | C107: ='Irr Soybeans'!$B$9*(1-'Irr Soybeans'!$E$9)*$A107 -> 22.5 | D107: ='Irr Soybeans'!$B$9*'Irr Soybeans'!$E$9*$A107 -> 7.5 | E107: =('Irr Soybeans'!F$48+(B107-B$109)*('Irr Soybeans'!$D$26))/B107 -> 15.02275022 | F107: =('Irr Soybeans'!G$48+(C107-C$109)*('Irr Soybeans'!$D$26))/C107 -> 18.12770717 | G107: =('Irr Soybeans'!F$62+(B107-B$109)*('Irr Soybeans'!$D$26))/B107 -> 21.33108355 | H107: =('Irr Soybeans'!G$62+(C107-C$109)*('Irr Soybeans'!$D$26))/C107 -> 20.3610405 | I107: =IF($D107=0,"N/A",('Irr Soybeans'!H$62+(D107-D$109)*('Irr Soybeans'!$D$26))/D107) -> 24.24121272
A108: 0.9 | B108: ='Irr Soybeans'!$B$9*$A108 -> 36 | C108: ='Irr Soybeans'!$B$9*(1-'Irr Soybeans'!$E$9)*$A108 -> 27 | D108: ='Irr Soybeans'!$B$9*'Irr Soybeans'!$E$9*$A108 -> 9 | E108: =('Irr Soybeans'!F$48+(B108-B$109)*('Irr Soybeans'!$D$26))/B108 -> 12.60229185 | F108: =('Irr Soybeans'!G$48+(C108-C$109)*('Irr Soybeans'!$D$26))/C108 -> 15.18975597 | G108: =('Irr Soybeans'!F$62+(B108-B$109)*('Irr Soybeans'!$D$26))/B108 -> 17.85923629 | H108: =('Irr Soybeans'!G$62+(C108-C$109)*('Irr Soybeans'!$D$26))/C108 -> 17.05086708 | I108: =IF($D108=0,"N/A",('Irr Soybeans'!H$62+(D108-D$109)*('Irr Soybeans'!$D$26))/D108) -> 20.28434393
A109: 1 | B109: ='Irr Soybeans'!$B$9*$A109 -> 40 | C109: ='Irr Soybeans'!$B$9*(1-'Irr Soybeans'!$E$9)*$A109 -> 30 | D109: ='Irr Soybeans'!$B$9*'Irr Soybeans'!$E$9*$A109 -> 10 | E109: =('Irr Soybeans'!F$48+(B109-B$109)*('Irr Soybeans'!$D$26))/B109 -> 11.39206267 | F109: =('Irr Soybeans'!G$48+(C109-C$109)*('Irr Soybeans'!$D$26))/C109 -> 13.72078037 | G109: =('Irr Soybeans'!F$62+(B109-B$109)*('Irr Soybeans'!$D$26))/B109 -> 16.12331267 | H109: =('Irr Soybeans'!G$62+(C109-C$109)*('Irr Soybeans'!$D$26))/C109 -> 15.39578037 | I109: =IF($D109=0,"N/A",('Irr Soybeans'!H$62+(D109-D$109)*('Irr Soybeans'!$D$26))/D109) -> 18.30590954
A110: 1.1 | B110: ='Irr Soybeans'!$B$9*$A110 -> 44 | C110: ='Irr Soybeans'!$B$9*(1-'Irr Soybeans'!$E$9)*$A110 -> 33 | D110: ='Irr Soybeans'!$B$9*'Irr Soybeans'!$E$9*$A110 -> 11 | E110: =('Irr Soybeans'!F$48+(B110-B$109)*('Irr Soybeans'!$D$26))/B110 -> 10.40187515 | F110: =('Irr Soybeans'!G$48+(C110-C$109)*('Irr Soybeans'!$D$26))/C110 -> 12.51889125 | G110: =('Irr Soybeans'!F$62+(B110-B$109)*('Irr Soybeans'!$D$26))/B110 -> 14.70301151 | H110: =('Irr Soybeans'!G$62+(C110-C$109)*('Irr Soybeans'!$D$26))/C110 -> 14.04161852 | I110: =IF($D110=0,"N/A",('Irr Soybeans'!H$62+(D110-D$109)*('Irr Soybeans'!$D$26))/D110) -> 16.68719049
A111: 1.25 | B111: ='Irr Soybeans'!$B$9*$A111 -> 50 | C111: ='Irr Soybeans'!$B$9*(1-'Irr Soybeans'!$E$9)*$A111 -> 37.5 | D111: ='Irr Soybeans'!$B$9*'Irr Soybeans'!$E$9*$A111 -> 12.5 | E111: =('Irr Soybeans'!F$48+(B111-B$109)*('Irr Soybeans'!$D$26))/B111 -> 9.213650132 | F111: =('Irr Soybeans'!G$48+(C111-C$109)*('Irr Soybeans'!$D$26))/C111 -> 11.0766243 | G111: =('Irr Soybeans'!F$62+(B111-B$109)*('Irr Soybeans'!$D$26))/B111 -> 12.99865013 | H111: =('Irr Soybeans'!G$62+(C111-C$109)*('Irr Soybeans'!$D$26))/C111 -> 12.4166243 | I111: =IF($D111=0,"N/A",('Irr Soybeans'!H$62+(D111-D$109)*('Irr Soybeans'!$D$26))/D111) -> 14.74472763
A113: ='Irr Sunflowers-Confection'!A3:H3 -> Irrigated Sunflowers-Confectionary
E114: BE Price to Cover Variable Costs | G114: BE Price to Cover Total Costs
A115: Yield | B115: ='Irr Sunflowers-Confection'!C9 -> lbs | E115: Total | F115: Operator | G115: Total | H115: Operator | I115: Owner
A116: 0.75 | B116: ='Irr Sunflowers-Confection'!$B$9*$A116 -> 1500 | C116: ='Irr Sunflowers-Confection'!$B$9*(1-'Irr Sunflowers-Confection'!$E$9)*$A116 -> 1125 | D116: ='Irr Sunflowers-Confection'!$B$9*'Irr Sunflowers-Confection'!$E$9*$A116 -> 375 | E116: =('Irr Sunflowers-Confection'!F$47+(B116-B$118)*('Irr Sunflowers-Confection'!$D$24))/B116 -> 0.1237771532 | F116: =('Irr Sunflowers-Confection'!G$47+(C116-C$118)*('Irr Sunflowers-Confection'!$D$24))/C116 -> 0.1575972643 | G116: =('Irr Sunflowers-Confection'!F$61+(B116-B$118)*('Irr Sunflowers-Confection'!$D$24))/B116 -> 0.2499438199 | H116: =('Irr Sunflowers-Confection'!G$61+(C116-C$118)*('Irr Sunflowers-Confection'!$D$24))/C116 -> 0.202263931 | I116: =IF($D116=0, "N/A", ('Irr Sunflowers-Confection'!H$61+(D116-D$118)*('Irr Sunflowers-Confection'!$D$24))/D116) -> 0.3929834865
A117: 0.9 | B117: ='Irr Sunflowers-Confection'!$B$9*$A117 -> 1800 | C117: ='Irr Sunflowers-Confection'!$B$9*(1-'Irr Sunflowers-Confection'!$E$9)*$A117 -> 1350 | D117: ='Irr Sunflowers-Confection'!$B$9*'Irr Sunflowers-Confection'!$E$9*$A117 -> 450 | E117: =('Irr Sunflowers-Confection'!F$47+(B117-B$118)*('Irr Sunflowers-Confection'!$D$24))/B117 -> 0.1531476277 | F117: =('Irr Sunflowers-Confection'!G$47+(C117-C$118)*('Irr Sunflowers-Confection'!$D$24))/C117 -> 0.1813310536 | G117: =('Irr Sunflowers-Confection'!F$61+(B117-B$118)*('Irr Sunflowers-Confection'!$D$24))/B117 -> 0.2582865165 | H117: =('Irr Sunflowers-Confection'!G$61+(C117-C$118)*('Irr Sunflowers-Confection'!$D$24))/C117 -> 0.2185532758 | I117: =IF($D117=0, "N/A", ('Irr Sunflowers-Confection'!H$61+(D117-D$118)*('Irr Sunflowers-Confection'!$D$24))/D117) -> 0.3774862388
A118: 1 | B118: ='Irr Sunflowers-Confection'!$B$9*$A118 -> 2000 | C118: ='Irr Sunflowers-Confection'!$B$9*(1-'Irr Sunflowers-Confection'!$E$9)*$A118 -> 1500 | D118: ='Irr Sunflowers-Confection'!$B$9*'Irr Sunflowers-Confection'!$E$9*$A118 -> 500 | E118: =('Irr Sunflowers-Confection'!F$47+(B118-B$118)*('Irr Sunflowers-Confection'!$D$24))/B118 -> 0.1678328649 | F118: =('Irr Sunflowers-Confection'!G$47+(C118-C$118)*('Irr Sunflowers-Confection'!$D$24))/C118 -> 0.1931979482 | G118: =('Irr Sunflowers-Confection'!F$61+(B118-B$118)*('Irr Sunflowers-Confection'!$D$24))/B118 -> 0.2624578649 | H118: =('Irr Sunflowers-Confection'!G$61+(C118-C$118)*('Irr Sunflowers-Confection'!$D$24))/C118 -> 0.2266979482 | I118: =IF($D118=0, "N/A", ('Irr Sunflowers-Confection'!H$61+(D118-D$118)*('Irr Sunflowers-Confection'!$D$24))/D118) -> 0.3697376149
A119: 1.1 | B119: ='Irr Sunflowers-Confection'!$B$9*$A119 -> 2200 | C119: ='Irr Sunflowers-Confection'!$B$9*(1-'Irr Sunflowers-Confection'!$E$9)*$A119 -> 1650 | D119: ='Irr Sunflowers-Confection'!$B$9*'Irr Sunflowers-Confection'!$E$9*$A119 -> 550 | E119: =('Irr Sunflowers-Confection'!F$47+(B119-B$118)*('Irr Sunflowers-Confection'!$D$24))/B119 -> 0.179848059 | F119: =('Irr Sunflowers-Confection'!G$47+(C119-C$118)*('Irr Sunflowers-Confection'!$D$24))/C119 -> 0.2029072257 | G119: =('Irr Sunflowers-Confection'!F$61+(B119-B$118)*('Irr Sunflowers-Confection'!$D$24))/B119 -> 0.2658707863 | H119: =('Irr Sunflowers-Confection'!G$61+(C119-C$118)*('Irr Sunflowers-Confection'!$D$24))/C119 -> 0.2333617711 | I119: =IF($D119=0, "N/A", ('Irr Sunflowers-Confection'!H$61+(D119-D$118)*('Irr Sunflowers-Confection'!$D$24))/D119) -> 0.3633978317
A120: 1.25 | B120: ='Irr Sunflowers-Confection'!$B$9*$A120 -> 2500 | C120: ='Irr Sunflowers-Confection'!$B$9*(1-'Irr Sunflowers-Confection'!$E$9)*$A120 -> 1875 | D120: ='Irr Sunflowers-Confection'!$B$9*'Irr Sunflowers-Confection'!$E$9*$A120 -> 625 | E120: =('Irr Sunflowers-Confection'!F$47+(B120-B$118)*('Irr Sunflowers-Confection'!$D$24))/B120 -> 0.1942662919 | F120: =('Irr Sunflowers-Confection'!G$47+(C120-C$118)*('Irr Sunflowers-Confection'!$D$24))/C120 -> 0.2145583586 | G120: =('Irr Sunflowers-Confection'!F$61+(B120-B$118)*('Irr Sunflowers-Confection'!$D$24))/B120 -> 0.2699662919 | H120: =('Irr Sunflowers-Confection'!G$61+(C120-C$118)*('Irr Sunflowers-Confection'!$D$24))/C120 -> 0.2413583586 | I120: =IF($D120=0, "N/A", ('Irr Sunflowers-Confection'!H$61+(D120-D$118)*('Irr Sunflowers-Confection'!$D$24))/D120) -> 0.3557900919
A122: ='Irr Sunflowers-Oilseed'!A3:H3 -> Irrigated Sunflowers-Oilseed
E123: BE Price to Cover Variable Costs | G123: BE Price to Cover Total Costs
A124: Yield | B124: ='Irr Sunflowers-Oilseed'!C9 -> lbs | E124: Total | F124: Operator | G124: Total | H124: Operator | I124: Owner
A125: 0.75 | B125: ='Irr Sunflowers-Oilseed'!$B$9*$A125 -> 1500 | C125: ='Irr Sunflowers-Oilseed'!$B$9*(1-'Irr Sunflowers-Oilseed'!$E$9)*$A125 -> 1125 | D125: ='Irr Sunflowers-Oilseed'!$B$9*'Irr Sunflowers-Oilseed'!$E$9*$A125 -> 375 | E125: =('Irr Sunflowers-Oilseed'!F$46+(B125-B$127)*('Irr Sunflowers-Oilseed'!$D$23))/B125 -> 0.1123370532 | F125: =('Irr Sunflowers-Oilseed'!G$46+(C125-C$127)*('Irr Sunflowers-Oilseed'!$D$23))/C125 -> 0.1534420254 | G125: =('Irr Sunflowers-Oilseed'!F$60+(B125-B$127)*('Irr Sunflowers-Oilseed'!$D$23))/B125 -> 0.2385037199 | H125: =('Irr Sunflowers-Oilseed'!G$60+(C125-C$127)*('Irr Sunflowers-Oilseed'!$D$23))/C125 -> 0.1981086921 | I125: =IF($D125=0, "N/A", ('Irr Sunflowers-Oilseed'!H$60+(D125-D$127)*('Irr Sunflowers-Oilseed'!$D$23))/D125) -> 0.3596888032
A126: 0.9 | B126: ='Irr Sunflowers-Oilseed'!$B$9*$A126 -> 1800 | C126: ='Irr Sunflowers-Oilseed'!$B$9*(1-'Irr Sunflowers-Oilseed'!$E$9)*$A126 -> 1350 | D126: ='Irr Sunflowers-Oilseed'!$B$9*'Irr Sunflowers-Oilseed'!$E$9*$A126 -> 450 | E126: =('Irr Sunflowers-Oilseed'!F$46+(B126-B$127)*('Irr Sunflowers-Oilseed'!$D$23))/B126 -> 0.143614211 | F126: =('Irr Sunflowers-Oilseed'!G$46+(C126-C$127)*('Irr Sunflowers-Oilseed'!$D$23))/C126 -> 0.1778683545 | G126: =('Irr Sunflowers-Oilseed'!F$60+(B126-B$127)*('Irr Sunflowers-Oilseed'!$D$23))/B126 -> 0.2487530999 | H126: =('Irr Sunflowers-Oilseed'!G$60+(C126-C$127)*('Irr Sunflowers-Oilseed'!$D$23))/C126 -> 0.2150905767 | I126: =IF($D126=0, "N/A", ('Irr Sunflowers-Oilseed'!H$60+(D126-D$127)*('Irr Sunflowers-Oilseed'!$D$23))/D126) -> 0.3497406693
A127: 1 | B127: ='Irr Sunflowers-Oilseed'!$B$9*$A127 -> 2000 | C127: ='Irr Sunflowers-Oilseed'!$B$9*(1-'Irr Sunflowers-Oilseed'!$E$9)*$A127 -> 1500 | D127: ='Irr Sunflowers-Oilseed'!$B$9*'Irr Sunflowers-Oilseed'!$E$9*$A127 -> 500 | E127: =('Irr Sunflowers-Oilseed'!F$46+(B127-B$127)*('Irr Sunflowers-Oilseed'!$D$23))/B127 -> 0.1592527899 | F127: =('Irr Sunflowers-Oilseed'!G$46+(C127-C$127)*('Irr Sunflowers-Oilseed'!$D$23))/C127 -> 0.1900815191 | G127: =('Irr Sunflowers-Oilseed'!F$60+(B127-B$127)*('Irr Sunflowers-Oilseed'!$D$23))/B127 -> 0.2538777899 | H127: =('Irr Sunflowers-Oilseed'!G$60+(C127-C$127)*('Irr Sunflowers-Oilseed'!$D$23))/C127 -> 0.2235815191 | I127: =IF($D127=0, "N/A", ('Irr Sunflowers-Oilseed'!H$60+(D127-D$127)*('Irr Sunflowers-Oilseed'!$D$23))/D127) -> 0.3447666024
A128: 1.1 | B128: ='Irr Sunflowers-Oilseed'!$B$9*$A128 -> 2200 | C128: ='Irr Sunflowers-Oilseed'!$B$9*(1-'Irr Sunflowers-Oilseed'!$E$9)*$A128 -> 1650 | D128: ='Irr Sunflowers-Oilseed'!$B$9*'Irr Sunflowers-Oilseed'!$E$9*$A128 -> 550 | E128: =('Irr Sunflowers-Oilseed'!F$46+(B128-B$127)*('Irr Sunflowers-Oilseed'!$D$23))/B128 -> 0.1720479908 | F128: =('Irr Sunflowers-Oilseed'!G$46+(C128-C$127)*('Irr Sunflowers-Oilseed'!$D$23))/C128 -> 0.2000741082 | G128: =('Irr Sunflowers-Oilseed'!F$60+(B128-B$127)*('Irr Sunflowers-Oilseed'!$D$23))/B128 -> 0.2580707181 | H128: =('Irr Sunflowers-Oilseed'!G$60+(C128-C$127)*('Irr Sunflowers-Oilseed'!$D$23))/C128 -> 0.2305286537 | I128: =IF($D128=0, "N/A", ('Irr Sunflowers-Oilseed'!H$60+(D128-D$127)*('Irr Sunflowers-Oilseed'!$D$23))/D128) -> 0.3406969113
A129: 1.25 | B129: ='Irr Sunflowers-Oilseed'!$B$9*$A129 -> 2500 | C129: ='Irr Sunflowers-Oilseed'!$B$9*(1-'Irr Sunflowers-Oilseed'!$E$9)*$A129 -> 1875 | D129: ='Irr Sunflowers-Oilseed'!$B$9*'Irr Sunflowers-Oilseed'!$E$9*$A129 -> 625 | E129: =('Irr Sunflowers-Oilseed'!F$46+(B129-B$127)*('Irr Sunflowers-Oilseed'!$D$23))/B129 -> 0.1874022319 | F129: =('Irr Sunflowers-Oilseed'!G$46+(C129-C$127)*('Irr Sunflowers-Oilseed'!$D$23))/C129 -> 0.2120652152 | G129: =('Irr Sunflowers-Oilseed'!F$60+(B129-B$127)*('Irr Sunflowers-Oilseed'!$D$23))/B129 -> 0.2631022319 | H129: =('Irr Sunflowers-Oilseed'!G$60+(C129-C$127)*('Irr Sunflowers-Oilseed'!$D$23))/C129 -> 0.2388652152 | I129: =IF($D129=0, "N/A", ('Irr Sunflowers-Oilseed'!H$60+(D129-D$127)*('Irr Sunflowers-Oilseed'!$D$23))/D129) -> 0.3358132819
A131: ='Irr Wheat'!A3:H3 -> Irrigated Wheat
E132: BE Price to Cover Variable Costs | G132: BE Price to Cover Total Costs
A133: Yield | B133: ='Irr Wheat'!C9 -> bu | E133: Total | F133: Operator | G133: Total | H133: Operator | I133: Owner
A134: 0.75 | B134: ='Irr Wheat'!$B$9*$A134 -> 45 | C134: ='Irr Wheat'!$B$9*(1-'Irr Wheat'!$E$9)*$A134 -> 33.75 | D134: ='Irr Wheat'!$B$9*'Irr Wheat'!$E$9*$A134 -> 11.25 | E134: =('Irr Wheat'!$F$45-'Irr Wheat'!$F$10+($B134-$B$136)*'Irr Wheat'!$D$24)/$B134 -> 8.462589071 | F134: =('Irr Wheat'!$G$45-'Irr Wheat'!$G$10+($C134-$C$136)*'Irr Wheat'!$D$24)/$C134 -> 10.17424463 | G134: =('Irr Wheat'!$F$59-'Irr Wheat'!$F$10+($B134-$B$136)*'Irr Wheat'!$D$24)/$B134 -> 12.66814463 | H134: =('Irr Wheat'!$G$59-'Irr Wheat'!$G$10+($C134-$C$136)*'Irr Wheat'!$D$24)/$C134 -> 11.66313352 | I134: =IF($D134=0, "N/A", ('Irr Wheat'!$H$59-'Irr Wheat'!$H$10+($D134-$D$136)*'Irr Wheat'!$D$24)/$D134) -> 15.68317796
A135: 0.9 | B135: ='Irr Wheat'!$B$9*$A135 -> 54 | C135: ='Irr Wheat'!$B$9*(1-'Irr Wheat'!$E$9)*$A135 -> 40.5 | D135: ='Irr Wheat'!$B$9*'Irr Wheat'!$E$9*$A135 -> 13.5 | E135: =('Irr Wheat'!$F$45-'Irr Wheat'!$F$10+($B135-$B$136)*'Irr Wheat'!$D$24)/$B135 -> 7.135490893 | F135: =('Irr Wheat'!$G$45-'Irr Wheat'!$G$10+($C135-$C$136)*'Irr Wheat'!$D$24)/$C135 -> 8.561870522 | G135: =('Irr Wheat'!$F$59-'Irr Wheat'!$F$10+($B135-$B$136)*'Irr Wheat'!$D$24)/$B135 -> 10.64012052 | H135: =('Irr Wheat'!$G$59-'Irr Wheat'!$G$10+($C135-$C$136)*'Irr Wheat'!$D$24)/$C135 -> 9.802611263 | I135: =IF($D135=0, "N/A", ('Irr Wheat'!$H$59-'Irr Wheat'!$H$10+($D135-$D$136)*'Irr Wheat'!$D$24)/$D135) -> 13.1526483
A136: 1 | B136: ='Irr Wheat'!$B$9*$A136 -> 60 | C136: ='Irr Wheat'!$B$9*(1-'Irr Wheat'!$E$9)*$A136 -> 45 | D136: ='Irr Wheat'!$B$9*'Irr Wheat'!$E$9*$A136 -> 15 | E136: =('Irr Wheat'!$F$45-'Irr Wheat'!$F$10+($B136-$B$136)*'Irr Wheat'!$D$24)/$B136 -> 6.471941803 | F136: =('Irr Wheat'!$G$45-'Irr Wheat'!$G$10+($C136-$C$136)*'Irr Wheat'!$D$24)/$C136 -> 7.75568347 | G136: =('Irr Wheat'!$F$59-'Irr Wheat'!$F$10+($B136-$B$136)*'Irr Wheat'!$D$24)/$B136 -> 9.62610847 | H136: =('Irr Wheat'!$G$59-'Irr Wheat'!$G$10+($C136-$C$136)*'Irr Wheat'!$D$24)/$C136 -> 8.872350137 | I136: =IF($D136=0, "N/A", ('Irr Wheat'!$H$59-'Irr Wheat'!$H$10+($D136-$D$136)*'Irr Wheat'!$D$24)/$D136) -> 11.88738347
A137: 1.1 | B137: ='Irr Wheat'!$B$9*$A137 -> 66 | C137: ='Irr Wheat'!$B$9*(1-'Irr Wheat'!$E$9)*$A137 -> 49.5 | D137: ='Irr Wheat'!$B$9*'Irr Wheat'!$E$9*$A137 -> 16.5 | E137: =('Irr Wheat'!$F$45-'Irr Wheat'!$F$10+($B137-$B$136)*'Irr Wheat'!$D$24)/$B137 -> 5.929038003 | F137: =('Irr Wheat'!$G$45-'Irr Wheat'!$G$10+($C137-$C$136)*'Irr Wheat'!$D$24)/$C137 -> 7.096075882 | G137: =('Irr Wheat'!$F$59-'Irr Wheat'!$F$10+($B137-$B$136)*'Irr Wheat'!$D$24)/$B137 -> 8.796462246 | H137: =('Irr Wheat'!$G$59-'Irr Wheat'!$G$10+($C137-$C$136)*'Irr Wheat'!$D$24)/$C137 -> 8.111227397 | I137: =IF($D137=0, "N/A", ('Irr Wheat'!$H$59-'Irr Wheat'!$H$10+($D137-$D$136)*'Irr Wheat'!$D$24)/$D137) -> 10.85216679
A138: 1.25 | B138: ='Irr Wheat'!$B$9*$A138 -> 75 | C138: ='Irr Wheat'!$B$9*(1-'Irr Wheat'!$E$9)*$A138 -> 56.25 | D138: ='Irr Wheat'!$B$9*'Irr Wheat'!$E$9*$A138 -> 18.75 | E138: =('Irr Wheat'!$F$45-'Irr Wheat'!$F$10+($B138-$B$136)*'Irr Wheat'!$D$24)/$B138 -> 5.277553443 | F138: =('Irr Wheat'!$G$45-'Irr Wheat'!$G$10+($C138-$C$136)*'Irr Wheat'!$D$24)/$C138 -> 6.304546776 | G138: =('Irr Wheat'!$F$59-'Irr Wheat'!$F$10+($B138-$B$136)*'Irr Wheat'!$D$24)/$B138 -> 7.800886776 | H138: =('Irr Wheat'!$G$59-'Irr Wheat'!$G$10+($C138-$C$136)*'Irr Wheat'!$D$24)/$C138 -> 7.197880109 | I138: =IF($D138=0, "N/A", ('Irr Wheat'!$H$59-'Irr Wheat'!$H$10+($D138-$D$136)*'Irr Wheat'!$D$24)/$D138) -> 9.609906776
A140: ='Dry Cotton Conventional'!A3:H3 -> Dryland Cotton - Conventional
E141: BE Price to Cover Variable Costs | G141: BE Price to Cover Total Costs
A142: Yield | B142: ='Dry Cotton Conventional'!C9 -> lbs | E142: Total | F142: Operator | G142: Total | H142: Operator | I142: Owner
A143: 0.75 | B143: ='Dry Cotton Conventional'!$B$9*$A143 -> 262.5 | C143: ='Dry Cotton Conventional'!$B$9*(1-'Dry Cotton Conventional'!$E$9)*$A143 -> 196.875 | D143: ='Dry Cotton Conventional'!$B$9*'Dry Cotton Conventional'!$E$9*$A143 -> 65.625 | E143: =('Dry Cotton Conventional'!F$46-B143/500*'2016 Universal Input Prices'!$C$40/2000*Cottonseed_Price+(B143-B$145)*'Dry Cotton Conventional'!$D$29+(B143-B$145)/'Dry Cotton Conventional'!$B$11/100*'Dry Cotton Conventional'!$D$30)/B143 -> 0.882014076 | F143: =('Dry Cotton Conventional'!G$46-C143/500*'2016 Universal Input Prices'!$C$40/2000*Cottonseed_Price+(C143-C$145)*'Dry Cotton Conventional'!$D$29+(C143-C$145)/'Dry Cotton Conventional'!$B$11/100*'Dry Cotton Conventional'!$D$30)/C143 -> 1.089770965 | G143: =('Dry Cotton Conventional'!F$58-B143/500*'2016 Universal Input Prices'!$C$40/2000*Cottonseed_Price+(B143-B$145)*'Dry Cotton Conventional'!$D$29+(B143-B$145)/'Dry Cotton Conventional'!$B$11/100*'Dry Cotton Conventional'!$D$30)/B143 -> 1.275347409 | H143: =('Dry Cotton Conventional'!G$58-C143/500*'2016 Universal Input Prices'!$C$40/2000*Cottonseed_Price+(C143-C$145)*'Dry Cotton Conventional'!$D$29+(C143-C$145)/'Dry Cotton Conventional'!$B$11/100*'Dry Cotton Conventional'!$D$30)/C143 -> 1.34500906 | I143: =IF($D143=0,"N/A",('Dry Cotton Conventional'!H$58-D143/500*'2016 Universal Input Prices'!$C$40/2000*Cottonseed_Price+(D143-D$145)*'Dry Cotton Conventional'!$D$29+(D143-D$145)/'Dry Cotton Conventional'!$B$11/100*'Dry Cotton Conventional'!$D$30)/D143) -> 1.066362457
A144: 0.9 | B144: ='Dry Cotton Conventional'!$B$9*$A144 -> 315 | C144: ='Dry Cotton Conventional'!$B$9*(1-'Dry Cotton Conventional'!$E$9)*$A144 -> 236.25 | D144: ='Dry Cotton Conventional'!$B$9*'Dry Cotton Conventional'!$E$9*$A144 -> 78.75 | E144: =('Dry Cotton Conventional'!F$46-B144/500*'2016 Universal Input Prices'!$C$40/2000*Cottonseed_Price+(B144-B$145)*'Dry Cotton Conventional'!$D$29+(B144-B$145)/'Dry Cotton Conventional'!$B$11/100*'Dry Cotton Conventional'!$D$30)/B144 -> 0.7445501915 | F144: =('Dry Cotton Conventional'!G$46-C144/500*'2016 Universal Input Prices'!$C$40/2000*Cottonseed_Price+(C144-C$145)*'Dry Cotton Conventional'!$D$29+(C144-C$145)/'Dry Cotton Conventional'!$B$11/100*'Dry Cotton Conventional'!$D$30)/C144 -> 0.9176809322 | G144: =('Dry Cotton Conventional'!F$58-B144/500*'2016 Universal Input Prices'!$C$40/2000*Cottonseed_Price+(B144-B$145)*'Dry Cotton Conventional'!$D$29+(B144-B$145)/'Dry Cotton Conventional'!$B$11/100*'Dry Cotton Conventional'!$D$30)/B144 -> 1.072327969 | H144: =('Dry Cotton Conventional'!G$58-C144/500*'2016 Universal Input Prices'!$C$40/2000*Cottonseed_Price+(C144-C$145)*'Dry Cotton Conventional'!$D$29+(C144-C$145)/'Dry Cotton Conventional'!$B$11/100*'Dry Cotton Conventional'!$D$30)/C144 -> 1.130379345 | I144: =IF($D144=0,"N/A",('Dry Cotton Conventional'!H$58-D144/500*'2016 Universal Input Prices'!$C$40/2000*Cottonseed_Price+(D144-D$145)*'Dry Cotton Conventional'!$D$29+(D144-D$145)/'Dry Cotton Conventional'!$B$11/100*'Dry Cotton Conventional'!$D$30)/D144) -> 0.8981738423
A145: 1 | B145: ='Dry Cotton Conventional'!$B$9*$A145 -> 350 | C145: ='Dry Cotton Conventional'!$B$9*(1-'Dry Cotton Conventional'!$E$9)*$A145 -> 262.5 | D145: ='Dry Cotton Conventional'!$B$9*'Dry Cotton Conventional'!$E$9*$A145 -> 87.5 | E145: =('Dry Cotton Conventional'!F$46-B145/500*'2016 Universal Input Prices'!$C$40/2000*Cottonseed_Price+(B145-B$145)*'Dry Cotton Conventional'!$D$29+(B145-B$145)/'Dry Cotton Conventional'!$B$11/100*'Dry Cotton Conventional'!$D$30)/B145 -> 0.6758182493 | F145: =('Dry Cotton Conventional'!G$46-C145/500*'2016 Universal Input Prices'!$C$40/2000*Cottonseed_Price+(C145-C$145)*'Dry Cotton Conventional'!$D$29+(C145-C$145)/'Dry Cotton Conventional'!$B$11/100*'Dry Cotton Conventional'!$D$30)/C145 -> 0.8316359159 | G145: =('Dry Cotton Conventional'!F$58-B145/500*'2016 Universal Input Prices'!$C$40/2000*Cottonseed_Price+(B145-B$145)*'Dry Cotton Conventional'!$D$29+(B145-B$145)/'Dry Cotton Conventional'!$B$11/100*'Dry Cotton Conventional'!$D$30)/B145 -> 0.9708182493 | H145: =('Dry Cotton Conventional'!G$58-C145/500*'2016 Universal Input Prices'!$C$40/2000*Cottonseed_Price+(C145-C$145)*'Dry Cotton Conventional'!$D$29+(C145-C$145)/'Dry Cotton Conventional'!$B$11/100*'Dry Cotton Conventional'!$D$30)/C145 -> 1.023064487 | I145: =IF($D145=0,"N/A",('Dry Cotton Conventional'!H$58-D145/500*'2016 Universal Input Prices'!$C$40/2000*Cottonseed_Price+(D145-D$145)*'Dry Cotton Conventional'!$D$29+(D145-D$145)/'Dry Cotton Conventional'!$B$11/100*'Dry Cotton Conventional'!$D$30)/D145) -> 0.814079535
A146: 1.1 | B146: ='Dry Cotton Conventional'!$B$9*$A146 -> 385 | C146: ='Dry Cotton Conventional'!$B$9*(1-'Dry Cotton Conventional'!$E$9)*$A146 -> 288.75 | D146: ='Dry Cotton Conventional'!$B$9*'Dry Cotton Conventional'!$E$9*$A146 -> 96.25 | E146: =('Dry Cotton Conventional'!F$46-B146/500*'2016 Universal Input Prices'!$C$40/2000*Cottonseed_Price+(B146-B$145)*'Dry Cotton Conventional'!$D$29+(B146-B$145)/'Dry Cotton Conventional'!$B$11/100*'Dry Cotton Conventional'!$D$30)/B146 -> 0.6195830238 | F146: =('Dry Cotton Conventional'!G$46-C146/500*'2016 Universal Input Prices'!$C$40/2000*Cottonseed_Price+(C146-C$145)*'Dry Cotton Conventional'!$D$29+(C146-C$145)/'Dry Cotton Conventional'!$B$11/100*'Dry Cotton Conventional'!$D$30)/C146 -> 0.7612354481 | G146: =('Dry Cotton Conventional'!F$58-B146/500*'2016 Universal Input Prices'!$C$40/2000*Cottonseed_Price+(B146-B$145)*'Dry Cotton Conventional'!$D$29+(B146-B$145)/'Dry Cotton Conventional'!$B$11/100*'Dry Cotton Conventional'!$D$30)/B146 -> 0.887764842 | H146: =('Dry Cotton Conventional'!G$58-C146/500*'2016 Universal Input Prices'!$C$40/2000*Cottonseed_Price+(C146-C$145)*'Dry Cotton Conventional'!$D$29+(C146-C$145)/'Dry Cotton Conventional'!$B$11/100*'Dry Cotton Conventional'!$D$30)/C146 -> 0.9352614221 | I146: =IF($D146=0,"N/A",('Dry Cotton Conventional'!H$58-D146/500*'2016 Universal Input Prices'!$C$40/2000*Cottonseed_Price+(D146-D$145)*'Dry Cotton Conventional'!$D$29+(D146-D$145)/'Dry Cotton Conventional'!$B$11/100*'Dry Cotton Conventional'!$D$30)/D146) -> 0.7452751017
A147: 1.25 | B147: ='Dry Cotton Conventional'!$B$9*$A147 -> 437.5 | C147: ='Dry Cotton Conventional'!$B$9*(1-'Dry Cotton Conventional'!$E$9)*$A147 -> 328.125 | D147: ='Dry Cotton Conventional'!$B$9*'Dry Cotton Conventional'!$E$9*$A147 -> 109.375 | E147: =('Dry Cotton Conventional'!F$46-B147/500*'2016 Universal Input Prices'!$C$40/2000*Cottonseed_Price+(B147-B$145)*'Dry Cotton Conventional'!$D$29+(B147-B$145)/'Dry Cotton Conventional'!$B$11/100*'Dry Cotton Conventional'!$D$30)/B147 -> 0.5521007533 | F147: =('Dry Cotton Conventional'!G$46-C147/500*'2016 Universal Input Prices'!$C$40/2000*Cottonseed_Price+(C147-C$145)*'Dry Cotton Conventional'!$D$29+(C147-C$145)/'Dry Cotton Conventional'!$B$11/100*'Dry Cotton Conventional'!$D$30)/C147 -> 0.6767548866 | G147: =('Dry Cotton Conventional'!F$58-B147/500*'2016 Universal Input Prices'!$C$40/2000*Cottonseed_Price+(B147-B$145)*'Dry Cotton Conventional'!$D$29+(B147-B$145)/'Dry Cotton Conventional'!$B$11/100*'Dry Cotton Conventional'!$D$30)/B147 -> 0.7881007533 | H147: =('Dry Cotton Conventional'!G$58-C147/500*'2016 Universal Input Prices'!$C$40/2000*Cottonseed_Price+(C147-C$145)*'Dry Cotton Conventional'!$D$29+(C147-C$145)/'Dry Cotton Conventional'!$B$11/100*'Dry Cotton Conventional'!$D$30)/C147 -> 0.8298977437 | I147: =IF($D147=0,"N/A",('Dry Cotton Conventional'!H$58-D147/500*'2016 Universal Input Prices'!$C$40/2000*Cottonseed_Price+(D147-D$145)*'Dry Cotton Conventional'!$D$29+(D147-D$145)/'Dry Cotton Conventional'!$B$11/100*'Dry Cotton Conventional'!$D$30)/D147) -> 0.6627097818
A149: ='Dry Cotton HT'!$A$3:$H$3 -> Dryland Cotton - Herbicide Tolerant
E150: BE Price to Cover Variable Costs | G150: BE Price to Cover Total Costs
A151: Yield | B151: ='Dry Cotton HT'!C9 -> lbs | E151: Total | F151: Operator | G151: Total | H151: Operator | I151: Owner
A152: 0.75 | B152: ='Dry Cotton HT'!$B$9*$A152 -> 262.5 | C152: ='Dry Cotton HT'!$B$9*(1-'Dry Cotton HT'!$E$9)*$A152 -> 196.875 | D152: ='Dry Cotton HT'!$B$9*'Dry Cotton HT'!$E$9*$A152 -> 65.625 | E152: =('Dry Cotton HT'!F$47-B152/500*'2016 Universal Input Prices'!$C$40/2000*Cottonseed_Price+(B152-B$154)*'Dry Cotton HT'!$D$30+(B152-B$154)/'Dry Cotton HT'!$B$11/100*'Dry Cotton HT'!$D$31)/B152 -> 0.8406848652 | F152: =('Dry Cotton HT'!G$47-C152/500*'2016 Universal Input Prices'!$C$40/2000*Cottonseed_Price+(C152-C$154)*'Dry Cotton HT'!$D$30+(C152-C$154)/'Dry Cotton HT'!$B$11/100*'Dry Cotton HT'!$D$31)/C152 -> 0.9975181985 | G152: =('Dry Cotton HT'!F$59-B152/500*'2016 Universal Input Prices'!$C$40/2000*Cottonseed_Price+(B152-B$154)*'Dry Cotton HT'!$D$30+(B152-B$154)/'Dry Cotton HT'!$B$11/100*'Dry Cotton HT'!$D$31)/B152 -> 1.234018199 | H152: =('Dry Cotton HT'!G$59-C152/500*'2016 Universal Input Prices'!$C$40/2000*Cottonseed_Price+(C152-C$154)*'Dry Cotton HT'!$D$30+(C152-C$154)/'Dry Cotton HT'!$B$11/100*'Dry Cotton HT'!$D$31)/C152 -> 1.252756294 | I152: =IF($D152=0,"N/A",('Dry Cotton HT'!H$59-D152/500*'2016 Universal Input Prices'!$C$40/2000*Cottonseed_Price+(D152-D$154)*'Dry Cotton HT'!$D$30+(D152-D$154)/'Dry Cotton HT'!$B$11/100*'Dry Cotton HT'!$D$31)/D152) -> 1.177803913
A153: 0.9 | B153: ='Dry Cotton HT'!$B$9*$A153 -> 315 | C153: ='Dry Cotton HT'!$B$9*(1-'Dry Cotton HT'!$E$9)*$A153 -> 236.25 | D153: ='Dry Cotton HT'!$B$9*'Dry Cotton HT'!$E$9*$A153 -> 78.75 | E153: =('Dry Cotton HT'!F$47-B153/500*'2016 Universal Input Prices'!$C$40/2000*Cottonseed_Price+(B153-B$154)*'Dry Cotton HT'!$D$30+(B153-B$154)/'Dry Cotton HT'!$B$11/100*'Dry Cotton HT'!$D$31)/B153 -> 0.7101091825 | F153: =('Dry Cotton HT'!G$47-C153/500*'2016 Universal Input Prices'!$C$40/2000*Cottonseed_Price+(C153-C$154)*'Dry Cotton HT'!$D$30+(C153-C$154)/'Dry Cotton HT'!$B$11/100*'Dry Cotton HT'!$D$31)/C153 -> 0.840803627 | G153: =('Dry Cotton HT'!F$59-B153/500*'2016 Universal Input Prices'!$C$40/2000*Cottonseed_Price+(B153-B$154)*'Dry Cotton HT'!$D$30+(B153-B$154)/'Dry Cotton HT'!$B$11/100*'Dry Cotton HT'!$D$31)/B153 -> 1.03788696 | H153: =('Dry Cotton HT'!G$59-C153/500*'2016 Universal Input Prices'!$C$40/2000*Cottonseed_Price+(C153-C$154)*'Dry Cotton HT'!$D$30+(C153-C$154)/'Dry Cotton HT'!$B$11/100*'Dry Cotton HT'!$D$31)/C153 -> 1.05350204 | I153: =IF($D153=0,"N/A",('Dry Cotton HT'!H$59-D153/500*'2016 Universal Input Prices'!$C$40/2000*Cottonseed_Price+(D153-D$154)*'Dry Cotton HT'!$D$30+(D153-D$154)/'Dry Cotton HT'!$B$11/100*'Dry Cotton HT'!$D$31)/D153) -> 0.9910417222
A154: 1 | B154: ='Dry Cotton HT'!$B$9*$A154 -> 350 | C154: ='Dry Cotton HT'!$B$9*(1-'Dry Cotton HT'!$E$9)*$A154 -> 262.5 | D154: ='Dry Cotton HT'!$B$9*'Dry Cotton HT'!$E$9*$A154 -> 87.5 | E154: =('Dry Cotton HT'!F$47-B154/500*'2016 Universal Input Prices'!$C$40/2000*Cottonseed_Price+(B154-B$154)*'Dry Cotton HT'!$D$30+(B154-B$154)/'Dry Cotton HT'!$B$11/100*'Dry Cotton HT'!$D$31)/B154 -> 0.6448213412 | F154: =('Dry Cotton HT'!G$47-C154/500*'2016 Universal Input Prices'!$C$40/2000*Cottonseed_Price+(C154-C$154)*'Dry Cotton HT'!$D$30+(C154-C$154)/'Dry Cotton HT'!$B$11/100*'Dry Cotton HT'!$D$31)/C154 -> 0.7624463412 | G154: =('Dry Cotton HT'!F$59-B154/500*'2016 Universal Input Prices'!$C$40/2000*Cottonseed_Price+(B154-B$154)*'Dry Cotton HT'!$D$30+(B154-B$154)/'Dry Cotton HT'!$B$11/100*'Dry Cotton HT'!$D$31)/B154 -> 0.9398213412 | H154: =('Dry Cotton HT'!G$59-C154/500*'2016 Universal Input Prices'!$C$40/2000*Cottonseed_Price+(C154-C$154)*'Dry Cotton HT'!$D$30+(C154-C$154)/'Dry Cotton HT'!$B$11/100*'Dry Cotton HT'!$D$31)/C154 -> 0.9538749126 | I154: =IF($D154=0,"N/A",('Dry Cotton HT'!H$59-D154/500*'2016 Universal Input Prices'!$C$40/2000*Cottonseed_Price+(D154-D$154)*'Dry Cotton HT'!$D$30+(D154-D$154)/'Dry Cotton HT'!$B$11/100*'Dry Cotton HT'!$D$31)/D154) -> 0.8976606269
A155: 1.1 | B155: ='Dry Cotton HT'!$B$9*$A155 -> 385 | C155: ='Dry Cotton HT'!$B$9*(1-'Dry Cotton HT'!$E$9)*$A155 -> 288.75 | D155: ='Dry Cotton HT'!$B$9*'Dry Cotton HT'!$E$9*$A155 -> 96.25 | E155: =('Dry Cotton HT'!F$47-B155/500*'2016 Universal Input Prices'!$C$40/2000*Cottonseed_Price+(B155-B$154)*'Dry Cotton HT'!$D$30+(B155-B$154)/'Dry Cotton HT'!$B$11/100*'Dry Cotton HT'!$D$31)/B155 -> 0.5914040165 | F155: =('Dry Cotton HT'!G$47-C155/500*'2016 Universal Input Prices'!$C$40/2000*Cottonseed_Price+(C155-C$154)*'Dry Cotton HT'!$D$30+(C155-C$154)/'Dry Cotton HT'!$B$11/100*'Dry Cotton HT'!$D$31)/C155 -> 0.6983358346 | G155: =('Dry Cotton HT'!F$59-B155/500*'2016 Universal Input Prices'!$C$40/2000*Cottonseed_Price+(B155-B$154)*'Dry Cotton HT'!$D$30+(B155-B$154)/'Dry Cotton HT'!$B$11/100*'Dry Cotton HT'!$D$31)/B155 -> 0.8595858346 | H155: =('Dry Cotton HT'!G$59-C155/500*'2016 Universal Input Prices'!$C$40/2000*Cottonseed_Price+(C155-C$154)*'Dry Cotton HT'!$D$30+(C155-C$154)/'Dry Cotton HT'!$B$11/100*'Dry Cotton HT'!$D$31)/C155 -> 0.8723618087 | I155: =IF($D155=0,"N/A",('Dry Cotton HT'!H$59-D155/500*'2016 Universal Input Prices'!$C$40/2000*Cottonseed_Price+(D155-D$154)*'Dry Cotton HT'!$D$30+(D155-D$154)/'Dry Cotton HT'!$B$11/100*'Dry Cotton HT'!$D$31)/D155) -> 0.8212579126
A156: 1.25 | B156: ='Dry Cotton HT'!$B$9*$A156 -> 437.5 | C156: ='Dry Cotton HT'!$B$9*(1-'Dry Cotton HT'!$E$9)*$A156 -> 328.125 | D156: ='Dry Cotton HT'!$B$9*'Dry Cotton HT'!$E$9*$A156 -> 109.375 | E156: =('Dry Cotton HT'!F$47-B156/500*'2016 Universal Input Prices'!$C$40/2000*Cottonseed_Price+(B156-B$154)*'Dry Cotton HT'!$D$30+(B156-B$154)/'Dry Cotton HT'!$B$11/100*'Dry Cotton HT'!$D$31)/B156 -> 0.5273032268 | F156: =('Dry Cotton HT'!G$47-C156/500*'2016 Universal Input Prices'!$C$40/2000*Cottonseed_Price+(C156-C$154)*'Dry Cotton HT'!$D$30+(C156-C$154)/'Dry Cotton HT'!$B$11/100*'Dry Cotton HT'!$D$31)/C156 -> 0.6214032268 | G156: =('Dry Cotton HT'!F$59-B156/500*'2016 Universal Input Prices'!$C$40/2000*Cottonseed_Price+(B156-B$154)*'Dry Cotton HT'!$D$30+(B156-B$154)/'Dry Cotton HT'!$B$11/100*'Dry Cotton HT'!$D$31)/B156 -> 0.7633032268 | H156: =('Dry Cotton HT'!G$59-C156/500*'2016 Universal Input Prices'!$C$40/2000*Cottonseed_Price+(C156-C$154)*'Dry Cotton HT'!$D$30+(C156-C$154)/'Dry Cotton HT'!$B$11/100*'Dry Cotton HT'!$D$31)/C156 -> 0.7745460839 | I156: =IF($D156=0,"N/A",('Dry Cotton HT'!H$59-D156/500*'2016 Universal Input Prices'!$C$40/2000*Cottonseed_Price+(D156-D$154)*'Dry Cotton HT'!$D$30+(D156-D$154)/'Dry Cotton HT'!$B$11/100*'Dry Cotton HT'!$D$31)/D156) -> 0.7295746554
A158: ='Dry Guar'!A3:H3 -> Dryland Guar
E159: BE Price to Cover Variable Costs | G159: BE Price to Cover Total Costs
A160: Yield | B160: ='Dry Guar'!C9 -> lbs | E160: Total | F160: Operator | G160: Total | H160: Operator | I160: Owner
A161: 0.75 | B161: ='Dry Guar'!$B$9*$A161 -> 450 | C161: ='Dry Guar'!$B$9*(1-'Dry Guar'!$E$9)*$A161 -> 337.5 | D161: ='Dry Guar'!$B$9*'Dry Guar'!$E$9*$A161 -> 112.5 | E161: =('Dry Guar'!$F$41+($B161-$B$73)*'Dry Guar'!$D$25)/$B161 -> 0.3774519915 | F161: =('Dry Guar'!$G$41+($C161-$C$73)*'Dry Guar'!$D$25)/$C161 -> 0.4050923989 | G161: =('Dry Guar'!$F$53+($B161-$B$73)*'Dry Guar'!$D$25)/$B161 -> 0.6068964359 | H161: =('Dry Guar'!$G$53+($C161-$C$73)*'Dry Guar'!$D$25)/$C161 -> 0.5539812877 | I161: =IF($D161=0, "N/A", ('Dry Guar'!$H$53+($D161-$D$73)*'Dry Guar'!$D$25)/$D161) -> 0.7656418803
A162: 0.9 | B162: ='Irr Guar'!$B$9*$A162 -> 1080 | C162: ='Dry Guar'!$B$9*(1-'Dry Guar'!$E$9)*$A162 -> 405 | D162: ='Dry Guar'!$B$9*'Dry Guar'!$E$9*$A162 -> 135 | E162: =('Dry Guar'!$F$41+($B162-$B$73)*'Dry Guar'!$D$25)/$B162 -> 0.2739383298 | F162: =('Dry Guar'!$G$41+($C162-$C$73)*'Dry Guar'!$D$25)/$C162 -> 0.3709103324 | G162: =('Dry Guar'!$F$53+($B162-$B$73)*'Dry Guar'!$D$25)/$B162 -> 0.3695401816 | H162: =('Dry Guar'!$G$53+($C162-$C$73)*'Dry Guar'!$D$25)/$C162 -> 0.4949844065 | I162: =IF($D162=0, "N/A", ('Dry Guar'!$H$53+($D162-$D$73)*'Dry Guar'!$D$25)/$D162) -> 0.6713682336
A163: 1 | B163: ='Irr Guar'!$B$9*$A163 -> 1200 | C163: ='Dry Guar'!$B$9*(1-'Dry Guar'!$E$9)*$A163 -> 450 | D163: ='Dry Guar'!$B$9*'Dry Guar'!$E$9*$A163 -> 150 | E163: =('Dry Guar'!$F$41+($B163-$B$73)*'Dry Guar'!$D$25)/$B163 -> 0.2665444968 | F163: =('Dry Guar'!$G$41+($C163-$C$73)*'Dry Guar'!$D$25)/$C163 -> 0.3538192991 | G163: =('Dry Guar'!$F$53+($B163-$B$73)*'Dry Guar'!$D$25)/$B163 -> 0.3525861635 | H163: =('Dry Guar'!$G$53+($C163-$C$73)*'Dry Guar'!$D$25)/$C163 -> 0.4654859658 | I163: =IF($D163=0, "N/A", ('Dry Guar'!$H$53+($D163-$D$73)*'Dry Guar'!$D$25)/$D163) -> 0.6242314103
A164: 1.1 | B164: ='Irr Guar'!$B$9*$A164 -> 1320 | C164: ='Dry Guar'!$B$9*(1-'Dry Guar'!$E$9)*$A164 -> 495 | D164: ='Dry Guar'!$B$9*'Dry Guar'!$E$9*$A164 -> 165 | E164: =('Dry Guar'!$F$41+($B164-$B$73)*'Dry Guar'!$D$25)/$B164 -> 0.2604949971 | F164: =('Dry Guar'!$G$41+($C164-$C$73)*'Dry Guar'!$D$25)/$C164 -> 0.3398357265 | G164: =('Dry Guar'!$F$53+($B164-$B$73)*'Dry Guar'!$D$25)/$B164 -> 0.3387146941 | H164: =('Dry Guar'!$G$53+($C164-$C$73)*'Dry Guar'!$D$25)/$C164 -> 0.441350878 | I164: =IF($D164=0, "N/A", ('Dry Guar'!$H$53+($D164-$D$73)*'Dry Guar'!$D$25)/$D164) -> 0.5856649184
A165: 1.25 | B165: ='Irr Guar'!$B$9*$A165 -> 1500 | C165: ='Dry Guar'!$B$9*(1-'Dry Guar'!$E$9)*$A165 -> 562.5 | D165: ='Dry Guar'!$B$9*'Dry Guar'!$E$9*$A165 -> 187.5 | E165: =('Dry Guar'!$F$41+($B165-$B$73)*'Dry Guar'!$D$25)/$B165 -> 0.2532355974 | F165: =('Dry Guar'!$G$41+($C165-$C$73)*'Dry Guar'!$D$25)/$C165 -> 0.3230554393 | G165: =('Dry Guar'!$F$53+($B165-$B$73)*'Dry Guar'!$D$25)/$B165 -> 0.3220689308 | H165: =('Dry Guar'!$G$53+($C165-$C$73)*'Dry Guar'!$D$25)/$C165 -> 0.4123887726 | I165: =IF($D165=0, "N/A", ('Dry Guar'!$H$53+($D165-$D$73)*'Dry Guar'!$D$25)/$D165) -> 0.5393851282
A167: ='Dry Sesame'!$A$3:$H$3 -> Dryland Sesame
E168: BE Price to Cover Variable Costs | G168: BE Price to Cover Total Costs
A169: Yield | B169: ='Dry Sesame'!C9 -> lbs | E169: Total | F169: Operator | G169: Total | H169: Operator | I169: Owner
A170: 0.75 | B170: ='Dry Sesame'!$B$9*$A170 -> 525 | C170: ='Dry Sesame'!$B$9*(1-'Dry Sesame'!$E$9)*$A170 -> 393.75 | D170: ='Dry Sesame'!$B$9*'Dry Sesame'!$E$9*$A170 -> 131.25 | E170: =('Dry Sesame'!$F$40+($B170-B$172)*'Dry Sesame'!$D$24)/$B170 -> 0.1833919643 | F170: =('Dry Sesame'!$G$40+($C170-C$172)*'Dry Sesame'!$D$24)/$C170 -> 0.2291169643 | G170: =('Dry Sesame'!$F$52+($B170-B$172)*'Dry Sesame'!$D$24)/$B170 -> 0.380058631 | H170: =('Dry Sesame'!$G$52+($C170-C$172)*'Dry Sesame'!$D$24)/$C170 -> 0.3567360119 | I170: =IF($D170=0, "N/A", ('Dry Sesame'!$H$52+($D170-D$172)*'Dry Sesame'!$D$24)/$D170) -> 0.4500264881
A171: 0.9 | B171: ='Dry Sesame'!$B$9*$A171 -> 630 | C171: ='Dry Sesame'!$B$9*(1-'Dry Sesame'!$E$9)*$A171 -> 472.5 | D171: ='Dry Sesame'!$B$9*'Dry Sesame'!$E$9*$A171 -> 157.5 | E171: =('Dry Sesame'!$F$40+($B171-B$172)*'Dry Sesame'!$D$24)/$B171 -> 0.1728266369 | F171: =('Dry Sesame'!$G$40+($C171-C$172)*'Dry Sesame'!$D$24)/$C171 -> 0.2109308036 | G171: =('Dry Sesame'!$F$52+($B171-B$172)*'Dry Sesame'!$D$24)/$B171 -> 0.3367155258 | H171: =('Dry Sesame'!$G$52+($C171-C$172)*'Dry Sesame'!$D$24)/$C171 -> 0.3172800099 | I171: =IF($D171=0, "N/A", ('Dry Sesame'!$H$52+($D171-D$172)*'Dry Sesame'!$D$24)/$D171) -> 0.3950220734
A172: 1 | B172: ='Dry Sesame'!$B$9*$A172 -> 700 | C172: ='Dry Sesame'!$B$9*(1-'Dry Sesame'!$E$9)*$A172 -> 525 | D172: ='Dry Sesame'!$B$9*'Dry Sesame'!$E$9*$A172 -> 175 | E172: =('Dry Sesame'!$F$40+($B172-B$172)*'Dry Sesame'!$D$24)/$B172 -> 0.1675439732 | F172: =('Dry Sesame'!$G$40+($C172-C$172)*'Dry Sesame'!$D$24)/$C172 -> 0.2018377232 | G172: =('Dry Sesame'!$F$52+($B172-B$172)*'Dry Sesame'!$D$24)/$B172 -> 0.3150439732 | H172: =('Dry Sesame'!$G$52+($C172-C$172)*'Dry Sesame'!$D$24)/$C172 -> 0.2975520089 | I172: =IF($D172=0, "N/A", ('Dry Sesame'!$H$52+($D172-D$172)*'Dry Sesame'!$D$24)/$D172) -> 0.3675198661
A173: 1.1 | B173: ='Dry Sesame'!$B$9*$A173 -> 770 | C173: ='Dry Sesame'!$B$9*(1-'Dry Sesame'!$E$9)*$A173 -> 577.5 | D173: ='Dry Sesame'!$B$9*'Dry Sesame'!$E$9*$A173 -> 192.5 | E173: =('Dry Sesame'!$F$40+($B173-B$172)*'Dry Sesame'!$D$24)/$B173 -> 0.1632217938 | F173: =('Dry Sesame'!$G$40+($C173-C$172)*'Dry Sesame'!$D$24)/$C173 -> 0.1943979302 | G173: =('Dry Sesame'!$F$52+($B173-B$172)*'Dry Sesame'!$D$24)/$B173 -> 0.2973127029 | H173: =('Dry Sesame'!$G$52+($C173-C$172)*'Dry Sesame'!$D$24)/$C173 -> 0.2814109172 | I173: =IF($D173=0, "N/A", ('Dry Sesame'!$H$52+($D173-D$172)*'Dry Sesame'!$D$24)/$D173) -> 0.3450180601
A174: 1.25 | B174: ='Dry Sesame'!$B$9*$A174 -> 875 | C174: ='Dry Sesame'!$B$9*(1-'Dry Sesame'!$E$9)*$A174 -> 656.25 | D174: ='Dry Sesame'!$B$9*'Dry Sesame'!$E$9*$A174 -> 218.75 | E174: =('Dry Sesame'!$F$40+($B174-B$172)*'Dry Sesame'!$D$24)/$B174 -> 0.1580351786 | F174: =('Dry Sesame'!$G$40+($C174-C$172)*'Dry Sesame'!$D$24)/$C174 -> 0.1854701786 | G174: =('Dry Sesame'!$F$52+($B174-B$172)*'Dry Sesame'!$D$24)/$B174 -> 0.2760351786 | H174: =('Dry Sesame'!$G$52+($C174-C$172)*'Dry Sesame'!$D$24)/$C174 -> 0.2620416071 | I174: =IF($D174=0, "N/A", ('Dry Sesame'!$H$52+($D174-D$172)*'Dry Sesame'!$D$24)/$D174) -> 0.3180158929
A176: ='Dry Sorghum'!$A$3:$H$3 -> Dryland Sorghum
E177: BE Price to Cover Variable Costs | G177: BE Price to Cover Total Costs
A178: Yield | B178: ='Dry Sorghum'!C9 -> cwt | E178: Total | F178: Operator | G178: Total | H178: Operator | I178: Owner
A179: 0.75 | B179: ='Dry Sorghum'!$B$9*$A179 -> 13.5 | C179: ='Dry Sorghum'!$B$9*(1-'Dry Sorghum'!$E$9)*$A179 -> 10.125 | D179: ='Dry Sorghum'!$B$9*'Dry Sorghum'!$E$9*$A179 -> 3.375 | E179: =('Dry Sorghum'!$F$41+($B179-B$181)*'Dry Sorghum'!$D$25)/$B179 -> 9.43030787 | F179: =('Dry Sorghum'!$G$41+($C179-C$181)*'Dry Sorghum'!$D$25)/$C179 -> 10.81290664 | G179: =('Dry Sorghum'!$F$53+($B179-B$181)*'Dry Sorghum'!$D$25)/$B179 -> 17.07845602 | H179: =('Dry Sorghum'!$G$53+($C179-C$181)*'Dry Sorghum'!$D$25)/$C179 -> 15.7758696 | I179: =IF($D179=0, "N/A", ('Dry Sorghum'!$H$53+($D179-D$181)*'Dry Sorghum'!$D$25)/$D179) -> 20.98621528
A180: 0.9 | B180: ='Dry Sorghum'!$B$9*$A180 -> 16.2 | C180: ='Dry Sorghum'!$B$9*(1-'Dry Sorghum'!$E$9)*$A180 -> 12.15 | D180: ='Dry Sorghum'!$B$9*'Dry Sorghum'!$E$9*$A180 -> 4.05 | E180: =('Dry Sorghum'!$F$41+($B180-B$181)*'Dry Sorghum'!$D$25)/$B180 -> 7.925256559 | F180: =('Dry Sorghum'!$G$41+($C180-C$181)*'Dry Sorghum'!$D$25)/$C180 -> 9.077422197 | G180: =('Dry Sorghum'!$F$53+($B180-B$181)*'Dry Sorghum'!$D$25)/$B180 -> 14.29871335 | H180: =('Dry Sorghum'!$G$53+($C180-C$181)*'Dry Sorghum'!$D$25)/$C180 -> 13.21322467 | I180: =IF($D180=0, "N/A", ('Dry Sorghum'!$H$53+($D180-D$181)*'Dry Sorghum'!$D$25)/$D180) -> 17.5551794
A181: 1 | B181: ='Dry Sorghum'!$B$9*$A181 -> 18 | C181: ='Dry Sorghum'!$B$9*(1-'Dry Sorghum'!$E$9)*$A181 -> 13.5 | D181: ='Dry Sorghum'!$B$9*'Dry Sorghum'!$E$9*$A181 -> 4.5 | E181: =('Dry Sorghum'!$F$41+($B181-B$181)*'Dry Sorghum'!$D$25)/$B181 -> 7.172730903 | F181: =('Dry Sorghum'!$G$41+($C181-C$181)*'Dry Sorghum'!$D$25)/$C181 -> 8.209679977 | G181: =('Dry Sorghum'!$F$53+($B181-B$181)*'Dry Sorghum'!$D$25)/$B181 -> 12.90884201 | H181: =('Dry Sorghum'!$G$53+($C181-C$181)*'Dry Sorghum'!$D$25)/$C181 -> 11.9319022 | I181: =IF($D181=0, "N/A", ('Dry Sorghum'!$H$53+($D181-D$181)*'Dry Sorghum'!$D$25)/$D181) -> 15.83966146
A182: 1.1 | B182: ='Dry Sorghum'!$B$9*$A182 -> 19.8 | C182: ='Dry Sorghum'!$B$9*(1-'Dry Sorghum'!$E$9)*$A182 -> 14.85 | D182: ='Dry Sorghum'!$B$9*'Dry Sorghum'!$E$9*$A182 -> 4.95 | E182: =('Dry Sorghum'!$F$41+($B182-B$181)*'Dry Sorghum'!$D$25)/$B182 -> 6.557028093 | F182: =('Dry Sorghum'!$G$41+($C182-C$181)*'Dry Sorghum'!$D$25)/$C182 -> 7.49970907 | G182: =('Dry Sorghum'!$F$53+($B182-B$181)*'Dry Sorghum'!$D$25)/$B182 -> 11.77167456 | H182: =('Dry Sorghum'!$G$53+($C182-C$181)*'Dry Sorghum'!$D$25)/$C182 -> 10.88354745 | I182: =IF($D182=0, "N/A", ('Dry Sorghum'!$H$53+($D182-D$181)*'Dry Sorghum'!$D$25)/$D182) -> 14.43605587
A183: 1.25 | B183: ='Dry Sorghum'!$B$9*$A183 -> 22.5 | C183: ='Dry Sorghum'!$B$9*(1-'Dry Sorghum'!$E$9)*$A183 -> 16.875 | D183: ='Dry Sorghum'!$B$9*'Dry Sorghum'!$E$9*$A183 -> 5.625 | E183: =('Dry Sorghum'!$F$41+($B183-B$181)*'Dry Sorghum'!$D$25)/$B183 -> 5.818184722 | F183: =('Dry Sorghum'!$G$41+($C183-C$181)*'Dry Sorghum'!$D$25)/$C183 -> 6.647743981 | G183: =('Dry Sorghum'!$F$53+($B183-B$181)*'Dry Sorghum'!$D$25)/$B183 -> 10.40707361 | H183: =('Dry Sorghum'!$G$53+($C183-C$181)*'Dry Sorghum'!$D$25)/$C183 -> 9.625521759 | I183: =IF($D183=0, "N/A", ('Dry Sorghum'!$H$53+($D183-D$181)*'Dry Sorghum'!$D$25)/$D183) -> 12.75172917
A185: ='Dry Sunflowers-Oilseed'!$A$3:$H$3 -> Dryland Sunflowers-Oilseed
E186: BE Price to Cover Variable Costs | G186: BE Price to Cover Total Costs
A187: Yield | B187: ='Dry Sunflowers-Oilseed'!C9 -> lbs | E187: Total | F187: Operator | G187: Total | H187: Operator | I187: Owner
A188: 0.75 | B188: ='Dry Sunflowers-Oilseed'!$B$9*$A188 -> 750 | C188: ='Dry Sunflowers-Oilseed'!$B$9*(1-'Dry Sunflowers-Oilseed'!$E$9)*$A188 -> 562.5 | D188: ='Dry Sunflowers-Oilseed'!$B$9*'Dry Sunflowers-Oilseed'!$E$9*$A188 -> 187.5 | E188: =('Dry Sunflowers-Oilseed'!$F$40+($B188-B$190)*'Dry Sunflowers-Oilseed'!$D$24)/$B188 -> 0.0915128 | F188: =('Dry Sunflowers-Oilseed'!$G$40+($C188-C$190)*'Dry Sunflowers-Oilseed'!$D$24)/$C188 -> 0.1261818556 | G188: =('Dry Sunflowers-Oilseed'!$F$52+($B188-B$190)*'Dry Sunflowers-Oilseed'!$D$24)/$B188 -> 0.2291794667 | H188: =('Dry Sunflowers-Oilseed'!$G$52+($C188-C$190)*'Dry Sunflowers-Oilseed'!$D$24)/$C188 -> 0.2155151889 | I188: =IF($D188=0, "N/A", ('Dry Sunflowers-Oilseed'!$H$52+($D188-D$190)*'Dry Sunflowers-Oilseed'!$D$24)/$D188) -> 0.2701723
A189: 0.9 | B189: ='Dry Sunflowers-Oilseed'!$B$9*$A189 -> 900 | C189: ='Dry Sunflowers-Oilseed'!$B$9*(1-'Dry Sunflowers-Oilseed'!$E$9)*$A189 -> 675 | D189: ='Dry Sunflowers-Oilseed'!$B$9*'Dry Sunflowers-Oilseed'!$E$9*$A189 -> 225 | E189: =('Dry Sunflowers-Oilseed'!$F$40+($B189-B$190)*'Dry Sunflowers-Oilseed'!$D$24)/$B189 -> 0.1262606667 | F189: =('Dry Sunflowers-Oilseed'!$G$40+($C189-C$190)*'Dry Sunflowers-Oilseed'!$D$24)/$C189 -> 0.1551515463 | G189: =('Dry Sunflowers-Oilseed'!$F$52+($B189-B$190)*'Dry Sunflowers-Oilseed'!$D$24)/$B189 -> 0.2409828889 | H189: =('Dry Sunflowers-Oilseed'!$G$52+($C189-C$190)*'Dry Sunflowers-Oilseed'!$D$24)/$C189 -> 0.2295959907 | I189: =IF($D189=0, "N/A", ('Dry Sunflowers-Oilseed'!$H$52+($D189-D$190)*'Dry Sunflowers-Oilseed'!$D$24)/$D189) -> 0.2751435833
A190: 1 | B190: ='Dry Sunflowers-Oilseed'!$B$9*$A190 -> 1000 | C190: ='Dry Sunflowers-Oilseed'!$B$9*(1-'Dry Sunflowers-Oilseed'!$E$9)*$A190 -> 750 | D190: ='Dry Sunflowers-Oilseed'!$B$9*'Dry Sunflowers-Oilseed'!$E$9*$A190 -> 250 | E190: =('Dry Sunflowers-Oilseed'!$F$40+($B190-B$190)*'Dry Sunflowers-Oilseed'!$D$24)/$B190 -> 0.1436346 | F190: =('Dry Sunflowers-Oilseed'!$G$40+($C190-C$190)*'Dry Sunflowers-Oilseed'!$D$24)/$C190 -> 0.1696363917 | G190: =('Dry Sunflowers-Oilseed'!$F$52+($B190-B$190)*'Dry Sunflowers-Oilseed'!$D$24)/$B190 -> 0.2468846 | H190: =('Dry Sunflowers-Oilseed'!$G$52+($C190-C$190)*'Dry Sunflowers-Oilseed'!$D$24)/$C190 -> 0.2366363917 | I190: =IF($D190=0, "N/A", ('Dry Sunflowers-Oilseed'!$H$52+($D190-D$190)*'Dry Sunflowers-Oilseed'!$D$24)/$D190) -> 0.277629225
A191: 1.1 | B191: ='Dry Sunflowers-Oilseed'!$B$9*$A191 -> 1100 | C191: ='Dry Sunflowers-Oilseed'!$B$9*(1-'Dry Sunflowers-Oilseed'!$E$9)*$A191 -> 825 | D191: ='Dry Sunflowers-Oilseed'!$B$9*'Dry Sunflowers-Oilseed'!$E$9*$A191 -> 275 | E191: =('Dry Sunflowers-Oilseed'!$F$40+($B191-B$190)*'Dry Sunflowers-Oilseed'!$D$24)/$B191 -> 0.1578496364 | F191: =('Dry Sunflowers-Oilseed'!$G$40+($C191-C$190)*'Dry Sunflowers-Oilseed'!$D$24)/$C191 -> 0.1814876288 | G191: =('Dry Sunflowers-Oilseed'!$F$52+($B191-B$190)*'Dry Sunflowers-Oilseed'!$D$24)/$B191 -> 0.2517132727 | H191: =('Dry Sunflowers-Oilseed'!$G$52+($C191-C$190)*'Dry Sunflowers-Oilseed'!$D$24)/$C191 -> 0.2423967197 | I191: =IF($D191=0, "N/A", ('Dry Sunflowers-Oilseed'!$H$52+($D191-D$190)*'Dry Sunflowers-Oilseed'!$D$24)/$D191) -> 0.2796629318
A192: 1.25 | B192: ='Dry Sunflowers-Oilseed'!$B$9*$A192 -> 1250 | C192: ='Dry Sunflowers-Oilseed'!$B$9*(1-'Dry Sunflowers-Oilseed'!$E$9)*$A192 -> 937.5 | D192: ='Dry Sunflowers-Oilseed'!$B$9*'Dry Sunflowers-Oilseed'!$E$9*$A192 -> 312.5 | E192: =('Dry Sunflowers-Oilseed'!$F$40+($B192-B$190)*'Dry Sunflowers-Oilseed'!$D$24)/$B192 -> 0.17490768 | F192: =('Dry Sunflowers-Oilseed'!$G$40+($C192-C$190)*'Dry Sunflowers-Oilseed'!$D$24)/$C192 -> 0.1957091133 | G192: =('Dry Sunflowers-Oilseed'!$F$52+($B192-B$190)*'Dry Sunflowers-Oilseed'!$D$24)/$B192 -> 0.25750768 | H192: =('Dry Sunflowers-Oilseed'!$G$52+($C192-C$190)*'Dry Sunflowers-Oilseed'!$D$24)/$C192 -> 0.2493091133 | I192: =IF($D192=0, "N/A", ('Dry Sunflowers-Oilseed'!$H$52+($D192-D$190)*'Dry Sunflowers-Oilseed'!$D$24)/$D192) -> 0.28210338
A194: ='Dry Wheat'!$A$3:$H$3 -> Dryland Wheat
E195: BE Price to Cover Variable Costs | G195: BE Price to Cover Total Costs
A196: Yield | B196: ='Dry Wheat'!C9 -> bu | E196: Total | F196: Operator | G196: Total | H196: Operator | I196: Owner
A197: 0.75 | B197: ='Dry Wheat'!$B$9*$A197 -> 13.5 | C197: ='Dry Wheat'!$B$9*(1-'Dry Wheat'!$E$9)*$A197 -> 10.125 | D197: ='Dry Wheat'!$B$9*'Dry Wheat'!$E$9*$A197 -> 3.375 | E197: =('Dry Wheat'!$F$40+($B197-B$199)*'Dry Wheat'!$D$25)/$B197 -> 9.732446759 | F197: =('Dry Wheat'!$G$40+($C197-C$199)*'Dry Wheat'!$D$25)/$C197 -> 11.48004861 | G197: =('Dry Wheat'!$F$52+($B197-B$199)*'Dry Wheat'!$D$25)/$B197 -> 17.38059491 | H197: =('Dry Wheat'!$G$52+($C197-C$199)*'Dry Wheat'!$D$25)/$C197 -> 16.44301157 | I197: =IF($D197=0, "N/A", ('Dry Wheat'!$H$52+($D197-D$199)*'Dry Wheat'!$D$25)/$D197) -> 20.19334491
A198: 0.9 | B198: ='Dry Wheat'!$B$9*$A198 -> 16.2 | C198: ='Dry Wheat'!$B$9*(1-'Dry Wheat'!$E$9)*$A198 -> 12.15 | D198: ='Dry Wheat'!$B$9*'Dry Wheat'!$E$9*$A198 -> 4.05 | E198: =('Dry Wheat'!$F$40+($B198-B$199)*'Dry Wheat'!$D$25)/$B198 -> 8.133705633 | F198: =('Dry Wheat'!$G$40+($C198-C$199)*'Dry Wheat'!$D$25)/$C198 -> 9.590040509 | G198: =('Dry Wheat'!$F$52+($B198-B$199)*'Dry Wheat'!$D$25)/$B198 -> 14.50716242 | H198: =('Dry Wheat'!$G$52+($C198-C$199)*'Dry Wheat'!$D$25)/$C198 -> 13.72584298 | I198: =IF($D198=0, "N/A", ('Dry Wheat'!$H$52+($D198-D$199)*'Dry Wheat'!$D$25)/$D198) -> 16.85112076
A199: 1 | B199: ='Dry Wheat'!$B$9*$A199 -> 18 | C199: ='Dry Wheat'!$B$9*(1-'Dry Wheat'!$E$9)*$A199 -> 13.5 | D199: ='Dry Wheat'!$B$9*'Dry Wheat'!$E$9*$A199 -> 4.5 | E199: =('Dry Wheat'!$F$40+($B199-B$199)*'Dry Wheat'!$D$25)/$B199 -> 7.334335069 | F199: =('Dry Wheat'!$G$40+($C199-C$199)*'Dry Wheat'!$D$25)/$C199 -> 8.645036458 | G199: =('Dry Wheat'!$F$52+($B199-B$199)*'Dry Wheat'!$D$25)/$B199 -> 13.07044618 | H199: =('Dry Wheat'!$G$52+($C199-C$199)*'Dry Wheat'!$D$25)/$C199 -> 12.36725868 | I199: =IF($D199=0, "N/A", ('Dry Wheat'!$H$52+($D199-D$199)*'Dry Wheat'!$D$25)/$D199) -> 15.18000868
A200: 1.1 | B200: ='Dry Wheat'!$B$9*$A200 -> 19.8 | C200: ='Dry Wheat'!$B$9*(1-'Dry Wheat'!$E$9)*$A200 -> 14.85 | D200: ='Dry Wheat'!$B$9*'Dry Wheat'!$E$9*$A200 -> 4.95 | E200: =('Dry Wheat'!$F$40+($B200-B$199)*'Dry Wheat'!$D$25)/$B200 -> 6.680304609 | F200: =('Dry Wheat'!$G$40+($C200-C$199)*'Dry Wheat'!$D$25)/$C200 -> 7.871851326 | G200: =('Dry Wheat'!$F$52+($B200-B$199)*'Dry Wheat'!$D$25)/$B200 -> 11.89495107 | H200: =('Dry Wheat'!$G$52+($C200-C$199)*'Dry Wheat'!$D$25)/$C200 -> 11.25568971 | I200: =IF($D200=0, "N/A", ('Dry Wheat'!$H$52+($D200-D$199)*'Dry Wheat'!$D$25)/$D200) -> 13.81273516
A201: 1.25 | B201: ='Dry Wheat'!$B$9*$A201 -> 22.5 | C201: ='Dry Wheat'!$B$9*(1-'Dry Wheat'!$E$9)*$A201 -> 16.875 | D201: ='Dry Wheat'!$B$9*'Dry Wheat'!$E$9*$A201 -> 5.625 | E201: =('Dry Wheat'!$F$40+($B201-B$199)*'Dry Wheat'!$D$25)/$B201 -> 5.895468056 | F201: =('Dry Wheat'!$G$40+($C201-C$199)*'Dry Wheat'!$D$25)/$C201 -> 6.944029167 | G201: =('Dry Wheat'!$F$52+($B201-B$199)*'Dry Wheat'!$D$25)/$B201 -> 10.48435694 | H201: =('Dry Wheat'!$G$52+($C201-C$199)*'Dry Wheat'!$D$25)/$C201 -> 9.921806944 | I201: =IF($D201=0, "N/A", ('Dry Wheat'!$H$52+($D201-D$199)*'Dry Wheat'!$D$25)/$D201) -> 12.17200694

Sheet Comparative Returns
A2: Comparative Returns
A3: Projected for 2016
B5: Total Revenue | E5: Total Variable Costs | H5: Return Over Variable Costs | K5: Total Costs | O5: Return Over Variable Costs per Acre-Inch Applied | R5: Return Over Total Costs | W5: Break-Even Yield to Cover Total Costs
B6: Total | C6: Operator | D6: Owner | E6: Total | F6: Operator | G6: Owner | H6: Total | I6: Operator | J6: Owner | K6: Total | L6: Operator | M6: Owner | N6: ac-in | O6: Total | P6: Operator | Q6: Owner | R6: Total | S6: Operator | T6: Owner | U6: Price | V6: unit | W6: Total | X6: Operator | Y6: Owner
A7: ='Irr Alfalfa'!$A$3:$H$3 -> Irrigated Alfalfa | B7: ='Irr Alfalfa'!F$11 -> 1140 | C7: ='Irr Alfalfa'!G$11 -> 855 | D7: ='Irr Alfalfa'!H$11 -> 285 | E7: ='Irr Alfalfa'!F$47 -> 789.0841658 | F7: ='Irr Alfalfa'!G$47 -> 668.7343744 | G7: ='Irr Alfalfa'!H$47 -> 120.3497915 | H7: =B7-E7 -> 350.9158342 | I7: =C7-F7 -> 186.2656256 | J7: =D7-G7 -> 164.6502085 | K7: ='Irr Alfalfa'!F$62 -> 1076.334166 | L7: ='Irr Alfalfa'!G$62 -> 816.9843744 | M7: ='Irr Alfalfa'!H$62 -> 259.3497915 | N7: ='Irr Alfalfa'!B36 -> 24 | O7: =IF($N7=0,"-",H7/$N7) -> 14.62149309 | P7: =IF($N7=0,"-",I7/$N7) -> 7.761067735 | Q7: =IF($N7=0,"-",J7/$N7) -> 6.860425356 | R7: =B7-K7 -> 63.66583419 | S7: =C7-L7 -> 38.01562564 | T7: =D7-M7 -> 25.65020855 | U7: ='Irr Alfalfa'!$D$9 -> 190 | V7: ='Irr Alfalfa'!$C$9 -> tons | W7: =IF($U7=0, 0, K7/$U7) -> 5.664916662 | X7: =IF($U7=0, 0, IF('Irr Alfalfa'!$E$9=0,0,L7/$U7/(1-'Irr Alfalfa'!$E$9))) -> 5.73322368 | Y7: =IF($U7=0, 0, IF('Irr Alfalfa'!$E$9=0,0,M7/$U7/('Irr Alfalfa'!$E$9))) -> 5.45999561
A8: ='Irr Blackeyes'!$A$3:$H$3 -> Irrigated Blackeyed Peas | B8: ='Irr Blackeyes'!F$11 -> 647.5 | C8: ='Irr Blackeyes'!G$11 -> 485.625 | D8: ='Irr Blackeyes'!H$11 -> 161.875 | E8: ='Irr Blackeyes'!F$46 -> 271.71755 | F8: ='Irr Blackeyes'!G$46 -> 243.014425 | G8: ='Irr Blackeyes'!H$46 -> 28.703125 | H8: =B8-E8 -> 375.78245 | I8: =C8-F8 -> 242.610575 | J8: =D8-G8 -> 133.171875 | K8: ='Irr Blackeyes'!F$60 -> 460.96755 | L8: ='Irr Blackeyes'!G$60 -> 293.264425 | M8: ='Irr Blackeyes'!H$60 -> 167.703125 | N8: ='Irr Blackeyes'!B39 -> 1 | O8: =IF($N8=0,"-",H8/$N8) -> 375.78245 | P8: =IF($N8=0,"-",I8/$N8) -> 242.610575 | Q8: =IF($N8=0,"-",J8/$N8) -> 133.171875 | R8: =B8-K8 -> 186.53245 | S8: =C8-L8 -> 192.360575 | T8: =D8-M8 -> -5.828125 | U8: ='Irr Blackeyes'!$D$9 -> 0.35 | V8: ='Irr Blackeyes'!$C$9 -> lbs | W8: =IF($U8=0, 0, K8/$U8) -> 1317.050143 | X8: =IF($U8=0, 0, IF('Irr Blackeyes'!$E$9=0,0,L8/$U8/(1-'Irr Blackeyes'!$E$9))) -> 1117.19781 | Y8: =IF($U8=0, 0, IF('Irr Blackeyes'!$E$9=0,0,M8/$U8/('Irr Blackeyes'!$E$9))) -> 1916.607143
A9: ='Irr Corn'!$A$3:$H$3 -> Irrigated Corn | B9: ='Irr Corn'!F$11 -> 840 | C9: ='Irr Corn'!G$11 -> 630 | D9: ='Irr Corn'!H$11 -> 210 | E9: ='Irr Corn'!F$46 -> 836.5226334 | F9: ='Irr Corn'!G$46 -> 742.8512876 | G9: ='Irr Corn'!H$46 -> 93.67134586 | H9: 3.477366557 | I9: -112.8512876 | J9: 116.3286541 | K9: ='Irr Corn'!F$60 -> 1053.772633 | L9: ='Irr Corn'!G$60 -> 793.1012876 | M9: ='Irr Corn'!H$60 -> 260.6713459 | N9: ='Irr Corn'!B35 -> 24 | O9: 0.1448902732 | P9: -4.702136983 | Q9: 4.847027256 | R9: -213.7726334 | S9: -163.1012876 | T9: -50.67134586 | U9: ='Irr Corn'!$D$9 -> 4 | V9: ='Irr Corn'!$C$9 -> bu | W9: =IF($U9=0, 0, K9/$U9) -> 263.4431584 | X9: =IF($U9=0, 0, IF('Irr Corn'!$E$9=0,0,L9/$U9/(1-'Irr Corn'!$E$9))) -> 264.3670959 | Y9: =IF($U9=0, 0, IF('Irr Corn'!$E$9=0,0,M9/$U9/('Irr Corn'!$E$9))) -> 260.6713459
A10: ='Irr Corn Silage'!$A$3:$H$3 -> Irrigated Corn Silage | B10: ='Irr Corn Silage'!F$11 -> 988 | C10: ='Irr Corn Silage'!G$11 -> 741 | D10: ='Irr Corn Silage'!H$11 -> 247 | E10: ='Irr Corn Silage'!F$46 -> 932.0334856 | F10: ='Irr Corn Silage'!G$46 -> 804.9647767 | G10: ='Irr Corn Silage'!H$46 -> 127.0687089 | H10: 55.96651439 | I10: -63.9647767 | J10: 119.9312911 | K10: ='Irr Corn Silage'!F$60 -> 1149.283486 | L10: ='Irr Corn Silage'!G$60 -> 855.2147767 | M10: ='Irr Corn Silage'!H$60 -> 294.0687089 | N10: ='Irr Corn Silage'!B35 -> 22 | O10: 2.543932472 | P10: -2.90748985 | Q10: 5.451422323 | R10: -161.2834856 | S10: -114.2147767 | T10: -47.0687089 | U10: ='Irr Corn Silage'!$D$9 -> 38 | V10: ='Irr Corn Silage'!$C$9 -> tons | W10: 30.24430225 | X10: =IF($U10=0, 0, IF('Irr Corn Silage'!$E$9=0,0,L10/$U10/(1-'Irr Corn Silage'!$E$9))) -> 30.00753602 | Y10: =IF($U10=0, 0, IF('Irr Corn Silage'!$E$9=0,0,M10/$U10/('Irr Corn Silage'!$E$9))) -> 30.95460094
A11: ='Irr Cotton Drip'!$A$3:$H$3 -> Irrigated Cotton - Drip | B11: ='Irr Cotton Drip'!F$12 -> 1298.5 | C11: ='Irr Cotton Drip'!G$12 -> 869.995 | D11: ='Irr Cotton Drip'!H$12 -> 428.505 | E11: ='Irr Cotton Drip'!F$54 -> 1034.678901 | F11: ='Irr Cotton Drip'!G$54 -> 892.7812234 | G11: ='Irr Cotton Drip'!H$54 -> 141.8976776 | H11: =B11-E11 -> 263.8210991 | I11: =C11-F11 -> -22.78622337 | J11: =D11-G11 -> 286.6073224 | K11: ='Irr Cotton Drip'!F$68 -> 1271.928901 | L11: ='Irr Cotton Drip'!G$68 -> 943.0312234 | M11: ='Irr Cotton Drip'!H$68 -> 328.8976776 | N11: ='Irr Cotton Drip'!B42 -> 2 | O11: =IF($N11=0,"-",H11/$N11) -> 131.9105495 | P11: =IF($N11=0,"-",I11/$N11) -> -11.39311168 | Q11: =IF($N11=0,"-",J11/$N11) -> 143.3036612 | R11: =B11-K11 -> 26.57109908 | S11: =C11-L11 -> -73.03622337 | T11: =D11-M11 -> 99.60732245 | U11: ='Irr Cotton Drip'!$D$9 -> 0.6 | V11: ='Irr Cotton Drip'!$C$9 -> lbs | W11: =IF($U11=0, 0, K11/($U11+Cottonseed_Price/2000*'2016 Universal Input Prices'!$C$40/500)) -> 1714.189893 | X11: =IF($U11=0, 0, IF('Irr Cotton Drip'!$E$9=0,0,L11/($U11+Cottonseed_Price/2000*'2016 Universal Input Prices'!$C$40/500)/(1-'Irr Cotton Drip'!$E$9))) -> 1896.912788 | Y11: =IF($U11=0, 0, IF('Irr Cotton Drip'!$E$9=0,0,M11/($U11+Cottonseed_Price/2000*'2016 Universal Input Prices'!$C$40/500)/('Irr Cotton Drip'!$E$9))) -> 1343.207047
A12: ='Irr Cotton Pivot'!$A$3:$H$3 -> Irrigated Cotton - Pivot | B12: ='Irr Cotton Pivot'!F$12 -> 927.5 | C12: ='Irr Cotton Pivot'!G$12 -> 695.625 | D12: ='Irr Cotton Pivot'!H$12 -> 231.875 | E12: ='Irr Cotton Pivot'!F$53 -> 771.1601864 | F12: ='Irr Cotton Pivot'!G$53 -> 656.4561273 | G12: ='Irr Cotton Pivot'!H$53 -> 114.7040591 | H12: 156.3398136 | I12: 39.16887272 | J12: 117.1709409 | K12: ='Irr Cotton Pivot'!F$67 -> 960.4101864 | L12: ='Irr Cotton Pivot'!G$67 -> 706.7061273 | M12: ='Irr Cotton Pivot'!H$67 -> 253.7040591 | N12: ='Irr Cotton Pivot'!B42 -> 12 | O12: 13.0283178 | P12: 3.264072727 | Q12: 9.764245076 | R12: -32.91018637 | S12: -11.08112728 | T12: -21.82905909 | U12: ='Irr Cotton Pivot'!$D$9 -> 0.6 | V12: ='Irr Cotton Pivot'!$C$9 -> lbs | W12: =IF($U12=0, 0, K12/($U12+Cottonseed_Price/2000*'2016 Universal Input Prices'!$C$40/500)) -> 1294.353351 | X12: =IF($U12=0, 0, IF('Irr Cotton Pivot'!$E$9=0,0,L12/($U12+Cottonseed_Price/2000*'2016 Universal Input Prices'!$C$40/500)/(1-'Irr Cotton Pivot'!$E$9))) -> 1269.912178 | Y12: =IF($U12=0, 0, IF('Irr Cotton Pivot'!$E$9=0,0,M12/($U12+Cottonseed_Price/2000*'2016 Universal Input Prices'!$C$40/500)/('Irr Cotton Pivot'!$E$9))) -> 1367.676868
A13: ='Irr Guar'!$A$3:$H$3 -> Irrigated Guar | B13: ='Irr Guar'!F$11 -> 180 | C13: ='Irr Guar'!G$11 -> 135 | D13: ='Irr Guar'!H$11 -> 45 | E13: ='Irr Guar'!F$47 -> 176.5728192 | F13: ='Irr Guar'!G$47 -> 145.7591894 | G13: ='Irr Guar'!H$47 -> 30.81362981 | H13: =B13-E13 -> 3.427180769 | I13: =C13-F13 -> -10.75918942 | J13: =D13-G13 -> 14.18637019 | K13: ='Irr Guar'!F$61 -> 368.8228192 | L13: ='Irr Guar'!G$61 -> 196.0091894 | M13: ='Irr Guar'!H$61 -> 172.8136298 | N13: ='Irr Guar'!B36 -> 4 | O13: =IF($N13=0,"-",H13/$N13) -> 0.8567951923 | P13: =IF($N13=0,"-",I13/$N13) -> -2.689797356 | Q13: =IF($N13=0,"-",J13/$N13) -> 3.546592548 | R13: =B13-K13 -> -188.8228192 | S13: =C13-L13 -> -61.00918942 | T13: =D13-M13 -> -127.8136298 | U13: ='Irr Guar'!$D$9 -> 0.15 | V13: ='Irr Guar'!$C$9 -> lb | W13: =IF($U13=0, 0, K13/$U13) -> 2458.818795 | X13: =IF($U13=0, 0, IF('Irr Guar'!$E$9=0,0,L13/$U13/(1-'Irr Guar'!$E$9))) -> 1742.303906 | Y13: =IF($U13=0, 0, IF('Irr Guar'!$E$9=0,0,M13/$U13/('Irr Guar'!$E$9))) -> 4608.363462
A14: ='Irr Peanuts'!$A$3:$H$3 -> Irrigated Peanuts | B14: ='Irr Peanuts'!F$11 -> 900 | C14: ='Irr Peanuts'!G$11 -> 675 | D14: ='Irr Peanuts'!H$11 -> 225 | E14: ='Irr Peanuts'!F$50 -> 917.0763824 | F14: ='Irr Peanuts'!G$50 -> 799.1624118 | G14: ='Irr Peanuts'!H$50 -> 117.9139706 | H14: -17.07638235 | I14: -124.1624118 | J14: 107.0860294 | K14: ='Irr Peanuts'!F$64 -> 1134.326382 | L14: ='Irr Peanuts'!G$64 -> 849.4124118 | M14: ='Irr Peanuts'!H$64 -> 284.9139706 | N14: ='Irr Peanuts'!B39 -> 24 | O14: -0.7115159314 | P14: -5.173433824 | Q14: 4.461917892 | R14: -234.3263824 | S14: -174.4124118 | T14: -59.91397059 | U14: ='Irr Peanuts'!$D$9 -> 400 | V14: ='Irr Peanuts'!$C$9 -> tons | W14: 2.835815956 | X14: =IF($U14=0, 0, IF('Irr Peanuts'!$E$9=0,0,L14/$U14/(1-'Irr Peanuts'!$E$9))) -> 2.831374706 | Y14: =IF($U14=0, 0, IF('Irr Peanuts'!$E$9=0,0,M14/$U14/('Irr Peanuts'!$E$9))) -> 2.849139706
A15: ='Irr Sesame'!$A$3:$H$3 -> Irrigated Sesame | B15: ='Irr Sesame'!F$12 -> 570 | C15: ='Irr Sesame'!G$12 -> 427.5 | D15: ='Irr Sesame'!H$12 -> 142.5 | E15: ='Irr Sesame'!F$47 -> 325.498561 | F15: ='Irr Sesame'!G$47 -> 294.2617458 | G15: ='Irr Sesame'!H$47 -> 31.23681526 | H15: =B15-E15 -> 244.501439 | I15: =C15-F15 -> 133.2382542 | J15: =D15-G15 -> 111.2631847 | K15: ='Irr Sesame'!F$61 -> 514.748561 | L15: ='Irr Sesame'!G$61 -> 344.5117458 | M15: ='Irr Sesame'!H$61 -> 170.2368153 | N15: ='Irr Sesame'!B36 -> 11 | O15: =IF($N15=0,"-",H15/$N15) -> 22.22740354 | P15: =IF($N15=0,"-",I15/$N15) -> 12.11256857 | Q15: =IF($N15=0,"-",J15/$N15) -> 10.11483498 | R15: =B15-K15 -> 55.25143897 | S15: =C15-L15 -> 82.98825423 | T15: =D15-M15 -> -27.73681526 | U15: ='Irr Sesame'!$D$9 -> 0.38 | V15: ='Irr Sesame'!$C$9 -> lbs | W15: =IF($U15=0, 0, K15/$U15) -> 1354.601476 | X15: =IF($U15=0, 0, IF('Irr Sesame'!$E$9=0,0,L15/$U15/(1-'Irr Sesame'!$E$9))) -> 1208.813143 | Y15: =IF($U15=0, 0, IF('Irr Sesame'!$E$9=0,0,M15/$U15/('Irr Sesame'!$E$9))) -> 1791.966476
A16: ='Irr Sorghum'!$A$3:$H$3 -> Irrigated Sorghum | B16: ='Irr Sorghum'!F$12 -> 376.75 | C16: ='Irr Sorghum'!G$12 -> 282.5625 | D16: ='Irr Sorghum'!H$12 -> 94.1875 | E16: ='Irr Sorghum'!F$46 -> 382.6807746 | F16: ='Irr Sorghum'!G$46 -> 328.7674622 | G16: ='Irr Sorghum'!H$46 -> 53.91331241 | H16: -5.930774641 | I16: -46.20496223 | J16: 40.27418759 | K16: ='Irr Sorghum'!F$60 -> 571.9307746 | L16: ='Irr Sorghum'!G$60 -> 379.0174622 | M16: ='Irr Sorghum'!H$60 -> 192.9133124 | N16: ='Irr Sorghum'!B35 -> 9 | O16: -0.6589749601 | P16: -5.133884692 | Q16: 4.474909732 | R16: -195.1807746 | S16: -96.45496223 | T16: -98.72581241 | U16: ='Irr Sorghum'!$D$9 -> 6.85 | V16: ='Irr Sorghum'!$C$9 -> cwt | W16: =IF($U16=0, 0, (K16-'Irr Sorghum'!$F$10)/$U16) -> 83.49354374 | X16: =IF($U16=0, 0, IF('Irr Sorghum'!$E$9=0,0,(L16-'Irr Sorghum'!$G$10)/$U16/(1-'Irr Sorghum'!$E$9))) -> 73.77468851 | Y16: =IF($U16=0, 0, IF('Irr Sorghum'!$E$9=0,0,(M16-'Irr Sorghum'!$H$10)/$U16/('Irr Sorghum'!$E$9))) -> 112.6501094
A17: ='Irr Sorghum Silage'!$A$3:$H$3 -> Irrigated Sorghum Silage | B17: ='Irr Sorghum Silage'!F$11 -> 816 | C17: ='Irr Sorghum Silage'!G$11 -> 612 | D17: ='Irr Sorghum Silage'!H$11 -> 204 | E17: ='Irr Sorghum Silage'!F$45 -> 665.6327696 | F17: ='Irr Sorghum Silage'!G$45 -> 572.9265048 | G17: ='Irr Sorghum Silage'!H$45 -> 92.7062648 | H17: 150.3672304 | I17: 39.07349524 | J17: 111.2937352 | K17: ='Irr Sorghum Silage'!F$59 -> 854.8827696 | L17: ='Irr Sorghum Silage'!G$59 -> 623.1765048 | M17: ='Irr Sorghum Silage'!H$59 -> 231.7062648 | N17: ='Irr Sorghum Silage'!B34 -> 16 | O17: 9.397951903 | P17: 2.442093453 | Q17: 6.95585845 | R17: -38.88276956 | S17: -11.17650476 | T17: -27.7062648 | U17: ='Irr Sorghum Silage'!$D$9 -> 34 | V17: ='Irr Sorghum Silage'!$C$9 -> tons | W17: 25.14361087 | X17: =IF($U17=0, 0, IF('Irr Sorghum Silage'!$E$9=0,0,L17/$U17/(1-'Irr Sorghum Silage'!$E$9))) -> 24.4382943 | Y17: =IF($U17=0, 0, IF('Irr Sorghum Silage'!$E$9=0,0,M17/$U17/('Irr Sorghum Silage'!$E$9))) -> 27.25956056
A18: ='Irr Soybeans'!$A$3:$H$3 -> Irrigated Soybeans | B18: ='Irr Soybeans'!F$11 -> 340 | C18: ='Irr Soybeans'!G$11 -> 255 | D18: ='Irr Soybeans'!H$11 -> 85 | E18: ='Irr Soybeans'!F$48 -> 455.6825066 | F18: ='Irr Soybeans'!G$48 -> 411.6234112 | G18: ='Irr Soybeans'!H$48 -> 44.0590954 | H18: -115.6825066 | I18: -156.6234112 | J18: 40.9409046 | K18: ='Irr Soybeans'!F$62 -> 644.9325066 | L18: ='Irr Soybeans'!G$62 -> 461.8734112 | M18: ='Irr Soybeans'!H$62 -> 183.0590954 | N18: ='Irr Soybeans'!B37 -> 15 | O18: -7.712167108 | P18: -10.44156075 | Q18: 2.72939364 | R18: -304.9325066 | S18: -206.8734112 | T18: -98.0590954 | U18: ='Irr Soybeans'!$D$9 -> 8.5 | V18: ='Irr Soybeans'!$C$9 -> bu | W18: 75.87441254 | X18: =IF($U18=0, 0, IF('Irr Soybeans'!$E$9=0,0,L18/$U18/(1-'Irr Soybeans'!$E$9))) -> 72.45073117 | Y18: =IF($U18=0, 0, IF('Irr Soybeans'!$E$9=0,0,M18/$U18/('Irr Soybeans'!$E$9))) -> 86.14545666
A19: ='Irr Sunflowers-Confection'!$A$3:$H$3 -> Irrigated Sunflowers-Confectionary | B19: ='Irr Sunflowers-Confection'!F$12 -> 426.72 | C19: ='Irr Sunflowers-Confection'!G$12 -> 320.04 | D19: ='Irr Sunflowers-Confection'!H$12 -> 106.68 | E19: ='Irr Sunflowers-Confection'!F$47 -> 335.6657298 | F19: ='Irr Sunflowers-Confection'!G$47 -> 289.7969223 | G19: ='Irr Sunflowers-Confection'!H$47 -> 45.86880744 | H19: 91.05427022 | I19: 30.24307767 | J19: 60.81119256 | K19: ='Irr Sunflowers-Confection'!F$61 -> 524.9157298 | L19: ='Irr Sunflowers-Confection'!G$61 -> 340.0469223 | M19: ='Irr Sunflowers-Confection'!H$61 -> 184.8688074 | N19: ='Irr Sunflowers-Confection'!B36 -> 8 | O19: 11.38178378 | P19: 3.780384708 | Q19: 7.601399069 | R19: -98.19572978 | S19: -20.00692233 | T19: -78.18880744 | U19: ='Irr Sunflowers-Confection'!$D$9 -> 0.21336 | V19: ='Irr Sunflowers-Confection'!$C$9 -> lbs | W19: 2460.234954 | X19: =IF($U19=0, 0, IF('Irr Sunflowers-Confection'!$E$9=0,0,L19/$U19/(1-'Irr Sunflowers-Confection'!$E$9))) -> 2125.027636 | Y19: =IF($U19=0, 0, IF('Irr Sunflowers-Confection'!$E$9=0,0,M19/$U19/('Irr Sunflowers-Confection'!$E$9))) -> 3465.856907
A20: ='Irr Sunflowers-Oilseed'!$A$3:$H$3 -> Irrigated Sunflowers-Oilseed | B20: ='Irr Sunflowers-Oilseed'!F$11 -> 280 | C20: ='Irr Sunflowers-Oilseed'!G$11 -> 210 | D20: ='Irr Sunflowers-Oilseed'!H$11 -> 70 | E20: ='Irr Sunflowers-Oilseed'!F$46 -> 318.5055798 | F20: ='Irr Sunflowers-Oilseed'!G$46 -> 285.1222786 | G20: ='Irr Sunflowers-Oilseed'!H$46 -> 33.38330119 | H20: -38.50557978 | I20: -75.12227858 | J20: 36.61669881 | K20: ='Irr Sunflowers-Oilseed'!F$60 -> 507.7555798 | L20: ='Irr Sunflowers-Oilseed'!G$60 -> 335.3722786 | M20: ='Irr Sunflowers-Oilseed'!H$60 -> 172.3833012 | N20: ='Irr Sunflowers-Oilseed'!B35 -> 8 | O20: -4.813197472 | P20: -9.390284823 | Q20: 4.577087351 | R20: -227.7555798 | S20: -125.3722786 | T20: -102.3833012 | U20: ='Irr Sunflowers-Oilseed'!$D$9 -> 0.14 | V20: ='Irr Sunflowers-Oilseed'!$C$9 -> lbs | W20: 3626.82557 | X20: =IF($U20=0, 0, IF('Irr Sunflowers-Oilseed'!$E$9=0,0,L20/$U20/(1-'Irr Sunflowers-Oilseed'!$E$9))) -> 3194.021701 | Y20: =IF($U20=0, 0, IF('Irr Sunflowers-Oilseed'!$E$9=0,0,M20/$U20/('Irr Sunflowers-Oilseed'!$E$9))) -> 4925.237177
A21: ='Irr Wheat'!$A$3:$H$3 -> Irrigated Wheat | B21: ='Irr Wheat'!F$12 -> 346.2 | C21: ='Irr Wheat'!G$12 -> 259.65 | D21: ='Irr Wheat'!H$12 -> 86.55 | E21: ='Irr Wheat'!F$45 -> 449.5165082 | F21: ='Irr Wheat'!G$45 -> 394.9057562 | G21: ='Irr Wheat'!H$45 -> 54.61075205 | H21: -103.3165082 | I21: -135.2557562 | J21: 31.93924795 | K21: ='Irr Wheat'!F$59 -> 638.7665082 | L21: ='Irr Wheat'!G$59 -> 445.1557562 | M21: ='Irr Wheat'!H$59 -> 193.6107521 | N21: ='Irr Wheat'!B34 -> 14 | O21: -7.379750586 | P21: -9.66112544 | Q21: 2.281374853 | R21: -292.5665082 | S21: -185.5057562 | T21: -107.0607521 | U21: ='Irr Wheat'!$D$9 -> 4.75 | V21: ='Irr Wheat'!$C$9 -> bu | W21: =IF($U21=0, 0, (K21-'Irr Wheat'!$F$10)/$U21) -> 121.5929491 | X21: =IF($U21=0, 0, IF('Irr Wheat'!$E$9=0,0,(L21-'Irr Wheat'!$G$10)/$U21/(1-'Irr Wheat'!$E$9))) -> 112.0717912 | Y21: =IF($U21=0, 0, IF('Irr Wheat'!$E$9=0,0,(M21-'Irr Wheat'!$H$10)/$U21/('Irr Wheat'!$E$9))) -> 150.1564228
A22: ='Dry Cotton Conventional'!$A$3:H3 -> Dryland Cotton - Conventional | B22: ='Dry Cotton Conventional'!F$12 -> 259.7 | C22: ='Dry Cotton Conventional'!G$12 -> 194.775 | D22: ='Dry Cotton Conventional'!H$12 -> 64.925 | E22: ='Dry Cotton Conventional'!F$46 -> 286.2363872 | F22: ='Dry Cotton Conventional'!G$46 -> 255.5794279 | G22: ='Dry Cotton Conventional'!H$46 -> 30.65695931 | H22: =B22-E22 -> -26.53638725 | I22: =C22-F22 -> -60.80442793 | J22: =D22-G22 -> 34.26804069 | K22: ='Dry Cotton Conventional'!F$58 -> 389.4863872 | L22: ='Dry Cotton Conventional'!G$58 -> 305.8294279 | M22: ='Dry Cotton Conventional'!H$58 -> 83.65695931 | R22: =B22-K22 -> -129.7863872 | S22: =C22-L22 -> -111.0544279 | T22: =D22-M22 -> -18.73195931 | U22: ='Dry Cotton Conventional'!$D$9 -> 0.6 | V22: ='Dry Cotton Conventional'!$C$9 -> lbs | W22: =IF($U22=0, 0, K22/($U22+Cottonseed_Price/2000*'2016 Universal Input Prices'!$C$40/500)) -> 524.9142685 | X22: =IF($U22=0, 0, IF('Dry Cotton Conventional'!$E$9=0,0,L22/($U22+Cottonseed_Price/2000*'2016 Universal Input Prices'!$C$40/500)/(1-'Dry Cotton Conventional'!$E$9))) -> 549.5587205 | Y22: =IF($U22=0, 0, IF('Dry Cotton Conventional'!$E$9=0,0,M22/($U22+Cottonseed_Price/2000*'2016 Universal Input Prices'!$C$40/500)/('Dry Cotton Conventional'!$E$9))) -> 450.9809127
A23: ='Dry Cotton HT'!$A$3:$H$3 -> Dryland Cotton - Herbicide Tolerant | B23: ='Dry Cotton HT'!F$12 -> 259.7 | C23: ='Dry Cotton HT'!G$12 -> 194.775 | D23: ='Dry Cotton HT'!H$12 -> 64.925 | E23: ='Dry Cotton HT'!F$47 -> 275.3874694 | F23: ='Dry Cotton HT'!G$47 -> 237.4171646 | G23: ='Dry Cotton HT'!H$47 -> 37.97030485 | H23: -15.68746941 | I23: -42.64216456 | J23: 26.95469515 | K23: ='Dry Cotton HT'!F$59 -> 378.6374694 | L23: ='Dry Cotton HT'!G$59 -> 287.6671646 | M23: ='Dry Cotton HT'!H$59 -> 90.97030485 | R23: -118.9374694 | S23: -92.89216456 | T23: -26.04530485 | U23: ='Dry Cotton HT'!$D$9 -> 0.6 | V23: ='Dry Cotton HT'!$C$9 -> lbs | W23: =IF($U23=0, 0, K23/($U23+Cottonseed_Price/2000*'2016 Universal Input Prices'!$C$40/500)) -> 510.2930855 | X23: =IF($U23=0, 0, IF('Dry Cotton HT'!$E$9=0,0,L23/($U23+Cottonseed_Price/2000*'2016 Universal Input Prices'!$C$40/500)/(1-'Dry Cotton HT'!$E$9))) -> 516.9221286 | Y23: =IF($U23=0, 0, IF('Dry Cotton HT'!$E$9=0,0,M23/($U23+Cottonseed_Price/2000*'2016 Universal Input Prices'!$C$40/500)/('Dry Cotton HT'!$E$9))) -> 490.4059561
A24: ='Dry Guar'!$A$3:$H$3 -> Dryland Guar | B24: ='Dry Guar'!F$11 -> 90 | C24: ='Dry Guar'!G$11 -> 67.5 | D24: ='Dry Guar'!H$11 -> 22.5 | E24: ='Dry Guar'!F$41 -> 80.30339615 | F24: ='Dry Guar'!G$41 -> 69.55618462 | G24: ='Dry Guar'!H$41 -> 10.74721154 | H24: 9.696603846 | I24: -2.056184615 | J24: 11.75278846 | K24: ='Dry Guar'!F$53 -> 183.5533962 | L24: ='Dry Guar'!G$53 -> 119.8061846 | M24: ='Dry Guar'!H$53 -> 63.74721154 | R24: -93.55339615 | S24: -52.30618462 | T24: -41.24721154 | U24: ='Dry Guar'!$D$9 -> 0.15 | V24: ='Dry Guar'!$C$9 -> lbs | W24: =IF($U24=0, 0, K24/$U24) -> 1223.689308 | X24: =IF($U24=0, 0, IF('Dry Sesame'!$E$9=0,0,L24/$U24/(1-'Dry Sesame'!$E$9))) -> 1064.943863 | Y24: =IF($U24=0, 0, IF('Dry Sesame'!$E$9=0,0,M24/$U24/('Dry Sesame'!$E$9))) -> 1699.925641
A25: ='Dry Sesame'!$A$3:$H$3 -> Dryland Sesame | B25: ='Dry Sesame'!F$11 -> 231 | C25: ='Dry Sesame'!G$11 -> 173.25 | D25: ='Dry Sesame'!H$11 -> 57.75 | E25: ='Dry Sesame'!F$40 -> 117.2807813 | F25: ='Dry Sesame'!G$40 -> 105.9648047 | G25: ='Dry Sesame'!H$40 -> 11.31597656 | H25: =B25-E25 -> 113.7192187 | I25: =C25-F25 -> 67.28519531 | J25: =D25-G25 -> 46.43402344 | K25: ='Dry Sesame'!F$52 -> 220.5307813 | L25: ='Dry Sesame'!G$52 -> 156.2148047 | M25: ='Dry Sesame'!H$52 -> 64.31597656 | R25: =B25-K25 -> 10.46921875 | S25: =C25-L25 -> 17.03519531 | T25: =D25-M25 -> -6.565976562 | U25: ='Dry Guar'!$D$9 -> 0.15 | V25: ='Dry Sesame'!$C$9 -> lbs | W25: =IF($U25=0, 0, K25/$U25) -> 1470.205208 | X25: =IF($U25=0, 0, IF('Dry Guar'!$E$9=0,0,L25/$U25/(1-'Dry Guar'!$E$9))) -> 1388.576042 | Y25: =IF($U25=0, 0, IF('Dry Guar'!$E$9=0,0,M25/$U25/('Dry Guar'!$E$9))) -> 1715.092708
A26: ='Dry Sorghum'!$A$3:$H$3 -> Dryland Sorghum | B26: ='Dry Sorghum'!F$12 -> 123.3 | C26: ='Dry Sorghum'!G$12 -> 92.475 | D26: ='Dry Sorghum'!H$12 -> 30.825 | E26: ='Dry Sorghum'!F$41 -> 129.1091563 | F26: ='Dry Sorghum'!G$41 -> 110.8306797 | G26: ='Dry Sorghum'!H$41 -> 18.27847656 | H26: -5.80915625 | I26: -18.35567969 | J26: 12.54652344 | K26: ='Dry Sorghum'!F$53 -> 232.3591563 | L26: ='Dry Sorghum'!G$53 -> 161.0806797 | M26: ='Dry Sorghum'!H$53 -> 71.27847656 | R26: -109.0591563 | S26: -68.60567969 | T26: -40.45347656 | U26: ='Dry Sorghum'!$D$9 -> 6.85 | V26: ='Dry Sorghum'!$C$9 -> cwt | W26: =IF($U26=0, 0, (K26-'Dry Sorghum'!$F$10)/$U26) -> 33.92104471 | X26: =IF($U26=0, 0, IF('Dry Sorghum'!$E$9=0,0,(L26-'Dry Sorghum'!$G$10)/$U26/(1-'Dry Sorghum'!$E$9))) -> 31.35390359 | Y26: =IF($U26=0, 0, IF('Dry Sorghum'!$E$9=0,0,(M26-'Dry Sorghum'!$H$10)/$U26/('Dry Sorghum'!$E$9))) -> 41.62246807
A27: ='Dry Sunflowers-Oilseed'!$A$3:$H$3 -> Dryland Sunflowers-Oilseed | B27: ='Dry Sunflowers-Oilseed'!F$11 -> 140 | C27: ='Dry Sunflowers-Oilseed'!G$11 -> 105 | D27: ='Dry Sunflowers-Oilseed'!H$11 -> 35 | E27: ='Dry Sunflowers-Oilseed'!F$40 -> 143.6346 | F27: ='Dry Sunflowers-Oilseed'!G$40 -> 127.2272937 | G27: ='Dry Sunflowers-Oilseed'!H$40 -> 16.40730625 | H27: -3.6346 | I27: -22.22729375 | J27: 18.59269375 | K27: ='Dry Sunflowers-Oilseed'!F$52 -> 246.8846 | L27: ='Dry Sunflowers-Oilseed'!G$52 -> 177.4772938 | M27: ='Dry Sunflowers-Oilseed'!H$52 -> 69.40730625 | R27: -106.8846 | S27: -72.47729375 | T27: -34.40730625 | U27: ='Dry Sunflowers-Oilseed'!$D$9 -> 0.14 | V27: ='Dry Sunflowers-Oilseed'!$C$9 -> lbs | W27: 1763.461429 | X27: =IF($U27=0, 0, IF('Dry Sunflowers-Oilseed'!$E$9=0,0,L27/$U27/(1-'Dry Sunflowers-Oilseed'!$E$9))) -> 1690.25994 | Y27: =IF($U27=0, 0, IF('Dry Sunflowers-Oilseed'!$E$9=0,0,M27/$U27/('Dry Sunflowers-Oilseed'!$E$9))) -> 1983.065893
A28: ='Dry Wheat'!$A$3:$H$3 -> Dryland Wheat | B28: ='Dry Wheat'!F$12 -> 116.1 | C28: ='Dry Wheat'!G$12 -> 87.075 | D28: ='Dry Wheat'!H$12 -> 29.025 | E28: ='Dry Wheat'!F$40 -> 132.0180313 | F28: ='Dry Wheat'!G$40 -> 116.7079922 | G28: ='Dry Wheat'!H$40 -> 15.31003906 | H28: -15.91803125 | I28: -29.63299219 | J28: 13.71496094 | K28: ='Dry Wheat'!F$52 -> 235.2680313 | L28: ='Dry Wheat'!G$52 -> 166.9579922 | M28: ='Dry Wheat'!H$52 -> 68.31003906 | R28: -119.1680313 | S28: -79.88299219 | T28: -39.28503906 | U28: ='Dry Wheat'!$D$9 -> 4.75 | V28: ='Dry Wheat'!$C$9 -> bu | W28: =IF($U28=0, 0, (K28-'Dry Wheat'!$F$10)/$U28) -> 43.08800658 | X28: =IF($U28=0, 0, IF('Dry Wheat'!$E$9=0,0,(L28-'Dry Wheat'!$G$10)/$U28/(1-'Dry Wheat'!$E$9))) -> 40.42329605 | Y28: =IF($U28=0, 0, IF('Dry Wheat'!$E$9=0,0,(M28-'Dry Wheat'!$H$10)/$U28/('Dry Wheat'!$E$9))) -> 51.08213816

Sheet Whole Farm Scenario
B2: Whole Farm Comparative Profitability, Irrigation Capacity and Risk Analysis
B4: Farm Name | C4: ABC Farm
B5: Acres covered by irrigation system | C5: 120
B6: Total cropland acres | C6: 160
B7: Irrigation capacity in GPM | C7: 350
B8: Total number of days to irrigate | C8: 100
B9: Total acre inches available | C9: =C8*24*60*C7/27154 -> 1856.080136 | E9: =-C9*0.05 -> -92.80400678 | F9: =C9*0.05 -> 92.80400678
B10: Acre-inches per irrigated acre | C10: =IF(C5>0, C9/C5, 0) -> 15.46733446
F12: Comparative Farm Scenarios
B13: Crop | C13: APH | D13: Units | E13: Insurance Level | F13: 1 | G13: 2 | H13: 3 | I13: 4 | J13: 5 | K13: 6 | L13: Irrigation | M13: Inches | N13: Total Return | O13: Tenant Return | P13: Landlord Return | Q13: Total Pre-Harvest | R13: Tenant Pre-Harvest | S13: Landlord Pre-Harvest | T13: Insurance Price | U13: Landlord Share | V13: Tenant Share
B14: Irrigated Cotton - Pivot | C14: 975 | D14: =IF($B14="", "", VLOOKUP($B14, $B$60:$M$79,11)) -> lbs | E14: 0.65 | F14: 120 | L14: =IF($B14="", "", IF(VLOOKUP(B14, $B$60:$L$79,9)>0,TRUE, FALSE)) -> TRUE | M14: =IF($B14="", 0, VLOOKUP(B14, $B$60:$L$79,9)) -> 12 | N14: =IF($B14="", 0, VLOOKUP($B14, $B$60:$M$79,2)) -> 156.3398136 | O14: =IF($B14="", 0, VLOOKUP($B14, $B$60:$M$79,4)) -> 39.16887272 | P14: =IF($B14="", 0, VLOOKUP($B14, $B$60:$M$79,5)) -> 117.1709409 | Q14: =IF($B14="", 0, VLOOKUP($B14, $B$60:$M$79,6)) -> 507.7673292 | R14: =IF($B14="", 0, VLOOKUP($B14, $B$60:$M$79,7)) -> 433.9114844 | S14: =IF($B14="", 0, VLOOKUP($B14, $B$60:$M$79,8)) -> 73.85584481 | T14: =IF($B14="", 0, VLOOKUP($B14, $B$60:$M$79,10)) -> 0.94307 | U14: =IF($B14="", 0, VLOOKUP($B14, $B$60:$M$79,12)) -> 0.25 | V14: =1-U14 -> 0.75
B15: Dryland Cotton - Herbicide Tolerant | C15: 300 | D15: lbs | E15: 0.65 | F15: 40 | L15: FALSE | M15: 0 | N15: -15.68746941 | O15: -42.64216456 | P15: 26.95469515 | Q15: 195.6567002 | R15: 170.6190876 | S15: 25.03761255 | T15: 0.94307 | U15: 0.25 | V15: =1-U15 -> 0.75
B16: Irrigated Sorghum | C16: 56 | D16: cwt | E16: 0.65 | G16: 120 | L16: TRUE | M16: 9 | N16: -5.930774641 | O16: -46.20496223 | P16: 40.27418759 | Q16: 349.6807746 | R16: 304.0174622 | S16: 45.66331241 | T16: 7.964285714 | U16: 0.25 | V16: 0.75
B17: Dryland Sorghum | C17: 21 | D17: cwt | E17: 0.65 | G17: 40 | L17: FALSE | M17: 0 | N17: -5.80915625 | O17: -18.35567969 | P17: 12.54652344 | Q17: 107.9091563 | R17: 89.63067969 | S17: 18.27847656 | T17: 7.964285714 | U17: 0.25 | V17: 0.75
M18: 0 | N18: 0 | O18: 0 | P18: 0 | Q18: 0 | R18: 0 | S18: 0 | T18: 0 | U18: 0 | V18: 1
M19: 0 | N19: 0 | O19: 0 | P19: 0 | Q19: 0 | R19: 0 | S19: 0 | T19: 0 | U19: 0 | V19: 1
M20: 0 | N20: 0 | O20: 0 | P20: 0 | Q20: 0 | R20: 0 | S20: 0 | T20: 0 | U20: 0 | V20: 1
M21: 0 | N21: 0 | O21: 0 | P21: 0 | Q21: 0 | R21: 0 | S21: 0 | T21: 0 | U21: 0 | V21: 1
B23: Acreage Check
B24: Irrigated | F24: =SUMIF($L$14:$L$21, TRUE, F$14:F$21) -> 120 | G24: 120 | H24: 0 | I24: 0 | J24: 0 | K24: 0
B25: Dryland | F25: =SUMIF($L$14:$L$21, FALSE, F$14:F$21) -> 40 | G25: 40 | H25: 0 | I25: 0 | J25: 0 | K25: 0
B26: Total | F26: =SUM(F$14:F$21) -> 160 | G26: 160 | H26: 0 | I26: 0 | J26: 0 | K26: 0
B27: Irrigation Check
B28: Total acre inches used | F28: =SUM(F14:F21*$M$14:$M$21) -> 1440 | G28: =SUM(G14:G21*$M$14:$M$21) -> 1080 | H28: =SUM(H14:H21*$M$14:$M$21) -> 0 | I28: =SUM(I14:I21*$M$14:$M$21) -> 0 | J28: =SUM(J14:J21*$M$14:$M$21) -> 0 | K28: =SUM(K14:K21*$M$14:$M$21) -> 0
B29: Irrigation capacity check | F29: =$C$9-F28 -> 416.0801355 | G29: 776.0801355 | H29: 1856.080136 | I29: 1856.080136 | J29: 1856.080136 | K29: 1856.080136
B30: Percent irrigation capacity | F30: =IF($C$9=0, 0, F28/$C$9) -> 0.7758285714 | G30: 0.5818714286 | H30: 0 | I30: 0 | J30: 0 | K30: 0
B32: Profitability - Return over direct expenses
B33: Total | F33: =SUM(F$14:F$21*$N$14:$N$21) -> 18133.27886 | G33: =SUM(G$14:G$21*$N$14:$N$21) -> -944.059207 | H33: =SUM(H$14:H$21*$N$14:$N$21) -> 0 | I33: =SUM(I$14:I$21*$N$14:$N$21) -> 0 | J33: =SUM(J$14:J$21*$N$14:$N$21) -> 0 | K33: =SUM(K$14:K$21*$N$14:$N$21) -> 0
B34: Tenant | F34: =SUM(F$14:F$21*$O$14:$O$21) -> 2994.578144 | G34: =SUM(G$14:G$21*$O$14:$O$21) -> -6278.822655 | H34: =SUM(H$14:H$21*$O$14:$O$21) -> 0 | I34: =SUM(I$14:I$21*$O$14:$O$21) -> 0 | J34: =SUM(J$14:J$21*$O$14:$O$21) -> 0 | K34: =SUM(K$14:K$21*$O$14:$O$21) -> 0
B35: Landlord | F35: =SUM(F$14:F$21*$P$14:$P$21) -> 15138.70071 | G35: =SUM(G$14:G$21*$P$14:$P$21) -> 5334.763448 | H35: =SUM(H$14:H$21*$P$14:$P$21) -> 0 | I35: =SUM(I$14:I$21*$P$14:$P$21) -> 0 | J35: =SUM(J$14:J$21*$P$14:$P$21) -> 0 | K35: =SUM(K$14:K$21*$P$14:$P$21) -> 0
B37: Financial Risk
B38: Total
B39: Pre-Harvest Costs | F39: =SUM(F$14:F$21*$Q$14:$Q$21) -> 68758.34751 | G39: =SUM(G$14:G$21*$Q$14:$Q$21) -> 46278.05921 | H39: =SUM(H$14:H$21*$Q$14:$Q$21) -> 0 | I39: =SUM(I$14:I$21*$Q$14:$Q$21) -> 0 | J39: =SUM(J$14:J$21*$Q$14:$Q$21) -> 0 | K39: =SUM(K$14:K$21*$Q$14:$Q$21) -> 0
B40: Insurance Guarantee | F40: =SUM($C$14:$C$21*$E$14:$E$21*F$14:F$21*$T$14:$T$21) -> 79076.4195 | G40: =SUM($C$14:$C$21*$E$14:$E$21*G$14:G$21*$T$14:$T$21) -> 39136.5 | H40: =SUM($C$14:$C$21*$E$14:$E$21*H$14:H$21*$T$14:$T$21) -> 0 | I40: =SUM($C$14:$C$21*$E$14:$E$21*I$14:I$21*$T$14:$T$21) -> 0 | J40: =SUM($C$14:$C$21*$E$14:$E$21*J$14:J$21*$T$14:$T$21) -> 0 | K40: =SUM($C$14:$C$21*$E$14:$E$21*K$14:K$21*$T$14:$T$21) -> 0
B41: Insurance Coverage Ratio | F41: =IF(F39>0, F40/F39, 0) -> 1.150062827 | G41: 0.8456815318 | H41: 0 | I41: 0 | J41: 0 | K41: 0
B42: Tenant
B43: Pre-Harvest Costs | F43: =SUM(F$14:F$21*$R$14:$R$21) -> 58894.14164 | G43: =SUM(G$14:G$21*$R$14:$R$21) -> 40067.32266 | H43: =SUM(H$14:H$21*$R$14:$R$21) -> 0 | I43: =SUM(I$14:I$21*$R$14:$R$21) -> 0 | J43: =SUM(J$14:J$21*$R$14:$R$21) -> 0 | K43: =SUM(K$14:K$21*$R$14:$R$21) -> 0
B44: Insurance Guarantee | F44: =SUM($C$14:$C$21*$E$14:$E$21*F$14:F$21*$T$14:$T$21*$V$14:$V$21) -> 59307.31462 | G44: =SUM($C$14:$C$21*$E$14:$E$21*G$14:G$21*$T$14:$T$21*$V$14:$V$21) -> 29352.375 | H44: =SUM($C$14:$C$21*$E$14:$E$21*H$14:H$21*$T$14:$T$21*$V$14:$V$21) -> 0 | I44: =SUM($C$14:$C$21*$E$14:$E$21*I$14:I$21*$T$14:$T$21*$V$14:$V$21) -> 0 | J44: =SUM($C$14:$C$21*$E$14:$E$21*J$14:J$21*$T$14:$T$21*$V$14:$V$21) -> 0 | K44: =SUM($C$14:$C$21*$E$14:$E$21*K$14:K$21*$T$14:$T$21*$V$14:$V$21) -> 0
B45: Insurance Coverage Ratio | F45: =IF(F43>0, F44/F43, 0) -> 1.007015519 | G45: 0.7325764003 | H45: 0 | I45: 0 | J45: 0 | K45: 0
B46: Landlord
B47: Pre-Harvest Costs | F47: =SUM(F$14:F$21*$S$14:$S$21) -> 9864.205879 | G47: =SUM(G$14:G$21*$S$14:$S$21) -> 6210.736552 | H47: =SUM(H$14:H$21*$S$14:$S$21) -> 0 | I47: =SUM(I$14:I$21*$S$14:$S$21) -> 0 | J47: =SUM(J$14:J$21*$S$14:$S$21) -> 0 | K47: =SUM(K$14:K$21*$S$14:$S$21) -> 0
B48: Insurance Guarantee | F48: =SUM($C$14:$C$21*$E$14:$E$21*F$14:F$21*$T$14:$T$21*$U$14:$U$21) -> 19769.10488 | G48: =SUM($C$14:$C$21*$E$14:$E$21*G$14:G$21*$T$14:$T$21*$U$14:$U$21) -> 9784.125 | H48: =SUM($C$14:$C$21*$E$14:$E$21*H$14:H$21*$T$14:$T$21*$U$14:$U$21) -> 0 | I48: =SUM($C$14:$C$21*$E$14:$E$21*I$14:I$21*$T$14:$T$21*$U$14:$U$21) -> 0 | J48: =SUM($C$14:$C$21*$E$14:$E$21*J$14:J$21*$T$14:$T$21*$U$14:$U$21) -> 0 | K48: =SUM($C$14:$C$21*$E$14:$E$21*K$14:K$21*$T$14:$T$21*$U$14:$U$21) -> 0
B49: Insurance Coverage Ratio | F49: =IF(F47>0, F48/F47, 0) -> 2.004125331 | G49: 1.575356629 | H49: 0 | I49: 0 | J49: 0 | K49: 0
E51: 0.5
E52: 0.55
E53: 0.6
E54: 0.65
E55: 0.7
E56: 0.75
E57: 0.8
E58: 0.85
C59: Total Return Over Direct | E59: Tenant Return Over Direct | F59: Landlord Return Over Direct | G59: Total Pre-Harvest Expense | H59: Tenant Pre-Harvest Expense | I59: Landlord Pre-Harvest Expense | J59: Inches of Water | K59: Insurance Price | L59: Unit | M59: Landlord Share of Production
B60: ='Dry Cotton Conventional'!$A$3 -> Dryland Cotton - Conventional | C60: ='Comparative Returns'!H22 -> -26.53638725 | E60: ='Comparative Returns'!I22 -> -60.80442793 | F60: ='Comparative Returns'!J22 -> 34.26804069 | G60: ='Dry Cotton Conventional'!F46-'Dry Cotton Conventional'!F28-'Dry Cotton Conventional'!F29-'Dry Cotton Conventional'!F30 -> 206.505618 | H60: ='Dry Cotton Conventional'!G46-'Dry Cotton Conventional'!G28-'Dry Cotton Conventional'!G29-'Dry Cotton Conventional'!G30 -> 188.781351 | I60: ='Dry Cotton Conventional'!H46-'Dry Cotton Conventional'!H28-'Dry Cotton Conventional'!H29-'Dry Cotton Conventional'!H30 -> 17.724267 | J60: 0 | K60: =0.78+(0.115*1.418) -> 0.94307 | L60: ='Dry Cotton Conventional'!$C$9 -> lbs | M60: ='Dry Cotton Conventional'!E9 -> 0.25
B61: ='Dry Cotton HT'!$A$3 -> Dryland Cotton - Herbicide Tolerant | C61: ='Comparative Returns'!H23 -> -15.68746941 | E61: ='Comparative Returns'!I23 -> -42.64216456 | F61: ='Comparative Returns'!J23 -> 26.95469515 | G61: ='Dry Cotton HT'!F47-'Dry Cotton HT'!F29-'Dry Cotton HT'!F30-'Dry Cotton HT'!F31 -> 195.6567002 | H61: ='Dry Cotton HT'!G47-'Dry Cotton HT'!G29-'Dry Cotton HT'!G30-'Dry Cotton HT'!G31 -> 170.6190876 | I61: ='Dry Cotton HT'!H47-'Dry Cotton HT'!H29-'Dry Cotton HT'!H30-'Dry Cotton HT'!H31 -> 25.03761255 | J61: 0 | K61: =0.78+(0.115*1.418) -> 0.94307 | L61: ='Dry Cotton HT'!$C$9 -> lbs | M61: ='Dry Cotton HT'!E9 -> 0.25
B62: ='Dry Sesame'!$A$3 -> Dryland Sesame | C62: ='Comparative Returns'!H25 -> 113.7192187 | E62: ='Comparative Returns'!I25 -> 67.28519531 | F62: ='Comparative Returns'!J25 -> 46.43402344 | G62: ='Dry Sesame'!F40-'Dry Sesame'!F23-'Dry Sesame'!F24 -> 91.44078125 | H62: ='Dry Sesame'!G40-'Dry Sesame'!G23-'Dry Sesame'!G24 -> 86.58480469 | I62: ='Dry Sesame'!H40-'Dry Sesame'!H23-'Dry Sesame'!H24 -> 4.855976563 | J62: 0 | K62: =Sesame_NI_Price -> 0.33 | L62: ='Dry Sesame'!$C$9 -> lbs | M62: ='Dry Sesame'!E9 -> 0.25
B63: ='Dry Sorghum'!$A$3 -> Dryland Sorghum | C63: ='Comparative Returns'!H26 -> -5.80915625 | E63: ='Comparative Returns'!I26 -> -18.35567969 | F63: ='Comparative Returns'!J26 -> 12.54652344 | G63: ='Dry Sorghum'!F41-'Dry Sorghum'!F24-'Dry Sorghum'!F25 -> 107.9091563 | H63: ='Dry Sorghum'!G41-'Dry Sorghum'!G24-'Dry Sorghum'!G25 -> 89.63067969 | I63: ='Dry Sorghum'!H41-'Dry Sorghum'!H24-'Dry Sorghum'!H25 -> 18.27847656 | J63: 0 | K63: =4.46/56*100 -> 7.964285714 | L63: ='Dry Sorghum'!$C$9 -> cwt | M63: ='Dry Sorghum'!E9 -> 0.25
B64: ='Dry Sunflowers-Oilseed'!$A$3 -> Dryland Sunflowers-Oilseed | C64: ='Comparative Returns'!H27 -> -3.6346 | E64: ='Comparative Returns'!I27 -> -22.22729375 | F64: ='Comparative Returns'!J27 -> 18.59269375 | G64: ='Dry Sunflowers-Oilseed'!F40-'Dry Sunflowers-Oilseed'!F23-'Dry Sunflowers-Oilseed'!F24 -> 125.6346 | H64: ='Dry Sunflowers-Oilseed'!G40-'Dry Sunflowers-Oilseed'!G23-'Dry Sunflowers-Oilseed'!G24 -> 113.7272937 | I64: ='Dry Sunflowers-Oilseed'!H40-'Dry Sunflowers-Oilseed'!H23-'Dry Sunflowers-Oilseed'!H24 -> 11.90730625 | J64: 0 | K64: 0.209 | L64: ='Dry Sunflowers-Oilseed'!$C$9 -> lbs | M64: ='Dry Sunflowers-Oilseed'!E9 -> 0.25
B65: ='Dry Wheat'!$A$3 -> Dryland Wheat | C65: ='Comparative Returns'!H28 -> -15.91803125 | E65: ='Comparative Returns'!I28 -> -29.63299219 | F65: ='Comparative Returns'!J28 -> 13.71496094 | G65: ='Dry Wheat'!F40-'Dry Wheat'!F24-'Dry Wheat'!F25 -> 115.4980313 | H65: ='[1]Irrigated Wheat'!G42-'[1]Irrigated Wheat'!G23 -> 360.53605 | I65: ='[1]Irrigated Wheat'!H42-'[1]Irrigated Wheat'!H23 -> 50.59875 | J65: 0 | K65: 7.02 | L65: ='Dry Wheat'!$C$9 -> bu | M65: ='Dry Wheat'!E9 -> 0.25
B66: ='Irr Alfalfa'!$A$3 -> Irrigated Alfalfa | C66: ='Comparative Returns'!H7 -> 350.9158342 | E66: ='Comparative Returns'!I7 -> 186.2656256 | F66: ='Comparative Returns'!J7 -> 164.6502085 | G66: ='Irr Alfalfa'!F$47-'Irr Alfalfa'!F$25 -> 489.0841658 | H66: ='Irr Alfalfa'!G$47-'Irr Alfalfa'!G$25 -> 443.7343744 | I66: ='Irr Alfalfa'!H$47-'Irr Alfalfa'!H$25 -> 45.34979145 | J66: =Alfalfa_Inches -> 24 | K66: 0 | L66: ='Irr Alfalfa'!$C$9 -> tons | M66: ='Irr Alfalfa'!E9 -> 0.25
B67: ='Irr Blackeyes'!$A$3 -> Irrigated Blackeyed Peas | C67: ='Comparative Returns'!H8 -> 375.78245 | E67: ='Comparative Returns'!I8 -> 242.610575 | F67: ='Comparative Returns'!J8 -> 133.171875 | G67: ='Irr Blackeyes'!F46-'Irr Blackeyes'!F23-'Irr Blackeyes'!F24 -> 238.01755 | H67: ='Irr Blackeyes'!G46-'Irr Blackeyes'!G23-'Irr Blackeyes'!G24 -> 217.739425 | I67: ='Irr Blackeyes'!H46-'Irr Blackeyes'!H23-'Irr Blackeyes'!H24 -> 20.278125 | J67: =Blackeyes_Inches -> 8 | K67: 0.43 | L67: ='Irr Blackeyes'!$C$9 -> lbs | M67: ='Irr Blackeyes'!E9 -> 0.25
B68: ='Irr Corn'!$A$3 -> Irrigated Corn | C68: ='Comparative Returns'!H9 -> 3.477366557 | E68: ='Comparative Returns'!I9 -> -112.8512876 | F68: ='Comparative Returns'!J9 -> 116.3286541 | G68: ='Irr Corn'!F46-'Irr Corn'!F24 -> 763.0226334 | H68: ='Irr Corn'!G46-'Irr Corn'!G24 -> 687.7262876 | I68: ='Irr Corn'!H46-'Irr Corn'!H24 -> 75.29634586 | J68: =Corn_Inches -> 24 | K68: 4.62 | L68: ='Irr Corn'!$C$9 -> bu | M68: ='Irr Corn'!E9 -> 0.25
B69: ='Irr Corn Silage'!$A$3 -> Irrigated Corn Silage | C69: ='Comparative Returns'!H10 -> 55.96651439 | E69: ='Comparative Returns'!I10 -> -63.9647767 | F69: ='Comparative Returns'!J10 -> 119.9312911 | G69: ='Irr Corn Silage'!F46-'Irr Corn Silage'!F24 -> 750.0334856 | H69: ='Irr Corn Silage'!G46-'Irr Corn Silage'!G24 -> 668.4647767 | I69: ='Irr Corn Silage'!H46-'Irr Corn Silage'!H24 -> 81.5687089 | J69: =Corn_Silage_Inches -> 22 | K69: 0 | L69: ='Irr Corn Silage'!$C$9 -> tons | M69: ='Irr Corn Silage'!E9 -> 0.25
B70: ='Irr Cotton Drip'!$A$3 -> Irrigated Cotton - Drip | C70: ='Comparative Returns'!H11 -> 263.8210991 | E70: ='Comparative Returns'!I11 -> -22.78622337 | F70: ='Comparative Returns'!J11 -> 286.6073224 | G70: ='Irr Cotton Drip'!F54-'Irr Cotton Drip'!F30-'Irr Cotton Drip'!F31-'Irr Cotton Drip'!F32 -> 670.9289009 | H70: ='Irr Cotton Drip'!G54-'Irr Cotton Drip'!G30-'Irr Cotton Drip'!G31-'Irr Cotton Drip'!G32 -> 585.1312234 | I70: ='Irr Cotton Drip'!H54-'Irr Cotton Drip'!H30-'Irr Cotton Drip'!H31-'Irr Cotton Drip'!H32 -> 85.79767755 | J70: =Cotton_Drip_Inches -> 18 | K70: =0.78+(0.115*1.418) -> 0.94307 | L70: ='Irr Cotton Drip'!$C$9 -> lbs | M70: ='Irr Cotton Drip'!E9 -> 0.33
B71: ='Irr Cotton Pivot'!$A$3 -> Irrigated Cotton - Pivot | C71: ='Comparative Returns'!H12 -> 156.3398136 | E71: ='Comparative Returns'!I12 -> 39.16887272 | F71: ='Comparative Returns'!J12 -> 117.1709409 | G71: ='Irr Cotton Pivot'!F53-'Irr Cotton Pivot'!F29-'Irr Cotton Pivot'!F30-'Irr Cotton Pivot'!F31 -> 507.7673292 | H71: ='Irr Cotton Pivot'!G53-'Irr Cotton Pivot'!G29-'Irr Cotton Pivot'!G30-'Irr Cotton Pivot'!G31 -> 433.9114844 | I71: ='Irr Cotton Pivot'!H53-'Irr Cotton Pivot'!H29-'Irr Cotton Pivot'!H30-'Irr Cotton Pivot'!H31 -> 73.85584481 | J71: =Cotton_Inches -> 12 | K71: =0.78+(0.115*1.418) -> 0.94307 | L71: ='Irr Cotton Pivot'!$C$9 -> lbs | M71: ='Irr Cotton Pivot'!E9 -> 0.25
B72: ='Irr Peanuts'!$A$3 -> Irrigated Peanuts | C72: ='Comparative Returns'!H14 -> -17.07638235 | E72: ='Comparative Returns'!I14 -> -124.1624118 | F72: ='Comparative Returns'!J14 -> 107.0860294 | G72: ='Irr Peanuts'!F50-'Irr Peanuts'!F25-'Irr Peanuts'!F26-'Irr Peanuts'!F27 -> 689.5763824 | H72: ='Irr Peanuts'!G50-'Irr Peanuts'!G25-'Irr Peanuts'!G26-'Irr Peanuts'!G27 -> 628.5374118 | I72: ='Irr Peanuts'!H50-'Irr Peanuts'!H25-'Irr Peanuts'!H26-'Irr Peanuts'!H27 -> 61.03897059 | J72: =Peanuts_Inches -> 24 | K72: =Peanut_Price -> 400 | L72: ='Irr Peanuts'!$C$9 -> tons | M72: ='Irr Peanuts'!E9 -> 0.25
B73: ='Irr Sesame'!$A$3 -> Irrigated Sesame | C73: ='Comparative Returns'!H15 -> 244.501439 | E73: ='Comparative Returns'!I15 -> 133.2382542 | F73: ='Comparative Returns'!J15 -> 111.2631847 | G73: ='Irr Sesame'!F47-'Irr Sesame'!F24-'Irr Sesame'!F25 -> 298.698561 | H73: ='Irr Sesame'!G47-'Irr Sesame'!G24-'Irr Sesame'!G25 -> 274.1617458 | I73: ='Irr Sesame'!H47-'Irr Sesame'!H24-'Irr Sesame'!H25 -> 24.53681526 | J73: =Sesame_Inches -> 11 | K73: =Sesame_Price -> 0.33 | L73: ='Irr Sesame'!$C$9 -> lbs | M73: ='Irr Sesame'!E9 -> 0.25
B74: ='Irr Sorghum'!$A$3 -> Irrigated Sorghum | C74: ='Comparative Returns'!H16 -> -5.930774641 | E74: ='Comparative Returns'!I16 -> -46.20496223 | F74: ='Comparative Returns'!J16 -> 40.27418759 | G74: ='Irr Sorghum'!F46-'Irr Sorghum'!F24 -> 349.6807746 | H74: ='Irr Sorghum'!G46-'Irr Sorghum'!G24 -> 304.0174622 | I74: ='Irr Sorghum'!H46-'Irr Sorghum'!H24 -> 45.66331241 | J74: =Sorghum_Inches -> 9 | K74: =4.46/56*100 -> 7.964285714 | L74: ='Irr Sorghum'!$C$9 -> cwt | M74: ='Irr Sorghum'!E9 -> 0.25
B75: ='Irr Sorghum Silage'!$A$3 -> Irrigated Sorghum Silage | C75: ='Comparative Returns'!H17 -> 150.3672304 | E75: ='Comparative Returns'!I17 -> 39.07349524 | F75: ='Comparative Returns'!J17 -> 111.2937352 | G75: ='Irr Sorghum Silage'!F45-'Irr Sorghum Silage'!F23 -> 497.6327696 | H75: ='Irr Sorghum Silage'!G45-'Irr Sorghum Silage'!G23 -> 446.9265048 | I75: ='Irr Sorghum Silage'!H45-'Irr Sorghum Silage'!H23 -> 50.7062648 | J75: =Sorghum_Silage_Inches -> 16 | K75: 0 | L75: ='Irr Sorghum Silage'!$C$9 -> tons | M75: ='Irr Sorghum Silage'!E9 -> 0.25
B76: ='Irr Soybeans'!$A$3 -> Irrigated Soybeans | C76: ='Comparative Returns'!H18 -> -115.6825066 | E76: ='Comparative Returns'!I18 -> -156.6234112 | F76: ='Comparative Returns'!J18 -> 40.9409046 | G76: ='Irr Soybeans'!F48-'Irr Soybeans'!F26 -> 435.6825066 | H76: ='Irr Soybeans'!G48-'Irr Soybeans'!G26 -> 396.6234112 | I76: ='Irr Soybeans'!H48-'Irr Soybeans'!H26 -> 39.0590954 | J76: =Soybeans_Inches -> 15 | K76: 11.36 | L76: ='Irr Soybeans'!$C$9 -> bu | M76: ='Irr Soybeans'!E9 -> 0.25
B77: ='Irr Sunflowers-Confection'!$A$3 -> Irrigated Sunflowers-Confectionary | C77: ='Comparative Returns'!H19 -> 91.05427022 | E77: ='Comparative Returns'!I19 -> 30.24307767 | F77: ='Comparative Returns'!J19 -> 60.81119256 | G77: ='Irr Sunflowers-Confection'!F47-'Irr Sunflowers-Confection'!F23-'Irr Sunflowers-Confection'!F24 -> 309.6657298 | H77: ='[1]Irrigated Sesame'!G43-'[1]Irrigated Sesame'!G22-'[1]Irrigated Sesame'!G23 -> 238.5776125 | I77: ='[1]Irrigated Sesame'!H43-'[1]Irrigated Sesame'!H22-'[1]Irrigated Sesame'!H23 -> 25.3959375 | J77: =Sunflowers_Conf_Inches -> 8 | K77: 0.274 | L77: ='Irr Sunflowers-Confection'!$C$9 -> lbs | M77: ='Irr Sunflowers-Confection'!E9 -> 0.25
B78: ='Irr Sunflowers-Oilseed'!$A$3 -> Irrigated Sunflowers-Oilseed | C78: ='Comparative Returns'!H20 -> -38.50557978 | E78: ='Comparative Returns'!I20 -> -75.12227858 | F78: ='Comparative Returns'!J20 -> 36.61669881 | G78: ='Irr Sunflowers-Oilseed'!F46-'Irr Sunflowers-Oilseed'!F22-'Irr Sunflowers-Oilseed'!F23 -> 292.5055798 | H78: ='Irr Sunflowers-Oilseed'!G46-'Irr Sunflowers-Oilseed'!G22-'Irr Sunflowers-Oilseed'!G23 -> 265.6222786 | I78: ='Irr Sunflowers-Oilseed'!H46-'Irr Sunflowers-Oilseed'!H22-'Irr Sunflowers-Oilseed'!H23 -> 26.88330119 | J78: =Sunflowers_Oil_Inches -> 8 | K78: 0.209 | L78: ='Irr Sunflowers-Oilseed'!$C$9 -> lbs | M78: ='Irr Sunflowers-Oilseed'!E9 -> 0.25
B79: ='Irr Wheat'!$A$3 -> Irrigated Wheat | C79: ='Comparative Returns'!H21 -> -103.3165082 | E79: ='Comparative Returns'!I21 -> -135.2557562 | F79: ='Comparative Returns'!J21 -> 31.93924795 | G79: ='Irr Wheat'!F45-'Irr Wheat'!F24 -> 419.5165082 | H79: ='Irr Wheat'!G45-'Irr Wheat'!G24 -> 372.4057562 | I79: ='Irr Wheat'!H45-'Irr Wheat'!H24 -> 47.11075205 | J79: =Wheat_Inches -> 14 | K79: 7.02 | L79: ='Irr Wheat'!$C$9 -> bu | M79: ='Irr Wheat'!E9 -> 0.25
